Workbook

Sheet SourceTypeAgeDistribution
A1: sourceTypeID | B1: yearID | C1: ageID | D1: ageFraction

Sheet Inputs
A1: Welcome (READ FIRST)
A2: Welcome to the Age Distribution Projection Tool for MOVES2014. This macro-based excel file projects a base year age distribution by source type to a future distribution using a similar algorithm to what was used to generate the national projected age distributions in MOVES2014. It also generates charts on new worksheets allowing the user to visually inspect the differences between the base year and analysis year age distributions. USER MUST ENABLE MACROS FOR THIS TOOL TO WORK. Instructions: First, enter the analysis year (Step 1). Then, enter the base year age distribution by sourcetype in the space provided (Step 2). The base year age distributions should be formatted as they are accepted into MOVES; see step 2 below. After inputing base year age distribution, click the green button labeled "Start" to run the tool. Lastly, if the user requires multiple analysis years, click the red button labeled "Reset" to clear the previous results and generated graphs. NOTE: This calculator will only work with base year age distributions from 2011 or later. The output page "SourceTypeAgeDistribution" contains the future year age distribution formatted for use in MOVES. This tool is a .xlsxm file using a macro. Therefore, MOVES cannot import it directly into an input database. To import the projected age distribution, users can either 1) copy the calculated SourceTypeAgeDistribution into a blank spreadsheet and import from there; or 2) re-save this file by selecting File > Save As, choosing either an .xls or .xlsx file, and then selecting "Yes" when prompted to confirm saving a macro-free version of this workbook. Version 11/21/14
A4: Calculation Inputs: follow the numbered steps below and make your selection or input data into the black outlined boxes.
A5: 1) Please specify an analysis year: | E5: 2) Enter a base year age distribution by sourcetype below (max 403 rows):
E6: sourceTypeID | F6: yearID | G6: ageID | H6: ageFraction
A7: 3) Once you have completed step 2, click "Start"

Sheet 11 (hidden)
D1: 2011 | E1: 2012 | F1: 2013 | G1: 2014 | H1: 2015 | I1: 2016 | J1: 2017 | K1: 2018 | L1: 2019 | M1: 2020 | N1: 2021 | O1: 2022 | P1: 2023 | Q1: 2024 | R1: 2025 | S1: 2026 | T1: 2027 | U1: 2028 | V1: 2029 | W1: 2030 | X1: 2031 | Y1: 2032 | Z1: 2033 | AA1: 2034 | AB1: 2035 | AC1: 2036 | AD1: 2037 | AE1: 2038 | AF1: 2039 | AG1: 2040 | AH1: 2041 | AI1: 2042 | AJ1: 2043 | AK1: 2044 | AL1: 2045 | AM1: 2046 | AN1: 2047 | AO1: 2048 | AP1: 2049 | AQ1: 2050
C2: sales (age 0 pop) | D2: 0.05853699893 | E2: 0.06760790601 | F2: 0.06899685 | G2: 0.07182202313 | H2: 0.07255478717 | I2: 0.07344178247 | J2: 0.07289481972 | K2: 0.07111401913 | L2: 0.07067893349 | M2: 0.0704495059 | N2: 0.07015314861 | O2: 0.07015466801 | P2: 0.07013420276 | Q2: 0.07002432416 | R2: 0.07112824603 | S2: 0.07141142862 | T2: 0.07217159442 | U2: 0.07222639156 | V2: 0.07189533633 | W2: 0.07156063862 | X2: 0.07117787399 | Y2: 0.07082284952 | Z2: 0.07037079154 | AA2: 0.07042019754 | AB2: 0.0703263593 | AC2: 0.07029503566 | AD2: 0.07039889035 | AE2: 0.07045742127 | AF2: 0.07054037766 | AG2: 0.07058732739 | AH2: 0.07064368677 | AI2: 0.07064367884 | AJ2: 0.0706436784 | AK2: 0.07064367949 | AL2: 0.07064368251 | AM2: 0.07064368178 | AN2: 0.07064368389 | AO2: 0.07064367732 | AP2: 0.07064368049 | AQ2: 0.07064368185
C3: scrappage k factor | D3: 1.175770167 | E3: 1.028007443 | F3: 1.275072313 | G3: 1.249784036 | H3: 1.158930542 | I3: 1.145088669 | J3: 1.151686891 | K3: 1.136505265 | L3: 1.127736899 | M3: 1.111491729 | N3: 1.110486361 | O3: 1.097394162 | P3: 1.082290291 | Q3: 1.083334173 | R3: 1.088898297 | S3: 1.084423028 | T3: 1.07010203 | U3: 1.067689433 | V3: 1.057295536 | W3: 1.026701167 | X3: 0.9993570385 | Y3: 0.9798878808 | Z3: 0.9846183075 | AA3: 0.9787094092 | AB3: 0.9683580642 | AC3: 0.9598542525 | AD3: 0.9594800588 | AE3: 0.9615658521 | AF3: 1.040580961 | AG3: 1.042620067 | AH3: 1.051551924 | AI3: 1.04253596 | AJ3: 1.036017308 | AK3: 1.029765788 | AL3: 1.026261801 | AM3: 1.022888451 | AN3: 1.021436517 | AO3: 1.022628917 | AP3: 1.023101643
A5: default
A6: scrappage | C6: age | D6: 2011 | E6: 2012 | F6: 2013 | G6: 2014 | H6: 2015 | I6: 2016 | J6: 2017 | K6: 2018 | L6: 2019 | M6: 2020 | N6: 2021 | O6: 2022 | P6: 2023 | Q6: 2024 | R6: 2025 | S6: 2026 | T6: 2027 | U6: 2028 | V6: 2029 | W6: 2030 | X6: 2031 | Y6: 2032 | Z6: 2033 | AA6: 2034 | AB6: 2035 | AC6: 2036 | AD6: 2037 | AE6: 2038 | AF6: 2039 | AG6: 2040 | AH6: 2041 | AI6: 2042 | AJ6: 2043 | AK6: 2044 | AL6: 2045 | AM6: 2046 | AN6: 2047 | AO6: 2048 | AP6: 2049 | AQ6: 2050
A7: 0 | C7: 0 | D7: 0.05853699893 | E7: =E41 -> 0.06760790601 | F7: =F41 -> 0.06899685 | G7: 0.07182202313 | H7: 0.07255478717 | I7: 0.07344178247 | J7: 0.07289481972 | K7: 0.07111401913 | L7: 0.07067893349 | M7: 0.0704495059 | N7: 0.07015314861 | O7: 0.07015466801 | P7: 0.07013420276 | Q7: 0.07002432416 | R7: 0.07112824603 | S7: 0.07141142862 | T7: 0.07217159442 | U7: 0.07222639156 | V7: 0.07189533633 | W7: 0.07156063862 | X7: 0.07117787399 | Y7: 0.07082284952 | Z7: 0.07037079154 | AA7: 0.07042019754 | AB7: 0.0703263593 | AC7: 0.07029503566 | AD7: 0.07039889035 | AE7: 0.07045742127 | AF7: 0.07054037766 | AG7: 0.07058732739 | AH7: 0.07064368677 | AI7: 0.07064367884 | AJ7: 0.0706436784 | AK7: 0.07064367949 | AL7: 0.07064368251 | AM7: 0.07064368178 | AN7: 0.07064368389 | AO7: 0.07064367732 | AP7: 0.07064368049 | AQ7: 0.07064368185
A8: 0.02100002766 | C8: 1 | D8: 0.05651727319 | E8: =E42*(1-E$41-E$71)/SUM(E$42:E$70) -> 0.05837987772 | F8: =F42*(1-F$41-F$71)/SUM(F$42:F$70) -> 0.06672955323 | G8: 0.06885460645 | H8: 0.07149497722 | I8: 0.07178853229 | J8: 0.07266776894 | K8: 0.07227771088 | L8: 0.07051303842 | M8: 0.07012439035 | N8: 0.06989460482 | O8: 0.06964931387 | P8: 0.06963934393 | Q8: 0.06962157135 | R8: 0.06934961927 | S8: 0.07052129432 | T8: 0.07074647279 | U8: 0.07141834484 | V8: 0.07152522676 | W8: 0.07129549449 | X8: 0.07097329104 | Y8: 0.07058490158 | Z8: 0.07023849175 | AA8: 0.06988133736 | AB8: 0.07000529102 | AC8: 0.06994114631 | AD8: 0.06985752392 | AE8: 0.07000916375 | AF8: 0.06955762313 | AG8: 0.06988720726 | AH8: 0.06995092725 | AI8: 0.07012549858 | AJ8: 0.07011419788 | AK8: 0.07011746336 | AL8: 0.07010269858 | AM8: 0.07010461568 | AN8: 0.07009336027 | AO8: 0.0700758757 | AP8: 0.07008087315 | AQ8: 0.07008427784
A9: 0.06000000238 | C9: 2 | D9: 0.06142334267 | E9: =E43*(1-E$41-E$71)/SUM(E$42:E$70) -> 0.05497383922 | F9: 0.05637747251 | G9: 0.06480888009 | H9: 0.06674217817 | I9: 0.06901827717 | J9: 0.06932384503 | K9: 0.07030995765 | L9: 0.06995644773 | M9: 0.06830297357 | N9: 0.067948144 | O9: 0.06777437391 | P9: 0.06754440227 | Q9: 0.06755912675 | R9: 0.06738211432 | S9: 0.06718556656 | T9: 0.06827360595 | U9: 0.06843486309 | V9: 0.06913926279 | W9: 0.06935363126 | X9: 0.06918575533 | Y9: 0.06890494887 | Z9: 0.06856201844 | AA9: 0.06830773706 | AB9: 0.06804180216 | AC9: 0.06820603861 | AD9: 0.06810481037 | AE9: 0.06807101979 | AF9: 0.06771945546 | AG9: 0.06740763785 | AH9: 0.06774073115 | AI9: 0.06790445164 | AJ9: 0.06807613103 | AK9: 0.06807785762 | AL9: 0.06807582592 | AM9: 0.06806846848 | AN9: 0.06806432941 | AO9: 0.06803854384 | AP9: 0.06802468836 | AQ9: 0.06803215131
A10: 0.06000000238 | C10: 3 | D10: 0.1088406742 | E10: 0.05693692078 | F10: 0.0509128684 | G10: 0.05195701548 | H10: 0.05967607204 | I10: 0.061445351 | J10: 0.06359893639 | K10: 0.06398715912 | L10: 0.06496183132 | M10: 0.0647111641 | N10: 0.06324576676 | O10: 0.06296533098 | P10: 0.06284680164 | Q10: 0.06269660097 | R10: 0.06255913986 | S10: 0.06244235878 | T10: 0.06222921093 | U10: 0.0632232069 | V10: 0.06342903461 | W10: 0.06421297127 | X10: 0.06454713663 | Y10: 0.06449546286 | Z10: 0.06431869396 | AA10: 0.06406287195 | AB10: 0.06391770472 | AC10: 0.0637374274 | AD10: 0.06387790519 | AE10: 0.06382877611 | AF10: 0.0633245663 | AG10: 0.06290350052 | AH10: 0.06262108964 | AI10: 0.0630012135 | AJ10: 0.06317976726 | AK10: 0.06336887936 | AL10: 0.06338248138 | AM10: 0.06339652337 | AN10: 0.0633931648 | AO10: 0.06337937769 | AP10: 0.06335506208 | AQ10: 0.06334332067
A11: 0.06000000238 | C11: 4 | D11: 0.09683910012 | E11: 0.1008908433 | F11: 0.05273093523 | G11: 0.04692088124 | H11: 0.04784206416 | I11: 0.05494002884 | J11: 0.05662063921 | K11: 0.05870296521 | L11: 0.05911997641 | M11: 0.06009104041 | N11: 0.05991989774 | O11: 0.05860779122 | P11: 0.05838740276 | Q11: 0.05833615685 | R11: 0.058056485 | S11: 0.05797295462 | T11: 0.05783591499 | U11: 0.05762593353 | V11: 0.05859859724 | W11: 0.05890960669 | X11: 0.05976274573 | Y11: 0.06017130887 | Z11: 0.06020269959 | AA11: 0.06009800103 | AB11: 0.0599456505 | AC11: 0.05987422341 | AD11: 0.05969285751 | AE11: 0.05986726175 | AF11: 0.05937812563 | AG11: 0.05882115947 | AH11: 0.05843678655 | AI11: 0.05823977054 | AJ11: 0.05861768867 | AK11: 0.05881108383 | AL11: 0.05899828456 | AM11: 0.0590257835 | AN11: 0.05904211367 | AO11: 0.05902973509 | AP11: 0.05901661296 | AQ11: 0.05899505179
A12: 0.06000000238 | C12: 5 | D12: 0.09174875915 | E12: 0.08976587616 | F12: 0.09343793889 | G12: 0.04859639668 | H12: 0.04320478745 | I12: 0.04404519759 | J12: 0.05062611735 | K12: 0.05226187106 | L12: 0.05423772466 | M12: 0.05468720353 | N12: 0.0556418517 | O12: 0.05552581677 | P12: 0.05434668027 | Q12: 0.05419681824 | R12: 0.05401875321 | S12: 0.05380038757 | T12: 0.05369622385 | U12: 0.05355762258 | V12: 0.05341074954 | W12: 0.05442334629 | X12: 0.05482692633 | Y12: 0.05571126497 | Z12: 0.05616635763 | AA12: 0.05625210464 | AB12: 0.05623559569 | AC12: 0.05615344429 | AD12: 0.05607479989 | AE12: 0.05594497682 | AF12: 0.05569283959 | AG12: 0.05515537493 | AH12: 0.05464432841 | AI12: 0.05434822452 | AJ12: 0.05418753938 | AK12: 0.05456445872 | AL12: 0.0547548433 | AM12: 0.05494294157 | AN12: 0.05497157941 | AO12: 0.05497817218 | AP12: 0.05496638112 | AQ12: 0.05495516891
A13: 0.06000000238 | C13: 6 | D13: 0.08034599572 | E13: 0.08504733875 | F13: 0.08313478384 | G13: 0.08611163682 | H13: 0.0447476035 | I13: 0.03977594683 | J13: 0.0405867523 | K13: 0.04672881929 | L13: 0.04828657228 | M13: 0.05017101947 | N13: 0.05063811923 | O13: 0.0515614909 | P13: 0.05148878243 | Q13: 0.05044610675 | R13: 0.05018576313 | S13: 0.05005866027 | T13: 0.04983147182 | U13: 0.04972415655 | V13: 0.04964002473 | W13: 0.04960514168 | X13: 0.05065158241 | Y13: 0.05111005834 | Z13: 0.05200317046 | AA13: 0.05248063372 | AB13: 0.05263686909 | AC13: 0.05267809029 | AD13: 0.05259012931 | AE13: 0.05255408287 | AF13: 0.0520440476 | AG13: 0.05173217268 | AH13: 0.05123884753 | AI13: 0.05082110781 | AJ13: 0.05056676099 | AK13: 0.05044064041 | AL13: 0.05080111081 | AM13: 0.05099118014 | AN13: 0.05116916874 | AO13: 0.05118781782 | AP13: 0.05119371044 | AQ13: 0.05118366859
A14: 0.06000000238 | C14: 7 | D14: 0.06816356629 | E14: 0.07447744448 | F14: 0.07876480936 | G14: 0.07661633377 | H14: 0.07929166861 | I14: 0.04119632111 | J14: 0.0366527247 | K14: 0.0374623043 | L14: 0.04317439204 | M14: 0.04466608017 | N14: 0.04645631705 | O14: 0.04692469507 | P14: 0.047812685 | Q14: 0.04779332614 | R14: 0.04671263823 | S14: 0.04650666513 | T14: 0.04636577599 | U14: 0.04614529157 | V14: 0.04608696656 | W14: 0.0461030875 | X14: 0.04616729938 | Y14: 0.04721777245 | Z14: 0.04770821624 | AA14: 0.04859064139 | AB14: 0.04910778476 | AC14: 0.0493070218 | AD14: 0.04933530998 | AE14: 0.0492882011 | AF14: 0.04888959377 | AG14: 0.04834286916 | AH14: 0.0480587234 | AI14: 0.04765389328 | AJ14: 0.04728505548 | AK14: 0.04707022752 | AL14: 0.04696171506 | AM14: 0.04730921388 | AN14: 0.04748883526 | AO14: 0.04764713175 | AP14: 0.04766426782 | AQ14: 0.04767062804
A15: 0.06000000238 | C15: 8 | D15: 0.05834982917 | E15: 0.06318483178 | F15: 0.06897572342 | G15: 0.07258900119 | H15: 0.07054838546 | I15: 0.07299888231 | J15: =J49*(1-J$41-J$71)/SUM(J$42:J$70) -> 0.03796157067 | K15: 0.03383112587 | L15: 0.03461273444 | M15: 0.0399372075 | N15: 0.04135896786 | O15: 0.04304955525 | P15: 0.0435130099 | Q15: 0.04438106982 | R15: 0.0442561874 | S15: 0.04328815362 | T15: 0.04307581558 | U15: 0.04293596343 | V15: 0.04276988605 | W15: 0.04280319084 | X15: 0.0429079521 | Y15: 0.04303749129 | Z15: 0.04407499759 | AA15: 0.04457752875 | AB15: 0.04546779621 | AC15: 0.04600118996 | AD15: 0.04617815853 | AE15: 0.04623773912 | AF15: 0.04585143528 | AG15: 0.04541274831 | AH15: 0.0449100909 | AI15: 0.04469626829 | AJ15: 0.04433821072 | AK15: 0.04401544169 | AL15: 0.04382376185 | AM15: 0.04373372524 | AN15: 0.04405976599 | AO15: 0.04422012017 | AP15: 0.04436730741 | AQ15: 0.04438407692
A16: 0.06000000238 | C16: 9 | D16: 0.05139569566 | E16: 0.05408789975 | F16: 0.05851730698 | G16: 0.06356746002 | H16: 0.06684001419 | I16: 0.06494948812 | J16: 0.06726698294 | K16: 0.03503921431 | L16: 0.03125776157 | M16: 0.03201749676 | N16: 0.0369802247 | O16: 0.03832600785 | P16: 0.0399196142 | Q16: 0.04038999128 | R16: 0.04109646894 | S16: 0.04101178421 | T16: 0.04009473732 | U16: 0.03988937105 | V16: 0.03979531174 | W16: 0.03972245803 | X16: 0.03983675198 | Y16: 0.03999910412 | Z16: 0.0401729524 | AA16: 0.04118272757 | AB16: 0.04171260009 | AC16: 0.04259146977 | AD16: 0.04308210403 | AE16: 0.04327881285 | AF16: 0.0430136758 | AG16: 0.04259065232 | AH16: 0.04218803497 | AI16: 0.0417679316 | AJ16: 0.04158637261 | AK16: 0.04127236204 | AL16: 0.04097966668 | AM16: 0.04081146434 | AN16: 0.04072986088 | AO16: 0.04102707796 | AP16: 0.04117619661 | AQ16: 0.0413140089
A17: 0.06000000238 | C17: 10 | D17: 0.04355623946 | E17: 0.04764170305 | F17: 0.05009237414 | G17: 0.05392906935 | H17: 0.05853297139 | I17: 0.06153542252 | J17: 0.05984963017 | K17: 0.06208863832 | L17: 0.03237395677 | M17: 0.02891407732 | N17: 0.02964689569 | O17: 0.03426836925 | P17: 0.03553949486 | Q17: 0.03705450102 | R17: 0.03740076634 | S17: 0.03808370343 | T17: 0.03798629826 | U17: 0.0371288119 | V17: 0.0369715695 | W17: 0.03695982726 | X17: 0.03696952675 | Y17: 0.0371361091 | Z17: 0.0373367977 | AA17: 0.03753674067 | AB17: 0.03853597753 | AC17: 0.03907383014 | AD17: 0.03988875359 | AE17: 0.04037714748 | AF17: 0.04026106943 | AG17: 0.0399547037 | AH17: 0.03956633316 | AI17: 0.03923632582 | AJ17: 0.03886178496 | AK17: 0.03871080493 | AL17: 0.0384257791 | AM17: 0.03816286268 | AN17: 0.03800831637 | AO17: 0.03792637433 | AP17: 0.03820294975 | AQ17: 0.03834250606
A18: 0.06000000238 | C18: 11 | D18: 0.03476950526 | E18: 0.04037484851 | F18: 0.04412236424 | G18: 0.04616472046 | H18: 0.04965793304 | I18: 0.05388764753 | J18: 0.05670363827 | K18: 0.05524228795 | L18: 0.05736586657 | M18: 0.02994658101 | N18: 0.0267732559 | O18: 0.0274728122 | P18: 0.03177686905 | Q18: 0.03298875189 | R18: 0.03431213254 | S18: 0.03465893129 | T18: 0.03527422533 | U18: 0.03517634027 | V18: 0.03441293792 | W18: 0.03433728152 | X18: 0.03439835776 | Y18: 0.03446326094 | Z18: 0.0346643612 | AA18: 0.03488669886 | AB18: 0.03512431255 | AC18: 0.03609816307 | AD18: 0.03659433194 | AE18: 0.03738429501 | AF18: 0.03756173127 | AG18: 0.03739785242 | AH18: 0.03711756059 | AI18: 0.03679805282 | AJ18: 0.0365063243 | AK18: 0.036174614 | AL18: 0.03604089433 | AM18: 0.03578452071 | AN18: 0.03554163472 | AO18: 0.03539215708 | AP18: 0.03531568527 | AQ18: 0.03557387405
A19: 0.06000000238 | C19: 12 | D19: 0.026280066 | E19: 0.0322299061 | F19: 0.03739231929 | G19: 0.04066280839 | H19: 0.04250851396 | I19: 0.04571695455 | J19: 0.04965636942 | K19: 0.05233848069 | L19: 0.05104028378 | M19: 0.05306461557 | N19: 0.0277293122 | O19: 0.02480990385 | P19: 0.02547538663 | Q19: 0.02949617751 | R19: 0.03054728565 | S19: 0.03179672399 | T19: 0.03210210252 | U19: 0.03266488733 | V19: 0.03260328441 | W19: 0.03196095684 | X19: 0.03195756533 | Y19: 0.03206639857 | Z19: 0.03216941554 | AA19: 0.0323896318 | AB19: 0.03264458482 | AC19: 0.03290232254 | AD19: 0.03380749102 | AE19: 0.03429671719 | AF19: 0.0347775643 | AG19: 0.03489048112 | AH19: 0.03474226873 | AI19: 0.03452060998 | AJ19: 0.03423770249 | AK19: 0.03398202608 | AL19: 0.03367962621 | AM19: 0.03356356488 | AN19: 0.03332664991 | AO19: 0.03309526018 | AP19: 0.03295591267 | AQ19: 0.03288530724
A20: 0.06000000238 | C20: 13 | D20: 0.02242481336 | E20: 0.0243605439 | F20: 0.02984905168 | G20: 0.03446045426 | H20: 0.03744234864 | I20: 0.03913493136 | J20: 0.04212724228 | K20: 0.04583372445 | L20: 0.0483573546 | M20: 0.04721332039 | N20: 0.04913566899 | O20: 0.02569585006 | P20: 0.02300608646 | Q20: 0.0236469655 | R20: 0.02731319338 | S20: 0.0283078765 | T20: 0.02945104351 | U20: 0.02972741576 | V20: 0.03027553758 | W20: 0.03028024426 | X20: 0.02974592982 | Y20: 0.02979107416 | Z20: 0.0299320863 | AA20: 0.03005840837 | AB20: 0.03030800039 | AC20: 0.03057946422 | AD20: 0.03081444814 | AE20: 0.0316848511 | AF20: 0.03190527699 | AG20: 0.03230431372 | AH20: 0.03241294333 | AI20: 0.03231150672 | AJ20: 0.03211872051 | AK20: 0.03187027238 | AL20: 0.03163826258 | AM20: 0.03136460236 | AN20: 0.0312582411 | AO20: 0.0310327355 | AP20: 0.03081712431 | AQ20: 0.03068793102
A21: 0.06000000238 | C21: 14 | D21: 0.02145498432 | E21: 0.02078688274 | F21: 0.0225610069 | G21: 0.0275086408 | H21: 0.03173121566 | I21: 0.03447082965 | J21: 0.036062042 | K21: 0.03888420433 | L21: 0.04234738259 | M21: 0.04473155529 | N21: 0.04371760838 | O21: 0.04553242338 | P21: 0.02382761948 | Q21: 0.0213548921 | R21: 0.02189687601 | S21: 0.02531087423 | T21: 0.02621957227 | U21: 0.02727246337 | V21: 0.02755293425 | W21: 0.0281183534 | X21: 0.0281816976 | Y21: 0.0277293715 | Z21: 0.02780820555 | AA21: 0.02796789615 | AB21: 0.02812660107 | AC21: 0.02839069386 | AD21: 0.02863899086 | AE21: 0.02887972965 | AF21: 0.029475531 | AG21: 0.02963629276 | AH21: 0.03001041707 | AI21: 0.03014515386 | AJ21: 0.03006332317 | AK21: =AK55*(1-AK$41-AK$71)/SUM(AK$42:AK$70) -> 0.02989781138 | AL21: 0.02967215797 | AM21: 0.02946355518 | AN21: 0.02921031501 | AO21: 0.02910669782 | AP21: 0.02889657499 | AQ21: 0.0286963312
A22: 0.06000000238 | C22: 15 | D22: 0.0188033022 | E22: 0.01988789098 | F22: 0.01925133555 | G22: 0.0207920386 | H22: 0.0253299799 | I22: 0.02921294656 | J22: 0.0317641673 | K22: 0.03328591509 | L22: 0.03592647766 | M22: 0.03917220661 | N22: 0.04141959515 | O22: 0.04051168316 | P22: 0.04222196408 | Q22: 0.022117462 | R22: 0.01977443679 | S22: 0.02029162489 | T22: 0.02344366226 | U22: 0.02428003354 | V22: 0.02527755511 | W22: 0.02558974025 | X22: 0.02616963475 | Y22: 0.02627118288 | Z22: 0.02588372807 | AA22: 0.02598338777 | AB22: 0.02617044283 | AC22: 0.02634729147 | AD22: 0.02658911274 | AE22: 0.02684086081 | AF22: 0.02686600496 | AG22: 0.02737934123 | AH22: 0.02753184958 | AI22: 0.02791072167 | AJ22: 0.02804770172 | AK22: 0.02798453834 | AL22: 0.02783573895 | AM22: 0.02763259396 | AN22: 0.02743984183 | AO22: 0.027199733 | AP22: 0.02710311749 | AQ22: 0.02690795151
A23: 0.06000000238 | C23: 16 | D23: 0.01416365616 | E23: 0.01742989035 | F23: 0.01841875319 | G23: 0.01774187268 | H23: 0.01914532687 | I23: 0.02331972897 | J23: 0.02691913514 | K23: 0.02931889924 | L23: 0.03075402225 | M23: 0.03323273647 | N23: 0.0362718651 | O23: 0.03838218918 | P23: 0.03756625947 | Q23: 0.03919160648 | R23: 0.02048056962 | S23: 0.01832478083 | T23: 0.01879468865 | U23: 0.02170946574 | V23: 0.02250401357 | W23: 0.02347648578 | X23: 0.02381626499 | Y23: 0.0243955233 | Z23: 0.02452259524 | AA23: 0.0241851975 | AB23: 0.02431347573 | AC23: 0.02451488125 | AD23: 0.02467537803 | AE23: 0.02491968651 | AF23: 0.02496930228 | AG23: 0.02495539495 | AH23: 0.0254351619 | AI23: 0.02560556852 | AJ23: 0.02596873778 | AK23: 0.02610829081 | AL23: 0.02605442566 | AM23: 0.02592240419 | AN23: 0.02573464075 | AO23: 0.02555112368 | AP23: 0.02532741996 | AQ23: 0.02523791735
A24: 0.06000000238 | C24: 17 | D24: 0.0162970107 | E24: 0.01312912866 | F24: 0.01614232745 | G24: 0.01697457161 | H24: 0.01633673149 | I24: 0.01762590557 | J24: 0.02148865519 | K24: 0.02484684718 | L24: 0.02708875742 | M24: 0.028448108 | N24: 0.03077215807 | O24: 0.03361195548 | P24: 0.03559159149 | Q24: 0.03487005142 | R24: 0.03629107286 | S24: 0.01897914734 | T24: 0.01697294092 | U24: 0.01740439036 | V24: 0.02012147598 | W24: 0.02090056386 | X24: 0.02184946784 | Y24: 0.02220169494 | Z24: 0.02277177798 | AA24: 0.02291338433 | AB24: 0.02263085236 | AC24: 0.02277538726 | AD24: 0.0229592466 | AE24: 0.0231261077 | AF24: 0.02318208755 | AG24: 0.02319357869 | AH24: 0.02318333758 | AI24: 0.02365557676 | AJ24: 0.02382397355 | AK24: 0.02417308074 | AL24: 0.0243075842 | AM24: 0.02426353236 | AN24: 0.02414191589 | AO24: 0.02396329369 | AP24: 0.02379229384 | AQ24: 0.02358442093
A25: 0.06000000238 | C25: 18 | D25: 0.01328164618 | E25: 0.01510666087 | F25: 0.01215926719 | G25: 0.01487663635 | H25: 0.01563020001 | I25: 0.01504020738 | J25: 0.01624191291 | K25: 0.01983441625 | L25: 0.02295687196 | M25: 0.02505766207 | N25: 0.02634178733 | O25: 0.02851555619 | P25: 0.0311681802 | Q25: 0.03303710944 | R25: 0.03228935198 | S25: 0.03363058899 | T25: 0.01757903407 | U25: 0.01571740265 | V25: 0.01613130543 | W25: 0.01868778618 | X25: 0.019452068 | Y25: 0.02036823237 | Z25: 0.02072396897 | AA25: 0.02127745842 | AB25: 0.02144077665 | AC25: 0.02119920789 | AD25: 0.02133013524 | AE25: 0.02151772545 | AF25: 0.02151357134 | AG25: 0.021533464 | AH25: 0.02154662612 | AI25: 0.02156130257 | AJ25: 0.02200965913 | AK25: 0.02217662024 | AL25: 0.02250584688 | AM25: 0.02263676289 | AN25: 0.02259698418 | AO25: 0.02248019805 | AP25: 0.02231376326 | AQ25: 0.02215494013
A26: 0.06000000238 | C26: 19 | D26: 0.0111128483 | E26: 0.01231154157 | F26: 0.01399071718 | G26: 0.01120588075 | H26: 0.01369841944 | I26: 0.01438974802 | J26: 0.01385924471 | K26: 0.01499157852 | L26: 0.01832571155 | M26: 0.02123558238 | N26: 0.02320237272 | O26: 0.02441007598 | P26: 0.02644231735 | Q26: 0.02893117551 | R26: 0.03059206431 | S26: 0.02992223265 | T26: 0.03114962221 | U26: 0.01627866131 | V26: 0.01456771639 | W26: 0.01498192214 | X26: 0.017392645 | Y26: 0.01813335886 | Z26: 0.01901254011 | AA26: 0.01936402984 | AB26: 0.01990998916 | AC26: 0.02008441725 | AD26: 0.01985397509 | AE26: 0.01999089961 | AF26: 0.0200173383 | AG26: 0.01998360643 | AH26: 0.02000439449 | AI26: 0.02003910453 | AJ26: 0.02006110123 | AK26: 0.02048775999 | AL26: 0.02064708363 | AM26: 0.02095887091 | AN26: 0.02108194987 | AO26: 0.0210416059 | AP26: 0.02093275756 | AQ26: 0.02077816004
A27: 0.06000000238 | C27: 20 | D27: 0.008798443712 | E27: 0.01030115483 | F27: 0.01140207605 | G27: 0.01289373001 | H27: 0.01031838455 | I27: 0.01261127841 | J27: 0.01325985966 | K27: 0.0127923328 | L27: 0.01385124423 | M27: 0.01695166301 | N27: 0.01966328287 | O27: 0.02150088276 | P27: 0.02263532829 | Q27: 0.02454449761 | R27: 0.02679000665 | S27: 0.02834937245 | T27: 0.02771483553 | U27: 0.02884539321 | V27: 0.01508792047 | W27: 0.01352974152 | X27: 0.01394361273 | Y27: 0.0162135498 | Z27: 0.01692641788 | AA27: 0.01776490761 | AB27: 0.01811953366 | AC27: 0.01865046851 | AD27: 0.01880992544 | AE27: 0.01860742177 | AF27: 0.01859697492 | AG27: 0.01859377991 | AH27: 0.01856459075 | AI27: 0.01860477599 | AJ27: 0.01864481532 | AK27: 0.01867393878 | AL27: 0.01907470522 | AM27: 0.01922787278 | AN27: 0.01951930442 | AO27: 0.01963085326 | AP27: 0.01959319193 | AQ27: 0.0194921933
A28: 0.06000000238 | C28: 21 | D28: 0.007131718565 | E28: 0.008155796654 | F28: 0.009540198533 | G28: 0.01050805962 | H28: 0.01187255759 | I28: 0.009499491593 | J28: 0.01162103614 | K28: 0.01223908959 | L28: 0.01181928411 | M28: 0.012812688 | N28: 0.01569654832 | O28: 0.01822132352 | P28: 0.01993764953 | Q28: 0.02101074401 | R28: 0.02272798262 | S28: 0.0248260421 | T28: 0.02625800701 | U28: 0.02566468779 | V28: 0.02673542931 | W28: 0.01401288016 | X28: 0.01259207425 | Y28: 0.01299833691 | Z28: =Z62*(1-Z$41-Z$71)/SUM(Z$42:Z$70) -> 0.01513438969 | AA28: 0.01581567996 | AB28: 0.01662318454 | AC28: 0.01697327856 | AD28: 0.01746697043 | AE28: 0.01762892391 | AF28: 0.01730996417 | AG28: 0.01727442746 | AH28: 0.01727345439 | AI28: 0.01726570891 | AJ28: 0.01731028509 | AK28: 0.01735558462 | AL28: 0.0173859845 | AM28: 0.01776357435 | AN28: 0.01790720042 | AO28: 0.01817576663 | AP28: 0.01827954946 | AQ28: 0.01824481477
A29: 0.06000000238 | C29: 22 | D29: 0.005286651663 | E29: 0.006610810765 | F29: 0.007553320045 | G29: 0.008792168589 | H29: 0.009675830253 | I29: 0.01093032155 | J29: 0.008753587982 | K29: 0.01072642593 | L29: 0.01130812334 | M29: 0.01093308278 | N29: 0.01186402633 | O29: 0.01454547986 | P29: 0.0168965324 | Q29: 0.01850668323 | R29: 0.01945575878 | S29: 0.02106180341 | T29: 0.02299459675 | U29: 0.02431562515 | V29: 0.02378738404 | W29: 0.02483048394 | X29: 0.01304172938 | Y29: 0.01173842294 | Z29: 0.01213317864 | AA29: 0.01414124745 | AB29: 0.01479923074 | AC29: 0.01557158958 | AD29: 0.01589620949 | AE29: 0.01637028778 | AF29: 0.01639969497 | AG29: 0.01607894412 | AH29: 0.01604778783 | AI29: 0.01606490762 | AJ29: 0.01606438818 | AK29: 0.01611333299 | AL29: 0.01615855812 | AM29: 0.01619093059 | AN29: 0.01654347779 | AO29: 0.01667462574 | AP29: 0.01692462475 | AQ29: 0.01702157542
A30: 0.06000000238 | C30: 23 | D30: 0.004474848509 | E30: 0.00490050938 | F30: 0.006122463762 | G30: 0.006961077698 | H30: 0.008095836333 | I30: 0.008907932023 | J30: 0.01007206864 | K30: 0.008079719566 | L30: 0.009910520431 | M30: 0.01046024847 | N30: 0.01012358858 | O30: 0.01099400661 | P30: 0.01348794293 | Q30: 0.01568383336 | R30: 0.01713702116 | S30: 0.01802946497 | T30: 0.01950805023 | U30: 0.02129361893 | V30: 0.02253700176 | W30: 0.02209249197 | X30: 0.0231096283 | Y30: 0.01215759471 | Z30: 0.01095712347 | AA30: 0.01133698055 | AB30: 0.0132324114 | AC30: 0.01386302045 | AD30: 0.01458346714 | AE30: 0.01489814877 | AF30: 0.01522882097 | AG30: 0.01523340986 | AH30: 0.01493719455 | AI30: 0.0149249955 | AJ30: 0.01494713675 | AK30: 0.01495358595 | AL30: 0.01500198543 | AM30: 0.01504787336 | AN30: 0.01507885155 | AO30: 0.01540476981 | AP30: 0.01552681597 | AQ30: 0.01575989481
A31: 0.06000000238 | C31: 24 | D31: 0.004422022495 | E31: 0.004148001134 | F31: 0.004538504 | G31: 0.005642412303 | H31: 0.00640976628 | I31: 0.007453330395 | J31: 0.008208477889 | K31: 0.009296700991 | L31: 0.007465135766 | M31: 0.00916743681 | N31: 0.009685763304 | O31: 0.009381199666 | P31: 0.01019468146 | Q31: 0.0125198854 | R31: 0.01452308773 | S31: 0.01588071307 | T31: 0.01669941084 | U31: 0.01806498249 | V31: 0.01973604726 | W31: 0.02093120158 | X31: 0.02056139054 | Y31: 0.02154296309 | Z31: 0.01134839552 | AA31: 0.01023809995 | AB31: 0.01060837039 | AC31: 0.01239531927 | AD31: 0.01298331825 | AE31: 0.01366782837 | AF31: 0.01385933121 | AG31: 0.01414580406 | AH31: 0.01415170083 | AI31: 0.01389210549 | AJ31: 0.01388653791 | AK31: 0.01391358896 | AL31: 0.01392222693 | AM31: 0.01397079957 | AN31: 0.01401430555 | AO31: 0.0140409556 | AP31: 0.01434437148 | AQ31: 0.01445828134
A32: 0.06000000238 | C32: 25 | D32: 0.003674107371 | E32: 0.004099033585 | F32: 0.003841584267 | G32: 0.004182647999 | H32: 0.00519553806 | I32: 0.005901071103 | J32: 0.006868092122 | K32: 0.00757657312 | L32: 0.008589547509 | M32: 0.00690540531 | N32: 0.008488672454 | O32: 0.008975481246 | P32: 0.008699134504 | Q32: 0.009462988105 | R32: 0.01159330056 | S32: 0.01345840605 | T32: 0.01470917481 | U32: 0.0154641064 | V32: 0.016743577 | W32: 0.01832981991 | X32: 0.01948058239 | Y32: 0.01916747738 | Z32: 0.02010908176 | AA32: 0.01060369613 | AB32: 0.009580113144 | AC32: 0.009937277025 | AD32: 0.01160875261 | AE32: 0.01216814656 | AF32: 0.01271479855 | AG32: 0.0128737073 | AH32: 0.01314132481 | AI32: 0.01316156927 | AJ32: 0.01292551475 | AK32: 0.01292632722 | AL32: 0.01295395925 | AM32: 0.01296526004 | AN32: 0.01301121091 | AO32: 0.01304968362 | AP32: 0.0130744364 | AQ32: 0.0133572111
A33: 0.06000000238 | C33: 26 | D33: 0.003092571162 | E33: 0.003405746923 | F33: 0.003796233999 | G33: 0.003540372499 | H33: 0.003851385844 | I33: 0.004783207089 | J33: 0.005437716806 | K33: 0.006339372885 | L33: 0.00700026115 | M33: 0.007945509477 | N33: 0.006394123576 | O33: 0.007866176163 | P33: 0.00832291406 | Q33: 0.008074779649 | R33: 0.008762641331 | S33: 0.01074340039 | T33: 0.01246556413 | U33: 0.01362109397 | V33: 0.01433294809 | W33: 0.01555056831 | X33: 0.01705948728 | Y33: 0.01815994018 | Z33: 0.01789170635 | AA33: 0.01878949248 | AB33: 0.009922213018 | AC33: 0.008974068097 | AD33: 0.009306689738 | AE33: 0.01087988451 | AF33: 0.01131968649 | AG33: 0.01181056953 | AH33: 0.01195955836 | AI33: 0.01222188477 | AJ33: 0.01224580809 | AK33: 0.01203175581 | AL33: 0.01203478962 | AM33: 0.0120635478 | AN33: 0.01207473716 | AO33: 0.01211563322 | AP33: 0.01215139933 | AQ33: 0.01217467124
A34: 0.06000000238 | C34: 27 | D34: 0.002763425699 | E34: 0.002866686696 | F34: 0.003154161095 | G34: 0.003498578064 | H34: 0.003259978016 | I34: 0.003545730175 | J34: 0.00440762789 | K34: 0.005019110674 | L34: 0.00585716854 | M34: 0.006475386655 | N34: 0.007357217599 | O34: 0.005925225968 | P34: 0.007294261599 | Q34: 0.007725561323 | R34: 0.007477172866 | S34: 0.00812025564 | T34: 0.009950847526 | U34: 0.01154344976 | V34: 0.01262474712 | W34: 0.01331170086 | X34: 0.01447284935 | Y34: 0.01590297776 | Z34: 0.01695122998 | AA34: 0.0167176247 | AB34: 0.01758192093 | AC34: 0.00929452648 | AD34: 0.008404602917 | AE34: 0.008722359146 | AF34: 0.01012125234 | AG34: 0.01051467263 | AH34: 0.01097191293 | AI34: 0.01112280126 | AJ34: 0.01137150535 | AK34: 0.01139904874 | AL34: 0.01120191741 | AM34: 0.01120755879 | AN34: 0.01123495932 | AO34: 0.01124361812 | AP34: 0.01128164495 | AQ34: 0.01131515635
A35: 0.06000000238 | C35: 28 | D35: 0.002020025626 | E35: 0.002561582344 | F35: 0.002654921769 | G35: 0.002906848951 | H35: 0.003221493665 | I35: 0.00300125796 | J35: 0.003267318123 | K35: 0.004068320028 | L35: 0.004637332063 | M35: 0.005418002299 | N35: 0.005995943847 | O35: =O69*(1-O$41-O$71)/SUM(O$42:O$70) -> 0.006817693817 | P35: 0.00549442923 | Q35: 0.006770737374 | R35: 0.007153799857 | S35: 0.006929024348 | T35: 0.00752121515 | U35: 0.009214754124 | V35: 0.01069907707 | W35: 0.01172521215 | X35: 0.01238914472 | Y35: 0.01349169512 | Z35: 0.01484448906 | AA35: 0.01583886385 | AB35: 0.01564320889 | AC35: 0.0164696756 | AD35: 0.008704726053 | AE35: 0.007876910823 | AF35: 0.008114166818 | AG35: 0.009401466641 | AH35: 0.009768036362 | AI35: 0.01020425698 | AJ35: 0.01034889433 | AK35: 0.0105852013 | AL35: 0.01061284858 | AM35: 0.01043193541 | AN35: 0.01043776417 | AO35: 0.01046164321 | AP35: 0.01046965563 | AQ35: 0.0105052573
A36: 0.06000000238 | C36: 29 | D36: 0.001564458595 | E36: 0.00187248095 | F36: 0.002372355772 | G36: 0.002446754091 | H36: 0.002676628993 | I36: 0.002965827823 | J36: 0.002765598069 | K36: 0.003015793549 | L36: 0.0037588633 | M36: 0.004289628274 | N36: 0.005016849074 | O36: 0.005556245787 | P36: 0.006322009725 | Q36: 0.005100082693 | R36: 0.006269641523 | S36: 0.006629357684 | T36: 0.006417862344 | U36: 0.006964848787 | V36: 0.008540719334 | W36: 0.009936749406 | X36: 0.01091260627 | Y36: 0.01154925055 | Z36: 0.01259369935 | AA36: 0.01387037056 | AB36: 0.01482092463 | AC36: 0.01465360792 | AD36: 0.01542456354 | AE36: 0.008158190403 | AF36: 0.007327669883 | AG36: 0.007537117555 | AH36: 0.008733878001 | AI36: 0.009084610306 | AJ36: 0.009494260916 | AK36: 0.009633300637 | AL36: 0.009855132751 | AM36: 0.00988335718 | AN36: 0.00971541472 | AO36: 0.009719319994 | AP36: 0.00974150853 | AQ36: 0.009749147993
A37: 0.6999999881 | C37: 30 | D37: 0.00246642204 | E37: =D37 -> 0.00246642204 | F37: =E37 -> 0.00246642204 | G37: 0.00246642204 | H37: 0.00246642204 | I37: 0.00246642204 | J37: 0.00246642204 | K37: 0.00246642204 | L37: 0.00246642204 | M37: 0.00246642204 | N37: 0.00246642204 | O37: 0.00246642204 | P37: 0.00246642204 | Q37: 0.00246642204 | R37: 0.00246642204 | S37: 0.00246642204 | T37: 0.00246642204 | U37: 0.00246642204 | V37: 0.00246642204 | W37: 0.00246642204 | X37: 0.00246642204 | Y37: 0.00246642204 | Z37: 0.00246642204 | AA37: 0.00246642204 | AB37: 0.00246642204 | AC37: 0.00246642204 | AD37: 0.00246642204 | AE37: 0.00246642204 | AF37: 0.00246642204 | AG37: 0.00246642204 | AH37: 0.00246642204 | AI37: 0.00246642204 | AJ37: 0.00246642204 | AK37: 0.00246642204 | AL37: 0.00246642204 | AM37: 0.00246642204 | AN37: 0.00246642204 | AO37: 0.00246642204 | AP37: 0.00246642204 | AQ37: 0.00246642204
C39: Intermediate table
C40: age | D40: 2011 | E40: 2012 | F40: 2013 | G40: 2014 | H40: 2015 | I40: 2016 | J40: 2017 | K40: 2018 | L40: 2019 | M40: 2020 | N40: 2021 | O40: 2022 | P40: 2023 | Q40: 2024 | R40: 2025 | S40: 2026 | T40: 2027 | U40: 2028 | V40: 2029 | W40: 2030 | X40: 2031 | Y40: 2032 | Z40: 2033 | AA40: 2034 | AB40: 2035 | AC40: 2036 | AD40: 2037 | AE40: 2038 | AF40: 2039 | AG40: 2040 | AH40: 2041 | AI40: 2042 | AJ40: 2043 | AK40: 2044 | AL40: 2045 | AM40: 2046 | AN40: 2047 | AO40: 2048 | AP40: 2049 | AQ40: 2050
C41: 0 | D41: =D7 -> 0.05853699893 | E41: =E2 -> 0.06760790601 | F41: =F2 -> 0.06899685 | G41: 0.07182202313 | H41: 0.07255478717 | I41: 0.07344178247 | J41: 0.07289481972 | K41: 0.07111401913 | L41: 0.07067893349 | M41: 0.0704495059 | N41: 0.07015314861 | O41: 0.07015466801 | P41: 0.07013420276 | Q41: 0.07002432416 | R41: 0.07112824603 | S41: 0.07141142862 | T41: 0.07217159442 | U41: 0.07222639156 | V41: 0.07189533633 | W41: 0.07156063862 | X41: 0.07117787399 | Y41: 0.07082284952 | Z41: 0.07037079154 | AA41: 0.07042019754 | AB41: 0.0703263593 | AC41: 0.07029503566 | AD41: 0.07039889035 | AE41: 0.07045742127 | AF41: 0.07054037766 | AG41: 0.07058732739 | AH41: 0.07064368677 | AI41: 0.07064367884 | AJ41: 0.0706436784 | AK41: 0.07064367949 | AL41: 0.07064368251 | AM41: 0.07064368178 | AN41: 0.07064368389 | AO41: 0.07064367732 | AP41: 0.07064368049 | AQ41: 0.07064368185
C42: 1 | D42: =D8 -> 0.05651727319 | E42: =MAX(D7*(1-D$3*$A7),0) -> 0.05853699893 | F42: =MAX(E7*(1-E$3*$A7),0) -> 0.06760790601 | G42: 0.06899685 | H42: 0.07182202313 | I42: 0.07255478717 | J42: 0.07344178247 | K42: 0.07289481972 | L42: 0.07111401913 | M42: 0.07067893349 | N42: 0.0704495059 | O42: 0.07015314861 | P42: 0.07015466801 | Q42: 0.07013420276 | R42: 0.07002432416 | S42: 0.07112824603 | T42: 0.07141142862 | U42: 0.07217159442 | V42: 0.07222639156 | W42: 0.07189533633 | X42: 0.07156063862 | Y42: 0.07117787399 | Z42: 0.07082284952 | AA42: 0.07037079154 | AB42: 0.07042019754 | AC42: 0.0703263593 | AD42: 0.07029503566 | AE42: 0.07039889035 | AF42: 0.07045742127 | AG42: 0.07054037766 | AH42: 0.07058732739 | AI42: 0.07064368677 | AJ42: 0.07064367884 | AK42: 0.0706436784 | AL42: 0.07064367949 | AM42: 0.07064368251 | AN42: 0.07064368178 | AO42: 0.07064368389 | AP42: 0.07064367732 | AQ42: 0.07064368049
C43: 2 | D43: 0.06142334267 | E43: =MAX(D8*(1-D$3*$A8),0) -> 0.05512179355 | F43: 0.05711956214 | G43: 0.06494276576 | H43: 0.06704748292 | I43: 0.06975496296 | J43: 0.07006224109 | K43: 0.07091026577 | L43: 0.07055268463 | M43: 0.06884311296 | N43: 0.06848759192 | O43: 0.06826464556 | P43: 0.06804422399 | Q43: 0.06805657215 | R43: 0.06803767729 | S43: 0.06776380886 | T43: 0.06891531897 | U43: 0.06915664587 | V43: 0.06981703788 | W43: 0.0699371353 | X43: 0.06975830995 | Y43: 0.06948380826 | Z43: 0.06913242859 | AA43: 0.06878616963 | AB43: 0.0684450715 | AC43: 0.06858169519 | AD43: 0.06853134502 | AE43: 0.06844995715 | AF43: 0.06859547504 | AG43: 0.06803763403 | AH43: 0.06835702335 | AI43: 0.06840622754 | AJ43: 0.06859022113 | AK43: 0.0685887659 | AL43: 0.0686011655 | AM43: 0.06859187843 | AN43: 0.06859872046 | AO43: 0.06858984402 | AP43: 0.06857097976 | AQ43: 0.06857517418
C44: 3 | D44: 0.1088406742 | E44: 0.05709015847 | F44: 0.05158302813 | G44: 0.05206435108 | H44: 0.05994905367 | I44: 0.06210120506 | J44: 0.06427635415 | K44: 0.06453348303 | L44: 0.06551549924 | M44: 0.06522289949 | N44: 0.06374788198 | O44: 0.06342081459 | P44: 0.0633118616 | Q44: 0.06315824305 | R44: 0.06316777993 | S44: 0.06297977798 | T44: 0.06281411186 | U44: 0.06389002232 | V44: 0.0640508321 | W44: 0.06475322458 | X44: 0.06508130384 | Y44: 0.06503727887 | Z44: 0.06485380125 | AA44: 0.06451157316 | AB44: 0.0642965314 | AC44: 0.06408847233 | AD44: 0.06427796708 | AE44: 0.06418409777 | AF44: 0.06414373355 | AG44: 0.06349140073 | AH44: 0.06319080433 | AI44: 0.06346675721 | AJ44: 0.06365688151 | AK44: 0.06384444786 | AL44: 0.06387160254 | AM44: 0.06388400857 | AN44: 0.0638908813 | AO44: 0.06389292575 | AP44: 0.06386385273 | AQ44: 0.06384891797
C45: 4 | D45: 0.09683910012 | E45: 0.1011623768 | F45: 0.05342502594 | G45: 0.04701781292 | H45: 0.04806091242 | I45: 0.05552644652 | J45: 0.05722372832 | K45: 0.05920417254 | L45: 0.05962385435 | M45: 0.0605662399 | N45: 0.06039560851 | O45: 0.05903175291 | P45: 0.05881946362 | Q45: 0.05876569249 | R45: 0.05862131859 | S45: 0.05847190724 | T45: 0.05837952272 | U45: 0.05823371448 | V45: 0.05917304174 | W45: 0.05940524034 | X45: 0.06025731916 | Y45: 0.06067679836 | Z45: 0.06070356336 | AA45: 0.06051893199 | AB45: 0.06030093567 | AC45: 0.06020399108 | AD45: 0.06006670881 | AE45: 0.06020053047 | AF45: 0.06014624168 | AG45: 0.05937090586 | AH45: 0.05896843324 | AI45: 0.05867012985 | AJ45: 0.05906035151 | AK45: 0.05925244716 | AL45: 0.05945357296 | AM45: 0.05947966006 | AN45: 0.05950566892 | AO45: 0.05950803904 | AP45: 0.05949056247 | AQ45: 0.05946594184
C46: 5 | D46: 0.09174875915 | E46: 0.09000746836 | F46: 0.09466785081 | G46: 0.04869678973 | H46: 0.04340242299 | I46: 0.04451532626 | J46: 0.05116535642 | K46: 0.05270808417 | L46: 0.0546999913 | M46: 0.05511966952 | N46: 0.05608359859 | O46: 0.05592748384 | P46: 0.05474884019 | Q46: 0.05459587547 | R46: 0.05454430356 | S46: 0.05426342839 | T46: 0.05420092205 | U46: 0.05412249504 | V46: 0.05393433736 | W46: 0.05488123497 | X46: 0.05528065283 | Y46: 0.05617928635 | Z46: 0.05663364055 | AA46: 0.05664609864 | AB46: 0.05656889215 | AC46: 0.05646271912 | AD46: 0.0564259916 | AE46: 0.05625641099 | AF46: 0.05641328274 | AG46: 0.05567086066 | AH46: 0.05514147205 | AI46: 0.05474982748 | AJ46: 0.05459674709 | AK46: 0.05497395212 | AL46: 0.05517738516 | AM46: 0.05536542327 | AN46: 0.05540317582 | AO46: 0.05542364727 | AP46: 0.05540780411 | AQ46: 0.05539381319
C47: 6 | D47: 0.08034599572 | E47: 0.08527623166 | F47: 0.08422907661 | G47: 0.08628953087 | H47: 0.04495229649 | I47: 0.04020050646 | J47: 0.04101905807 | K47: 0.04712779107 | L47: 0.04869811742 | M47: 0.05056777151 | N47: 0.05104014092 | O47: 0.05193448051 | P47: 0.0518697942 | Q47: 0.05081754707 | R47: 0.05067402218 | S47: 0.05048949737 | T47: 0.05029984468 | U47: 0.05024859743 | V47: 0.05012664798 | W47: 0.05002249258 | X47: 0.05107075537 | Y47: 0.05153942572 | Z47: 0.05243581724 | AA47: 0.05284821206 | AB47: 0.05294883666 | AC47: 0.05296822401 | AD47: 0.05291949682 | AE47: 0.05284664062 | AF47: 0.05271728994 | AG47: 0.05221566494 | AH47: 0.05170500875 | AI47: 0.05119664736 | AJ47: 0.05094862568 | AK47: 0.05081918553 | AL47: 0.05119314182 | AM47: 0.05138327492 | AN47: 0.05157091141 | AO47: 0.05160258056 | AP47: 0.05160483593 | AQ47: 0.0515922093
C48: 7 | D48: 0.06816356629 | E48: 0.07467789001 | F48: 0.0798015807 | G48: 0.07677461192 | H48: 0.07965437962 | I48: 0.04163604151 | J48: 0.03704312756 | K48: 0.03778215836 | L48: 0.04354236621 | M48: 0.04501929919 | N48: 0.04682513895 | O48: 0.04726414265 | P48: 0.04816649402 | Q48: 0.04814523374 | R48: 0.04716710714 | S48: 0.04690693147 | T48: 0.0468015743 | U48: 0.04663198614 | V48: 0.04653875903 | W48: 0.04649097401 | X48: 0.04654936214 | Y48: 0.04761444136 | Z48: 0.04810513061 | AA48: 0.04893097392 | AB48: 0.0493988362 | AC48: 0.04957858877 | AD48: 0.04964429283 | AE48: 0.04956257837 | AF48: 0.04952203006 | AG48: 0.04879468477 | AH48: 0.04849595247 | AI48: 0.04800602888 | AJ48: 0.04764213774 | AK48: 0.04742347848 | AL48: 0.04732411754 | AM48: 0.04767299632 | AN48: 0.04786168266 | AO48: 0.04803320516 | AP48: 0.04804704913 | AQ48: 0.04805112816
C49: 8 | D49: 0.05834982917 | E49: 0.06335488484 | F49: 0.06988364226 | G49: 0.07273895946 | H49: 0.07087110129 | I49: 0.0737780562 | J49: =MAX(I14*(1-I$3*$A14),0) -> 0.03836591457 | K49: 0.03411997684 | L49: 0.03490773783 | M49: 0.04025303063 | N49: 0.04168732134 | O49: 0.04336097054 | P49: 0.04383500176 | Q49: 0.0447078526 | R49: 0.04468675741 | S49: 0.04366071938 | T49: 0.0434806911 | U49: 0.04338880921 | V49: 0.04318916104 | W49: 0.0431633138 | X49: 0.04326304176 | Y49: 0.04339904234 | Z49: 0.04444168496 | AA49: 0.04488975314 | AB49: 0.0457372742 | AC49: 0.04625454949 | AD49: 0.04646736842 | AE49: 0.0464951351 | AF49: 0.04644456992 | AG49: 0.04583717882 | AH49: 0.04531867431 | AI49: 0.0450265487 | AJ49: 0.04467303932 | AK49: 0.04434576721 | AL49: 0.04416194881 | AM49: 0.04407001409 | AN49: 0.04440569086 | AO49: 0.04457842531 | AP49: 0.04472361155 | AQ49: 0.04473834426
C50: 9 | D50: 0.05139569566 | E50: 0.0542334697 | F50: 0.05928756298 | G50: 0.0636987811 | H50: 0.06714576648 | I50: 0.06564274455 | J50: 0.06798347053 | K50: 0.03533837997 | L50: 0.03152417062 | M50: 0.03227069088 | N50: 0.03727381484 | O50: 0.03860325357 | P50: 0.0402150153 | Q50: 0.0406873873 | R50: 0.04149629793 | S50: 0.04136475806 | T50: 0.04047159327 | U50: 0.04031008441 | V50: 0.04018542685 | W50: 0.04005666136 | X50: 0.04016642558 | Y50: 0.04033513016 | Z50: 0.04050717622 | AA50: 0.04147117452 | AB50: 0.04195982183 | AC50: 0.04282604967 | AD50: 0.04335192358 | AE50: 0.04351973709 | AF50: 0.04357010116 | AG50: 0.04298870733 | AH50: 0.04257185363 | AI50: 0.04207657324 | AJ50: 0.04190042016 | AK50: 0.04158210139 | AL50: 0.04129590583 | AM50: 0.04112528257 | AN50: 0.04104964179 | AO50: 0.04135951064 | AP50: 0.04150687364 | AQ50: 0.0416437714
C51: 10 | D51: 0.04355623946 | E51: 0.04776992397 | F51: 0.05075173381 | G51: 0.05404047892 | H51: 0.05880072403 | I51: 0.06219223797 | J51: 0.06048711256 | K51: 0.06261875261 | L51: 0.03264987912 | M51: 0.02914272962 | N51: 0.02988226571 | O51: 0.0345162625 | P51: 0.03580248352 | Q51: 0.03732733745 | R51: 0.03776463971 | S51: 0.03841147633 | T51: 0.03834333671 | U51: 0.03752040963 | V51: 0.03733400335 | W51: 0.03727078731 | X51: 0.03727547229 | Y51: 0.03744808358 | Z51: 0.03764742579 | AA51: 0.03779965084 | AB51: 0.0387643721 | AC51: 0.03928903604 | AD51: 0.04013857347 | AE51: 0.04060191875 | AF51: 0.04078188704 | AG51: 0.04032812297 | AH51: 0.03992630009 | AI51: 0.03952626031 | AJ51: 0.03915525726 | AK51: 0.0390013204 | AL51: 0.03872230996 | AM51: 0.03845631459 | AN51: 0.03830672971 | AO51: 0.03823368275 | AP51: 0.03850974928 | AQ51: 0.03864855045
C52: 11 | D52: 0.03476950526 | E52: 0.04048351172 | F52: 0.04470314141 | G52: 0.04626009003 | H52: 0.04988508779 | I52: 0.05446283233 | J52: 0.05730761144 | K52: 0.05571394794 | L52: 0.05785479429 | M52: 0.03018339835 | N52: 0.02698581178 | O52: 0.02767154721 | P52: 0.03201201466 | Q52: 0.03323165175 | R52: 0.03464595649 | S52: 0.03495722839 | T52: 0.03560577263 | U52: 0.03554734527 | V52: 0.0347502894 | W52: 0.03462617688 | X52: 0.0346830253 | Y52: 0.03475278125 | Z52: 0.03495275562 | AA52: 0.03513104794 | AB52: 0.0353324869 | AC52: 0.03629697996 | AD52: 0.03682351913 | AE52: 0.03759240568 | AF52: 0.03804763021 | AG52: 0.03774737519 | AH52: 0.03745524905 | AI52: 0.03706996984 | AJ52: 0.03678200888 | AK52: 0.03644609595 | AL52: 0.03631902108 | AM52: 0.03605968445 | AN52: 0.0358206815 | AO52: 0.03567893134 | AP52: 0.03559929781 | AQ52: 0.03585781962
C53: 12 | D53: 0.026280066 | E53: 0.03231664834 | F53: 0.03788450972 | G53: 0.04074681181 | H53: 0.04270296449 | I53: 0.04620492719 | J53: 0.05018527931 | K53: 0.0527853479 | L53: 0.05147529873 | M53: 0.05348425015 | N53: 0.02794945831 | O53: 0.0249893757 | P53: 0.0256639019 | Q53: 0.02971336116 | R53: 0.03084448127 | S53: 0.03207038709 | T53: 0.0324038346 | U53: 0.03300940403 | V53: 0.03292289577 | W53: 0.0322298591 | X53: 0.03222203381 | Y53: 0.03233578322 | Z53: 0.03243705296 | AA53: 0.03261649124 | AB53: 0.03283806235 | AC53: 0.03308353779 | AD53: 0.03401922447 | AE53: 0.03448763995 | AF53: 0.03522744724 | AG53: 0.03521656983 | AH53: 0.03505834724 | AI53: 0.03477569796 | AJ53: 0.03449625513 | AK53: 0.03423705318 | AL53: 0.03393953112 | AM53: 0.03382165066 | AN53: 0.03358830625 | AO53: 0.03336342322 | AP53: 0.0332205744 | AQ53: 0.03314779304
C54: 13 | D54: 0.02242481336 | E54: 0.02442610687 | F54: 0.03024195102 | G54: 0.03453164452 | H54: 0.03761362454 | I54: 0.03955264894 | J54: 0.04257595642 | K54: 0.0462250539 | L54: 0.04876950302 | M54: 0.04758668297 | N54: 0.04952576256 | O54: 0.02588173075 | P54: 0.02317632917 | Q54: 0.02382108075 | R54: 0.02757892441 | S54: 0.02855151233 | T54: 0.02972785792 | U54: 0.03004095094 | V54: 0.03057232995 | W54: 0.0305350059 | X54: 0.02999209566 | Y54: 0.03004134418 | Z54: 0.03018110997 | AA54: 0.03026893974 | AB54: 0.03048762948 | AC54: 0.03074788592 | AD54: 0.03100743641 | AE54: 0.03186123414 | AF54: 0.03231800398 | AG54: 0.03260623194 | AH54: 0.03270783009 | AI54: 0.03255027068 | AJ54: 0.03236127126 | AK54: 0.03210945126 | AL54: 0.03188241433 | AM54: 0.0316057793 | AN54: 0.03150365782 | AO54: 0.03128418639 | AP54: 0.03106460989 | AQ54: 0.03093287769
C55: 14 | D55: 0.02145498432 | E55: 0.0208428277 | F55: 0.02285797462 | G55: 0.02756546963 | H55: 0.03187636662 | I55: 0.03483876365 | J55: 0.03644615326 | K55: 0.03921619861 | L55: 0.04270830818 | M55: 0.04508529208 | N55: 0.04406468736 | O55: 0.04586179944 | P55: 0.02400394145 | Q55: 0.02151213056 | R55: 0.02210991149 | S55: 0.02552871593 | T55: 0.02646601364 | U55: 0.02756010615 | V55: 0.02782303683 | W55: 0.02835492606 | X55: 0.02841491846 | Y55: 0.02796232149 | Z55: 0.02803955934 | AA55: 0.02816378542 | AB55: 0.02829330147 | AC55: 0.02854706052 | AD55: 0.02881835443 | AE55: 0.02904049716 | AF55: 0.02985682677 | AG55: 0.02991327548 | AH55: 0.03028344609 | AI55: 0.03036790968 | AJ55: 0.03029035218 | AK55: =MAX(AJ20*(1-AJ$3*$A20),0) -> 0.03012218741 | AL55: 0.02990113733 | AM55: 0.02969011409 | AN55: 0.02943965291 | AO55: 0.02934254249 | AP55: 0.02912863706 | AQ55: 0.0289253812
C56: 15 | D56: 0.0188033022 | E56: 0.01994141643 | F56: 0.01950473848 | G56: 0.02083499192 | H56: 0.02544584911 | I56: 0.02952475908 | J56: 0.03210250017 | K56: 0.03357011104 | L56: 0.03623267805 | M56: 0.03948198012 | N56: 0.04174842995 | O56: 0.04080473979 | P56: 0.04253440233 | Q56: 0.02228031534 | R56: 0.01996682299 | S56: 0.02046626769 | T56: 0.02366401247 | U56: =MAX(T21*(1-T$3*$A21),0) -> 0.02453611515 | V56: 0.02552535204 | W56: 0.02580503852 | X56: 0.02638620456 | Y56: 0.02649188286 | Z56: 0.02609907093 | AA56: 0.02616537739 | AB56: 0.0263255495 | AC56: 0.02649240375 | AD56: 0.0267556381 | AE56: 0.02699027836 | AF56: 0.02721354388 | AG56: 0.02763523034 | AH56: 0.02778232907 | AI56: 0.02811696628 | AJ56: 0.02825950937 | AK56: 0.02819455571 | AL56: 0.02805054671 | AM56: 0.02784507376 | AN56: 0.02765527929 | AO56: 0.02742012599 | AP56: 0.0273207767 | AQ56: 0.02712272692
C57: 16 | D57: 0.01416365616 | E57: 0.01747680044 | F57: 0.01866119693 | G57: 0.0177785248 | H57: 0.01923290507 | I57: 0.02356863859 | J57: 0.02720586164 | K57: 0.02956922471 | L57: 0.03101613794 | M57: 0.03349554069 | N57: 0.03655983149 | O57: 0.03865984131 | P57: 0.03784424598 | Q57: 0.03948017866 | R57: 0.0206798258 | S57: 0.01848249571 | T57: 0.01897134252 | U57: 0.02193843557 | V57: 0.02272462136 | W57: 0.02367400427 | X57: 0.02401335922 | Y57: 0.02460046617 | Z57: 0.02472661399 | AA57: 0.02435459246 | AB57: 0.02445757654 | AC57: 0.02464990121 | AD57: 0.02482991783 | AE57: 0.02505840927 | AF57: 0.02529230544 | AG57: 0.0251886297 | AH57: 0.02566656613 | AI57: 0.02579477934 | AJ57: 0.02616484574 | AK57: 0.02630422738 | AL57: 0.02625548706 | AM57: 0.02612173355 | AN57: 0.02593669022 | AO57: 0.02575815838 | AP57: 0.02553081893 | AQ57: 0.02543936278
C58: 17 | D58: 0.0162970107 | E58: 0.01316446386 | F58: 0.01635480689 | G58: 0.0170096386 | H58: 0.01641146208 | I58: 0.01781404058 | J58: 0.02171753946 | K58: 0.02505899016 | L58: 0.02731963416 | M58: 0.02867307542 | N58: 0.03101646168 | O58: 0.03385510031 | P58: 0.03585496566 | Q58: 0.0351268035 | R58: 0.03664414999 | S58: 0.01914249412 | T58: 0.01713247193 | U58: 0.01758795454 | V58: 0.02031872766 | W58: 0.02107640993 | X58: 0.0220302856 | Y58: 0.02238820781 | Z58: 0.02296123059 | AA58: 0.02307387141 | AB58: 0.02276498062 | AC58: 0.02290082665 | AD58: 0.02310303841 | AE58: 0.02325484598 | AF58: 0.02348197128 | AG58: 0.02341034739 | AH58: 0.02339425515 | AI58: 0.02383037823 | AJ58: 0.0240038849 | AK58: 0.02435449401 | AL58: 0.02449516527 | AM58: 0.02445010589 | AN58: 0.02433146046 | AO58: 0.02415746258 | AP58: 0.02398336454 | AQ58: 0.0237726684
C59: 18 | D59: 0.01328164618 | E59: =MAX(D24*(1-D$3*$A24),0) -> 0.01514731832 | F59: 0.01231931811 | G59: 0.01490736931 | H59: 0.01570169864 | I59: 0.01520074322 | J59: 0.01641491204 | K59: 0.02000376298 | L59: 0.02315253276 | M59: 0.02525581787 | N59: 0.02655091772 | O59: 0.02872183428 | P59: 0.03139882157 | Q59: 0.03328036537 | R59: 0.03260349623 | S59: 0.03392003552 | T59: 0.01774426183 | U59: 0.01588317416 | V59: 0.01628944129 | W59: 0.01884501513 | X59: 0.01961304581 | Y59: 0.02053934262 | Z59: 0.02089638458 | AA59: 0.02142648736 | AB59: 0.02156785159 | AC59: 0.0213159662 | AD59: 0.02146372407 | AE59: 0.02163751019 | AF59: 0.02179187112 | AG59: 0.02173471716 | AH59: 0.0217426532 | AI59: 0.02172062853 | AJ59: 0.02217586933 | AK59: 0.02234305055 | AL59: 0.02267952399 | AM59: 0.02281082743 | AN59: 0.02277439908 | AO59: 0.02266234976 | AP59: 0.02249296021 | AQ59: 0.02233177768
C60: 19 | D60: 0.0111128483 | E60: 0.01234467635 | F60: 0.01417487525 | G60: 0.01122903046 | H60: 0.01376108135 | I60: 0.014543341 | J60: 0.01400686508 | K60: 0.01511957698 | L60: 0.01848190109 | M60: 0.0214035132 | N60: 0.02338657895 | O60: 0.02458665552 | P60: 0.02663798782 | Q60: 0.02914419899 | R60: 0.03088969558 | S60: 0.03017976268 | T60: 0.03144240179 | U60: 0.01645035242 | V60: 0.01471052433 | W60: 0.01510797196 | X60: 0.01753657982 | Y60: 0.01828569429 | Z60: 0.01917071728 | AA60: 0.01949965697 | AB60: 0.02002799145 | AC60: 0.02019503566 | AD60: 0.01997831885 | AE60: 0.02010218483 | AF60: 0.0202762828 | AG60: 0.02017037452 | AH60: 0.02018639064 | AI60: 0.0201871823 | AJ60: 0.02021259652 | AK60: 0.0206415158 | AL60: 0.0208064167 | AM60: 0.02112003337 | AN60: 0.02124746983 | AO60: 0.02121210104 | AP60: 0.02110086396 | AQ60: 0.02094400833
C61: 20 | D61: 0.008798443712 | E61: 0.01032887894 | F61: 0.01155216016 | G61: 0.01292036657 | H61: 0.01036558486 | I61: 0.0127458884 | J61: 0.01340109574 | K61: 0.01290155405 | L61: 0.013969298 | M61: 0.01708571663 | N61: 0.01981939188 | O61: 0.02165641755 | P61: 0.02280282742 | Q61: 0.02472522149 | R61: 0.02705064757 | S61: 0.02859336542 | T61: 0.02797533109 | U61: 0.02914962569 | V61: 0.01523582799 | W61: 0.01364357347 | X61: 0.01405900469 | Y61: 0.01634975722 | Z61: 0.0170672393 | AA61: 0.01788933437 | AB61: 0.0182269243 | AC61: 0.0187531892 | AD61: 0.01892773041 | AE61: 0.01871100546 | AF61: 0.01883754558 | AG61: 0.01876755858 | AH61: 0.01873348784 | AI61: 0.01874225487 | AJ61: 0.01878561525 | AK61: 0.01881408229 | AL61: 0.01922190428 | AM61: 0.01937572479 | AN61: 0.01967255564 | AO61: 0.01978991741 | AP61: 0.01975054057 | AQ61: 0.01964777719
C62: 21 | D62: 0.007131718565 | E62: 0.00817774683 | F62: 0.009665774975 | G62: 0.01052976773 | H62: 0.0119268673 | I62: 0.00960088706 | J62: 0.01174481646 | K62: 0.01234358723 | L62: 0.01192001955 | M62: 0.01291401064 | N62: 0.01582116497 | O62: 0.01835313437 | P62: 0.02008518611 | Q62: 0.02116544847 | R62: 0.02294910396 | S62: 0.02503971103 | T62: 0.02650480964 | U62: 0.02593537336 | V62: 0.02699751785 | W62: 0.01413077698 | X62: 0.0126962814 | Y62: 0.01310753384 | Z62: 0.0152603021 | AA62: 0.01592645419 | AB62: 0.01672170663 | AC62: 0.01706676183 | AD62: 0.01757636458 | AE62: 0.0177270605 | AF62: 0.01753388604 | AG62: 0.01743587539 | AH62: 0.01743060498 | AI62: 0.01739329283 | AJ62: 0.01744100706 | AK62: 0.01748583419 | AL62: 0.01752015174 | AM62: 0.0179001667 | AN62: 0.01804779459 | AO62: 0.01832304056 | AP62: 0.01842634852 | AQ62: 0.01839044227
C63: 22 | D63: 0.005286651663 | E63: 0.006628602829 | F63: 0.007652743454 | G63: 0.008810331924 | H63: 0.009720091274 | I63: 0.01104698938 | J63: =MAX(I28*(1-I$3*$A28),0) -> 0.008846825956 | K63: 0.01081800841 | L63: 0.01140450217 | M63: 0.01101954151 | N63: 0.01195821616 | O63: 0.01465070011 | P63: 0.01702156503 | Q63: 0.01864295 | R63: 0.01964504454 | S63: 0.02124307487 | T63: 0.02321072613 | U63: 0.02457208215 | V63: 0.02402057277 | W63: 0.02503939424 | X63: 0.0131496577 | Y63: 0.01183703554 | Z63: 0.01223412211 | AA63: 0.01424029382 | AB63: 0.01488694264 | AC63: 0.01565735281 | AD63: 0.0159957661 | AE63: 0.0164614178 | AF63: 0.01661184159 | AG63: 0.01622921898 | AH63: 0.01619378754 | AI63: 0.0161836183 | AJ63: 0.01618570152 | AK63: 0.01623425975 | AL63: 0.01628325334 | AM63: 0.01631543015 | AN63: 0.01667336501 | AO63: 0.01680973627 | AP63: 0.01706054271 | AQ63: 0.01715743919
C64: 23 | D64: 0.004474848509 | E64: 0.00491369841 | F64: 0.006203052988 | G64: 0.006975458267 | H64: 0.008132869846 | I64: 0.009003013314 | J64: 0.01017935028 | K64: 0.008148704406 | L64: 0.009994987527 | M64: 0.01054296803 | N64: 0.01020396089 | O64: 0.01107353593 | P64: 0.01358775234 | Q64: 0.01579931518 | R64: 0.01730374784 | S64: 0.01818463817 | T64: 0.01969140908 | U64: 0.02151820282 | V64: 0.02275793293 | W64: 0.02227836629 | X64: 0.02330087467 | Y64: 0.01225972871 | Z64: 0.01104828261 | AA64: 0.01141638562 | AB64: 0.0133108371 | AC64: 0.01393937344 | AD64: 0.01467480216 | AE64: 0.01498108369 | AF64: 0.01542582116 | AG64: 0.01537578231 | AH64: 0.01507309029 | AI64: 0.01503528286 | AJ64: 0.01506001295 | AK64: 0.01506580909 | AL64: 0.0151177554 | AM64: 0.01516358342 | AN64: 0.0151972396 | AO64: 0.01552959101 | AP64: 0.01565150843 | AQ64: 0.01588568803
C65: 24 | D65: 0.004422022495 | E65: 0.004159164894 | F65: 0.004598243761 | G65: 0.005654068702 | H65: 0.00643908705 | I65: 0.007532885591 | J65: 0.008295909677 | K65: 0.009376076448 | L65: 0.007528760914 | M65: 0.00923993283 | N65: 0.009762659662 | O65: 0.009449062134 | P65: 0.01027012106 | Q65: 0.01261207072 | R65: 0.01466438336 | S65: 0.01601739272 | T65: 0.01685637091 | U65: 0.01825551393 | V65: 0.01992952056 | W65: 0.02110730542 | X65: 0.02073154868 | Y65: 0.02172394206 | Z65: 0.0114428099 | AA65: 0.01030980838 | AB65: 0.01067124395 | AC65: 0.01246358864 | AD65: 0.01306463167 | AE65: 0.01374391436 | AF65: 0.01403861567 | AG65: 0.01427801166 | AH65: 0.0142804503 | AI65: 0.01399476038 | AJ65: 0.01399140479 | AK65: 0.01401800717 | AL65: 0.01402966444 | AM65: 0.01407822752 | AN65: 0.01412433557 | AO65: 0.01415472614 | AP65: 0.01445956799 | AQ65: 0.01457368527
C66: 25 | D66: 0.003674107371 | E66: 0.004110065555 | F66: 0.003892150561 | G66: 0.004191288739 | H66: 0.005219304477 | I66: 0.005964057827 | J66: 0.006941246924 | K66: 0.007641262084 | L66: 0.008662755988 | M66: 0.006960013202 | N66: 0.008556064974 | O66: 0.009040408796 | P66: 0.008763507217 | Q66: 0.009532665144 | R66: 0.01170609219 | S66: 0.01357423776 | T66: 0.01484742837 | U66: 0.0156272064 | V66: 0.01690771498 | W66: 0.01848403713 | X66: 0.01964179618 | Y66: 0.01932850027 | Z66: 0.02027638174 | AA66: 0.01067796522 | AB66: 0.009636892444 | AC66: 0.009992008301 | AD66: 0.01168145724 | AE66: 0.01223588412 | AF66: 0.01287927732 | AG66: 0.01299402581 | AH66: 0.01326088207 | AI66: 0.0132588259 | AJ66: 0.01302312428 | AK66: 0.01302333626 | AL66: 0.01305392466 | AM66: 0.01306495592 | AN66: 0.01311336537 | AO66: 0.01315542211 | AP66: 0.01317943434 | AQ66: 0.01346382644
C67: 26 | D67: 0.003092571162 | E67: 0.00341491301 | F67: 0.003846203353 | G67: 0.003547686391 | H67: 0.003869003585 | I67: 0.004834261981 | J67: 0.005495636107 | K67: 0.006393498604 | L67: 0.007059924185 | M67: 0.008008342505 | N67: 0.006444887238 | O67: 0.007923079133 | P67: 0.00838450278 | Q67: 0.008134235153 | R67: 0.008847893377 | S67: 0.01083586502 | T67: 0.01258272968 | U67: 0.0137647557 | V67: 0.01447345458 | W67: 0.0156814024 | X67: 0.01720066502 | Y67: 0.01831249892 | Z67: 0.01804055861 | AA67: 0.01892109551 | AB67: 0.009981019872 | AC67: 0.009023494333 | AD67: 0.009364976745 | AE67: 0.01094045059 | AF67: 0.01146611807 | AG67: 0.01192095188 | AH67: 0.01206836413 | AI67: 0.01231219766 | AJ67: 0.01233828468 | AK67: 0.0121220513 | AL67: 0.01212766182 | AM67: 0.01215631001 | AN67: 0.01216953912 | AO67: 0.01221380332 | AP67: 0.01224898456 | AQ67: 0.01227184772
C68: 27 | D68: 0.002763425699 | E68: 0.002874401978 | F68: 0.003195678924 | G68: 0.003505805615 | H68: 0.003274890427 | I68: 0.003583576512 | J68: 0.004454575301 | K68: 0.005061963962 | L68: 0.005907089028 | M68: 0.006526593963 | N68: 0.007415627372 | O68: 0.005968088338 | P68: 0.007348238395 | Q68: 0.007782445494 | R68: 0.007549918544 | S68: 0.008190143795 | T68: 0.01004437691 | U68: 0.01166519857 | V68: 0.01274850805 | W68: 0.01342369833 | X68: 0.01459262107 | Y68: 0.01603657612 | Z68: 0.01709225782 | AA68: 0.01683471621 | AB68: 0.01768612525 | AC68: 0.009345717696 | AD68: 0.008457240231 | AE68: 0.008770914724 | AF68: 0.01025218096 | AG68: 0.01061294345 | AH68: 0.01107173329 | AI68: 0.01120499254 | AJ68: 0.01145737948 | AK68: 0.01148459591 | AL68: 0.01128836235 | AM68: 0.0112937389 | AN68: 0.01132316795 | AO68: 0.01133472249 | AP68: 0.01137224538 | AQ68: 0.0114054723
C69: 28 | D69: 0.002020025626 | E69: 0.002568476481 | F69: 0.002689868173 | G69: 0.002912854076 | H69: 0.003236230033 | I69: 0.003033292722 | J69: 0.003302119638 | K69: 0.004103055443 | L69: 0.004676855918 | M69: 0.005460847819 | N69: 0.006043546315 | O69: 0.006867012192 | P69: 0.005535087449 | Q69: 0.00682059107 | R69: 0.007223399428 | S69: 0.006988659998 | T69: 0.007591908087 | U69: 0.009311942173 | V69: 0.01080396057 | W69: 0.01182386177 | X69: 0.0124916725 | Y69: 0.01360503669 | Z69: 0.01496798961 | AA69: 0.01594980046 | AB69: 0.01573592287 | AC69: 0.01656038519 | AD69: 0.008759243013 | AE69: 0.007920759964 | AF69: 0.008219131764 | AG69: 0.009489333362 | AH69: 0.009856904086 | AI69: 0.01027966073 | AJ69: 0.01042704601 | AK69: =MAX(AJ34*(1-AJ$3*$A34),0) -> 0.01066464074 | AL69: 0.01069474769 | AM69: 0.01051215139 | AN69: 0.01051971382 | AO69: 0.01054641142 | AP69: 0.01055373515 | AQ69: 0.01058910876
C70: 29 | D70: 0.001564458595 | E70: =MAX(D35*(1-D$3*$A35),0) -> 0.001877520468 | F70: =MAX(E35*(1-E$3*$A35),0) -> 0.002403582794 | G70: 0.002451808727 | H70: 0.002688872938 | I70: 0.002997484412 | J70: 0.002795055562 | K70: 0.003041542467 | L70: 0.003790899989 | M70: 0.004323550622 | N70: 0.0050566784 | O70: 0.005596438999 | P70: 0.006368791956 | Q70: 0.005137635172 | R70: 0.006330639086 | S70: 0.006686414209 | T70: 0.006478184716 | U70: 0.007038307075 | V70: 0.008624444364 | W70: 0.01002035186 | X70: 0.01100291479 | Y70: 0.01164627395 | Z70: 0.01269847418 | AA70: 0.01396751968 | AB70: 0.01490876511 | AC70: 0.0147343152 | AD70: 0.01552116627 | AE70: 0.008203605369 | AF70: 0.007422460697 | AG70: 0.007607559948 | AH70: 0.008813337151 | AI70: 0.009151740492 | AJ70: 0.009565958667 | AK70: 0.009705596288 | AL70: 0.009931184584 | AM70: 0.009959354886 | AN70: 0.009791693009 | AO70: 0.009798073338 | AP70: 0.009819740454 | AQ70: 0.009826964294
C71: 30 | D71: 0.00246642204 | E71: =E37 -> 0.00246642204 | F71: =F37 -> 0.00246642204 | G71: 0.00246642204 | H71: 0.00246642204 | I71: 0.00246642204 | J71: 0.00246642204 | K71: 0.00246642204 | L71: 0.00246642204 | M71: 0.00246642204 | N71: 0.00246642204 | O71: 0.00246642204 | P71: 0.00246642204 | Q71: 0.00246642204 | R71: 0.00246642204 | S71: 0.00246642204 | T71: 0.00246642204 | U71: 0.00246642204 | V71: 0.00246642204 | W71: 0.00246642204 | X71: 0.00246642204 | Y71: 0.00246642204 | Z71: 0.00246642204 | AA71: 0.00246642204 | AB71: 0.00246642204 | AC71: 0.00246642204 | AD71: 0.00246642204 | AE71: 0.00246642204 | AF71: 0.00246642204 | AG71: 0.00246642204 | AH71: 0.00246642204 | AI71: 0.00246642204 | AJ71: 0.00246642204 | AK71: 0.00246642204 | AL71: 0.00246642204 | AM71: 0.00246642204 | AN71: 0.00246642204 | AO71: 0.00246642204 | AP71: 0.00246642204 | AQ71: 0.00246642204
D74: 0.05853699893 | E74: 0.05853699893 | F74: 0.06760790601 | G74: 0.06899685 | H74: 0.07182202313 | I74: 0.07255478717 | J74: 0.07344178247 | K74: 0.07289481972 | L74: 0.07111401913 | M74: 0.07067893349 | N74: 0.0704495059 | O74: 0.07015314861 | P74: 0.07015466801 | Q74: 0.07013420276 | R74: 0.07002432416 | S74: 0.07112824603 | T74: 0.07141142862 | U74: 0.07217159442 | V74: 0.07222639156 | W74: 0.07189533633 | X74: 0.07156063862 | Y74: 0.07117787399 | Z74: 0.07082284952 | AA74: 0.07037079154 | AB74: 0.07042019754 | AC74: 0.0703263593 | AD74: 0.07029503566 | AE74: 0.07039889035 | AF74: 0.07045742127 | AG74: 0.07054037766 | AH74: 0.07058732739 | AI74: 0.07064368677 | AJ74: 0.07064367884 | AK74: 0.0706436784 | AL74: 0.07064367949 | AM74: 0.07064368251 | AN74: 0.07064368178 | AO74: 0.07064368389 | AP74: 0.07064367732 | AQ74: 0.07064368049 | AR74: 0.07064368185
D75: 0.06760790601
D76: 0.06899685
D77: 0.07182202313
D78: 0.07255478717
D79: 0.07344178247
D80: 0.07289481972
D81: 0.07111401913
D82: 0.07067893349
D83: 0.0704495059
D84: 0.07015314861
D85: 0.07015466801
D86: 0.07013420276
D87: 0.07002432416
D88: 0.07112824603
D89: 0.07141142862
D90: 0.07217159442
D91: 0.07222639156
D92: 0.07189533633
D93: 0.07156063862
D94: 0.07117787399
D95: 0.07082284952
D96: 0.07037079154
D97: 0.07042019754
D98: 0.0703263593
D99: 0.07029503566
D100: 0.07039889035
D101: 0.07045742127
D102: 0.07054037766
D103: 0.07058732739
D104: 0.07064368677
D105: 0.07064367884
D106: 0.0706436784
D107: 0.07064367949
D108: 0.07064368251
D109: 0.07064368178
D110: 0.07064368389
D111: 0.07064367732
D112: 0.07064368049
D113: 0.07064368185

Sheet 21 (hidden)
D1: 2011 | E1: 2012 | F1: 2013 | G1: 2014 | H1: 2015 | I1: 2016 | J1: 2017 | K1: 2018 | L1: 2019 | M1: 2020 | N1: 2021 | O1: 2022 | P1: 2023 | Q1: 2024 | R1: 2025 | S1: 2026 | T1: 2027 | U1: 2028 | V1: 2029 | W1: 2030 | X1: 2031 | Y1: 2032 | Z1: 2033 | AA1: 2034 | AB1: 2035 | AC1: 2036 | AD1: 2037 | AE1: 2038 | AF1: 2039 | AG1: 2040 | AH1: 2041 | AI1: 2042 | AJ1: 2043 | AK1: 2044 | AL1: 2045 | AM1: 2046 | AN1: 2047 | AO1: 2048 | AP1: 2049 | AQ1: 2050
C2: sales (age 0 pop) | D2: 0.04199508348 | E2: 0.06777105708 | F2: 0.06899685558 | G2: 0.07182202069 | H2: 0.07255478443 | I2: 0.07344178757 | J2: 0.07289481626 | K2: 0.0711140183 | L2: 0.07067893401 | M2: 0.07044950957 | N2: 0.07015314684 | O2: 0.07015467075 | P2: 0.07013420201 | Q2: 0.07002431915 | R2: 0.07112824664 | S2: 0.07141142916 | T2: 0.0721715968 | U2: 0.07222639383 | V2: 0.07189533184 | W2: 0.07156063716 | X2: 0.07117787842 | Y2: 0.07082284658 | Z2: 0.07037079137 | AA2: 0.07042019608 | AB2: 0.07032636515 | AC2: 0.07029503451 | AD2: 0.07039888762 | AE2: 0.07045742575 | AF2: 0.07054037645 | AG2: 0.07058732844 | AH2: 0.07064368072 | AI2: 0.07064368121 | AJ2: 0.07064368088 | AK2: 0.07064368104 | AL2: 0.0706436809 | AM2: 0.07064368093 | AN2: 0.07064368118 | AO2: 0.07064368089 | AP2: 0.07064368095 | AQ2: 0.070643681
C3: scrappage k factor | D3: 0.8260912695 | E3: 0.6945602214 | F3: 0.8601841805 | G3: 0.8638654184 | H3: 0.8247476422 | I3: 0.8415241871 | J3: 0.8770321873 | K3: 0.8946643321 | L3: 0.918862644 | M3: 0.9426202028 | N3: 0.9863801917 | O3: 1.028970869 | P3: 1.07090216 | Q3: 1.122151602 | R3: 1.135421741 | S3: 1.151363459 | T3: 1.145367316 | U3: 1.140989013 | V3: 1.13239398 | W3: 1.115774472 | X3: 1.105949353 | Y3: 1.100618207 | Z3: 1.118107497 | AA3: 1.12672218 | AB3: 1.134276082 | AC3: 1.143109567 | AD3: 1.149382757 | AE3: 1.162894179 | AF3: 1.183300491 | AG3: 1.144589987 | AH3: 1.142269787 | AI3: 1.139068084 | AJ3: 1.136976366 | AK3: 1.135447381 | AL3: 1.134535744 | AM3: 1.133993874 | AN3: 1.133663341 | AO3: 1.133564674 | AP3: 1.13349072
A5: default
A6: scrappage | C6: age | D6: 2011 | E6: 2012 | F6: 2013 | G6: 2014 | H6: 2015 | I6: 2016 | J6: 2017 | K6: 2018 | L6: 2019 | M6: 2020 | N6: 2021 | O6: 2022 | P6: 2023 | Q6: 2024 | R6: 2025 | S6: 2026 | T6: 2027 | U6: 2028 | V6: 2029 | W6: 2030 | X6: 2031 | Y6: 2032 | Z6: 2033 | AA6: 2034 | AB6: 2035 | AC6: 2036 | AD6: 2037 | AE6: 2038 | AF6: 2039 | AG6: 2040 | AH6: 2041 | AI6: 2042 | AJ6: 2043 | AK6: 2044 | AL6: 2045 | AM6: 2046 | AN6: 2047 | AO6: 2048 | AP6: 2049 | AQ6: 2050
A7: 0.003300011158 | C7: 0 | D7: 0.04199508348 | E7: =E41 -> 0.06777105708 | F7: =F41 -> 0.06899685558 | G7: 0.07182202069 | H7: 0.07255478443 | I7: 0.07344178757 | J7: 0.07289481626 | K7: 0.0711140183 | L7: 0.07067893401 | M7: 0.07044950957 | N7: 0.07015314684 | O7: 0.07015467075 | P7: 0.07013420201 | Q7: 0.07002431915 | R7: 0.07112824664 | S7: 0.07141142916 | T7: 0.0721715968 | U7: 0.07222639383 | V7: 0.07189533184 | W7: 0.07156063716 | X7: 0.07117787842 | Y7: 0.07082284658 | Z7: 0.07037079137 | AA7: 0.07042019608 | AB7: 0.07032636515 | AC7: 0.07029503451 | AD7: 0.07039888762 | AE7: 0.07045742575 | AF7: 0.07054037645 | AG7: 0.07058732844 | AH7: 0.07064368072 | AI7: 0.07064368121 | AJ7: 0.07064368088 | AK7: 0.07064368104 | AL7: 0.0706436809 | AM7: 0.07064368093 | AN7: 0.07064368118 | AO7: 0.07064368089 | AP7: 0.07064368095 | AQ7: 0.070643681
A8: 0.003300011158 | C8: 1 | D8: 0.047185151 | E8: =E42*(1-E$41-E$71)/SUM(E$42:E$70) -> 0.04191635909 | F8: =F42*(1-F$41-F$71)/SUM(F$42:F$70) -> 0.06676060839 | G8: 0.06869363672 | H8: 0.07130550201 | I8: 0.07158183032 | J8: 0.07244233413 | K8: 0.07206907165 | L8: 0.07028453315 | M8: 0.06984442697 | N8: 0.0696058722 | O8: 0.06933242216 | P8: 0.06931515816 | Q8: 0.06926638829 | R8: 0.06912351962 | S8: 0.07014662767 | T8: 0.07039561515 | U8: 0.07110124388 | V8: 0.07117374979 | W8: 0.0708596255 | X8: 0.0705045488 | Y8: 0.0701310956 | Z8: 0.06980710013 | AA8: 0.06943391488 | AB8: 0.06952289373 | AC8: 0.06945526739 | AD8: 0.06944225446 | AE8: 0.06955242022 | AF8: 0.06964515248 | AG8: 0.06979551872 | AH8: 0.06967702098 | AI8: 0.06974115358 | AJ8: 0.06973731316 | AK8: 0.06973712346 | AL8: 0.06973684046 | AM8: 0.06973704481 | AN8: 0.06973678316 | AO8: 0.06973638224 | AP8: 0.06973662496 | AQ8: 0.06973674589
A9: 0.003400027752 | C9: 2 | D9: 0.04298664311 | E9: =E43*(1-E$41-E$71)/SUM(E$42:E$70) -> 0.04709669726 | F9: 0.04129139717 | G9: 0.0664672171 | H9: 0.06819961627 | I9: 0.07034930068 | J9: 0.07060768864 | K9: 0.0716217152 | L9: 0.07122844661 | M9: 0.0694546828 | N9: 0.0690080355 | O9: 0.06879155011 | P9: 0.06850274908 | Q9: 0.06845747896 | R9: 0.06837533884 | S9: 0.06816956726 | T9: 0.06914880523 | U9: 0.06935160123 | V9: 0.07006499804 | W9: 0.07014843838 | X9: 0.06981388263 | Y9: 0.06946766835 | Z9: 0.06912527029 | AA9: 0.0688777283 | AB9: 0.06854917984 | AC9: 0.06866174818 | AD9: 0.06861267492 | AE9: 0.0686072895 | AF9: 0.06875058037 | AG9: 0.0689097477 | AH9: 0.06889542259 | AI9: 0.06878684366 | AJ9: 0.06884636508 | AK9: 0.06884238699 | AL9: 0.06884192021 | AM9: 0.0688418427 | AN9: 0.0688417861 | AO9: 0.06884113179 | AP9: 0.06884097591 | AQ9: 0.06884133483
A10: 0.007000029087 | C10: 3 | D10: 0.05445935701 | E10: 0.04290250522 | F10: 0.04639126754 | G10: 0.04110638797 | H10: 0.06598349046 | I10: 0.06727949924 | J10: 0.06938607549 | K10: 0.0698017112 | L10: 0.07077995539 | M10: 0.07038096308 | N10: 0.06861646874 | O10: 0.06819395726 | P10: 0.06796133069 | Q10: 0.06764785022 | R10: 0.06756922281 | S10: 0.06742402549 | T10: 0.06719210018 | U10: 0.0681154488 | V10: 0.06833302669 | W10: 0.06904780858 | X10: 0.06910544992 | Y10: 0.06877952288 | Z10: 0.06846379316 | AA10: 0.0681973204 | AB10: 0.06799238867 | AC10: 0.06769238601 | AD10: 0.06782099802 | AE10: 0.06777986236 | AF10: 0.06780842764 | AG10: 0.0680165394 | AH10: 0.0680132582 | AI10: 0.06800743092 | AJ10: 0.06789653385 | AK10: 0.06795511468 | AL10: 0.06795092265 | AM10: 0.0679506674 | AN10: 0.06795033963 | AO10: 0.06794989514 | AP10: 0.06794948676 | AQ10: 0.06794945118
A11: 0.01020002365 | C11: 4 | D11: 0.0597189814 | E11: 0.05419066696 | F11: 0.04215397996 | G11: 0.04603997399 | H11: 0.04067994821 | I11: 0.06489946092 | J11: 0.06615669734 | K11: 0.06837682173 | L11: 0.06875848914 | M11: 0.06970573528 | N11: 0.06929486077 | O11: 0.06756541888 | P11: 0.06712051182 | Q11: 0.06685350501 | R11: 0.06649933185 | S11: 0.06635572171 | T11: 0.06618070667 | U11: 0.06591400321 | V11: 0.06683827699 | W11: 0.06706539701 | X11: 0.06774691736 | Y11: 0.06780950184 | Z11: 0.0675160013 | AA11: 0.06727180528 | AB11: 0.06704661004 | AC11: 0.0668673231 | AD11: 0.06658727548 | AE11: 0.06671948502 | AF11: 0.0667090708 | AG11: 0.06679751962 | AH11: 0.06685397174 | AI11: 0.06685948288 | AJ11: 0.0668508739 | AK11: 0.0667422042 | AL11: 0.06679990022 | AM11: 0.06679620328 | AN11: 0.06679583722 | AO11: 0.06679521342 | AP11: 0.06679503392 | AQ11: 0.06679476675
A12: 0.01419997215 | C12: 5 | D12: 0.05618637467 | E12: 0.05926634039 | F12: 0.05312627539 | G12: 0.04171892153 | H12: 0.04543563572 | I12: 0.0399054141 | J12: 0.06364351087 | K12: 0.0650103182 | L12: 0.06716084837 | M12: 0.06751455364 | N12: 0.06842166361 | O12: 0.06801654931 | P12: 0.06628130787 | Q12: 0.06579841862 | R12: 0.06548061749 | S12: 0.06506586869 | T12: 0.06489018305 | U12: 0.06468197519 | V12: 0.06444005739 | W12: 0.0653587709 | X12: 0.06556506214 | Y12: 0.0662393483 | Z12: 0.06632754408 | AA12: 0.06610128026 | AB12: 0.06589635947 | AC12: 0.06569594799 | AD12: 0.06553313754 | AE12: 0.06526291422 | AF12: 0.06541908205 | AG12: 0.06546364222 | AH12: 0.0654133694 | AI12: 0.06547770325 | AJ12: 0.06548096368 | AK12: 0.06547331407 | AL12: 0.06536731859 | AM12: 0.06542443583 | AN12: 0.06542081793 | AO12: 0.06542023459 | AP12: 0.06541989683 | AQ12: 0.06541986831
A13: 0.01880002022 | C13: 6 | D13: 0.05622380113 | E13: 0.05557469269 | F13: 0.05793968273 | G13: 0.05239546931 | H13: 0.04102777433 | I13: 0.04442227138 | J13: 0.03900029015 | K13: 0.0623193025 | L13: 0.06362359887 | M13: 0.06570114576 | N13: 0.06601855093 | O13: 0.06689179171 | P13: 0.06644632736 | Q13: 0.06469434384 | R13: 0.06415457435 | S13: 0.06377472628 | T13: 0.06333229974 | U13: 0.06312668606 | V13: 0.06294358055 | W13: 0.06272488071 | X13: 0.06360815927 | Y13: 0.06381922172 | Z13: 0.0645032272 | AA13: 0.06464394968 | AB13: 0.06445455816 | AC13: 0.06427248841 | AD13: 0.06408726825 | AE13: 0.06393094469 | AF13: 0.06368967291 | AG13: 0.06389016777 | AH13: 0.06381016325 | AI13: 0.06377058435 | AJ13: 0.06383205981 | AK13: 0.06383654987 | AL13: 0.06382991848 | AM13: 0.06372741641 | AN13: 0.06378324572 | AO13: 0.06377958609 | AP13: 0.06377930961 | AQ13: 0.06377914332
A14: 0.02389997244 | C14: 7 | D14: 0.05264675753 | E14: 0.05539787548 | F14: 0.0541553552 | G14: 0.05691376021 | H14: 0.05132014245 | I14: 0.03995873362 | J14: 0.04324460418 | K14: 0.03803281312 | L14: 0.06073575051 | M14: 0.06197421827 | N14: 0.06396297156 | O14: 0.0642453967 | P14: 0.06503363881 | Q14: 0.06453098802 | R14: 0.06274720433 | S14: 0.06215153151 | T14: 0.0617413206 | U14: 0.06128116056 | V14: 0.06110235925 | W14: 0.0609438689 | X14: 0.06072645314 | Y14: 0.06159441619 | Z14: 0.0618268947 | AA14: 0.06253738154 | AB14: 0.06270151943 | AC14: 0.06253282875 | AD14: 0.06236353257 | AE14: 0.06218438124 | AF14: 0.06205046227 | AG14: 0.06185681464 | AH14: 0.06194311825 | AI14: 0.06187538185 | AJ14: 0.06183674518 | AK14: 0.06189824674 | AL14: 0.06190385414 | AM14: 0.0618985021 | AN14: 0.06179940207 | AO14: 0.06185351151 | AP14: 0.06185027514 | AQ14: 0.06185018694
A15: 0.02939999104 | C15: 8 | D15: 0.05507140433 | E15: 0.05165138698 | F15: 0.05378930377 | G15: 0.05295923746 | H15: 0.05549605139 | I15: 0.04976937057 | J15: =J49*(1-J$41-J$71)/SUM(J$42:J$70) -> 0.03872976861 | K15: 0.0419800494 | L15: 0.03689437027 | M15: 0.05887912247 | N15: 0.06003936223 | O15: 0.06192598759 | P15: 0.06212651542 | Q15: 0.0628069871 | R15: 0.06222285524 | S15: 0.06042842556 | T15: 0.05980875179 | U15: 0.05938505828 | V15: 0.05896329003 | W15: 0.05881204632 | X15: 0.0586592452 | Y15: 0.05846522704 | Z15: 0.0593295245 | AA15: 0.05959346508 | AB15: 0.06030215049 | AC15: 0.06047249131 | AD15: 0.06031404726 | AE15: 0.06014928491 | AF15: 0.05998932287 | AG15: 0.05989281807 | AH15: 0.05961395649 | AI15: 0.05970735859 | AJ15: 0.05964284147 | AK15: 0.05960808718 | AL15: 0.05966906899 | AM15: 0.05967580569 | AN15: 0.05967110957 | AO15: 0.05957565142 | AP15: 0.05962814664 | AQ15: 0.05962522377
A16: 0.03519999981 | C16: 9 | D16: 0.05497061045 | E16: 0.05377976046 | F16: 0.04995678314 | G16: 0.05234718929 | H16: 0.05138950634 | I16: 0.05357005435 | J16: 0.04801082062 | K16: 0.03741199588 | L16: 0.04051868815 | M16: 0.03558173388 | N16: 0.0567383561 | O16: 0.05780436995 | P16: 0.05953615553 | Q16: 0.0596367212 | R16: 0.0601764468 | S16: 0.05953880291 | T16: 0.05777193806 | U16: 0.0571536547 | V16: 0.05677027984 | W16: 0.05638985451 | X16: 0.05625043462 | Y16: 0.05612214481 | Z16: 0.05596528857 | AA16: 0.05682498035 | AB16: 0.05709750113 | AC16: 0.057785486 | AD16: 0.05794980657 | AE16: 0.05779443495 | AF16: 0.05764432281 | AG16: 0.05751553666 | AH16: 0.05734758227 | AI16: 0.05709112587 | AJ16: 0.05718238878 | AK16: 0.05712368355 | AL16: 0.0570925313 | AM16: 0.05715251925 | AN16: 0.05715959676 | AO16: 0.05715528186 | AP16: 0.05706419981 | AQ16: 0.05711469552
A17: 0.04089999199 | C17: 10 | D17: 0.05337101982 | E17: 0.05341772302 | F17: 0.05180141843 | G17: 0.04836857095 | H17: 0.05053445952 | I17: 0.04936283809 | J17: 0.05141858387 | K17: 0.04613510641 | L17: 0.03591721558 | M17: 0.03886306478 | N17: 0.03409522664 | O17: 0.05430439422 | P17: 0.05523158639 | Q17: 0.05678366003 | R17: 0.05675438496 | S17: 0.05718837843 | T17: 0.05652798963 | U17: 0.05482773169 | V17: 0.05426300231 | W17: 0.05392368928 | X17: 0.05357287334 | Y17: 0.05346070376 | Z17: 0.05336798507 | AA17: 0.05324333166 | AB17: 0.05407698173 | AC17: 0.05434220551 | AD17: 0.0549949873 | AE17: 0.05514583366 | AF17: 0.05500074024 | AG17: 0.05487425876 | AH17: 0.05469299762 | AI17: 0.0545441604 | AJ17: 0.05430305002 | AK17: 0.05439350339 | AL17: 0.05434021184 | AM17: 0.05431238816 | AN17: 0.05437023354 | AO17: 0.05437725313 | AP17: 0.05437351665 | AQ17: 0.05428709558
A18: 0.04680001736 | C18: 11 | D18: 0.05745496251 | E18: 0.05161179645 | F18: 0.05124389331 | G18: 0.04990097386 | H18: 0.04645648538 | I18: 0.04830649289 | J18: 0.0471461311 | K18: 0.0491548619 | L18: 0.04405858399 | M18: 0.03426315069 | N18: 0.03703252084 | O18: 0.03244253802 | P18: 0.05157162626 | Q18: 0.05234395095 | R18: 0.05367935359 | S18: 0.05357263777 | T18: 0.05392503751 | U18: 0.05328222409 | V18: 0.05170200681 | W18: 0.05119563512 | X18: 0.05089076946 | Y18: 0.05058196531 | Z18: 0.05050537115 | AA18: 0.05043551228 | AB18: 0.0503296901 | AC18: 0.05112085012 | AD18: 0.05136687771 | AE18: 0.05197666568 | AF18: 0.05211745696 | AG18: 0.05198922106 | AH18: 0.05182660773 | AI18: 0.05166646151 | AJ18: 0.05152955382 | AK18: 0.05130587798 | AL18: 0.05139424046 | AM18: 0.05134589056 | AN18: 0.05132050808 | AO18: 0.05137554347 | AP18: 0.05138255612 | AQ18: 0.05137926485
A19: 0.08850002289 | C19: 12 | D19: 0.04997592513 | E19: 0.05528085137 | F19: 0.04930263238 | G19: 0.04910424024 | H19: 0.04767508053 | I19: 0.04418467278 | J19: 0.04589998529 | K19: 0.04482861064 | L19: 0.0466852226 | M19: 0.04179283851 | N19: 0.03246041426 | O19: 0.03502376234 | P19: 0.03061466415 | Q19: 0.04855238503 | R19: 0.04913899079 | S19: 0.0503140279 | T19: 0.05015550749 | U19: 0.05046836351 | V19: 0.04988981149 | W19: 0.04843767713 | X19: 0.04798287457 | Y19: 0.04772121627 | Z19: 0.04746083851 | AA19: 0.047400235 | AB19: 0.04734328058 | AC19: 0.04724450806 | AD19: 0.04798001176 | AE19: 0.04820221908 | AF19: 0.04876846226 | AG19: 0.0489023821 | AH19: 0.04875392639 | AI19: 0.0486125648 | AJ19: 0.04846683836 | AK19: 0.04834294134 | AL19: 0.04813629628 | AM19: 0.04822136838 | AN19: 0.04817702638 | AO19: 0.04815366731 | AP19: 0.04820569391 | AQ19: 0.04821252185
A20: 0.1456999779 | C20: 13 | D20: 0.04407549542 | E20: 0.04636178164 | F20: 0.05122667033 | G20: 0.04547832509 | H20: 0.04515269517 | I20: 0.04372160848 | J20: 0.0404498361 | K20: 0.04197925332 | L20: 0.04091850025 | M20: 0.04251132651 | N20: 0.03796577704 | O20: 0.02937580818 | P20: 0.03156057901 | Q20: 0.02746732062 | R20: 0.04332852164 | S20: 0.04375520521 | T20: 0.04471435796 | U20: 0.04457152057 | V20: 0.04487991216 | W20: 0.04440928886 | X20: 0.0431693464 | Y20: 0.04280610797 | Z20: 0.04260995003 | AA20: 0.04235139313 | AB20: 0.04228720201 | AC20: 0.04222128674 | AD20: 0.04210869069 | AE20: 0.04274336775 | AF20: 0.04290758049 | AG20: 0.04336964633 | AH20: 0.04354646522 | AI20: 0.04342915191 | AJ20: 0.04331403434 | AK20: 0.04319266515 | AL20: 0.04308833936 | AM20: 0.04290799989 | AN20: 0.04298588485 | AO20: 0.04294745949 | AP20: 0.0429271882 | AQ20: 0.04297394455
A21: 0.168299973 | C21: 14 | D21: 0.04197375443 | E21: 0.03880360693 | F21: 0.04114310168 | G21: 0.04473657236 | H21: 0.03958112626 | I21: 0.03930111973 | J21: 0.03794422704 | K21: 0.03498259934 | L21: 0.03618816648 | M21: 0.03512847565 | N21: 0.03634673459 | O21: 0.0322340977 | P21: 0.02475699499 | Q21: 0.02639987973 | R21: 0.02276521384 | S21: 0.03579572561 | T21: 0.03603402437 | U21: 0.03683918992 | V21: 0.03675865961 | W21: 0.037073869 | X21: 0.03677631402 | Y21: 0.03581130298 | Z21: 0.03555537866 | AA21: 0.03532390596 | AB21: 0.03507821605 | AC21: 0.03499240391 | AD21: 0.03489402064 | AE21: 0.03476730813 | AF21: 0.03522711091 | AG21: 0.03527279505 | AH21: 0.03580624794 | AI21: 0.03597092829 | AJ21: 0.03589174188 | AK21: =AK55*(1-AK$41-AK$71)/SUM(AK$42:AK$70) -> 0.03580933869 | AL21: 0.03571820675 | AM21: 0.03563760235 | AN21: 0.03549160658 | AO21: 0.03555783735 | AP21: 0.03552677591 | AQ21: 0.03551051838
A22: 0.1869000196 | C22: 15 | D22: 0.03539366833 | E22: 0.0361689513 | F22: 0.03383430802 | G22: 0.03513194835 | H22: 0.03806595125 | I22: 0.03372174249 | J22: 0.0333685351 | K22: 0.03206992237 | L22: 0.02945556186 | M22: 0.03032261091 | N22: 0.0292927802 | O22: 0.03005609733 | P22: 0.02642272151 | Q22: 0.02011493611 | R22: 0.02121714613 | S22: 0.0182291396 | T22: 0.02855741331 | U22: 0.02876524681 | V22: 0.02944207381 | W22: 0.02943450332 | X22: 0.02977721033 | Y22: 0.02959893461 | Z22: 0.02886419724 | AA22: 0.02858584533 | AB22: 0.02836625005 | AC22: 0.02813559588 | AD22: 0.02802325173 | AE22: 0.02791155027 | AF22: 0.02774693168 | AG22: 0.02802318375 | AH22: 0.02821736242 | AI22: 0.02866124135 | AJ22: 0.02881037557 | AK22: 0.02875919518 | AL22: 0.02870203633 | AM22: 0.02863441959 | AN22: 0.02857286288 | AO22: 0.02845757054 | AP22: 0.02851135021 | AQ22: 0.02848692475
A23: 0.201399982 | C23: 16 | D23: 0.03671539369 | E23: 0.02995456496 | F23: 0.03107570174 | G23: 0.0283505093 | H23: 0.02933142165 | I23: 0.03185317967 | J23: 0.02810928366 | K23: 0.02766288097 | L23: 0.02647406396 | M23: 0.02418226901 | N23: 0.02475837436 | O23: 0.02369011823 | P23: 0.02406709179 | Q23: 0.02094668986 | R23: 0.01575006107 | S23: 0.01654597069 | T23: 0.01415669625 | U23: 0.02219518138 | V23: 0.02238549062 | W23: 0.0229622607 | X23: 0.02303730242 | Y23: 0.02336005694 | Z23: 0.02325755571 | AA23: 0.02261177717 | AB23: 0.02236171752 | AC23: 0.02215878333 | AD23: 0.02193886187 | AE23: 0.02182150979 | AF23: 0.02167645779 | AG23: 0.02146608275 | AH23: 0.02182671643 | AI23: 0.02199259642 | AJ23: 0.02235408292 | AK23: 0.02248134266 | AL23: 0.0224493442 | AM23: 0.02240956998 | AN23: 0.02235952661 | AO23: 0.02231305555 | AP23: 0.02222361188 | AQ23: 0.02226603412
A24: 0.2128000259 | C24: 17 | D24: 0.02900865053 | E24: 0.03063301164 | F24: 0.02543855446 | G24: 0.0256520214 | H24: 0.02331607191 | I24: 0.02419720944 | J24: 0.02616726107 | K24: 0.02294846353 | L24: 0.02248028023 | M24: 0.02138491287 | N24: 0.01941720958 | O24: 0.01967187596 | P24: 0.01861918585 | Q24: 0.01870885793 | R24: 0.01606363405 | S24: 0.01202583578 | T24: 0.01257621253 | U24: 0.01077025939 | V24: 0.01690936033 | W24: 0.01709511244 | X24: 0.01760434697 | Y24: 0.01770730483 | Z24: 0.01798652286 | AA24: 0.01784619734 | AB24: 0.01732233848 | AC24: 0.01710364818 | AD24: 0.01691421342 | AE24: 0.01672102576 | AF24: 0.01658174469 | AG24: 0.01640029704 | AH24: 0.01636651613 | AI24: 0.01665348568 | AJ24: 0.01679299996 | AK24: 0.01707818876 | AL24: 0.01718211627 | AM24: 0.01716174306 | AN24: 0.01713366531 | AO24: 0.01709676149 | AP24: 0.01706172155 | AQ24: 0.01699368155
A25: 0.2211999893 | C25: 18 | D25: 0.02494697053 | E25: 0.02392956908 | F25: 0.02577523194 | G25: 0.02074966766 | H25: 0.02084525309 | I25: 0.01901792282 | J25: 0.01964829942 | K25: 0.02110358044 | L25: 0.01841709089 | M25: 0.01792545047 | N25: 0.01694330893 | O25: 0.01521153734 | P25: 0.01523228624 | Q25: 0.01424856666 | R25: 0.01411034777 | S25: 0.01205943488 | T25: 0.008984367373 | U25: 0.00940545566 | V25: 0.008066731092 | W25: 0.01269720865 | X25: 0.01289118307 | Y25: 0.01331184831 | Z25: 0.01341429112 | AA25: 0.01357453067 | AB25: 0.01344438995 | AC25: 0.01302716577 | AD25: 0.0128345183 | AE25: 0.01267162012 | AF25: 0.01248602524 | AG25: 0.0123234751 | AH25: 0.01229213989 | AI25: 0.01227623079 | AJ25: 0.01250190417 | AK25: 0.0126139238 | AL25: 0.01283352996 | AM25: 0.01291492878 | AN25: 0.01290150456 | AO25: 0.01288150277 | AP25: 0.01285415387 | AQ25: 0.01282809434
A26: 0.2282999754 | C26: 19 | D26: 0.02094891552 | E26: 0.02040578436 | F26: 0.01999697439 | G26: 0.02083833933 | H26: 0.01671160687 | I26: 0.01685971651 | J26: 0.01530971012 | K26: 0.01570259104 | L26: 0.01677928515 | M26: 0.01454462246 | N26: 0.01406169881 | O26: 0.01313427593 | P26: 0.01164821866 | Q26: 0.01152089194 | R26: 0.0106132933 | S26: 0.01045982699 | T26: 0.00889405769 | U26: 0.006633718415 | V26: 0.006955351241 | W26: 0.005981384467 | X26: 0.009457104686 | Y26: 0.009629474161 | Z26: 0.009962735491 | AA26: 0.009999070585 | AB26: 0.01009902866 | AC26: 0.009983791563 | AD26: 0.009651501756 | AE26: 0.009492344653 | AF26: 0.0093394045 | AG26: 0.009156277555 | AH26: 0.009119133036 | AI26: 0.009103236974 | AJ26: 0.009099473059 | AK26: 0.009272390639 | AL26: 0.00935961504 | AM26: 0.009525127756 | AN26: 0.009587023177 | AO26: 0.009577927178 | AP26: 0.009563386853 | AQ26: 0.009543305253
A27: 0.2332000136 | C27: 20 | D27: 0.01776895454 | E27: 0.01701253433 | F27: 0.016952934 | G27: 0.01604489101 | H27: 0.01665576813 | I27: 0.0134195991 | J27: 0.01347268257 | K27: 0.01214073736 | L27: 0.01238612944 | M27: 0.01314268672 | N27: 0.0113131177 | O27: 0.01080283806 | P27: 0.009962428364 | Q27: 0.00872231338 | R27: 0.00849059129 | S27: 0.00778280818 | T27: 0.007629706345 | U27: 0.00649551217 | V27: 0.004852489876 | W27: 0.005101987575 | X27: 0.00440818286 | Y27: 0.006990846209 | Z27: 0.007132366213 | AA27: 0.007347940397 | AB27: 0.007359732384 | AC27: 0.007418904018 | AD27: 0.007316392648 | AE27: 0.007060090446 | AF27: 0.00691840423 | AG27: 0.006770851147 | AH27: 0.006701740111 | AI27: 0.00668010269 | AJ27: 0.006674613673 | AK27: 0.006676095324 | AL27: 0.006806106457 | AM27: 0.006872060394 | AN27: 0.006994712706 | AO27: 0.007040833814 | AP27: 0.007034389586 | AQ27: 0.007023881069
A28: 0.2366999984 | C28: 21 | D28: 0.01496220375 | E28: 0.01435811217 | F28: 0.01407668601 | G28: 0.01353111268 | H28: 0.01275681576 | I28: 0.01330817052 | J28: 0.01066893311 | K28: 0.01062654902 | L28: 0.009523797521 | M28: 0.009646388677 | N28: 0.01016249753 | O28: 0.008637036281 | P28: 0.008140019087 | Q28: 0.00740816148 | R28: 0.006380593848 | S28: 0.006179453129 | T28: 0.005633560899 | U28: 0.005529785001 | V28: 0.004715471899 | W28: 0.003532829948 | X28: 0.003732497491 | Y28: 0.003234977056 | Z28: =Z62*(1-Z$41-Z$71)/SUM(Z$42:Z$70) -> 0.005140688394 | AA28: 0.005221723752 | AB28: 0.005368189756 | AC28: 0.005366023758 | AD28: 0.005395566961 | AE28: 0.00531108843 | AF28: 0.005105759722 | AG28: 0.004975835803 | AH28: 0.00491815169 | AI28: 0.004872101202 | AJ28: 0.004860994241 | AK28: 0.004860179263 | AL28: 0.004863572485 | AM28: 0.004959719618 | AN28: 0.005008613991 | AO28: 0.005098506892 | AP28: 0.005132301698 | AQ28: 0.005127732121
A29: 0.2401999831 | C29: 22 | D29: 0.01240044734 | E29: 0.01204683439 | F29: 0.0118458743 | G29: 0.01119309998 | H29: 0.01071745193 | I29: 0.01015642877 | J29: 0.01054157338 | K29: 0.008382625399 | L29: 0.008303008675 | M29: 0.00738682915 | N29: 0.007427465722 | O29: 0.00772380466 | P29: 0.006477233525 | Q29: 0.006022760407 | R29: 0.005390430226 | S29: 0.004618696462 | T29: 0.004448336373 | U29: 0.004060704829 | V29: 0.003992550815 | W29: 0.003414585743 | X29: 0.002570894625 | Y29: 0.002724832994 | Z29: 0.00236649867 | AA29: 0.003743660304 | AB29: 0.003794432823 | AC29: 0.003892851881 | AD29: 0.003881274423 | AE29: 0.00389520375 | AF29: 0.003819455835 | AG29: 0.003651146157 | AH29: 0.003594553158 | AI29: 0.003555964759 | AJ29: 0.003526096239 | AK29: 0.003520408635 | AL29: 0.003521529198 | AM29: 0.003525027417 | AN29: 0.00359532347 | AO29: 0.003631130643 | AP29: 0.003696430598 | AQ29: 0.003721026478
A30: 0.2427999973 | C30: 23 | D30: 0.009689733633 | E30: 0.009948349358 | F30: 0.00991008574 | G30: 0.009383658485 | H30: 0.008831910601 | I30: 0.008502169412 | J30: 0.008015449096 | K30: 0.008250473612 | L30: 0.006523709275 | M30: 0.006413495801 | N30: 0.005663510678 | O30: 0.005619673258 | P30: 0.005764790148 | Q30: 0.004768411262 | R30: 0.004358928322 | S30: 0.003880745275 | T30: 0.003306393845 | U30: 0.003188753273 | V30: 0.002915822443 | W30: 0.002875446866 | X30: 0.002471660121 | Y30: 0.001866987724 | Z30: 0.001982926846 | AA30: 0.001714209967 | AB30: 0.002705749536 | AC30: 0.002736677049 | AD30: 0.002800277028 | AE30: 0.00278651089 | AF30: 0.002785494429 | AG30: 0.002715593139 | AH30: 0.002623102084 | AI30: 0.002584724206 | AJ30: 0.002559518437 | AK30: 0.002539750617 | AL30: 0.002536911969 | AM30: 0.00253848335 | AN30: 0.002541445554 | AO30: 0.002592392119 | AP30: 0.002618304262 | AQ30: 0.002665459219
A31: 0.2429000139 | C31: 24 | D31: 0.008015958126 | E31: 0.007752829654 | F31: 0.008166071096 | G31: 0.007828102652 | H31: 0.007383187056 | I31: 0.006987631093 | J31: 0.006691507865 | K31: 0.006255252789 | L31: 0.006401839167 | M31: 0.005023662633 | N31: 0.004901673616 | O31: 0.00427065075 | P31: 0.004179431428 | Q31: 0.004228015668 | R31: 0.003437317961 | S31: 0.003125395463 | T31: 0.002766619839 | U31: 0.00236042406 | V31: 0.002280353389 | W31: 0.002091490971 | X31: 0.002073153491 | Y31: 0.001787895123 | Z31: 0.001353366917 | AA31: 0.001430654899 | AB31: 0.001233977695 | AC31: 0.001943570374 | AD31: 0.001960530884 | AE31: 0.002002123521 | AF31: 0.00198429834 | AG31: 0.001971944801 | AH31: 0.001942962889 | AI31: 0.001878465922 | AJ31: 0.001852852039 | AK31: 0.001836053714 | AL31: 0.001822791022 | AM31: 0.001821309962 | AN31: 0.001822758914 | AO31: 0.001825075526 | AP31: 0.001861728943 | AQ31: 0.001880387157
A32: 0.2455999851 | C32: 25 | D32: 0.006515213577 | E32: 0.006412966261 | F32: 0.006363353935 | G32: 0.006449781871 | H32: 0.006158581667 | I32: 0.005840827488 | J32: 0.005498930936 | K32: 0.005221467661 | L32: 0.004853120743 | M32: 0.004929231894 | N32: 0.003838989656 | O32: 0.003695697207 | P32: 0.003175708352 | Q32: 0.003064837295 | R32: 0.003047302647 | S32: 0.002464205156 | T32: 0.002227767708 | U32: 0.001974767696 | V32: 0.001687729003 | W32: 0.001635419719 | X32: 0.001507702397 | Y32: 0.001499405391 | Z32: 0.001295838523 | AA32: 0.0009762860414 | AB32: 0.001029700214 | AC32: 0.0008862413042 | AD32: 0.001392136034 | AE32: 0.00140150387 | AF32: 0.00142549829 | AG32: 0.001404517982 | AH32: 0.001410670875 | AI32: 0.001391182065 | AJ32: 0.001346360783 | AK32: 0.001328922443 | AL32: 0.001317537822 | AM32: 0.001308420453 | AN32: 0.001307587612 | AO32: 0.001308763915 | AP32: 0.00131047475 | AQ32: 0.001336828447
A33: 0.2458000183 | C33: 26 | D33: 0.005296068903 | E33: 0.005197789135 | F33: 0.00525174911 | G33: 0.005011191876 | H33: 0.005059241092 | I33: 0.0048584772 | J33: 0.00458332469 | K33: 0.004277973778 | L33: 0.004038558779 | M33: 0.003724829135 | N33: 0.003754393863 | O33: 0.00288433183 | P33: 0.002737986781 | Q33: 0.002319691895 | R33: 0.002199752351 | S33: 0.00217535654 | T33: 0.001748894075 | U33: 0.001583331057 | V33: 0.001405962949 | W33: 0.001205297578 | X33: 0.001174060258 | Y33: 0.001085991585 | Z33: 0.001082337866 | AA33: 0.0009309122889 | AB33: 0.0006997294879 | AC33: 0.0007364033508 | AD33: 0.0006320825339 | AE33: 0.0009908969645 | AF33: 0.0009934947543 | AG33: 0.001004466536 | AH33: 0.001000449808 | AI33: 0.001005744017 | AJ33: 0.0009928682192 | AK33: 0.0009615559529 | AL33: 0.0009495875053 | AM33: 0.0009417447938 | AN33: 0.0009353952657 | AO33: 0.0009348986418 | AP33: 0.0009357740544 | AQ33: 0.0009370222914
A34: 0.2466999888 | C34: 27 | D34: 0.004199843979 | E34: 0.004224288645 | F34: 0.00425589513 | G34: 0.004134891994 | H34: 0.003929941747 | I34: 0.003990386684 | J34: 0.00381166086 | K34: 0.003564867225 | L34: 0.003308051886 | M34: 0.003098907165 | N34: 0.002836353564 | O34: 0.002820038333 | P34: 0.002136291693 | Q34: 0.001999377445 | R34: 0.001664416749 | S34: 0.001569827192 | T34: 0.001543396859 | U34: 0.001242587165 | V34: 0.001126916813 | W34: 0.0010037583 | X34: 0.0008650115383 | Y34: 0.0008454137289 | Z34: 0.0007836807709 | AA34: 0.0007772966642 | AB34: 0.0006670010341 | AC34: 0.000500263156 | AD34: 0.0005250485566 | AE34: 0.0004497606615 | AF34: 0.0007021959805 | AG34: 0.0006998249393 | AH34: 0.0007152619714 | AI34: 0.0007130485715 | AJ34: 0.0007175591142 | AK34: 0.0007088717282 | AL34: 0.0006868677256 | AM34: 0.0006785290943 | AN34: 0.0006730456283 | AO34: 0.0006685784755 | AP34: 0.0006682480875 | AQ34: 0.0006688916666
A35: 0.247699976 | C35: 28 | D35: 0.00251153252 | E35: 0.003346784748 | F35: 0.003456196017 | G35: 0.003347530623 | H35: 0.003239517821 | I35: 0.003096786123 | J35: 0.003127621425 | K35: 0.002961691181 | L35: 0.002753778881 | M35: 0.002535655823 | N35: 0.002357125909 | O35: =O69*(1-O$41-O$71)/SUM(O$42:O$70) -> 0.00212797407 | P35: 0.002086083443 | Q35: 0.001557957175 | R35: 0.001432585298 | S35: 0.001186107671 | T35: 0.001112169344 | U35: 0.001095008356 | V35: 0.0008831343358 | W35: 0.0008034028907 | X35: 0.0007193751714 | Y35: 0.0006220234592 | Z35: 0.0006092449105 | AA35: 0.0005620307594 | AB35: 0.0005561539937 | AC35: 0.0004761893653 | AD35: 0.000356172518 | AE35: 0.0003730616112 | AF35: 0.0003182543894 | AG35: 0.000493889164 | AH35: 0.0004976180574 | AI35: 0.000509058572 | AJ35: 0.0005080080243 | AK35: 0.0005115835132 | AL35: 0.0005056501798 | AM35: 0.0004901073779 | AN35: 0.0004842446251 | AO35: 0.0004803823412 | AP35: 0.0004772115695 | AQ35: 0.0004769885387
A36: 0.2480000257 | C36: 29 | D36: 0.001745916007 | E36: 0.001999321355 | F36: 0.002735951507 | G36: 0.002715548417 | H36: 0.002619773379 | I36: 0.002550090354 | J36: 0.002424649401 | K36: 0.002427467244 | L36: 0.002285212567 | M36: 0.002108291817 | N36: 0.001926330409 | O36: 0.001766128258 | P36: 0.001571967935 | Q36: 0.001519127101 | R36: 0.001114568585 | S36: 0.001019288256 | T36: 0.0008389657407 | U36: 0.0007878016 | V36: 0.000777010973 | W36: 0.0006286158599 | X36: 0.0005748976829 | Y36: 0.0005165106616 | Z36: 0.0004475821287 | AA36: 0.0004362563322 | AB36: 0.0004015042202 | AC36: 0.0003964274325 | AD36: 0.0003384929314 | AE36: 0.0002526644951 | AF36: 0.0002635510265 | AG36: 0.0002234699831 | AH36: 0.0003506250884 | AI36: 0.0003535961137 | AJ36: 0.0003621017653 | AK36: 0.0003616118178 | AL36: 0.0003643455942 | AM36: 0.0003602330315 | AN36: 0.0003492233437 | AO36: 0.0003450827927 | AP36: 0.0003423431631 | AQ36: 0.0003400926894
A37: 0.7 | C37: 30 | D37: 0.001585207609 | E37: =D37 -> 0.001585207609 | F37: =E37 -> 0.001585207609 | G37: 0.001585207609 | H37: 0.001585207609 | I37: 0.001585207609 | J37: 0.001585207609 | K37: 0.001585207609 | L37: 0.001585207609 | M37: 0.001585207609 | N37: 0.001585207609 | O37: 0.001585207609 | P37: 0.001585207609 | Q37: 0.001585207609 | R37: 0.001585207609 | S37: 0.001585207609 | T37: 0.001585207609 | U37: 0.001585207609 | V37: 0.001585207609 | W37: 0.001585207609 | X37: 0.001585207609 | Y37: 0.001585207609 | Z37: 0.001585207609 | AA37: 0.001585207609 | AB37: 0.001585207609 | AC37: 0.001585207609 | AD37: 0.001585207609 | AE37: 0.001585207609 | AF37: 0.001585207609 | AG37: 0.001585207609 | AH37: 0.001585207609 | AI37: 0.001585207609 | AJ37: 0.001585207609 | AK37: 0.001585207609 | AL37: 0.001585207609 | AM37: 0.001585207609 | AN37: 0.001585207609 | AO37: 0.001585207609 | AP37: 0.001585207609 | AQ37: 0.001585207609
C39: Intermediate table
C40: age | D40: 2011 | E40: 2012 | F40: 2013 | G40: 2014 | H40: 2015 | I40: 2016 | J40: 2017 | K40: 2018 | L40: 2019 | M40: 2020 | N40: 2021 | O40: 2022 | P40: 2023 | Q40: 2024 | R40: 2025 | S40: 2026 | T40: 2027 | U40: 2028 | V40: 2029 | W40: 2030 | X40: 2031 | Y40: 2032 | Z40: 2033 | AA40: 2034 | AB40: 2035 | AC40: 2036 | AD40: 2037 | AE40: 2038 | AF40: 2039 | AG40: 2040 | AH40: 2041 | AI40: 2042 | AJ40: 2043 | AK40: 2044 | AL40: 2045 | AM40: 2046 | AN40: 2047 | AO40: 2048 | AP40: 2049 | AQ40: 2050
C41: 0 | D41: =D7 -> 0.04199508348 | E41: =E2 -> 0.06777105708 | F41: =F2 -> 0.06899685558 | G41: 0.07182202069 | H41: 0.07255478443 | I41: 0.07344178757 | J41: 0.07289481626 | K41: 0.0711140183 | L41: 0.07067893401 | M41: 0.07044950957 | N41: 0.07015314684 | O41: 0.07015467075 | P41: 0.07013420201 | Q41: 0.07002431915 | R41: 0.07112824664 | S41: 0.07141142916 | T41: 0.0721715968 | U41: 0.07222639383 | V41: 0.07189533184 | W41: 0.07156063716 | X41: 0.07117787842 | Y41: 0.07082284658 | Z41: 0.07037079137 | AA41: 0.07042019608 | AB41: 0.07032636515 | AC41: 0.07029503451 | AD41: 0.07039888762 | AE41: 0.07045742575 | AF41: 0.07054037645 | AG41: 0.07058732844 | AH41: 0.07064368072 | AI41: 0.07064368121 | AJ41: 0.07064368088 | AK41: 0.07064368104 | AL41: 0.0706436809 | AM41: 0.07064368093 | AN41: 0.07064368118 | AO41: 0.07064368089 | AP41: 0.07064368095 | AQ41: 0.070643681
C42: 1 | D42: =D8 -> 0.047185151 | E42: =MAX(D7*(1-D$3*$A7),0) -> 0.04188060025 | F42: =MAX(E7*(1-E$3*$A7),0) -> 0.06761572199 | G42: 0.06880099991 | H42: 0.07161727295 | I42: 0.07235731378 | J42: 0.07323783685 | K42: 0.07268384291 | L42: 0.07090406111 | M42: 0.07046461732 | N42: 0.0702303653 | O42: 0.06992479374 | P42: 0.06991645248 | Q42: 0.06988634851 | R42: 0.0697650112 | S42: 0.0708617359 | T42: 0.07114010056 | U42: 0.07189880801 | V42: 0.07195444149 | W42: 0.07162666526 | X42: 0.07129714601 | Y42: 0.07091810442 | Z42: 0.0705656143 | AA42: 0.07011113953 | AB42: 0.07015836001 | AC42: 0.07006312486 | AD42: 0.07002986235 | AE42: 0.07013186633 | AF42: 0.07018704088 | AG42: 0.07026492299 | AH42: 0.07032070882 | AI42: 0.07037738915 | AJ42: 0.07037813603 | AK42: 0.07037862334 | AL42: 0.07037897994 | AM42: 0.07037919233 | AN42: 0.07037931868 | AO42: 0.07037939598 | AP42: 0.0703794187 | AQ42: 0.07037943599
C43: 2 | D43: 0.04298664311 | E43: =MAX(D8*(1-D$3*$A8),0) -> 0.04705651907 | F43: 0.04182028443 | G43: 0.06657110056 | H43: 0.06849780726 | I43: 0.0711114315 | J43: 0.07138304477 | K43: 0.07223267037 | L43: 0.07185629476 | M43: 0.07007141238 | N43: 0.0696271649 | O43: 0.06937930051 | P43: 0.06909699593 | Q43: 0.06907019915 | R43: 0.06900988704 | S43: 0.0688645204 | T43: 0.0698801047 | U43: 0.07012953909 | V43: 0.07083352804 | W43: 0.0709077797 | X43: 0.07059871553 | Y43: 0.07024723221 | Z43: 0.06987637579 | AA43: 0.06954952818 | AB43: 0.06917574599 | AC43: 0.06926266094 | AD43: 0.06919326307 | AE43: 0.06917886166 | AF43: 0.06928550837 | AG43: 0.06937319479 | AH43: 0.0695318899 | AI43: 0.06941437323 | AJ43: 0.06947900095 | AK43: 0.06947565634 | AL43: 0.06947581923 | AM43: 0.06947574708 | AN43: 0.06947607537 | AO43: 0.06947589076 | AP43: 0.06947551405 | AQ43: 0.06947577288
C44: 3 | D44: 0.05445935701 | E44: 0.0428659051 | F44: 0.04698547728 | G44: 0.04117063428 | H44: 0.06627199183 | I44: 0.0680083733 | J44: 0.07014801686 | K44: 0.07039714118 | L44: 0.07140385028 | M44: 0.07100591765 | N44: 0.06923208507 | O44: 0.06877660187 | P44: 0.06855088084 | Q44: 0.06825332393 | R44: 0.06819628996 | S44: 0.06811137821 | T44: 0.06790270606 | U44: 0.06887952037 | V44: 0.06908255902 | W44: 0.06979523582 | X44: 0.06988231876 | Y44: 0.06955136439 | Z44: 0.06920771114 | AA44: 0.0688624839 | AB44: 0.06861386553 | AC44: 0.06828481512 | AD44: 0.06839488713 | AE44: 0.06834454117 | AF44: 0.06833602502 | AG44: 0.06847397929 | AH44: 0.06864157593 | AI44: 0.06862785006 | AJ44: 0.06852044163 | AK44: 0.06858022216 | AL44: 0.06857661734 | AM44: 0.06857636573 | AN44: 0.06857641535 | AO44: 0.06857643634 | AP44: 0.06857580765 | AQ44: 0.06857566967
C45: 4 | D45: 0.0597189814 | E45: 0.05414443691 | F45: 0.04269391574 | G45: 0.04611193114 | H45: 0.04085781423 | I45: 0.06560255078 | J45: 0.06688317631 | K45: 0.06896009697 | L45: 0.06936456568 | M45: 0.0703246941 | N45: 0.06991656353 | O45: 0.06814269329 | P45: 0.06770276805 | Q45: 0.06745186902 | R45: 0.06711647001 | S45: 0.06703218363 | T45: 0.06688061632 | U45: 0.0666533805 | V45: 0.06757141369 | W45: 0.06779136508 | X45: 0.06850851386 | Y45: 0.06857045781 | Z45: 0.06824962071 | AA45: 0.06792794177 | AB45: 0.06765944213 | AC45: 0.06745253144 | AD45: 0.06715072506 | AE45: 0.06727532975 | AF45: 0.06722811442 | AG45: 0.06724676108 | AH45: 0.06747157979 | AI45: 0.06746942951 | AJ45: 0.06746517301 | AK45: 0.06735615432 | AL45: 0.06741499624 | AM45: 0.06741127116 | AN45: 0.06741127568 | AO45: 0.06741110772 | AP45: 0.0674107137 | AQ45: 0.06741034374
C46: 5 | D46: 0.05618637467 | E46: 0.05921578028 | F46: 0.05380675152 | G46: 0.04178412519 | H46: 0.04563429516 | I46: 0.04033773036 | J46: 0.06434239207 | K46: 0.06556487613 | L46: 0.06775284239 | M46: 0.06811405565 | N46: 0.06903553217 | O46: 0.06859767816 | P46: 0.06685628419 | Q46: 0.06638733921 | R46: 0.06608830161 | S46: 0.06572918124 | T46: 0.06557644446 | U46: 0.06540753245 | V46: 0.06514688847 | W46: 0.06606626513 | X46: 0.06630213069 | Y46: 0.06698268406 | Z46: 0.06704824988 | AA46: 0.06674600002 | AB46: 0.06649867781 | AC46: 0.06627090471 | AD46: 0.06608766719 | AE46: 0.06580662415 | AF46: 0.06592808864 | AG46: 0.0659039128 | AH46: 0.06601766893 | AI46: 0.06607504416 | AJ46: 0.06608267455 | AK46: 0.06607559189 | AL46: 0.06596922335 | AM46: 0.0660268723 | AN46: 0.06602358734 | AO46: 0.06602345071 | AP46: 0.06602290135 | AQ46: 0.06602277431
C47: 6 | D47: 0.05622380113 | E47: 0.05552728192 | F47: 0.05868181213 | G47: 0.05247735964 | H47: 0.04120716116 | I47: 0.04490352111 | J47: 0.03942855957 | K47: 0.06285090524 | L47: 0.06418441355 | M47: 0.06628454544 | N47: 0.06661085915 | O47: 0.0674633107 | P47: 0.06702273518 | Q47: 0.06527338255 | R47: 0.06474995231 | S47: 0.0644248763 | T47: 0.06400208539 | U47: 0.06383479717 | V47: 0.06363399704 | W47: 0.06340386366 | X47: 0.06432322873 | Y47: 0.0645353989 | Z47: 0.06520411023 | AA47: 0.06527445534 | AB47: 0.06504369788 | AC47: 0.06483498732 | AD47: 0.06462956322 | AE47: 0.06446355789 | AF47: 0.06418522347 | AG47: 0.06431985607 | AH47: 0.06439965209 | AI47: 0.06435235152 | AJ47: 0.06441861875 | AK47: 0.06442377138 | AL47: 0.0644176668 | AM47: 0.06431422651 | AN47: 0.06437092699 | AO47: 0.06436767439 | AP47: 0.0643671921 | AQ47: 0.06436692848
C48: 7 | D48: 0.05264675753 | E48: 0.05535061555 | F48: 0.05484901245 | G48: 0.05700271231 | H48: 0.05154453087 | I48: 0.04039162751 | J48: 0.0437194812 | K48: 0.03835724467 | L48: 0.06127111005 | M48: 0.06252452434 | N48: 0.06453683744 | O48: 0.06479430507 | P48: 0.06559779186 | Q48: 0.06510856463 | R48: 0.06332952138 | S48: 0.06278513391 | T48: 0.06239428047 | U48: 0.06196856985 | V48: 0.06177257973 | W48: 0.06160357279 | X48: 0.06140912707 | Y48: 0.06228562668 | Z48: 0.06249869707 | AA48: 0.06314734075 | AB48: 0.0632746357 | AC48: 0.06308010253 | AD48: 0.06289124159 | AE48: 0.0627024437 | AF48: 0.06253325862 | AG48: 0.06227282778 | AH48: 0.06251535902 | AI48: 0.06243985945 | AJ48: 0.06240496898 | AK48: 0.06246763813 | AL48: 0.06247386719 | AM48: 0.06246847132 | AN48: 0.06236880475 | AO48: 0.06242384018 | AP48: 0.06242037686 | AQ48: 0.06242019494
C49: 8 | D49: 0.05507140433 | E49: 0.05160732318 | F49: 0.0544782724 | G49: 0.05304200892 | H49: 0.05573869825 | I49: 0.05030854824 | J49: =MAX(I14*(1-I$3*$A14),0) -> 0.03915506739 | K49: 0.04233815208 | L49: 0.03721957829 | M49: 0.05940194533 | N49: 0.06057802609 | O49: 0.06245507909 | P49: 0.06266544978 | Q49: 0.06336913326 | R49: 0.06280030613 | S49: 0.06104446179 | T49: 0.06044127332 | U49: 0.06005119842 | V49: 0.05961004746 | W49: 0.0594486737 | X49: 0.05931868002 | Y49: 0.05912132187 | Z49: 0.0599741908 | AA49: 0.06017471077 | AB49: 0.06085333559 | AC49: 0.06100173347 | AD49: 0.06082441391 | AE49: 0.06065039284 | AF49: 0.0604560821 | AG49: 0.06029562251 | AH49: 0.06016468008 | AI49: 0.06025205771 | AJ49: 0.06019090527 | AK49: 0.06015641178 | AL49: 0.06021850405 | AM49: 0.06022530805 | AN49: 0.06022090275 | AO49: 0.06012497677 | AP49: 0.060177766 | AQ49: 0.06017472663
C50: 9 | D50: 0.05497061045 | E50: 0.05373388095 | F50: 0.05059666234 | G50: 0.05242900416 | H50: 0.05161419805 | I50: 0.05415040681 | J50: 0.04853803635 | K50: 0.03773113166 | L50: 0.04087584298 | M50: 0.03589768533 | N50: 0.05724740385 | O50: 0.05829824662 | P50: 0.06005261907 | Q50: 0.06017049228 | R50: 0.06073490628 | S50: 0.06014576991 | T50: 0.0583829188 | U50: 0.05779476451 | V50: 0.05739298254 | W50: 0.0570002622 | X50: 0.0568827901 | Y50: 0.05675194565 | Z50: 0.05657339955 | AA50: 0.05737922358 | AB50: 0.05761939448 | AC50: 0.05829121207 | AD50: 0.05844016744 | AE50: 0.05827592446 | AF50: 0.05809283629 | AG50: 0.05790235288 | AH50: 0.05787736872 | AI50: 0.05761195759 | AJ50: 0.05770784325 | AK50: 0.05764915454 | AL50: 0.0576182415 | AM50: 0.05767878686 | AN50: 0.05768624955 | AO50: 0.05768228987 | AP50: 0.05759018612 | AQ50: 0.05764106149
C51: 10 | D51: 0.05337101982 | E51: 0.05337215237 | F51: 0.05246492493 | G51: 0.04844416753 | H51: 0.05075541268 | I51: 0.04989761158 | J51: 0.05198322088 | K51: 0.046528653 | L51: 0.03623381041 | M51: 0.03920815313 | N51: 0.03440112373 | O51: 0.05476836733 | P51: 0.05571070871 | Q51: 0.05729189515 | R51: 0.05728108644 | S51: 0.05777138408 | T51: 0.05712581469 | U51: 0.05544275092 | V51: 0.05485820315 | W51: 0.05450740128 | X51: 0.05417512824 | Y51: 0.05406063799 | Z51: 0.05394787411 | AA51: 0.05376264124 | AB51: 0.05457126637 | AC51: 0.05481779673 | AD51: 0.05546034502 | AE51: 0.05560525749 | AF51: 0.05542868478 | AG51: 0.05524331127 | AH51: 0.05519826058 | AI51: 0.05504175662 | AJ51: 0.05480204597 | AK51: 0.05489385992 | AL51: 0.05484057858 | AM51: 0.0548125035 | AN51: 0.0548711859 | AO51: 0.05487864595 | AP51: 0.05487470173 | AQ51: 0.05478740254
C52: 11 | D52: 0.05745496251 | E52: 0.05156776643 | F52: 0.05190025865 | G52: 0.04997896548 | H52: 0.04665960831 | I52: 0.04882982244 | J52: 0.04766385152 | K52: 0.04957416793 | L52: 0.04444694148 | M52: 0.03456739365 | N52: 0.03736477088 | O52: 0.03271972489 | P52: 0.0520189992 | Q52: 0.052812449 | R52: 0.05417751765 | S52: 0.05411878283 | T52: 0.05449533444 | U52: 0.05387990689 | V52: 0.05226911656 | W52: 0.05174981653 | X52: 0.05146287271 | Y52: 0.05114959443 | Z52: 0.05105415543 | AA52: 0.05092743575 | AB52: 0.05078972304 | AC52: 0.05156824874 | AD52: 0.05180153502 | AE52: 0.05240968694 | AF52: 0.05252296753 | AG52: 0.05233887048 | AH52: 0.0523053905 | AI52: 0.05213780502 | AJ52: 0.05200306384 | AK52: 0.05177783198 | AL52: 0.05186748058 | AM52: 0.05181869001 | AN52: 0.05179336112 | AO52: 0.05184925862 | AP52: 0.05185617217 | AQ52: 0.05185277339
C53: 12 | D53: 0.04997592513 | E53: 0.05523369128 | F53: 0.04993413279 | G53: 0.04918098662 | H53: 0.04788353155 | I53: 0.04466334848 | J53: 0.04640402154 | K53: 0.04521101242 | L53: 0.04709673278 | M53: 0.04216394206 | N53: 0.03275164407 | O53: 0.03532300302 | P53: 0.03088023988 | Q53: 0.04898694714 | R53: 0.04959501863 | S53: 0.05082695313 | T53: 0.05068593887 | U53: 0.05103448239 | V53: 0.0504370436 | W53: 0.04896200426 | X53: 0.04852228789 | Y53: 0.04825674216 | Z53: 0.04797654133 | AA53: 0.04786255385 | AB53: 0.04777601657 | AC53: 0.04765798177 | AD53: 0.04838601001 | AE53: 0.04860379516 | AF53: 0.04914791529 | AG53: 0.04923127123 | AH53: 0.04920432323 | AI53: 0.04905604819 | AJ53: 0.0489122048 | AK53: 0.04878763979 | AL53: 0.04857953713 | AM53: 0.04866539683 | AN53: 0.04862091624 | AO53: 0.04859767471 | AP53: 0.04865002741 | AQ53: 0.04865684586
C54: 13 | D54: 0.04407549542 | E54: 0.04632223041 | F54: 0.05188281508 | G54: 0.04554940443 | H54: 0.0453501175 | I54: 0.04419526757 | J54: 0.04089402326 | K54: 0.04233734921 | L54: 0.04127917925 | M54: 0.04288880994 | N54: 0.03830640011 | O54: 0.02962679312 | P54: 0.03183436035 | Q54: 0.02771316347 | R54: 0.04373062619 | S54: 0.04420126667 | T54: 0.04518724518 | U54: 0.04507149278 | V54: 0.04537219162 | W54: 0.04489000958 | X54: 0.04365464705 | Y54: 0.04328647669 | Z54: 0.04307294377 | AA54: 0.04276446803 | AB54: 0.04267372348 | AC54: 0.0425907983 | AD54: 0.04246500688 | AE54: 0.04309946576 | AF54: 0.04324143172 | AG54: 0.04366132548 | AH54: 0.04394875467 | AI54: 0.04382534798 | AJ54: 0.04371205117 | AK54: 0.04358998709 | AL54: 0.04348509843 | AM54: 0.04330310217 | AN54: 0.04338194497 | AO54: 0.04334346235 | AP54: 0.04332286735 | AQ54: 0.04336999012
C55: 14 | D55: 0.04197375443 | E55: 0.03877050358 | F55: 0.04167008947 | G55: 0.04480649239 | H55: 0.03975418787 | I55: 0.03972688935 | J55: 0.03836089964 | K55: 0.03528101163 | L55: 0.03650714962 | M55: 0.03544040235 | N55: 0.03667283186 | O55: 0.03250950368 | P55: 0.02497175668 | Q55: 0.02663616858 | R55: 0.02297648336 | S55: 0.03616064433 | T55: 0.03641511068 | U55: 0.03725242624 | V55: 0.03716185855 | W55: 0.03747518543 | X55: 0.03718974556 | Y55: 0.03621317622 | Z55: 0.03594171843 | AA55: 0.03566843817 | AB55: 0.03539884458 | AC55: 0.03529864985 | AD55: 0.03518928758 | AE55: 0.03505695702 | AF55: 0.03550120268 | AG55: 0.03551001946 | AH55: 0.03613703198 | AI55: 0.03629908437 | AJ55: 0.03622155454 | AK55: =MAX(AJ20*(1-AJ$3*$A20),0) -> 0.03613874267 | AL55: 0.03604710135 | AM55: 0.03596575789 | AN55: 0.03581861647 | AO55: 0.0358857032 | AP55: 0.03585424214 | AQ55: 0.03583778141
C56: 15 | D56: 0.03539366833 | E56: 0.03613809557 | F56: 0.03426768 | G56: 0.03518685704 | H56: 0.03823238802 | I56: 0.03408706779 | J56: 0.03373496117 | K56: 0.03234348863 | L56: 0.02971519999 | M56: 0.03059186346 | N56: 0.02955559048 | O56: 0.03031289461 | P56: 0.02665193303 | Q56: 0.02029497235 | R56: 0.02141404902 | S56: 0.01841497615 | T56: 0.02885942895 | U56: 0.02908791527 | V56: 0.02976501848 | W56: 0.0297531253 | X56: 0.03011195942 | Y56: 0.02993109286 | Z56: 0.02917783156 | AA56: 0.02886465776 | AB56: 0.02862552861 | AC56: 0.02838183252 | AD56: 0.02826037946 | AE56: 0.02814408336 | AF56: 0.02796282237 | AG56: 0.02821165147 | AH56: 0.02847803909 | AI56: 0.02892271253 | AJ56: 0.02907511688 | AK56: 0.0290237461 | AL56: 0.02896632577 | AM56: 0.02889808894 | AN56: 0.02883612537 | AO56: 0.02871996741 | AP56: 0.02877415211 | AQ56: 0.02874945872
C57: 16 | D57: 0.03671539369 | E57: 0.02992901072 | F57: 0.03147373969 | G57: 0.0283948191 | H57: 0.0294596682 | I57: 0.03219826185 | J57: 0.02841795692 | K57: 0.02789885382 | L57: 0.02670742146 | M57: 0.0243969978 | N57: 0.02498050266 | O57: 0.02389252502 | P57: 0.02427586872 | Q57: 0.02113417061 | R57: 0.01589622741 | S57: 0.01671464822 | T57: 0.01430641373 | U57: 0.02244415143 | V57: 0.02263103293 | W57: 0.02321082209 | X57: 0.02329628289 | Y57: 0.02362220272 | Z57: 0.02351026906 | AA57: 0.02283232145 | AB57: 0.02256611231 | AC57: 0.02235271221 | AD57: 0.02212450458 | AE57: 0.02200330633 | AF57: 0.02184511591 | AG57: 0.0216104512 | AH57: 0.02202835525 | AI57: 0.02219323079 | AJ57: 0.02255949674 | AK57: 0.02268814468 | AL57: 0.02265605861 | AM57: 0.02261592013 | AN57: 0.02256554113 | AO57: 0.0225187961 | AP57: 0.02242845688 | AQ57: 0.0224712367
C58: 17 | D58: 0.02900865053 | E58: 0.03060687862 | F58: 0.02576438813 | G58: 0.02569211366 | H58: 0.02341801739 | I58: 0.02445935049 | J58: 0.02645460862 | K58: 0.02314422095 | L58: 0.02267843424 | M58: 0.02157480227 | N58: 0.01959141778 | O58: 0.01983995115 | P58: 0.01878070334 | Q58: 0.01887630924 | R58: 0.01621271046 | S58: 0.0121484329 | T58: 0.01270921522 | U58: 0.01089107264 | V58: 0.01709483597 | W58: 0.01728016325 | X58: 0.01780225131 | Y58: 0.01790601561 | Z58: 0.0181819619 | AA58: 0.01802026048 | AB58: 0.01748067139 | AC58: 0.0172533356 | AD58: 0.01705733846 | AE58: 0.01686032981 | AF58: 0.01671076236 | AG58: 0.01651059595 | AH58: 0.01651771271 | AI58: 0.01680541233 | AJ58: 0.01694731245 | AK58: 0.0172352881 | AL58: 0.01734032985 | AM58: 0.01731977056 | AN58: 0.01729153018 | AO58: 0.01725440449 | AP58: 0.01721898709 | AQ58: 0.01715029441
C59: 18 | D59: 0.02494697053 | E59: 0.02390915477 | F59: 0.02610537799 | G59: 0.02078209789 | H59: 0.02093639534 | I59: 0.01922395394 | J59: 0.01986406104 | K59: 0.02128360044 | L59: 0.01857942964 | M59: 0.01808462124 | N59: 0.01709532168 | O59: 0.01534150369 | P59: 0.0153644231 | Q59: 0.01437609669 | R59: 0.01424129696 | S59: 0.01218237452 | T59: 0.009079383665 | U59: 0.009510959498 | V59: 0.008155213574 | W59: 0.01283465312 | X59: 0.01303610302 | Y59: 0.01346123343 | Z59: 0.01356004893 | AA59: 0.01370693004 | AB59: 0.01356727691 | AC59: 0.0131411767 | AD59: 0.0129431217 | AE59: 0.01277718828 | AF59: 0.01258317532 | AG59: 0.01240635566 | AH59: 0.01240569672 | AI59: 0.01238822456 | AJ59: 0.01261678537 | AK59: 0.01272995713 | AL59: 0.01295170159 | AM59: 0.01303385107 | AN59: 0.01302037547 | AO59: 0.01300027841 | AP59: 0.01297263637 | AQ59: 0.01294631736
C60: 19 | D60: 0.02094891552 | E60: 0.02038837618 | F60: 0.02025310873 | G60: 0.02087090815 | H60: 0.01678467547 | I60: 0.01704236665 | J60: 0.01547782889 | K60: 0.01583653895 | L60: 0.01692718734 | M60: 0.01467377284 | N60: 0.01418785819 | O60: 0.01324649431 | P60: 0.01174926449 | Q60: 0.01162400826 | R60: 0.01071178855 | S60: 0.01056645947 | T60: 0.008988118891 | U60: 0.006708130839 | V60: 0.007031643202 | W60: 0.006046131629 | X60: 0.009563419455 | Y60: 0.009737535799 | Z60: 0.01007098918 | AA60: 0.01009659666 | AB60: 0.01019133771 | AC60: 0.01007116755 | AD60: 0.009733171033 | AE60: 0.009571426045 | AF60: 0.009412071654 | AG60: 0.00921785738 | AH60: 0.009203377095 | AI60: 0.009186284112 | AJ60: 0.009183088992 | AK60: 0.009357685775 | AL60: 0.009445798731 | AM60: 0.009612836335 | AN60: 0.00967535537 | AO60: 0.009666241751 | AP60: 0.009651536878 | AQ60: 0.009631255842
C61: 20 | D61: 0.01776895454 | E61: 0.01699802093 | F61: 0.01717007828 | G61: 0.01606996801 | H61: 0.01672859259 | I61: 0.01356498064 | J61: 0.0136206286 | K61: 0.01224430157 | L61: 0.01249530785 | M61: 0.01325938848 | N61: 0.01141461724 | O61: 0.01089513679 | P61: 0.01004885032 | Q61: 0.008800381365 | R61: 0.008569387088 | S61: 0.007862149844 | T61: 0.007710396101 | U61: 0.006568374292 | V61: 0.00490571594 | W61: 0.005157215461 | X61: 0.004457738718 | Y61: 0.007069297251 | Z61: 0.007209865505 | AA61: 0.007419608635 | AB61: 0.007427003199 | AC61: 0.00748383266 | AD61: 0.00737830265 | AE61: 0.007118908557 | AF61: 0.006972234294 | AG61: 0.006816387974 | AH61: 0.006763651895 | AI61: 0.006741044024 | AJ61: 0.00673594734 | AK61: 0.006737507583 | AL61: 0.006868777345 | AM61: 0.006935339195 | AN61: 0.007059160064 | AO61: 0.007105754775 | AP61: 0.007099228709 | AQ61: 0.00708861278
C62: 21 | D62: 0.01496220375 | E62: 0.01434586326 | F62: 0.01425698942 | G62: 0.01355226084 | H62: 0.01281259272 | I62: 0.01345234491 | J62: 0.01078609065 | K62: 0.01071719674 | L62: 0.009607745704 | M62: 0.009732044718 | N62: 0.01025367389 | O62: 0.008710830541 | P62: 0.008210632029 | Q62: 0.007474467312 | R62: 0.006439808096 | S62: 0.006242449426 | T62: 0.005693139948 | U62: 0.00559181427 | V62: 0.004767195038 | W62: 0.00357107205 | X62: 0.003774457438 | Y62: 0.003271279861 | Z62: =MAX(Y27*(1-Y$3*$A27),0) -> 0.005196546393 | AA62: 0.005272653907 | AB62: 0.005417257097 | AC62: 0.005412986036 | AD62: 0.005441223281 | AE62: 0.005355335482 | AF62: 0.005145486134 | AG62: 0.005009300396 | AH62: 0.004963586389 | AI62: 0.004916548474 | AJ62: 0.004905662385 | AK62: 0.004904887221 | AL62: 0.004908356446 | AM62: 0.005005389343 | AN62: 0.005054761981 | AO62: 0.005145518364 | AP62: 0.005179608424 | AQ62: 0.005174989025
C63: 22 | D63: 0.01240044734 | E63: 0.01203655724 | F63: 0.01199760402 | G63: 0.01121059399 | H63: 0.01076431213 | I63: 0.01026645869 | J63: 0.01065733236 | K63: 0.008454131762 | L63: 0.008376196129 | M63: 0.007452421214 | N63: 0.007494103794 | O63: 0.00778979633 | P63: 0.006533422154 | Q63: 0.006076666378 | R63: 0.005440455393 | S63: 0.00466578166 | T63: 0.004495380801 | U63: 0.004106254982 | V63: 0.004036344366 | W63: 0.003451547878 | X63: 0.002599796079 | Y63: 0.002755410979 | Z63: 0.002392212713 | AA63: 0.003780174147 | AB63: 0.003829115415 | AC63: 0.003926921278 | AD63: 0.003914117071 | AE63: 0.003927654967 | AF63: 0.003849173895 | AG63: 0.003675701653 | AH63: 0.003627760235 | AI63: 0.003588405164 | AJ63: 0.003558497876 | AK63: 0.003552792272 | AL63: 0.003553955573 | AM63: 0.003557486315 | AN63: 0.003628449791 | AO63: 0.003664611974 | AP63: 0.003730502257 | AQ63: 0.003755319258
C64: 23 | D64: 0.009689733633 | E64: 0.009939862422 | F64: 0.01003702061 | G64: 0.009398324466 | H64: 0.008870526599 | I64: 0.008594277867 | J64: 0.00810346823 | K64: 0.00832085268 | L64: 0.00658121297 | M64: 0.006470445058 | N64: 0.005714322819 | O64: 0.00566768737 | P64: 0.005814798481 | Q64: 0.004811090337 | R64: 0.004399380773 | S64: 0.003920307446 | T64: 0.003341361392 | U64: 0.003224522481 | V64: 0.00294780556 | W64: 0.002906572942 | X64: 0.002499446 | Y64: 0.001887938998 | Z64: 0.002004473052 | AA64: 0.001730929538 | AB64: 0.002730481139 | AC64: 0.002760627854 | AD64: 0.00282397247 | AE64: 0.002809725509 | AF64: 0.00280716754 | AG64: 0.002733856647 | AH64: 0.002647334735 | AI64: 0.002608304164 | AJ64: 0.002583038098 | AK64: 0.002563113348 | AL64: 0.002560271951 | AM64: 0.002561858026 | AN64: 0.002564861734 | AO64: 0.002616295621 | AP64: 0.002642438347 | AQ64: 0.002690023948
C65: 24 | D65: 0.008015958126 | E65: 0.007746215716 | F65: 0.008270667483 | G65: 0.007840337411 | H65: 0.007415468761 | I65: 0.007063331761 | J65: 0.006764988555 | K65: 0.006308612011 | L65: 0.006458268628 | M65: 0.005068270731 | N65: 0.004945650672 | O65: 0.004307138904 | P65: 0.00421568711 | Q65: 0.004265857998 | R65: 0.003469217531 | S65: 0.003157257237 | T65: 0.002795878879 | U65: 0.00238690165 | V65: 0.002305366163 | W65: 0.002114130897 | X65: 0.002096459444 | Y65: 0.001807958823 | Z65: 0.001368072412 | AA65: 0.001444608812 | AB65: 0.001245256731 | AC65: 0.001960580081 | AD65: 0.001977120545 | AE65: 0.002018803353 | AF65: 0.00199973758 | AG65: 0.00198520696 | AH65: 0.001960912301 | AI65: 0.001895602817 | AJ65: 0.001869878075 | AK65: 0.001852943258 | AL65: 0.001839575351 | AM65: 0.001838080814 | AN65: 0.001839553313 | AO65: 0.001841903882 | AP65: 0.001878889333 | AQ65: 0.001897716704
C66: 25 | D66: 0.006515213577 | E66: 0.00640749536 | F66: 0.006444859939 | G66: 0.006459862414 | H66: 0.006185508997 | I66: 0.005904104232 | J66: 0.005559315717 | K66: 0.00526600838 | L66: 0.004895898917 | M66: 0.004973001486 | N66: 0.003873432476 | O66: 0.003727272996 | P66: 0.003203256949 | Q66: 0.003092268741 | R66: 0.003075582732 | S66: 0.00248932644 | T66: 0.00225132799 | U66: 0.001996919261 | V66: 0.00170624139 | W66: 0.001653122776 | X66: 0.001524651669 | Y66: 0.001516231668 | Z66: 0.001309918923 | AA66: 0.0009858082609 | AB66: 0.001039112075 | AC66: 0.0008939974963 | AD66: 0.001403916039 | AE66: 0.001413179897 | AF66: 0.001436589672 | AG66: 0.001413963957 | AH66: 0.001423702886 | AI66: 0.00140387356 | AJ66: 0.001358732621 | AK66: 0.001341146973 | AL66: 0.001329669761 | AM66: 0.001320468554 | AN66: 0.001319635364 | AO66: 0.001320831549 | AP66: 0.001322553984 | AQ66: 0.001349148586
C67: 26 | D67: 0.005296068903 | E67: 0.005193354902 | F67: 0.005319016952 | G67: 0.005019024007 | H67: 0.005081361746 | I67: 0.004911111628 | J67: 0.004633655029 | K67: 0.004314466205 | L67: 0.004074156939 | M67: 0.003757904116 | N67: 0.003788077703 | O67: 0.002908975369 | P67: 0.002761738236 | Q67: 0.00234045401 | R67: 0.002220166859 | S67: 0.002197533164 | T67: 0.001767389916 | U67: 0.00160109176 | V67: 0.001421384696 | W67: 0.001218344657 | X67: 0.001187258795 | Y67: 0.001098178546 | Z67: 0.001094098398 | AA67: 0.0009399919548 | AB67: 0.0007061252874 | AC67: 0.0007428481935 | AD67: 0.0006374311029 | AE67: 0.0009991521969 | AF67: 0.001001224844 | AG67: 0.001011221997 | AH67: 0.001009692129 | AI67: 0.001014919232 | AJ67: 0.001001991781 | AK67: 0.0009704011417 | AL67: 0.0009583313432 | AM67: 0.0009504164988 | AN67: 0.0009440137402 | AO67: 0.0009435190011 | AP67: 0.0009443995034 | AQ67: 0.0009456578386
C68: 27 | D68: 0.004199843979 | E68: 0.004220684904 | F68: 0.004310407422 | G68: 0.004141354532 | H68: 0.003947124736 | I68: 0.004033616633 | J68: 0.003853517415 | K68: 0.003595276635 | L68: 0.003337210942 | M68: 0.003126424211 | N68: 0.002861800889 | O68: 0.002844132552 | P68: 0.002154823571 | Q68: 0.002017272625 | R68: 0.001679863147 | S68: 0.00158583076 | T68: 0.001559719416 | U68: 0.00125652564 | V68: 0.001139277755 | W68: 0.001014623762 | X68: 0.0008747358149 | Y68: 0.0008549009335 | Z68: 0.0007921961363 | AA68: 0.000784878038 | AB68: 0.0006730976828 | AC68: 0.0005046413508 | AD68: 0.0005294914233 | AE68: 0.0004535076492 | AF68: 0.0007076595604 | AG68: 0.0007045315569 | AH68: 0.0007218696798 | AI68: 0.0007195535809 | AJ68: 0.0007241528339 | AK68: 0.000715392518 | AL68: 0.0006931924298 | AM68: 0.000684777076 | AN68: 0.0006792468855 | AO68: 0.0006747431937 | AP68: 0.0006744076298 | AQ68: 0.0006750561364
C69: 28 | D69: 0.00251153252 | E69: 0.003343929606 | F69: 0.003500465239 | G69: 0.003352762572 | H69: 0.003253682051 | I69: 0.003130335229 | J69: 0.003161966416 | K69: 0.002986955315 | L69: 0.002778052259 | M69: 0.002558171424 | N69: 0.002378273678 | O69: =MAX(N34*(1-N$3*$A34),0) -> 0.002146155338 | P69: 0.002104179775 | Q69: 0.001571901477 | R69: 0.001445880214 | S69: 0.001198199419 | T69: 0.001123931353 | U69: 0.001107291395 | V69: 0.000892821273 | W69: 0.0008120995491 | X69: 0.0007274622349 | Y69: 0.0006290037857 | Z69: 0.0006158648803 | AA69: 0.0005675125342 | AB69: 0.0005612374574 | AC69: 0.0004803568716 | AD69: 0.0003591863859 | AE69: 0.0003761696138 | AF69: 0.0003207306329 | AG69: 0.0004972107767 | AH69: 0.0005022151353 | AI69: 0.0005137026186 | AJ69: 0.0005126761589 | AK69: 0.0005162894824 | AL69: 0.0005103062259 | AM69: 0.0004946203486 | AN69: 0.0004887063218 | AO69: 0.0004848117715 | AP69: 0.0004816102425 | AQ69: 0.0004813844395
C70: 29 | D70: 0.001745916007 | E70: =MAX(D35*(1-D$3*$A35),0) -> 0.001997615734 | F70: =MAX(E35*(1-E$3*$A35),0) -> 0.002770995365 | G70: 0.002719792623 | H70: 0.002631227884 | I70: 0.002577716819 | J70: 0.002451274926 | K70: 0.002448174283 | L70: 0.002305355734 | M70: 0.002127012598 | N70: 0.001943613147 | O70: 0.00178121794 | P70: 0.001585604424 | Q70: 0.00153272386 | R70: 0.001124912189 | S70: 0.001029679367 | T70: 0.0008478384204 | U70: 0.0007966386085 | V70: 0.0007855338626 | W70: 0.0006354204874 | X70: 0.000581360561 | Y70: 0.000522306927 | Z70: 0.0004524454934 | AA70: 0.0004405113644 | AB70: 0.0004051741249 | AC70: 0.0003998968796 | AD70: 0.0003413571978 | AE70: 0.0002547694608 | AF70: 0.0002656016393 | AG70: 0.0002249729129 | AH70: 0.000353864221 | AI70: 0.0003568219053 | AJ70: 0.0003654291533 | AK70: 0.000364938223 | AL70: 0.0003677005023 | AM70: 0.0003635501028 | AN70: 0.0003524409914 | AO70: 0.0003482646753 | AP70: 0.0003454986935 | AQ70: 0.0003432269653
C71: 30 | D71: =D37 -> 0.001585207609 | E71: =E37 -> 0.001585207609 | F71: =F37 -> 0.001585207609 | G71: 0.001585207609 | H71: 0.001585207609 | I71: 0.001585207609 | J71: 0.001585207609 | K71: 0.001585207609 | L71: 0.001585207609 | M71: 0.001585207609 | N71: 0.001585207609 | O71: 0.001585207609 | P71: 0.001585207609 | Q71: 0.001585207609 | R71: 0.001585207609 | S71: 0.001585207609 | T71: 0.001585207609 | U71: 0.001585207609 | V71: 0.001585207609 | W71: 0.001585207609 | X71: 0.001585207609 | Y71: 0.001585207609 | Z71: 0.001585207609 | AA71: 0.001585207609 | AB71: 0.001585207609 | AC71: 0.001585207609 | AD71: 0.001585207609 | AE71: 0.001585207609 | AF71: 0.001585207609 | AG71: 0.001585207609 | AH71: 0.001585207609 | AI71: 0.001585207609 | AJ71: 0.001585207609 | AK71: 0.001585207609 | AL71: 0.001585207609 | AM71: 0.001585207609 | AN71: 0.001585207609 | AO71: 0.001585207609 | AP71: 0.001585207609 | AQ71: 0.001585207609

Sheet 31 (hidden)
D1: 2011 | E1: 2012 | F1: 2013 | G1: 2014 | H1: 2015 | I1: 2016 | J1: 2017 | K1: 2018 | L1: 2019 | M1: 2020 | N1: 2021 | O1: 2022 | P1: 2023 | Q1: 2024 | R1: 2025 | S1: 2026 | T1: 2027 | U1: 2028 | V1: 2029 | W1: 2030 | X1: 2031 | Y1: 2032 | Z1: 2033 | AA1: 2034 | AB1: 2035 | AC1: 2036 | AD1: 2037 | AE1: 2038 | AF1: 2039 | AG1: 2040 | AH1: 2041 | AI1: 2042 | AJ1: 2043 | AK1: 2044 | AL1: 2045 | AM1: 2046 | AN1: 2047 | AO1: 2048 | AP1: 2049 | AQ1: 2050
C2: sales (age 0 pop) | D2: 0.04956328548 | E2: 0.07477074966 | F2: 0.07623158499 | G2: 0.07945121432 | H2: 0.08210526495 | I2: 0.08360308844 | J2: 0.08198147834 | K2: 0.08020199622 | L2: 0.07779862596 | M2: 0.07602006545 | N2: 0.07507164842 | O2: 0.07405059175 | P2: 0.07313407464 | Q2: 0.07259009216 | R2: 0.07288333466 | S2: 0.07375082806 | T2: 0.07329807213 | U2: 0.07301879131 | V2: 0.07253951892 | W2: 0.07220507965 | X2: 0.07188589024 | Y2: 0.07159707296 | Z2: 0.07126366792 | AA2: 0.07098785261 | AB2: 0.07108319423 | AC2: 0.07112181443 | AD2: 0.07125880012 | AE2: 0.07144197662 | AF2: 0.07138187038 | AG2: 0.0711901928 | AH2: 0.07141456885 | AI2: 0.07141401581 | AJ2: 0.07141582068 | AK2: 0.07141555212 | AL2: 0.07141526341 | AM2: 0.07141499775 | AN2: 0.07141478381 | AO2: 0.07141462569 | AP2: 0.07141451781 | AQ2: 0.07141445481
C3: scrappage k factor | D3: 1.488734691 | E3: 1.266659162 | F3: 1.534568964 | G3: 1.55783649 | H3: 1.500362581 | I3: 1.490465478 | J3: 1.540850221 | K3: 1.506497108 | L3: 1.49040975 | M3: 1.491045937 | N3: 1.491338799 | O3: 1.475241483 | P3: 1.461308719 | Q3: 1.455663995 | R3: 1.459712098 | S3: 1.43669538 | T3: 1.405944838 | U3: 1.390493159 | V3: 1.372584197 | W3: 1.349357056 | X3: 1.334336869 | Y3: 1.325146762 | Z3: 1.335698373 | AA3: 1.343075698 | AB3: 1.349443417 | AC3: 1.35718644 | AD3: 1.364251766 | AE3: 1.375661561 | AF3: 1.40231412 | AG3: 1.352921799 | AH3: 1.348224597 | AI3: 1.337138979 | AJ3: 1.335056782 | AK3: 1.333355374 | AL3: 1.331942834 | AM3: 1.33092958 | AN3: 1.33133843 | AO3: 1.332028066 | AP3: 1.332963621
A5: default
A6: scrappage | C6: age | D6: 2011 | E6: 2012 | F6: 2013 | G6: 2014 | H6: 2015 | I6: 2016 | J6: 2017 | K6: 2018 | L6: 2019 | M6: 2020 | N6: 2021 | O6: 2022 | P6: 2023 | Q6: 2024 | R6: 2025 | S6: 2026 | T6: 2027 | U6: 2028 | V6: 2029 | W6: 2030 | X6: 2031 | Y6: 2032 | Z6: 2033 | AA6: 2034 | AB6: 2035 | AC6: 2036 | AD6: 2037 | AE6: 2038 | AF6: 2039 | AG6: 2040 | AH6: 2041 | AI6: 2042 | AJ6: 2043 | AK6: 2044 | AL6: 2045 | AM6: 2046 | AN6: 2047 | AO6: 2048 | AP6: 2049 | AQ6: 2050
A7: 0.008599996567 | C7: 0 | D7: 0.04956328548 | E7: =E41 -> 0.07477074966 | F7: =F41 -> 0.07623158499 | G7: 0.07945121432 | H7: 0.08210526495 | I7: 0.08360308844 | J7: 0.08198147834 | K7: 0.08020199622 | L7: 0.07779862596 | M7: 0.07602006545 | N7: 0.07507164842 | O7: 0.07405059175 | P7: 0.07313407464 | Q7: 0.07259009216 | R7: 0.07288333466 | S7: 0.07375082806 | T7: 0.07329807213 | U7: 0.07301879131 | V7: 0.07253951892 | W7: 0.07220507965 | X7: 0.07188589024 | Y7: 0.07159707296 | Z7: 0.07126366792 | AA7: 0.07098785261 | AB7: 0.07108319423 | AC7: 0.07112181443 | AD7: 0.07125880012 | AE7: 0.07144197662 | AF7: 0.07138187038 | AG7: 0.0711901928 | AH7: 0.07141456885 | AI7: 0.07141401581 | AJ7: 0.07141582068 | AK7: 0.07141555212 | AL7: 0.07141526341 | AM7: 0.07141499775 | AN7: 0.07141478381 | AO7: 0.07141462569 | AP7: 0.07141451781 | AQ7: 0.07141445481
A8: 0.008700013161 | C8: 1 | D8: 0.04397498868 | E8: =E42*(1-E$41-E$71)/SUM(E$42:E$70) -> 0.04902069897 | F8: =F42*(1-F$41-F$71)/SUM(F$42:F$70) -> 0.07307801687 | G8: 0.07518202981 | H8: 0.07809162531 | I8: 0.08025237512 | J8: 0.08163501801 | K8: 0.08025555951 | L8: 0.07848358005 | M8: 0.07611280958 | N8: 0.07438530557 | O8: 0.07349726488 | P8: 0.07250290781 | Q8: 0.07161229575 | R8: 0.07102587404 | S8: 0.07124673114 | T8: 0.07210411009 | U8: 0.07162692761 | V8: 0.07138756168 | W8: 0.07092469624 | X8: 0.07058325152 | Y8: 0.07028849043 | Z8: 0.07002903241 | AA8: 0.06978148002 | AB8: 0.06953750988 | AC8: 0.06965097501 | AD8: 0.06970631436 | AE8: 0.06984557313 | AF8: 0.0700181272 | AG8: 0.07007506383 | AH8: 0.0697417925 | AI8: 0.07000017815 | AJ8: 0.06997201934 | AK8: 0.06997442199 | AL8: 0.06997484634 | AM8: 0.06997433915 | AN8: 0.06996879538 | AO8: 0.06996682646 | AP8: 0.06996459603 | AQ8: 0.06996471675
A9: 0.008800029755 | C9: 2 | D9: 0.03351207429 | E9: =E43*(1-E$41-E$71)/SUM(E$42:E$70) -> 0.0434870191 | F9: 0.04790478428 | G9: 0.07206067026 | H9: 0.07388382619 | I9: 0.07631770848 | J9: 0.07835134925 | K9: 0.0799039117 | L9: 0.07852400698 | M9: 0.07677132711 | N9: 0.07446480447 | O9: 0.07281431219 | P9: 0.07195039147 | Q9: 0.07098375405 | R9: 0.07005881709 | S9: 0.06942071454 | T9: 0.06964579067 | U9: 0.07045015785 | V9: 0.07001693536 | W9: 0.06978868658 | X9: 0.06932216061 | Y9: 0.06900548073 | Z9: 0.0687398922 | AA9: 0.06856325606 | AB9: 0.068346495 | AC9: 0.06812712974 | AD9: 0.06825537251 | AE9: 0.06831444344 | AF9: 0.06844400906 | AG9: 0.06872652878 | AH9: 0.06863995277 | AI9: 0.06835120553 | AJ9: 0.06857745076 | AK9: 0.06855050019 | AL9: 0.0685535395 | AM9: 0.06855374539 | AN9: 0.06854807942 | AO9: 0.06854092232 | AP9: 0.06853695558 | AQ9: 0.06853498596
A10: 0.01419997215 | C10: 3 | D10: 0.05871223956 | E10: 0.03313520743 | F10: 0.04249163013 | G10: 0.04723053545 | H10: 0.07080517917 | I10: 0.0721945145 | J10: 0.07449863417 | K10: 0.07667789526 | L10: 0.07816800996 | M10: 0.07679927176 | N10: 0.0750977155 | O10: 0.07288111668 | P10: 0.07127115838 | Q10: 0.07043238643 | R10: 0.06943367022 | S10: 0.06846538703 | T10: 0.06785093076 | U10: 0.06803854103 | V10: 0.06885692169 | W10: 0.06843924804 | X10: 0.06820250388 | Y10: 0.06776342853 | Z10: 0.06747610123 | AA10: 0.06729200223 | AB10: 0.06714419523 | AC10: 0.0669511266 | AD10: 0.06675289002 | AE10: 0.06688323651 | AF10: 0.06693428168 | AG10: 0.06717190892 | AH10: 0.06730981747 | AI10: 0.06726215661 | AJ10: 0.06695293224 | AK10: 0.06717518663 | AL10: 0.06714947026 | AM10: 0.06715225162 | AN10: 0.06714739681 | AO10: 0.06714015322 | AP10: 0.06713114219 | AQ10: 0.06712746141
A11: 0.0191000104 | C11: 4 | D11: 0.06261440303 | E11: 0.05757909936 | F11: 0.03215281487 | G11: 0.04154166337 | H11: 0.04601183423 | I11: 0.06861822088 | J11: 0.06989897776 | K11: 0.07229250234 | L11: 0.07439365666 | M11: 0.07582762877 | N11: 0.07451213473 | O11: 0.07290078516 | P11: 0.07076078995 | Q11: 0.06920977789 | R11: 0.06834577167 | S11: 0.06731264539 | T11: 0.06639140956 | U11: 0.06577555984 | V11: 0.06599433863 | W11: 0.06680041455 | X11: 0.06639053438 | Y11: 0.06618286741 | Z11: 0.06578183334 | AA11: 0.06557273089 | AB11: 0.06541559993 | AC11: 0.06528832802 | AD11: 0.06511402843 | AE11: 0.06492322822 | AF11: 0.0650392202 | AG11: 0.0651865923 | AH11: 0.06530083119 | AI11: 0.06547275354 | AJ11: 0.06540476842 | AK11: 0.06510545593 | AL11: 0.06532286104 | AM11: 0.06529817708 | AN11: 0.06529633315 | AO11: 0.06528981667 | AP11: 0.06528057696 | AQ11: 0.06527167412
A12: 0.0243999958 | C12: 5 | D12: 0.06443791155 | E12: 0.06094832973 | F12: 0.05551886325 | G12: 0.03119235692 | H12: 0.04015384097 | I12: 0.044255708 | J12: 0.06594069923 | K12: 0.06730547519 | L12: 0.0696098288 | M12: 0.07162785086 | N12: 0.0730202895 | O12: 0.07179232228 | P12: 0.07025728928 | Q12: 0.06821171907 | R12: 0.06667023796 | S12: 0.06577402832 | T12: 0.06480450025 | U12: 0.0639082564 | V12: 0.06335589735 | W12: 0.06358416428 | X12: 0.06436393284 | Y12: 0.06399519205 | Z12: 0.06382231545 | AA12: 0.06349977032 | AB12: 0.06331660447 | AC12: 0.06317870075 | AD12: 0.06306628716 | AE12: 0.06289757464 | AF12: 0.06269920359 | AG12: 0.06289692794 | AH12: 0.06294247821 | AI12: 0.06309078117 | AJ12: 0.06323957099 | AK12: 0.0631759112 | AL12: 0.06288858274 | AM12: 0.06309935429 | AN12: 0.06307144445 | AO12: 0.06306779653 | AP12: 0.06305915782 | AQ12: 0.06304979491
A13: 0.03009998798 | C13: 6 | D13: 0.06774229541 | E13: 0.06221392905 | F13: 0.05836323522 | G13: 0.05340913816 | H13: 0.02989371348 | I13: 0.03830512259 | J13: 0.04218302706 | K13: 0.06295981675 | L13: 0.06427508016 | M13: 0.06647694781 | N13: 0.06841493565 | O13: 0.06978253679 | P13: 0.06863236376 | Q13: 0.06718676087 | R13: 0.06518736028 | S13: 0.06365092323 | T13: 0.06282743686 | U13: 0.06190304449 | V13: 0.06109125657 | W13: 0.06058606484 | X13: 0.06081526038 | Y13: 0.06159147805 | Z13: 0.06126798917 | AA13: 0.06116067702 | AB13: 0.06086701885 | AC13: 0.06070255275 | AD13: 0.0605777954 | AE13: 0.06046727326 | AF13: 0.06028811467 | AG13: 0.06017093886 | AH13: 0.0602846122 | AI13: 0.06036622081 | AJ13: 0.06049566331 | AK13: 0.06064096874 | AL13: 0.0605822229 | AM13: 0.06030790473 | AN13: 0.06050647102 | AO13: 0.06047777886 | AP13: 0.06047179809 | AQ13: 0.06046277613
A14: 0.03619998693 | C14: 7 | D14: 0.06859366787 | E14: 0.06482834026 | F14: 0.05913130751 | G14: 0.05563521377 | H14: 0.05071306582 | I14: 0.02826423072 | J14: 0.03618924074 | K14: 0.03990856464 | L14: 0.05958908492 | M14: 0.06084115484 | N14: 0.06293506407 | O14: 0.06480461623 | P14: 0.06612912902 | Q14: 0.06506595244 | R14: 0.06365547728 | S14: 0.0616982583 | T14: 0.06028346021 | U14: 0.05951646532 | V14: 0.05868895605 | W14: 0.05794752797 | X14: 0.05748685088 | Y14: 0.05773814845 | Z14: 0.05850643402 | AA14: 0.05825080806 | AB14: 0.05816089593 | AC14: 0.05788996804 | AD14: 0.05773790274 | AE14: 0.0576141286 | AF14: 0.05748838693 | AG14: 0.0573782276 | AH14: 0.0572119149 | AI14: 0.05735771122 | AJ14: 0.05742712633 | AK14: 0.0575535038 | AL14: 0.05769453349 | AM14: 0.05764030203 | AN14: 0.05737628966 | AO14: 0.05756322282 | AP14: 0.05753332062 | AQ14: 0.05752659775
A15: 0.04240000248 | C15: 8 | D15: 0.0638466518 | E15: 0.06501900139 | F15: 0.06112122229 | G15: 0.05581418442 | H15: 0.05230007033 | I15: 0.04748914406 | J15: =J49*(1-J$41-J$71)/SUM(J$42:J$70) -> 0.02644880074 | K15: 0.03390049655 | L15: 0.03740834898 | M15: 0.05586861455 | N15: 0.05705103854 | O15: 0.05904611643 | P15: 0.06083349986 | Q15: 0.06210824149 | R15: 0.06107366383 | S15: 0.05968724794 | T15: 0.05789884742 | U15: 0.05659515206 | V15: 0.05592677646 | W15: 0.05518265995 | X15: 0.05451155418 | Y15: 0.05411532381 | Z15: 0.05438435219 | AA15: 0.05515304156 | AB15: 0.05492080156 | AC15: 0.05484158435 | AD15: 0.05458741145 | AE15: 0.05443661994 | AF15: 0.05429629265 | AG15: 0.05422497995 | AH15: 0.05408718162 | AI15: 0.05396758576 | AJ15: 0.05410136753 | AK15: 0.05417064197 | AL15: 0.05429309639 | AM15: 0.05442821758 | AN15: 0.05437456669 | AO15: 0.05412350246 | AP15: 0.05429712878 | AQ15: 0.05426760945
A16: 0.04850000143 | C16: 9 | D16: 0.06237569377 | E16: 0.05992894587 | F16: 0.06079643016 | G16: 0.05711127733 | H16: 0.05193125466 | I16: 0.04849351352 | J16: 0.04400480915 | K16: 0.02452540318 | L16: 0.03146275417 | M16: 0.03473016771 | N16: 0.05187632811 | O16: 0.05300252331 | P16: 0.05489229734 | Q16: 0.05658804551 | R16: 0.05774202106 | S16: 0.0567191939 | T16: 0.05548537836 | U16: 0.05385720968 | V16: 0.05269887524 | W16: 0.0521146003 | X16: 0.05145403884 | Y16: 0.05086845753 | Z16: 0.05053208062 | AA16: 0.0508210902 | AB16: 0.0515449859 | AC16: 0.051330879 | AD16: 0.05125530889 | AE16: 0.05100832748 | AF16: 0.05084127675 | AG16: 0.05074500247 | AH16: 0.05066395697 | AI16: 0.05057168766 | AJ16: 0.05046023601 | AK16: 0.05058959975 | AL16: 0.05065799885 | AM16: 0.05077494918 | AN16: 0.05089934013 | AO16: 0.05084713582 | AP16: 0.05060959267 | AQ16: 0.05077038945
A17: 0.0544000268 | C17: 10 | D17: 0.05618436387 | E17: 0.05798073158 | F17: 0.05557939198 | G17: 0.05623901536 | H17: 0.05259743667 | I17: 0.04768090888 | J17: 0.04449938061 | K17: 0.04039437225 | L17: 0.02253836673 | M17: 0.02892675793 | N17: 0.0319352965 | O17: 0.04772699293 | P17: 0.04880086292 | Q17: 0.05057624292 | R17: 0.05211201438 | S17: 0.05311609945 | T17: 0.05223421092 | U17: 0.05114151398 | V17: 0.0496974084 | W17: 0.04867015877 | X17: 0.04816903662 | Y17: 0.04760102597 | Z17: 0.04709338484 | AA17: 0.04681337459 | AB17: 0.04708380207 | AC17: 0.04775509461 | AD17: 0.04755275945 | AE17: 0.0474716505 | AF17: 0.04721488096 | AG17: 0.04708381254 | AH17: 0.04699741531 | AI17: 0.046957754 | AJ17: 0.04687617414 | AK17: 0.04677749439 | AL17: 0.04690132115 | AM17: 0.04696744576 | AN17: 0.04707437952 | AO17: 0.04718768564 | AP17: 0.04713648713 | AQ17: 0.04691453688
A18: 0.06010001898 | C18: 11 | D18: 0.0544784203 | E18: 0.05173121276 | F18: 0.05334441313 | G18: 0.05091013162 | H18: 0.05127915278 | I18: 0.04783152343 | J18: 0.04333896427 | K18: 0.0404470179 | L18: 0.03676568041 | M18: 0.02052529091 | N18: 0.02634667274 | O18: 0.0291022696 | P18: 0.04353158061 | Q18: 0.04454652609 | R18: 0.04614533684 | S18: 0.047492827 | T18: 0.04847033113 | U18: 0.04771628338 | V18: 0.04677631278 | W18: 0.04549994291 | X18: 0.04460215292 | Y18: 0.04418691909 | Z18: 0.04370022804 | AA18: 0.04326010511 | AB18: 0.0430031815 | AC18: 0.04325029406 | AD18: 0.04386095317 | AE18: 0.04366280183 | AF18: 0.04355908106 | AG18: 0.0433372574 | AH18: 0.04323408559 | AI18: 0.04318869136 | AJ18: 0.04315912856 | AK18: 0.0430890211 | AL18: 0.04300239117 | AM18: 0.04311912885 | AN18: 0.04317884596 | AO18: 0.04327518207 | AP18: 0.04337656265 | AQ18: 0.04332761455
A19: 0.06540000439 | C19: 12 | D19: 0.05035556707 | E19: 0.04969732091 | F19: 0.04722556381 | G19: 0.04839657939 | H19: 0.04596987464 | I19: 0.04619844213 | J19: 0.04307391783 | K19: 0.03901464596 | L19: 0.03646925789 | M19: 0.03317231735 | N19: 0.01852165448 | O19: 0.02378730596 | P19: 0.02630137098 | Q19: 0.03937703865 | R19: 0.04027763935 | S19: 0.04167493805 | T19: 0.04295389601 | U19: 0.04389373048 | V19: 0.04326922791 | W19: 0.04246347224 | X19: 0.04135080295 | Y19: 0.04057936511 | Z19: 0.04023568782 | AA19: 0.0398135662 | AB19: 0.03941091334 | AC19: 0.0391739993 | AD19: 0.03939169623 | AE19: 0.03993471911 | AF19: 0.039724589 | AG19: 0.0396357241 | AH19: 0.03946260489 | AI19: 0.03940085782 | AJ19: 0.03936868668 | AK19: 0.03934673597 | AL19: 0.03928699308 | AM19: 0.03921101801 | AN19: 0.03931675049 | AO19: 0.03936930011 | AP19: 0.03945442544 | AQ19: 0.03954488788
A20: 0.07090002298 | C20: 13 | D20: 0.04242185553 | E20: 0.0455382288 | F20: 0.04503914856 | G20: 0.04246139683 | H20: 0.04330215214 | I20: 0.04105323543 | J20: 0.04124229432 | K20: 0.03842706418 | L20: 0.03486891666 | M20: 0.03261937311 | N20: 0.02967426474 | O20: 0.01657723667 | P20: 0.02131349701 | Q20: 0.02358923402 | R20: 0.03530252734 | S20: 0.03606720113 | T20: 0.03737789965 | U20: 0.03858155971 | V20: 0.03948284869 | W20: 0.0389683067 | X20: 0.0382908832 | Y20: 0.0373320106 | Z20: 0.03666875329 | AA20: 0.03637500666 | AB20: 0.03599018208 | AC20: 0.03562216995 | AD20: 0.03539963565 | AE20: 0.03558304198 | AF20: 0.03604398768 | AG20: 0.03585322806 | AH20: 0.03581031252 | AI20: 0.03568412435 | AJ20: 0.03563911272 | AK20: 0.03561500463 | AL20: 0.03559930933 | AM20: 0.03554830299 | AN20: 0.03547914157 | AO20: 0.03557300118 | AP20: 0.03561794432 | AQ20: 0.03569297195
A21: 0.08660000563 | C21: 14 | D21: 0.03718027806 | E21: 0.03801550125 | F21: 0.04095641021 | G21: 0.04011563189 | H21: 0.03762928695 | I21: 0.03831700332 | J21: 0.03631618097 | K21: 0.03644628489 | L21: 0.0340281066 | M21: 0.03090470478 | N21: 0.02891447714 | O21: 0.02631764578 | P21: 0.01471986706 | Q21: 0.01894582641 | R21: 0.02096122203 | S21: 0.03133158201 | T21: 0.03206624786 | U21: 0.03328725168 | V21: 0.03441253669 | W21: 0.03526337874 | X21: 0.03485313704 | Y21: 0.03429152034 | Z21: 0.03346514767 | AA21: 0.03288348089 | AB21: 0.03261554896 | AC21: 0.03226547956 | AD21: 0.03192633133 | AE21: 0.03171351967 | AF21: 0.03184926222 | AG21: 0.0322550794 | AH21: 0.03212844509 | AI21: 0.03211819612 | AJ21: 0.03201710589 | AK21: =AK55*(1-AK$41-AK$71)/SUM(AK$42:AK$70) -> 0.03198164538 | AL21: 0.03196411071 | AM21: 0.03195306309 | AN21: 0.03190712165 | AO21: 0.03184333765 | AP21: 0.03192509945 | AQ21: 0.03196345597
A22: 0.09210002422 | C22: 15 | D22: 0.02840897304 | E22: 0.03244771366 | F22: 0.0334435614 | G22: 0.03549302362 | H22: 0.03457301619 | I22: 0.0324195204 | J22: 0.03300878783 | K22: 0.03122143176 | L22: 0.03141944868 | M22: 0.02937038741 | N22: 0.02667746191 | O22: 0.02497238524 | P22: 0.02276444859 | Q22: 0.01274977622 | R22: 0.01640609715 | S22: 0.0181278734 | T22: 0.0271563713 | U22: 0.02785677245 | V22: 0.02897126867 | W22: 0.03000119572 | X22: 0.03080061594 | Y22: 0.03049063255 | Z22: 0.03003374559 | AA22: 0.02931541145 | AB22: 0.0287977218 | AC22: 0.02855506654 | AD22: 0.02823612017 | AE22: 0.02792366892 | AF22: 0.02770644432 | AG22: 0.02780453033 | AH22: 0.0282250199 | AI22: 0.02814151992 | AJ22: 0.02814929435 | AK22: 0.02806616447 | AL22: 0.02803961103 | AM22: 0.028027679 | AN22: 0.02801840826 | AO22: 0.02797640038 | AP22: 0.02791792862 | AQ22: 0.0279873664
A23: 0.09719997644 | C23: 16 | D23: 0.02740793131 | E23: 0.02455982946 | F23: 0.02832201716 | G23: 0.02870024674 | H23: 0.03028613137 | I23: 0.02950388555 | J23: 0.02766543281 | K23: 0.02810050034 | L23: 0.02665875749 | M23: 0.02686355417 | N23: 0.02511427136 | O23: 0.02282334305 | P23: 0.02139987757 | Q23: 0.01953624374 | R23: 0.01093949741 | S23: 0.01405807449 | T23: 0.01557037639 | U23: 0.02338372015 | V23: 0.0240340957 | W23: 0.02504104688 | X23: 0.02598418155 | Y23: 0.02672177353 | Z23: 0.02648492696 | AA23: 0.02609094867 | AB23: 0.02545837785 | AC23: 0.02500065269 | AD23: 0.0247776932 | AE23: 0.02448597552 | AF23: 0.02418590647 | AG23: 0.02397549245 | AH23: 0.02412546479 | AI23: 0.02451492642 | AJ23: 0.02445888208 | AK23: 0.02447076838 | AL23: 0.02440273963 | AM23: 0.02438289005 | AN23: 0.02437305128 | AO23: 0.02436341778 | AP23: 0.02432455309 | AQ23: 0.02427160593
A24: 0.1017000079 | C24: 17 | D24: 0.02503954535 | E24: 0.02348593405 | F24: 0.02128030002 | G24: 0.02408356692 | H24: 0.02426270564 | I24: 0.02561607426 | J24: 0.02495552268 | K24: 0.02333599945 | L24: 0.0237798712 | M24: 0.02259235766 | N24: 0.02276822677 | O24: 0.02129655137 | P24: 0.01938798713 | Q24: 0.01820702743 | R24: 0.01661868012 | S24: 0.009293226475 | T24: 0.01197278391 | U24: 0.01329685583 | V24: 0.02001078091 | W24: 0.02060718622 | X24: 0.02151774151 | Y24: 0.02236826498 | Z24: 0.02303252985 | AA24: 0.02282929925 | AB24: 0.02248105063 | AC24: 0.02192791901 | AD24: 0.02152186772 | AE24: 0.02131589434 | AF24: 0.02103798956 | AG24: 0.0207571531 | AH24: 0.020639112 | AI24: 0.0207897396 | AJ24: 0.02114116395 | AK24: 0.0210975482 | AL24: 0.02111170718 | AM24: 0.02105601134 | AN24: 0.02103949008 | AO24: 0.02102958645 | AP24: 0.02101915848 | AQ24: 0.02098367509
A25: 0.1055999994 | C25: 18 | D25: 0.01748310814 | E25: 0.02128839331 | F25: 0.02021752404 | G25: 0.01794878933 | H25: 0.02019164457 | I25: 0.0203592378 | J25: 0.0214971177 | K25: 0.02087849957 | L25: 0.01959109858 | M25: 0.01999454401 | N25: 0.0189979147 | O25: 0.01915560004 | P25: 0.01795080335 | Q25: 0.01636887984 | R25: 0.01536979527 | S25: 0.01400968694 | T25: 0.007855249251 | U25: 0.0101496403 | V25: 0.01129654902 | W25: 0.01703524501 | X25: 0.01758397494 | Y25: 0.01839556753 | Z25: 0.01914810335 | AA25: 0.01971628803 | AB25: 0.01953393933 | AC25: 0.01922813775 | AD25: 0.01874389119 | AE25: 0.01838391071 | AF25: 0.01818342759 | AG25: 0.0179235858 | AH25: 0.01774337038 | AI25: 0.01766125154 | AJ25: 0.01780464483 | AK25: 0.01810988347 | AL25: 0.01807604995 | AM25: 0.01809090694 | AN25: 0.01804380947 | AO25: 0.01802839545 | AP25: 0.01801802103 | AQ25: 0.01800730925
A26: 0.1093000174 | C26: 19 | D26: 0.01420252201 | E26: 0.01476228059 | F26: 0.01822188814 | G26: 0.01693146693 | H26: 0.01493961346 | I26: 0.01682615041 | J26: 0.01696849955 | K26: 0.0178569383 | L26: 0.01740635661 | M26: 0.01635969466 | N26: 0.01669816595 | O26: 0.01587393807 | P26: 0.01603690792 | Q26: 0.01505404557 | R26: 0.01372601173 | S26: 0.01287024574 | T26: 0.01176420831 | U26: 0.006616494262 | V26: 0.008568321239 | W26: 0.009556958851 | X26: 0.01444739833 | Y26: 0.01494207073 | Z26: 0.01565326084 | AA26: 0.01629233738 | AB26: 0.01676793877 | AC26: 0.01660554601 | AD26: 0.01633520247 | AE26: 0.01591206119 | AF26: 0.01558448966 | AG26: 0.01539278847 | AH26: 0.01522747751 | AI26: 0.01509079367 | AJ26: 0.01503407021 | AK26: 0.01515987642 | AL26: 0.01542292215 | AM26: 0.0153965425 | AN26: 0.01540981633 | AO26: 0.01536859487 | AP26: 0.01535380161 | AQ26: 0.01534337667
A27: 0.1122000217 | C27: 20 | D27: 0.01200677712 | E27: 0.01191385975 | F27: 0.01256747078 | G27: 0.01515678907 | H27: 0.01399562274 | I27: 0.01236739173 | J27: 0.01393204766 | K27: 0.0139991908 | L27: 0.01478860639 | M27: 0.01444018196 | N27: 0.01357311092 | O27: 0.01386097531 | P27: 0.01320360218 | Q27: 0.01336301355 | R27: 0.01254312709 | S27: 0.01142039612 | T27: 0.01073967241 | U27: 0.009848485019 | V27: 0.005551957937 | W27: 0.007205804734 | X27: 0.008057958158 | Y27: 0.01220619662 | Z27: 0.01264210821 | AA27: 0.01324208755 | AB27: 0.01377576563 | AC27: 0.01417120708 | AD27: 0.0140244959 | AE27: 0.01378549723 | AF27: 0.0134087144 | AG27: 0.01311236346 | AH27: 0.01300099403 | AI27: 0.0128756881 | AJ27: 0.01277197394 | AK27: 0.01272724272 | AL27: 0.01283647571 | AM27: 0.0130613649 | AN27: 0.013039615 | AO27: 0.01304989263 | AP27: 0.01301352794 | AQ27: 0.01299959348
A28: 0.1151999831 | C28: 21 | D28: 0.01062503048 | E28: 0.01002001293 | F28: 0.01009930057 | G28: 0.01039760366 | H28: 0.01246044996 | I28: 0.01152563265 | J28: 0.01018732113 | K28: 0.01143232323 | L28: 0.01153309457 | M28: 0.01220517004 | N28: 0.01191866234 | O28: 0.01120868158 | P28: 0.01147045599 | Q28: 0.01094662833 | R28: 0.01107825318 | S28: 0.01038364079 | T28: 0.009482732856 | U28: 0.008947474339 | V28: 0.00822465341 | W28: 0.004647231497 | X28: 0.00604769292 | Y28: 0.006777098072 | Z28: =Z62*(1-Z$41-Z$71)/SUM(Z$42:Z$70) -> 0.01028094516 | AA28: 0.01064625398 | AB28: 0.01114555455 | AC28: 0.01158896657 | AD28: 0.01191322241 | AE28: 0.01178042999 | AF28: 0.01156216425 | AG28: 0.01122754103 | AH28: 0.01102391809 | AI28: 0.0109426614 | AJ28: 0.01084774774 | AK28: 0.01076322888 | AL28: 0.0107278877 | AM28: 0.01082180982 | AN28: 0.01101194618 | AO28: 0.01099277884 | AP28: 0.01100018212 | AQ28: 0.0109683001
A29: 0.117200017 | C29: 22 | D29: 0.01084176235 | E29: 0.008819362084 | F29: 0.008456275891 | G29: 0.00830911463 | H29: 0.00849949708 | I29: 0.01020585608 | J29: 0.009442968476 | K29: 0.008312766828 | L29: 0.009367181932 | M29: 0.009467262734 | N29: 0.01001980974 | O29: 0.009789553564 | P29: 0.009226394233 | Q29: 0.009459874282 | R29: 0.009027646799 | S29: 0.009122940664 | T29: 0.008577578674 | U29: 0.007860725799 | V29: 0.007435271043 | W29: 0.006850886168 | X29: 0.003881726313 | Y29: 0.005062430877 | Z29: 0.005681508795 | AA29: 0.00861704794 | AB29: 0.008918192072 | AC29: 0.009331551395 | AD29: 0.009695634385 | AE29: 0.009958624656 | AF29: 0.009832256872 | AG29: 0.00963303299 | AH29: 0.009394129201 | AI29: 0.009234381253 | AJ29: 0.009175666661 | AK29: 0.009098576233 | AL29: 0.009029731927 | AM29: 0.009001673546 | AN29: 0.009080969027 | AO29: 0.009239805759 | AP29: 0.009222639206 | AQ29: 0.009227780376
A30: 0.1198999882 | C30: 23 | D30: 0.009182830746 | E30: 0.008966919261 | F30: 0.007420922962 | G30: 0.00693139098 | H30: 0.006766475106 | I30: 0.006936342652 | J30: 0.008331580497 | K30: 0.007676510614 | L30: 0.006786312145 | M30: 0.007661640876 | N30: 0.007744145815 | O30: 0.008200265713 | P30: 0.008029598941 | Q30: 0.0075824189 | R30: 0.007774236423 | S30: 0.007408174769 | T30: 0.007510206905 | U30: 0.007086538691 | V30: 0.006510561497 | W30: 0.006173159239 | X30: 0.005704102915 | Y30: 0.003239086867 | Z30: 0.004230761023 | AA30: 0.004746962506 | AB30: 0.007195420377 | AC30: 0.007442843428 | AD30: 0.007781902652 | AE30: 0.008078637237 | AF30: 0.008284554924 | AG30: 0.008164356375 | AH30: 0.008034161639 | AI30: 0.007844038778 | AJ30: 0.007718756949 | AK30: 0.007671829128 | AL30: 0.007609133825 | AM30: 0.00755292405 | AN30: 0.007529879174 | AO30: 0.007595614427 | AP30: 0.007727547558 | AQ30: 0.007712276159
A31: 0.1215000153 | C31: 24 | D31: 0.006963929499 | E31: 0.007557883048 | F31: 0.007514780596 | G31: 0.006052009652 | H31: 0.005615490095 | I31: 0.005494900986 | J31: 0.005634893502 | K31: 0.006738638048 | L31: 0.006235933979 | M31: 0.005523622406 | N31: 0.006236588616 | O31: 0.006306925181 | P31: 0.00669364058 | Q31: 0.006567454405 | R31: 0.006201793117 | S31: 0.006349281592 | T31: 0.006070127207 | U31: 0.006176508281 | V31: 0.005843023974 | W31: 0.005381543556 | X31: 0.005117578857 | Y31: 0.004739433183 | Z31: 0.002695495053 | AA31: 0.003519733066 | AB31: 0.0039467567 | AC31: 0.005979082585 | AD31: 0.006179797755 | AE31: 0.006455640392 | AF31: 0.006690837988 | AG31: 0.006848031037 | AH31: 0.006779692662 | AI31: 0.006679471667 | AJ31: 0.006528539365 | AK31: 0.006426120081 | AL31: 0.006388570591 | AM31: 0.006337541427 | AN31: 0.006291104079 | AO31: 0.006271407944 | AP31: 0.006325384696 | AQ31: 0.006434468515
A32: 0.1227999926 | C32: 25 | D32: 0.007052596856 | E32: 0.005715008069 | F32: 0.006318793744 | G32: 0.006110112916 | H32: 0.004888027984 | I32: 0.00454686348 | J32: 0.004450944217 | K32: 0.004543757118 | L32: 0.005457959234 | M32: 0.005060912444 | N32: 0.004483176073 | O32: 0.005064393692 | P32: 0.005133398078 | Q32: 0.005459246493 | R32: 0.005356479499 | S32: 0.005050714929 | T32: 0.005188040845 | U32: 0.004978657811 | V32: 0.005079084434 | W32: 0.004817069422 | X32: 0.004449834459 | Y32: 0.004241294104 | Z32: 0.003934107322 | AA32: 0.002236779744 | AB32: 0.002918908197 | AC32: 0.003271135854 | AD32: 0.004951560512 | AE32: 0.005113201758 | AF32: 0.00533255676 | AG32: 0.005515743596 | AH32: 0.005671920938 | AI32: 0.005622022873 | AJ32: 0.005545113407 | AK32: 0.005421401607 | AL32: 0.00533764118 | AM32: 0.005307456492 | AN32: 0.00526539212 | AO32: 0.005226388223 | AP32: 0.005209381415 | AQ32: 0.005253564706
A33: 0.1248000264 | C33: 26 | D33: 0.004854816659 | E33: 0.005774098993 | F33: 0.004768753128 | G33: 0.005125082603 | H33: 0.004922628944 | I33: 0.003948396808 | J33: 0.003674306817 | K33: 0.003580221782 | L33: 0.003671393451 | M33: 0.004419049574 | N33: 0.004097900138 | O33: 0.003631923096 | P33: 0.004112432338 | Q33: 0.004177062565 | R33: 0.004442378151 | S33: 0.004352232487 | T33: 0.004117635433 | U33: 0.004245799988 | V33: 0.004085159608 | W33: 0.004178300294 | X33: 0.003974731023 | Y33: 0.003680252996 | Z33: 0.003513383504 | AA33: 0.003257840085 | AB33: 0.001851087093 | AC33: 0.00241416215 | AD33: 0.002703258764 | AE33: 0.004088241289 | AF33: 0.004214592179 | AG33: 0.004386354097 | AH33: 0.004558830814 | AI33: 0.004693550882 | AJ33: 0.004657561997 | AK33: 0.004595210179 | AL33: 0.004493791146 | AM33: 0.004425211408 | AN33: 0.004400470054 | AO33: 0.004365237784 | AP33: 0.004332360682 | AQ33: 0.004317719049
A34: 0.1254000068 | C34: 27 | D34: 0.004007154831 | E34: 0.003960250871 | F34: 0.004803605978 | G34: 0.003853239238 | H34: 0.004113128391 | I34: 0.003961719301 | J34: 0.003179045432 | K34: 0.00294428142 | L34: 0.002882154106 | M34: 0.002961706553 | N34: 0.003565111367 | O34: 0.003307680224 | P34: 0.002938598334 | Q34: 0.00333438049 | R34: 0.003386970834 | S34: 0.003596669933 | T34: 0.003535812477 | U34: 0.003358346282 | V34: 0.003472140966 | W34: 0.003349553734 | X34: 0.003436508098 | Y34: 0.003276824713 | Z34: 0.003038980605 | AA34: 0.002900140683 | AB34: 0.002687411268 | AC34: 0.001526038983 | AD34: 0.001988559292 | AE34: 0.002224622079 | AF34: 0.003358605303 | AG34: 0.003455014035 | AH34: 0.003613611932 | AI34: 0.003760270933 | AJ34: 0.003875928156 | AK34: 0.00384737342 | AL34: 0.003796816017 | AM34: 0.00371374569 | AN34: 0.003657316461 | AO34: 0.003636567369 | AP34: 0.003606993561 | AQ34: 0.003579366639
A35: 0.1269999743 | C35: 28 | D35: 0.002385367964 | E35: 0.003265196262 | F35: 0.003291650003 | G35: 0.003876980799 | H35: 0.003088824198 | I35: 0.003306568968 | J35: 0.00318626773 | K35: 0.002544504743 | L35: 0.002367570285 | M35: 0.002322474418 | N35: 0.002386759426 | O35: =O69*(1-O$41-O$71)/SUM(O$42:O$70) -> 0.002874468305 | P35: 0.002673349265 | Q35: 0.002380075138 | R35: 0.002700796626 | S35: 0.002739246962 | T35: 0.002918914265 | U35: 0.002880860813 | V35: 0.002743624524 | W35: 0.002844090905 | X35: 0.002752210623 | Y35: 0.002830384811 | Z35: 0.002703270822 | AA35: 0.002506129867 | AB35: 0.002390026954 | AC35: 0.002213348863 | AD35: 0.001255774833 | AE35: 0.00163485234 | AF35: 0.001825768575 | AG35: 0.002750490127 | AH35: 0.002843565848 | AI35: 0.002977725063 | AJ35: 0.003102236623 | AK35: 0.003198628417 | AL35: 0.003175861314 | AM35: 0.003134746135 | AN35: 0.003066370331 | AO35: 0.003019526747 | AP35: 0.003002013306 | AQ35: 0.002977214395
A36: 0.1277999878 | C36: 29 | D36: 0.001913020326 | E36: 0.001938004481 | F36: 0.002707401299 | G36: 0.002648606965 | H36: 0.003098228908 | I36: 0.002475782363 | J36: 0.002651554467 | K36: 0.002542492427 | L36: 0.002040019359 | M36: 0.001902221488 | N36: 0.001866127662 | O36: 0.001918741869 | P36: 0.002316488361 | Q36: 0.002159042248 | R36: 0.001922331509 | S36: 0.002178052184 | T36: 0.002216830849 | U36: 0.002371738117 | V36: 0.002347197591 | W36: 0.00224138896 | X36: 0.002330816835 | Y36: 0.00226097032 | Z36: 0.002329035636 | AA36: 0.002223560312 | AB36: 0.002059982802 | AC36: 0.001963307859 | AD36: 0.001816594781 | AE36: 0.001029690369 | AF36: 0.001338170082 | AG36: 0.001491121106 | AH36: 0.002257823138 | AI36: 0.002337100953 | AJ36: 0.002450319092 | AK36: 0.002553567553 | AL36: 0.002633583225 | AM36: 0.002615362169 | AN36: 0.002581685419 | AO36: 0.00252516079 | AP36: 0.002486264086 | AQ36: 0.002471518222
A37: 0.6999999881 | C37: 30 | D37: 0.001630937052 | E37: =D37 -> 0.001630937052 | F37: =E37 -> 0.001630937052 | G37: 0.001630937052 | H37: 0.001630937052 | I37: 0.001630937052 | J37: 0.001630937052 | K37: 0.001630937052 | L37: 0.001630937052 | M37: 0.001630937052 | N37: 0.001630937052 | O37: 0.001630937052 | P37: 0.001630937052 | Q37: 0.001630937052 | R37: 0.001630937052 | S37: 0.001630937052 | T37: 0.001630937052 | U37: 0.001630937052 | V37: 0.001630937052 | W37: 0.001630937052 | X37: 0.001630937052 | Y37: 0.001630937052 | Z37: 0.001630937052 | AA37: 0.001630937052 | AB37: 0.001630937052 | AC37: 0.001630937052 | AD37: 0.001630937052 | AE37: 0.001630937052 | AF37: 0.001630937052 | AG37: 0.001630937052 | AH37: 0.001630937052 | AI37: 0.001630937052 | AJ37: 0.001630937052 | AK37: 0.001630937052 | AL37: 0.001630937052 | AM37: 0.001630937052 | AN37: 0.001630937052 | AO37: 0.001630937052 | AP37: 0.001630937052 | AQ37: 0.001630937052
C39: Intermediate table
C40: age | D40: 2011 | E40: 2012 | F40: 2013 | G40: 2014 | H40: 2015 | I40: 2016 | J40: 2017 | K40: 2018 | L40: 2019 | M40: 2020 | N40: 2021 | O40: 2022 | P40: 2023 | Q40: 2024 | R40: 2025 | S40: 2026 | T40: 2027 | U40: 2028 | V40: 2029 | W40: 2030 | X40: 2031 | Y40: 2032 | Z40: 2033 | AA40: 2034 | AB40: 2035 | AC40: 2036 | AD40: 2037 | AE40: 2038 | AF40: 2039 | AG40: 2040 | AH40: 2041 | AI40: 2042 | AJ40: 2043 | AK40: 2044 | AL40: 2045 | AM40: 2046 | AN40: 2047 | AO40: 2048 | AP40: 2049 | AQ40: 2050
C41: 0 | D41: =D7 -> 0.04956328548 | E41: =E2 -> 0.07477074966 | F41: =F2 -> 0.07623158499 | G41: 0.07945121432 | H41: 0.08210526495 | I41: 0.08360308844 | J41: 0.08198147834 | K41: 0.08020199622 | L41: 0.07779862596 | M41: 0.07602006545 | N41: 0.07507164842 | O41: 0.07405059175 | P41: 0.07313407464 | Q41: 0.07259009216 | R41: 0.07288333466 | S41: 0.07375082806 | T41: 0.07329807213 | U41: 0.07301879131 | V41: 0.07253951892 | W41: 0.07220507965 | X41: 0.07188589024 | Y41: 0.07159707296 | Z41: 0.07126366792 | AA41: 0.07098785261 | AB41: 0.07108319423 | AC41: 0.07112181443 | AD41: 0.07125880012 | AE41: 0.07144197662 | AF41: 0.07138187038 | AG41: 0.0711901928 | AH41: 0.07141456885 | AI41: 0.07141401581 | AJ41: 0.07141582068 | AK41: 0.07141555212 | AL41: 0.07141526341 | AM41: 0.07141499775 | AN41: 0.07141478381 | AO41: 0.07141462569 | AP41: 0.07141451781 | AQ41: 0.07141445481
C42: 1 | D42: =D8 -> 0.04397498868 | E42: =MAX(D7*(1-D$3*$A7),0) -> 0.04892872112 | F42: =MAX(E7*(1-E$3*$A7),0) -> 0.07395625211 | G42: 0.07522553482 | H42: 0.07838677554 | I42: 0.08104585144 | J42: 0.08253146422 | K42: 0.08089511663 | L42: 0.07916290959 | M42: 0.07680144062 | N42: 0.07504526092 | O42: 0.07410881635 | P42: 0.07311110658 | Q42: 0.07221498045 | R42: 0.07168135818 | S42: 0.07196839234 | T42: 0.07283959415 | U42: 0.07241181629 | V42: 0.07214561534 | W42: 0.07168324652 | X42: 0.07136717825 | Y42: 0.07106097863 | Z42: 0.07078113428 | AA42: 0.07044506207 | AB42: 0.07016791122 | AC42: 0.07025825893 | AD42: 0.07029169493 | AE42: 0.07042275193 | AF42: 0.07059676912 | AG42: 0.0705210124 | AH42: 0.07036188616 | AI42: 0.07058653643 | AJ42: 0.07059279814 | AK42: 0.0705958611 | AL42: 0.07059664058 | AM42: 0.07059722272 | AN42: 0.07059758242 | AO42: 0.07059711982 | AP42: 0.07059653996 | AQ42: 0.07059585873
C43: 2 | D43: 0.03351207429 | E43: =MAX(D8*(1-D$3*$A8),0) -> 0.04340542413 | F43: 0.04848049325 | G43: 0.07210236906 | H43: 0.07416307288 | I43: 0.07707228172 | J43: 0.07921173701 | K43: 0.08054066654 | L43: 0.07920368644 | M43: 0.07746591608 | N43: 0.07512546514 | O43: 0.07342018099 | P43: 0.07255395539 | Q43: 0.07158114898 | R43: 0.07070537645 | S43: 0.07012387993 | T43: 0.07035619911 | U43: 0.07122215147 | V43: 0.07076043455 | W43: 0.07053508707 | X43: 0.07009208115 | Y43: 0.06976386832 | Z43: 0.06947814889 | AA43: 0.06921525349 | AB43: 0.06896609904 | AC43: 0.06872112732 | AD43: 0.06882856834 | AE43: 0.06887896954 | AF43: 0.06900964219 | AG43: 0.06916389545 | AH43: 0.06925024967 | AI43: 0.06892375114 | AJ43: 0.06918585721 | AK43: 0.06915929352 | AL43: 0.06916270405 | AM43: 0.0691639834 | AN43: 0.06916409894 | AO43: 0.06915837048 | AP43: 0.06915600457 | AQ43: 0.06915323053
C44: 3 | D44: 0.05871223956 | E44: 0.03307303563 | F44: 0.04300228502 | G44: 0.04725786598 | H44: 0.07107279 | I44: 0.07290832064 | J44: 0.07531671469 | K44: 0.07728894195 | L44: 0.07884460802 | M44: 0.07749411357 | N44: 0.07576399144 | O44: 0.07348754134 | P44: 0.07186902448 | Q44: 0.07102514108 | R44: 0.07007446022 | S44: 0.06915887586 | T44: 0.06854303107 | U44: 0.06878410812 | V44: 0.06958810287 | W44: 0.06917121608 | X44: 0.06895998904 | Y44: 0.06850816565 | Z44: 0.06820078498 | AA44: 0.06793191076 | AB44: 0.06775289966 | AC44: 0.06753487065 | AD44: 0.06731346828 | AE44: 0.06743593563 | AF44: 0.06748743817 | AG44: 0.0675993822 | AH44: 0.06790828777 | AI44: 0.06782557978 | AJ44: 0.06754692627 | AK44: 0.06777176587 | AL44: 0.0677461583 | AM44: 0.0677500141 | AN44: 0.06775082885 | AO44: 0.06774498261 | AP44: 0.0677374934 | AQ44: 0.0677330089
C45: 4 | D45: 0.06261440303 | E45: 0.05747106333 | F45: 0.0325392202 | G45: 0.04156570196 | H45: 0.04618573769 | I45: 0.06929666726 | J45: 0.07066654877 | K45: 0.0728686018 | L45: 0.07503758509 | M45: 0.07651367963 | N45: 0.07517321532 | O45: 0.07350737348 | P45: 0.07135437477 | Q45: 0.06979224314 | R45: 0.06897652166 | S45: 0.06799445805 | T45: 0.06706862231 | U45: 0.06649632916 | V45: 0.06669512248 | W45: 0.06751485502 | X45: 0.06712789506 | Y45: 0.06691023377 | Z45: 0.0664883209 | AA45: 0.06619629014 | AB45: 0.06600863356 | AC45: 0.0658575742 | AD45: 0.06566084384 | AE45: 0.06545973053 | AF45: 0.06557671557 | AG45: 0.06560143128 | AH45: 0.06588143903 | AI45: 0.06602118772 | AJ45: 0.06598502743 | AK45: 0.06568365401 | AL45: 0.06590331789 | AM45: 0.06587943532 | AN45: 0.06588313028 | AO45: 0.06587797738 | AP45: 0.06587021324 | AQ45: 0.06586048082
C46: 5 | D46: 0.06443791155 | E46: 0.06083397199 | F46: 0.05618607652 | G46: 0.03121040677 | H46: 0.04030560392 | I46: 0.04469327582 | J46: 0.06666480381 | K46: 0.067841833 | L46: 0.07021234989 | M46: 0.07227590421 | N46: 0.07366813427 | O46: 0.07238968737 | P46: 0.07084665043 | Q46: 0.06878578471 | R46: 0.06728552477 | S46: 0.06644025627 | T46: 0.06546552604 | U46: 0.06460856379 | V46: 0.06402866399 | W46: 0.06426420647 | X46: 0.06507878525 | Y46: 0.06469851531 | Z46: 0.06450775806 | AA46: 0.0641036169 | AB46: 0.06389060938 | AC46: 0.06372955318 | AD46: 0.06359590602 | AE46: 0.06341733768 | AF46: 0.06321736065 | AG46: 0.06329719579 | AH46: 0.06350211728 | AI46: 0.0636192627 | AJ46: 0.06380062077 | AK46: 0.06373697309 | AL46: 0.06344740868 | AM46: 0.06366103949 | AN46: 0.06363824721 | AO46: 0.06363594026 | AP46: 0.06362872949 | AQ46: 0.06361855834
C47: 6 | D47: 0.06774229541 | E47: 0.06209719666 | F47: 0.05906463151 | G47: 0.05344004401 | H47: 0.03000669789 | I47: 0.03868385541 | J47: 0.04264624512 | K47: 0.06346154398 | L47: 0.06483142533 | M47: 0.06707839834 | N47: 0.06902192116 | O47: 0.07036317898 | P47: 0.06920809403 | Q47: 0.06775220053 | R47: 0.0657889619 | S47: 0.06429564616 | T47: 0.063468296 | U47: 0.06258137874 | V47: 0.06173997534 | W47: 0.06123404191 | X47: 0.06149069977 | Y47: 0.06226838389 | Z47: 0.06192599868 | AA47: 0.06174228015 | AB47: 0.06141881672 | AC47: 0.06123181575 | AD47: 0.06108651638 | AE47: 0.06096695315 | AF47: 0.06078634608 | AG47: 0.06055385888 | AH47: 0.06082061945 | AI47: 0.06087187999 | AJ47: 0.06103236964 | AK47: 0.06117951794 | AL47: 0.0611205546 | AM47: 0.06084474156 | AN47: 0.06105022319 | AO47: 0.06102259052 | AP47: 0.06101799985 | AQ47: 0.06100820242
C48: 7 | D48: 0.06859366787 | E48: 0.06470670243 | F48: 0.05984193432 | G48: 0.05566740777 | H48: 0.05090473776 | I48: 0.0285436866 | J48: 0.03658664015 | K48: 0.04022659627 | L48: 0.06010486956 | M48: 0.06139161551 | N48: 0.0634934315 | O48: 0.06534383845 | P48: 0.06668386063 | Q48: 0.06561354351 | R48: 0.06424294145 | S48: 0.0623232026 | T48: 0.06089837001 | U48: 0.06016864741 | V48: 0.05931216515 | W48: 0.05856728549 | X48: 0.05812532358 | Y48: 0.05837270523 | Z48: 0.05913478482 | AA48: 0.05880474 | AB48: 0.0586881611 | AC48: 0.05839470824 | AD48: 0.05822277483 | AE48: 0.05809023113 | AF48: 0.0579634809 | AG48: 0.05774337516 | AH48: 0.05772060194 | AI48: 0.05783816955 | AJ48: 0.05793660917 | AK48: 0.0580646334 | AL48: 0.05820720527 | AM48: 0.05815339294 | AN48: 0.05789191191 | AO48: 0.05808177882 | AP48: 0.05805298105 | AQ48: 0.05804553718
C49: 8 | D49: 0.0638466518 | E49: 0.06489700583 | F49: 0.06185576345 | G49: 0.05584648198 | H49: 0.05249774041 | I49: 0.04795868171 | J49: =MAX(I14*(1-I$3*$A14),0) -> 0.02673923894 | K49: 0.03417064984 | L49: 0.03773214405 | M49: 0.05637408613 | N49: 0.0575572022 | O49: 0.05953742369 | P49: 0.06134380849 | Q49: 0.06263094064 | R49: 0.06163730093 | S49: 0.06029182263 | T49: 0.05848943344 | U49: 0.05721532237 | V49: 0.05652065439 | W49: 0.05577284679 | X49: 0.05511698201 | Y49: 0.05471006483 | Z49: 0.05496843241 | AA49: 0.0556775155 | AB49: 0.05541869323 | AC49: 0.05531974582 | AD49: 0.05504582631 | AE49: 0.05488646467 | AF49: 0.05474500661 | AG49: 0.05457006066 | AH49: 0.05456808578 | AI49: 0.05441964661 | AJ49: 0.05458134485 | AK49: 0.05465172855 | AL49: 0.0547755431 | AM49: 0.05491271579 | AN49: 0.05486321341 | AO49: 0.05461107187 | AP49: 0.05478755884 | AQ49: 0.05475715001
C50: 9 | D50: 0.06237569377 | E50: 0.05981650081 | F50: 0.06152706804 | G50: 0.05714432547 | H50: 0.05212753078 | I50: 0.04897298163 | J50: 0.04448803247 | K50: 0.02472084629 | L50: 0.03173508602 | M50: 0.03504438908 | N50: 0.05233658111 | O50: 0.05344354341 | P50: 0.05535276753 | Q50: 0.05706428703 | R50: 0.05827491107 | S50: 0.05729370505 | T50: 0.05605134625 | U50: 0.05444737759 | V50: 0.05325847658 | W50: 0.05267197378 | X50: 0.05202550863 | Y50: 0.05142751468 | Z50: 0.051074788 | AA50: 0.05130436976 | AB50: 0.05201227368 | AC50: 0.05177843077 | AD50: 0.05168574137 | AE50: 0.05142984204 | AF50: 0.05126143785 | AG50: 0.05106793705 | AH50: 0.0511144243 | AI50: 0.05099530269 | AJ50: 0.05090790989 | AK50: 0.05103888329 | AL50: 0.05110814421 | AM50: 0.05122692746 | AN50: 0.05135675611 | AO50: 0.05130519022 | AP50: 0.05106671565 | AQ50: 0.05122838208
C51: 10 | D51: 0.05618436387 | E51: 0.05787194197 | F51: 0.05624733267 | G51: 0.05627155876 | H51: 0.05279623066 | I51: 0.04815234255 | J51: 0.04498803489 | K51: 0.04071627528 | L51: 0.02273345185 | M51: 0.02918847292 | N51: 0.03221863027 | O51: 0.04812411672 | P51: 0.04921023443 | Q51: 0.05100188948 | R51: 0.05259294614 | S51: 0.05365411469 | T51: 0.0527670159 | U51: 0.05170192326 | V51: 0.05022513762 | W51: 0.04919069343 | X51: 0.04870402182 | Y51: 0.04812417322 | Z51: 0.04759916111 | AA51: 0.04725854306 | AB51: 0.0475106464 | AC51: 0.04817146927 | AD51: 0.04795209861 | AE51: 0.04786393923 | AF51: 0.0476050729 | AG51: 0.04738344779 | AH51: 0.0474152824 | AI51: 0.04735109682 | AJ51: 0.04729205088 | AK51: 0.04719292282 | AL51: 0.04731808479 | AM51: 0.04738553117 | AN51: 0.04749742181 | AO51: 0.04761277402 | AP51: 0.04756223984 | AQ51: 0.0473377464
C52: 11 | D52: 0.0544784203 | E52: 0.05163414915 | F52: 0.05398549434 | G52: 0.05093959139 | H52: 0.05147296426 | I52: 0.04830444627 | J52: 0.04381487585 | K52: 0.04076934047 | L52: 0.03708391274 | M52: 0.02071099359 | N52: 0.02658042358 | O52: 0.02934442196 | P52: 0.04389675015 | Q52: 0.04492142693 | R52: 0.04657120329 | S52: 0.04797388388 | T52: 0.04896474339 | U52: 0.04823915894 | V52: 0.04727302333 | W52: 0.04598657164 | X52: 0.04509752284 | Y52: 0.04467254445 | Z52: 0.04416956229 | AA52: 0.04367148402 | AB52: 0.04339303243 | AC52: 0.04362739155 | AD52: 0.04422928924 | AE52: 0.04402361559 | AF52: 0.04391906084 | AG52: 0.04361305006 | AH52: 0.04361849187 | AI52: 0.04355046254 | AJ52: 0.04354202836 | AK52: 0.04347169239 | AL52: 0.04338450904 | AM52: 0.04350295808 | AN52: 0.04356688034 | AO52: 0.04366502482 | AP52: 0.04376835446 | AQ52: 0.04371846694
C53: 12 | D53: 0.05035556707 | E53: 0.04960407351 | F53: 0.04779311006 | G53: 0.04842458466 | H53: 0.0461436195 | I53: 0.04665521827 | J53: 0.04354691889 | K53: 0.03932555395 | L53: 0.03678492448 | M53: 0.03347244407 | N53: 0.01868598082 | O53: 0.0239852339 | P53: 0.02652200298 | Q53: 0.0397084334 | R53: 0.04064935394 | S53: 0.04209706529 | T53: 0.04339203893 | U53: 0.04437471847 | V53: 0.04372869727 | W53: 0.04291762546 | X53: 0.04181006204 | Y53: 0.04102534254 | Z53: 0.0406678134 | AA53: 0.04019217049 | AB53: 0.0397681981 | AC53: 0.03951555575 | AD53: 0.03972250032 | AE53: 0.04026472533 | AF53: 0.04005287988 | AG53: 0.03988796068 | AH53: 0.03981347788 | AI53: 0.0397309001 | AJ53: 0.03971795838 | AK53: 0.03969617224 | AL53: 0.03963609604 | AM53: 0.0395600588 | AN53: 0.03967007747 | AO53: 0.03972395688 | AP53: 0.03981079117 | AQ53: 0.03990161682
C54: 13 | D54: 0.04242185553 | E54: 0.04545278513 | F54: 0.04558041896 | G54: 0.04248596764 | H54: 0.04346581424 | I54: 0.04145913956 | J54: 0.04169518205 | K54: 0.03873328972 | L54: 0.03517073119 | M54: 0.03291449706 | N54: 0.02993753837 | O54: 0.01671517151 | P54: 0.02149228766 | Q54: 0.02378775956 | R54: 0.03562832758 | S54: 0.03643252735 | T54: 0.0377591657 | U54: 0.03900433687 | V54: 0.03990211106 | W54: 0.03938507859 | X54: 0.03871615755 | Y54: 0.03774229879 | Z54: 0.0370625705 | AA54: 0.03672091221 | AB54: 0.03631645575 | AC54: 0.03593275815 | AD54: 0.03569691515 | AE54: 0.03587708749 | AF54: 0.03634186143 | AG54: 0.03608139333 | AH54: 0.03612871197 | AI54: 0.03598303333 | AJ54: 0.03595529633 | AK54: 0.03593129958 | AL54: 0.03591564365 | AM54: 0.03586473976 | AN54: 0.03579798119 | AO54: 0.03589345914 | AP54: 0.03593965765 | AQ54: 0.03601495329
C55: 14 | D55: 0.03718027806 | E55: 0.03794417252 | F55: 0.04144861517 | G55: 0.04013884529 | H55: 0.03777150825 | I55: 0.0386958536 | J55: 0.03671497433 | K55: 0.03673672559 | L55: 0.03432264334 | M55: 0.03118431525 | N55: 0.02917100985 | O55: 0.02653662801 | P55: 0.01484334632 | Q55: 0.01910527332 | R55: 0.02115466912 | S55: 0.03164894094 | T55: 0.03239333343 | U55: 0.03365201375 | V55: 0.03477795818 | W55: 0.03564052588 | X55: 0.03524023037 | Y55: 0.03466839278 | Z55: 0.0338245586 | AA55: 0.03319618403 | AB55: 0.03291122947 | AC55: 0.03254680092 | AD55: 0.03219444268 | AE55: 0.03197558884 | AF55: 0.03211247004 | AG55: 0.03246034653 | AH55: 0.03241410803 | AI55: 0.03238723501 | AJ55: 0.03230115573 | AK55: =MAX(AJ20*(1-AJ$3*$A20),0) -> 0.03226567267 | AL55: 0.03224814278 | AM55: 0.03223749647 | AN55: 0.03219386068 | AO55: 0.03213019709 | AP55: 0.03221345776 | AQ55: 0.03225179386
C56: 15 | D56: 0.02840897304 | E56: 0.03238683181 | F56: 0.03384547863 | G56: 0.0355135621 | H56: 0.0347036862 | I56: 0.03274006072 | J56: 0.03337126222 | K56: 0.03147023557 | L56: 0.03169140569 | M56: 0.02963611614 | N56: 0.02691414755 | O56: 0.02518017391 | P56: 0.02295541071 | Q56: 0.01285707755 | R56: 0.01655750586 | S56: 0.0183114914 | T56: 0.02743337463 | U56: 0.02816202727 | V56: 0.02927891016 | W56: 0.03032206301 | X56: 0.03114270029 | Y56: 0.03082573227 | Z56: 0.03035630375 | AA56: 0.02959418429 | AB56: 0.02905879129 | AC56: 0.02880403696 | AD56: 0.02847324182 | AE56: 0.02815442012 | AF56: 0.02793541517 | AG56: 0.02798147474 | AH56: 0.02847597639 | AI56: 0.02837724808 | AJ56: 0.02839902968 | AK56: 0.02831541858 | AL56: 0.02828877011 | AM56: 0.02827717018 | AN56: 0.02827020067 | AO56: 0.02822842466 | AP56: 0.02817009281 | AQ56: 0.02823983654
C57: 16 | D57: 0.02740793131 | E57: 0.02451374769 | F57: 0.02866238482 | G57: 0.02871685449 | H57: 0.03040059894 | I57: 0.02979559822 | J57: 0.02796923102 | K57: 0.02832443342 | L57: 0.02688950743 | M57: 0.02710660232 | N57: 0.02533708818 | O57: 0.0230132501 | P57: 0.02157939284 | Q57: 0.01970065957 | R57: 0.01104045593 | S57: 0.01420046933 | T57: 0.015729199 | U57: 0.02363995922 | V57: 0.0242893101 | W57: 0.02530886464 | X57: 0.02627277259 | Y57: 0.02701545254 | Z57: 0.02676937132 | AA57: 0.0263390587 | AB57: 0.02568917408 | AC57: 0.02521863233 | AD57: 0.02498577163 | AE57: 0.02468831885 | AF57: 0.02438578298 | AG57: 0.02412806936 | AH57: 0.024339971 | AI57: 0.02472027633 | AJ57: 0.02467587676 | AK57: 0.02468809196 | AL57: 0.0246195816 | AM57: 0.02459993678 | AN57: 0.02459208404 | AO57: 0.02458289466 | AP57: 0.02454426069 | AQ57: 0.02449055671
C58: 17 | D58: 0.02503954535 | E58: 0.02344186724 | F58: 0.0215360419 | G58: 0.02409750318 | H58: 0.02435440744 | I58: 0.02586934711 | J58: 0.02522956297 | K58: 0.0235219642 | L58: 0.02398570239 | M58: 0.02279676214 | N58: 0.02297022921 | O58: 0.02147375439 | P58: 0.01955062544 | Q58: 0.01836025666 | R58: 0.01677205073 | S58: 0.009387357964 | T58: 0.01209490998 | U58: 0.01344256292 | V58: 0.02022327235 | W58: 0.02082758318 | X58: 0.02175672643 | Y58: 0.02261409784 | Z58: 0.02327989595 | AA58: 0.02304639286 | AB58: 0.02268485552 | AC58: 0.02211910761 | AD58: 0.02170260434 | AE58: 0.02149204126 | AF58: 0.02121185115 | AG58: 0.02088924892 | AH58: 0.02082262008 | AI58: 0.02096388538 | AJ58: 0.02132872445 | AK58: 0.0212849144 | AL58: 0.02129930514 | AM58: 0.02124344353 | AN58: 0.0212285652 | AO58: 0.02121903064 | AP58: 0.02120901064 | AQ58: 0.0211729659
C59: 18 | D59: 0.01748310814 | E59: 0.02124844976 | F59: 0.02046049372 | G59: 0.01795917562 | H59: 0.02026795965 | I59: 0.02056053493 | J59: 0.02173318073 | K59: 0.02104488048 | L59: 0.01976067306 | M59: 0.02017544475 | N59: 0.01916646647 | O59: 0.01931498877 | P59: 0.01810138567 | Q59: 0.01650663933 | R59: 0.01551164016 | S59: 0.01415159166 | T59: 0.007935375205 | U59: 0.01026086017 | V59: 0.01141650536 | W59: 0.01721743951 | X59: 0.01777926982 | Y59: 0.01859773944 | Z59: 0.01935375126 | AA59: 0.01990377867 | AB59: 0.0197110268 | AC59: 0.01939578708 | AD59: 0.01890129887 | AE59: 0.01853582877 | AF59: 0.01833369859 | AG59: 0.01803764916 | AH59: 0.01790113162 | AI59: 0.01780919146 | AJ59: 0.01796260435 | AK59: 0.01827071638 | AL59: 0.01823667315 | AM59: 0.01825194495 | AN59: 0.01820596337 | AO59: 0.01819080353 | AP59: 0.01818076589 | AQ59: 0.01816975068
C60: 19 | D60: 0.01420252201 | E60: 0.01473458202 | F60: 0.01844087471 | G60: 0.01694126453 | H60: 0.01499607829 | I60: 0.01699251498 | J60: 0.01715483315 | K60: 0.01799924037 | L60: 0.01755702063 | M60: 0.01650770909 | N60: 0.01684631408 | O60: 0.01600602095 | P60: 0.01617143531 | Q60: 0.01518073949 | R60: 0.01385268645 | S60: 0.01300060901 | T60: 0.01188420684 | U60: 0.00668899788 | V60: 0.008659306939 | W60: 0.009659171962 | X60: 0.0146078571 | Y60: 0.01510628785 | Z60: 0.01582137464 | AA60: 0.01644726821 | AB60: 0.0169199507 | AC60: 0.01675032906 | AD60: 0.01647238244 | AE60: 0.01604355277 | AF60: 0.01571328258 | AG60: 0.01549074617 | AH60: 0.01536286924 | AI60: 0.01521720208 | AJ60: 0.0151674497 | AK60: 0.01529451048 | AL60: 0.01555996974 | AM60: 0.01553359636 | AN60: 0.01554829938 | AO60: 0.01550704225 | AP60: 0.01549248235 | AQ60: 0.01548178713
C61: 20 | D61: 0.01200677712 | E61: 0.0118915057 | F61: 0.01271850383 | G61: 0.01516555973 | H61: 0.01404851972 | I61: 0.01248967138 | J61: 0.01408503754 | K61: 0.01411075045 | L61: 0.01491661198 | M61: 0.01457082958 | N61: 0.01369353319 | O61: 0.01397630885 | P61: 0.01331436208 | Q61: 0.01347547585 | R61: 0.0126588852 | S61: 0.01153607381 | T61: 0.01084922037 | U61: 0.009956404828 | V61: 0.005610913334 | W61: 0.007282871898 | X61: 0.008147453167 | Y61: 0.01234034579 | Z61: 0.01277788266 | AA61: 0.01336801224 | AB61: 0.01390065162 | AC61: 0.01429476524 | AD61: 0.01414227099 | AE61: 0.01389941565 | AF61: 0.01351952634 | AG61: 0.01319580883 | AH61: 0.01311658948 | AI61: 0.01298354162 | AJ61: 0.01288528453 | AK61: 0.01284027268 | AL61: 0.01295054023 | AM61: 0.01317763194 | AN61: 0.01315679782 | AO61: 0.01316745207 | AP61: 0.01313107053 | AQ61: 0.01311686101
C62: 21 | D62: 0.01062503048 | E62: 0.01000121232 | F62: 0.01022067171 | G62: 0.01040362036 | H62: 0.0125075447 | I62: 0.01163958961 | J62: 0.01029918961 | K62: 0.0115234275 | L62: 0.01163292146 | M62: 0.01231559638 | N62: 0.01202440614 | O62: 0.01130194608 | P62: 0.0115666772 | Q62: 0.01103875449 | R62: 0.01118049225 | S62: 0.01048881713 | T62: 0.009579459642 | U62: 0.009045520863 | V62: 0.008311989754 | W62: 0.004696934336 | X62: 0.006114861094 | Y62: 0.006851580084 | Z62: =MAX(Y27*(1-Y$3*$A27),0) -> 0.01039136105 | AA62: 0.01074749378 | AB62: 0.01124659603 | AC62: 0.01169001028 | AD62: 0.01201326742 | AE62: 0.01187777924 | AF62: 0.01165771598 | AG62: 0.01129899164 | AH62: 0.01112193481 | AI62: 0.01103432288 | AJ62: 0.01094398695 | AK62: 0.01085881654 | AL62: 0.01082321537 | AM62: 0.01091814125 | AN62: 0.01111090699 | AO62: 0.01109180685 | AP62: 0.01109953949 | AQ62: 0.01106724361
C63: 22 | D63: 0.01084176235 | E63: 0.008802814259 | F63: 0.008557901521 | G63: 0.008313922802 | H63: 0.008531621248 | I63: 0.01030676406 | J63: 0.00954666311 | K63: 0.008379011325 | L63: 0.009448261355 | M63: 0.009552917843 | N63: 0.0101087067 | O63: 0.009871009873 | P63: 0.009303790875 | Q63: 0.009539488004 | R63: 0.009110961216 | S63: 0.009215347321 | T63: 0.008665072609 | U63: 0.00794686372 | V63: 0.007514225055 | W63: 0.006924157425 | X63: 0.003924838367 | Y63: 0.005118068266 | Z63: 0.005742527393 | AA63: 0.008698991148 | AB63: 0.008999041103 | AC63: 0.009412912799 | AD63: 0.009777056506 | AE63: 0.01004091916 | AF63: 0.009913512344 | AG63: 0.009694336357 | AH63: 0.009477655015 | AI63: 0.009311733283 | AJ63: 0.009257071478 | AK63: 0.009179380203 | AL63: 0.009109969836 | AM63: 0.009081802842 | AN63: 0.009162576772 | AO63: 0.00932304218 | AP63: 0.009305941206 | AQ63: 0.0093110229
C64: 23 | D64: 0.009182830746 | E64: 0.008950094574 | F64: 0.007510105953 | G64: 0.006935401915 | H64: 0.006792049252 | I64: 0.007004924095 | J64: 0.008423070815 | K64: 0.007737684781 | L64: 0.006845052359 | M64: 0.007730959611 | N64: 0.007812852805 | O64: 0.008268497974 | P64: 0.008096956132 | Q64: 0.007646232073 | R64: 0.007845983357 | S64: 0.007483212488 | T64: 0.00758681332 | U64: 0.007164193061 | V64: 0.006579696159 | W64: 0.006239182105 | X64: 0.005767455037 | Y64: 0.003274685246 | Z64: 0.004276198796 | AA64: 0.00479210341 | AB64: 0.007260651396 | AC64: 0.007507737266 | AD64: 0.007847253612 | AE64: 0.008145396203 | AF64: 0.008353019919 | AG64: 0.008216313276 | AH64: 0.008105595603 | AI64: 0.007909744568 | AJ64: 0.007787236332 | AK64: 0.007739962233 | AL64: 0.007676748344 | AM64: 0.007620157158 | AN64: 0.007597547774 | AO64: 0.007664039217 | AP64: 0.007797345384 | AQ64: 0.00778184753
C65: 24 | D65: 0.006963929499 | E65: 0.007543702144 | F65: 0.007605091547 | G65: 0.006055511722 | H65: 0.00563671405 | I65: 0.005549230516 | J65: 0.005696771101 | K65: 0.006792338302 | L65: 0.00628991029 | M65: 0.005573597408 | N65: 0.006291920377 | O65: 0.006359403452 | P65: 0.006749790934 | Q65: 0.006622725699 | R65: 0.006259028273 | S65: 0.006413593737 | T65: 0.006132044368 | U65: 0.006244190527 | V65: 0.005905070157 | W65: 0.005439099973 | X65: 0.0051744168 | Y65: 0.004791520746 | Z65: 0.002724444287 | AA65: 0.003553203718 | AB65: 0.003982536536 | AC65: 0.006031213954 | AD65: 0.006231694538 | AE65: 0.006508987493 | AF65: 0.00674613223 | AG65: 0.006891611014 | AH65: 0.006839972794 | AI65: 0.006735422432 | AJ65: 0.006586459358 | AK65: 0.006483190111 | AL65: 0.006445339225 | AM65: 0.006393955685 | AN65: 0.006347640206 | AO65: 0.006327903672 | AP65: 0.006382517712 | AQ65: 0.006492512961
C66: 25 | D66: 0.007052596856 | E66: 0.005704284963 | F66: 0.006394731592 | G66: 0.006113648608 | H66: 0.004906502469 | I66: 0.004591819514 | J66: 0.004499820694 | K66: 0.004579966351 | L66: 0.005505201637 | M66: 0.005106701075 | N66: 0.004522951349 | O66: 0.005106533184 | P66: 0.005176460163 | Q66: 0.005505191177 | R66: 0.005405913419 | S66: 0.005101873837 | T66: 0.005240960454 | U66: 0.005033213999 | V66: 0.005133018459 | W66: 0.004868588704 | X66: 0.004499256157 | Y66: 0.004287906994 | Z66: 0.003976359076 | AA66: 0.002258050243 | AB66: 0.002945369939 | AC66: 0.00329965675 | AD66: 0.004993142789 | AE66: 0.005155455426 | AF66: 0.005376625931 | AG66: 0.005550845069 | AH66: 0.005722351563 | AI66: 0.005669115891 | AJ66: 0.005594308627 | AK66: 0.005469548785 | AL66: 0.005385071288 | AM66: 0.005354701346 | AN66: 0.005312710504 | AO66: 0.005273469933 | AP66: 0.005256434312 | AQ66: 0.005300956383
C67: 26 | D67: 0.004854816659 | E67: 0.005763265014 | F67: 0.004826062935 | G67: 0.005128048295 | H67: 0.004941234205 | I67: 0.003987435645 | J67: 0.003714654924 | K67: 0.003608752595 | L67: 0.003703171895 | M67: 0.004459030948 | N67: 0.0041342572 | O67: 0.003662143376 | P67: 0.004146929938 | Q67: 0.004212216467 | R67: 0.004483376005 | S67: 0.004396316436 | T67: 0.004159636578 | U67: 0.004292325511 | V67: 0.004128539296 | W67: 0.004222987844 | X67: 0.004018876026 | Y67: 0.003720699903 | Z67: 0.003551116744 | AA67: 0.003288820285 | AB67: 0.001867868364 | AC67: 0.002435211128 | AD67: 0.002725960225 | AE67: 0.004122025051 | AF67: 0.004249422298 | AG67: 0.004414268283 | AH67: 0.004599364646 | AI67: 0.004732866531 | AJ67: 0.004698883026 | AK67: 0.004636019995 | AL67: 0.00453372283 | AM67: 0.00446460287 | AN67: 0.004440015662 | AO67: 0.004404561854 | AP67: 0.004371492031 | AQ67: 0.004356668592
C68: 27 | D68: 0.004007154831 | E68: 0.003952820227 | F68: 0.004861334639 | G68: 0.003855468963 | H68: 0.004128674114 | I68: 0.004000889861 | J68: 0.003213955001 | K68: 0.00296774442 | L68: 0.002907101138 | M68: 0.002988502608 | N68: 0.003596741462 | O68: 0.003335202564 | P68: 0.002963249095 | Q68: 0.003362442432 | R68: 0.003418228537 | S68: 0.003633100757 | T68: 0.00357187885 | U68: 0.003395147078 | V68: 0.003509011103 | W68: 0.003385377715 | X68: 0.003474675376 | Y68: 0.003312837841 | Z68: 0.003071618825 | AA68: 0.002927719366 | AB68: 0.002711774344 | AC68: 0.001539344453 | AD68: 0.00200525884 | AE68: 0.002243005559 | AF68: 0.003386361398 | AG68: 0.003477001294 | AH68: 0.00364574156 | AI68: 0.003791768938 | AJ68: 0.003910314673 | AK68: 0.003881541738 | AL68: 0.003830554403 | AM68: 0.003746803968 | AN68: 0.003690183587 | AO68: 0.003669327241 | AP68: 0.003639573149 | AQ68: 0.003611655608
C69: 28 | D69: 0.002385367964 | E69: 0.003259069753 | F69: 0.003331208316 | G69: 0.003879224261 | H69: 0.003100498525 | I69: 0.003339261884 | J69: 0.003221256608 | K69: 0.002564781919 | L69: 0.002388063239 | M69: 0.002343487018 | N69: 0.002407935042 | O69: =MAX(N34*(1-N$3*$A34),0) -> 0.002898386002 | P69: 0.002695774955 | Q69: 0.002400105704 | R69: 0.002725721759 | S69: 0.002766992912 | T69: 0.002948688086 | U69: 0.002912429318 | V69: 0.002772758656 | W69: 0.002874508884 | X69: 0.00278277781 | Y69: 0.002861491452 | Z69: 0.002732303567 | AA69: 0.002529961731 | AB69: 0.002411694054 | AC69: 0.002232646959 | AD69: 0.001266320595 | AE69: 0.001648362175 | AF69: 0.001840857042 | AG69: 0.002767993888 | AH69: 0.002868848782 | AI69: 0.003002668053 | AJ69: 0.003129759092 | AK69: 0.003227035266 | AL69: 0.003204081916 | AM69: 0.00316265039 | AN69: 0.003093926814 | AO69: 0.003046728033 | AP69: 0.003029128507 | AQ69: 0.003004071432
C70: 29 | D70: 0.001913020326 | E70: =MAX(D35*(1-D$3*$A35),0) -> 0.001934368191 | F70: =MAX(E35*(1-E$3*$A35),0) -> 0.002739938242 | G70: 0.002650139614 | H70: 0.00310993878 | I70: 0.002500261074 | J70: 0.002680671579 | K70: 0.002562753567 | L70: 0.002057677134 | M70: 0.001919431846 | N70: 0.00188268417 | O70: 0.001934707217 | P70: 0.002335920484 | Q70: 0.002177212615 | R70: 0.001940072337 | S70: 0.002200113768 | T70: 0.002239443204 | U70: 0.00239772765 | V70: 0.002372122125 | W70: 0.002265360952 | X70: 0.002356703849 | Y70: 0.002285818952 | Z70: 0.002354049148 | AA70: 0.002244705101 | AB70: 0.002078657844 | AC70: 0.001980425857 | AD70: 0.001831850204 | AE70: 0.001038199362 | AF70: 0.001349228951 | AG70: 0.001500610407 | AH70: 0.002277898071 | AI70: 0.002356677738 | AJ70: 0.00247205787 | AK70: 0.00257624565 | AL70: 0.002656985161 | AM70: 0.002638643076 | AN70: 0.002604886195 | AO70: 0.0025479086 | AP70: 0.002508720865 | AQ70: 0.002493813444
C71: 30 | D71: 0.001630937052 | E71: =E37 -> 0.001630937052 | F71: =F37 -> 0.001630937052 | G71: 0.001630937052 | H71: 0.001630937052 | I71: 0.001630937052 | J71: 0.001630937052 | K71: 0.001630937052 | L71: 0.001630937052 | M71: 0.001630937052 | N71: 0.001630937052 | O71: 0.001630937052 | P71: 0.001630937052 | Q71: 0.001630937052 | R71: 0.001630937052 | S71: 0.001630937052 | T71: 0.001630937052 | U71: 0.001630937052 | V71: 0.001630937052 | W71: 0.001630937052 | X71: 0.001630937052 | Y71: 0.001630937052 | Z71: 0.001630937052 | AA71: 0.001630937052 | AB71: 0.001630937052 | AC71: 0.001630937052 | AD71: 0.001630937052 | AE71: 0.001630937052 | AF71: 0.001630937052 | AG71: 0.001630937052 | AH71: 0.001630937052 | AI71: 0.001630937052 | AJ71: 0.001630937052 | AK71: 0.001630937052 | AL71: 0.001630937052 | AM71: 0.001630937052 | AN71: 0.001630937052 | AO71: 0.001630937052 | AP71: 0.001630937052 | AQ71: 0.001630937052

Sheet 32 (hidden)
D1: 2011 | E1: 2012 | F1: 2013 | G1: 2014 | H1: 2015 | I1: 2016 | J1: 2017 | K1: 2018 | L1: 2019 | M1: 2020 | N1: 2021 | O1: 2022 | P1: 2023 | Q1: 2024 | R1: 2025 | S1: 2026 | T1: 2027 | U1: 2028 | V1: 2029 | W1: 2030 | X1: 2031 | Y1: 2032 | Z1: 2033 | AA1: 2034 | AB1: 2035 | AC1: 2036 | AD1: 2037 | AE1: 2038 | AF1: 2039 | AG1: 2040 | AH1: 2041 | AI1: 2042 | AJ1: 2043 | AK1: 2044 | AL1: 2045 | AM1: 2046 | AN1: 2047 | AO1: 2048 | AP1: 2049 | AQ1: 2050
C2: sales (age 0 pop) | D2: 0.05568430262 | E2: 0.07413472225 | F2: 0.07575414898 | G2: 0.07892101351 | H2: 0.08164465607 | I2: 0.0832494934 | J2: 0.08171115152 | K2: 0.08001721988 | L2: 0.07767256944 | M2: 0.07593302546 | N2: 0.07502016525 | O2: 0.07401247589 | P2: 0.07310667554 | Q2: 0.07259301272 | R2: 0.07285960981 | S2: 0.07376007697 | T2: 0.07329767048 | U2: 0.07302116261 | V2: 0.07251986184 | W2: 0.07220334413 | X2: 0.07189653185 | Y2: 0.07161769609 | Z2: 0.07127844773 | AA2: 0.07100002388 | AB2: 0.07109370855 | AC2: 0.07112982112 | AD2: 0.07126645502 | AE2: 0.07144572297 | AF2: 0.07138578835 | AG2: 0.07118934812 | AH2: 0.071414179 | AI2: 0.07141635701 | AJ2: 0.07140925591 | AK2: 0.07141031675 | AL2: 0.07141144731 | AM2: 0.07141249709 | AN2: 0.07141333175 | AO2: 0.07141395901 | AP2: 0.07141438173 | AQ2: 0.07141462814
C3: scrappage k factor | D3: 1.488734691 | E3: 1.266659162 | F3: 1.534568964 | G3: 1.55783649 | H3: 1.500362581 | I3: 1.490465478 | J3: 1.540850221 | K3: 1.506497108 | L3: 1.49040975 | M3: 1.491045937 | N3: 1.491338799 | O3: 1.475241483 | P3: 1.461308719 | Q3: 1.455663995 | R3: 1.459712098 | S3: 1.43669538 | T3: 1.405944838 | U3: 1.390493159 | V3: 1.372584197 | W3: 1.349357056 | X3: 1.334336869 | Y3: 1.325146762 | Z3: 1.335698373 | AA3: 1.343075698 | AB3: 1.349443417 | AC3: 1.35718644 | AD3: 1.364251766 | AE3: 1.375661561 | AF3: 1.40231412 | AG3: 1.352921799 | AH3: 1.348224597 | AI3: 1.337138979 | AJ3: 1.335056782 | AK3: 1.333355374 | AL3: 1.331942834 | AM3: 1.33092958 | AN3: 1.33133843 | AO3: 1.332028066 | AP3: 1.332963621
A5: default
A6: scrappage | C6: age | D6: 2011 | E6: 2012 | F6: 2013 | G6: 2014 | H6: 2015 | I6: 2016 | J6: 2017 | K6: 2018 | L6: 2019 | M6: 2020 | N6: 2021 | O6: 2022 | P6: 2023 | Q6: 2024 | R6: 2025 | S6: 2026 | T6: 2027 | U6: 2028 | V6: 2029 | W6: 2030 | X6: 2031 | Y6: 2032 | Z6: 2033 | AA6: 2034 | AB6: 2035 | AC6: 2036 | AD6: 2037 | AE6: 2038 | AF6: 2039 | AG6: 2040 | AH6: 2041 | AI6: 2042 | AJ6: 2043 | AK6: 2044 | AL6: 2045 | AM6: 2046 | AN6: 2047 | AO6: 2048 | AP6: 2049 | AQ6: 2050
A7: 0.008599996567 | C7: 0 | D7: 0.05568430262 | E7: =E41 -> 0.07413472225 | F7: =F41 -> 0.07575414898 | G7: 0.07892101351 | H7: 0.08164465607 | I7: 0.0832494934 | J7: 0.08171115152 | K7: 0.08001721988 | L7: 0.07767256944 | M7: 0.07593302546 | N7: 0.07502016525 | O7: 0.07401247589 | P7: 0.07310667554 | Q7: 0.07259301272 | R7: 0.07285960981 | S7: 0.07376007697 | T7: 0.07329767048 | U7: 0.07302116261 | V7: 0.07251986184 | W7: 0.07220334413 | X7: 0.07189653185 | Y7: 0.07161769609 | Z7: 0.07127844773 | AA7: 0.07100002388 | AB7: 0.07109370855 | AC7: 0.07112982112 | AD7: 0.07126645502 | AE7: 0.07144572297 | AF7: 0.07138578835 | AG7: 0.07118934812 | AH7: 0.071414179 | AI7: 0.07141635701 | AJ7: 0.07140925591 | AK7: 0.07141031675 | AL7: 0.07141144731 | AM7: 0.07141249709 | AN7: 0.07141333175 | AO7: 0.07141395901 | AP7: 0.07141438173 | AQ7: 0.07141462814
A8: 0.008700013161 | C8: 1 | D8: 0.04818771755 | E8: =E42*(1-E$41-E$71)/SUM(E$42:E$70) -> 0.05461410539 | F8: =F42*(1-F$41-F$71)/SUM(F$42:F$70) -> 0.07199792186 | G8: 0.07420288152 | H8: 0.07713288937 | I8: 0.0794529232 | J8: 0.08104294527 | K8: 0.07980059581 | L8: 0.07816779054 | M8: 0.07590592689 | N8: 0.07423727797 | O8: 0.07340089967 | P8: 0.07246514939 | Q8: 0.07155016442 | R8: 0.07103947555 | S8: 0.07122628003 | T8: 0.07212086364 | U8: 0.07160466379 | V8: 0.07139476428 | W8: 0.07092566373 | X8: 0.0706140478 | Y8: 0.07032126767 | Z8: 0.07006834968 | AA8: 0.06981292624 | AB8: 0.06956308901 | AC8: 0.06967468717 | AD8: 0.06972220357 | AE8: 0.06986186918 | AF8: 0.0700241244 | AG8: 0.07008239034 | AH8: 0.06974810588 | AI8: 0.06999413768 | AJ8: 0.0699718944 | AK8: 0.0699673561 | AL8: 0.06997069477 | AM8: 0.06997286521 | AN8: 0.06996949895 | AO8: 0.0699691991 | AP8: 0.06996811292 | AQ8: 0.06996892398
A9: 0.008800029755 | C9: 2 | D9: 0.03715573678 | E9: =E43*(1-E$41-E$71)/SUM(E$42:E$70) -> 0.04725446885 | F9: 0.0530331583 | G9: 0.07051260425 | H9: 0.07251020373 | I9: 0.07505086272 | J9: 0.07733532415 | K9: 0.0791356521 | L9: 0.07794427308 | M9: 0.07637834935 | N9: 0.07419957382 | O9: 0.07262393566 | P9: 0.07185561892 | Q9: 0.0709117994 | R9: 0.07000862155 | S9: 0.06943668079 | T9: 0.06963324427 | U9: 0.07044500998 | V9: 0.06999996083 | W9: 0.0698155989 | X9: 0.06935501972 | Y9: 0.06905755866 | Z9: 0.068790744 | AA9: 0.06861843377 | AB9: 0.06839072092 | AC9: 0.06816530925 | AD9: 0.06828648583 | AE9: 0.06833861662 | AF9: 0.06846225174 | AG9: 0.06873582874 | AH9: 0.06865415812 | AI9: 0.06835186744 | AJ9: 0.06856916268 | AK9: 0.06854975701 | AL9: 0.06854757537 | AM9: 0.0685518973 | AN9: 0.06854972512 | AO9: 0.06854532956 | AP9: 0.06854336485 | AQ9: 0.06854268305
A10: 0.01419997215 | C10: 3 | D10: 0.06677140671 | E10: 0.03643064733 | F10: 0.04588068754 | G10: 0.05193100428 | H10: 0.06889322374 | I10: 0.07054222866 | J10: 0.07303955567 | K10: 0.07550349161 | L10: 0.07728299625 | M10: 0.07614844674 | N10: 0.07465009576 | O10: 0.0725760816 | P10: 0.07108438568 | Q10: 0.07030492543 | R10: 0.06937377883 | S10: 0.06841896611 | T10: 0.06787379301 | U10: 0.06800551218 | V10: 0.06885660086 | W10: 0.0684421361 | X10: 0.06826021422 | Y10: 0.06781712421 | Z10: 0.0675454814 | AA10: 0.06735815989 | AB10: 0.06721142576 | AC10: 0.06700734593 | AD10: 0.06679800398 | AE10: 0.06692214732 | AF10: 0.06696019025 | AG10: 0.06719314933 | AH10: 0.06732581861 | AI10: 0.06727063864 | AJ10: 0.06695126617 | AK10: 0.06716645977 | AL10: 0.06714968102 | AM10: 0.06714858314 | AN10: 0.06714861309 | AO10: 0.06714540722 | AP10: 0.06713946023 | AQ10: 0.0671379038
A11: 0.0191000104 | C11: 4 | D11: 0.07033579145 | E11: 0.06493507907 | F11: 0.03512687155 | G11: 0.04454978953 | H11: 0.05030561034 | I11: 0.06647313532 | J11: 0.0680918675 | K11: 0.07070798993 | L11: 0.0731279686 | M11: 0.07488667704 | N11: 0.07381818726 | O11: 0.07242091212 | P11: 0.07046420217 | Q11: 0.06899436589 | R11: 0.06823240616 | S11: 0.06725717178 | T11: 0.06635348933 | U11: 0.06577763131 | V11: 0.06596681506 | W11: 0.06681912147 | X11: 0.06642390072 | Y11: 0.06625994884 | Z11: 0.06585195251 | AA11: 0.06565611713 | AB11: 0.06549277026 | AC11: 0.06536628079 | AD11: 0.06517622267 | AE11: 0.06497528355 | AF11: 0.0650792195 | AG11: 0.06521506293 | AH11: 0.06532816831 | AI11: 0.06548302429 | AJ11: 0.06541075503 | AK11: 0.06510324626 | AL11: 0.06531528793 | AM11: 0.06530049593 | AN11: 0.065295709 | AO11: 0.065294541 | AP11: 0.06528957663 | AQ11: 0.06528381167
A12: 0.0243999958 | C12: 5 | D12: 0.07434248303 | E12: 0.06789168224 | F12: 0.06221546475 | G12: 0.0338457322 | H12: 0.04281854374 | I12: 0.04817385463 | J12: 0.06368537389 | K12: 0.06540941088 | L12: 0.06796675733 | M12: 0.07033179687 | N12: 0.07205316432 | O12: 0.07107919707 | P12: 0.06979439418 | Q12: 0.0678923179 | R12: 0.06647278338 | S12: 0.06566745565 | T12: 0.06475801756 | U12: 0.06385225107 | V12: 0.06336222737 | W12: 0.06357574093 | X12: 0.06441159622 | Y12: 0.06404773077 | Z12: 0.0639141118 | AA12: 0.06358291605 | AB12: 0.06340957015 | AC12: 0.06326540838 | AD12: 0.06314887056 | AE12: 0.06296557679 | AF12: 0.06275155969 | AG12: 0.06293873523 | AH12: 0.0629764163 | AI12: 0.06311209108 | AJ12: 0.06324730503 | AK12: 0.06318112163 | AL12: 0.06288732748 | AM12: 0.06309408143 | AN12: 0.06307652715 | AO12: 0.06307061475 | AP12: 0.0630674795 | AQ12: 0.06306239915
A13: 0.03009998798 | C13: 6 | D13: 0.07696902364 | E13: 0.07117637451 | F13: 0.0646007258 | G13: 0.05944407916 | H13: 0.03225363103 | I13: 0.040668381 | J13: 0.04577826102 | K13: 0.06066176355 | L13: 0.06235671394 | M13: 0.06483645257 | N13: 0.06712018399 | O13: 0.06881520409 | P13: 0.06795021511 | Q13: 0.06671118133 | R13: 0.06489193481 | S13: 0.06346485315 | T13: 0.06273234583 | U13: 0.06183975426 | V13: 0.0610418959 | W13: 0.06060936886 | X13: 0.06083519695 | Y13: 0.06165670388 | Z13: 0.06133504839 | AA13: 0.06126354028 | AB13: 0.0609586846 | AC13: 0.06080338261 | AD13: 0.06066793104 | AE13: 0.06055407479 | AF13: 0.06035529999 | AG13: 0.06022417448 | AH13: 0.06033085983 | AI13: 0.06039388753 | AJ13: 0.06051400477 | AK13: 0.06064783575 | AL13: 0.06058806644 | AM13: 0.06030865328 | AN13: 0.06050414181 | AO13: 0.06048593342 | AP13: 0.06047810475 | AQ13: 0.06047450674
A14: 0.03619998693 | C14: 7 | D14: 0.07811539094 | E14: 0.07304215856 | F14: 0.06722162292 | G14: 0.06116219318 | H14: 0.05612494442 | I14: 0.03036205372 | J14: 0.03830530665 | K14: 0.04320689718 | L14: 0.05731509859 | M14: 0.05896037428 | N14: 0.06133004389 | O14: 0.06353840372 | P14: 0.06521204499 | Q14: 0.06438748262 | R14: 0.06321445428 | S14: 0.0614210089 | T14: 0.06011366154 | U14: 0.05940823955 | V14: 0.05863296315 | W14: 0.05791719186 | X14: 0.05753543754 | Y14: 0.05777545703 | Z14: 0.05858440065 | AA14: 0.05832874654 | AB14: 0.05827015351 | AC14: 0.05798831087 | AD14: 0.05784047959 | AE14: 0.05770711763 | AF14: 0.05757282423 | AG14: 0.05744502282 | AH14: 0.05726839575 | AI14: 0.05739707347 | AJ14: 0.05745145998 | AK14: 0.05757043188 | AL14: 0.05770187351 | AM14: 0.05764772797 | AN14: 0.05737958798 | AO14: 0.05756412931 | AP14: 0.05754450776 | AQ14: 0.05753616652
A15: 0.04240000248 | C15: 8 | D15: 0.07242555606 | E15: 0.07342526226 | F15: 0.06842960054 | G15: 0.06301897626 | H15: 0.0571713682 | I15: 0.05232697491 | J15: =J49*(1-J$41-J$71)/SUM(J$42:J$70) -> 0.02832561867 | K15: 0.03579735619 | L15: 0.04043023479 | M15: 0.05367751703 | N15: 0.0552406475 | O15: 0.05750426762 | P15: 0.05964451719 | Q15: 0.06121671555 | R15: 0.06044596501 | S15: 0.05927599905 | T15: 0.05764483456 | U15: 0.05641850934 | V15: 0.05582889762 | W15: 0.05514570793 | X15: 0.05450809855 | Y15: 0.05417829728 | Z15: 0.05443436755 | AA15: 0.05523997004 | AB15: 0.05500508306 | AC15: 0.05495518322 | AD15: 0.05468645156 | AE15: 0.05454019629 | AF15: 0.05438573287 | AG15: 0.05430732093 | AH15: 0.05415569018 | AI15: 0.05401649702 | AJ15: 0.05413662362 | AK15: 0.05419310498 | AL15: 0.05430982474 | AM15: 0.05443690428 | AN15: 0.05438402304 | AO15: 0.05412954988 | AP15: 0.05430122014 | AQ15: 0.05428152897
A16: 0.04850000143 | C16: 9 | D16: 0.07021936678 | E16: 0.0674128948 | F16: 0.06822233327 | G16: 0.06350517211 | H16: 0.05830403341 | I16: 0.05277827515 | J16: 0.04834047048 | K16: 0.02620324013 | L16: 0.03316594542 | M16: 0.03749443312 | N16: 0.04979963597 | O16: 0.05128848761 | P16: 0.05345859163 | Q16: 0.05545467874 | R16: 0.05692177831 | S16: 0.05613840954 | T16: 0.05510897286 | U16: 0.05360455495 | V16: 0.05253798768 | W16: 0.05203820444 | X16: 0.05144325505 | Y16: 0.05088142033 | Z16: 0.05060471178 | AA16: 0.0508801992 | AB16: 0.05163636479 | AC16: 0.05141954769 | AD16: 0.05136740395 | AE16: 0.05110730638 | AF16: 0.05093970397 | AG16: 0.05083111703 | AH16: 0.05074608595 | AI16: 0.0506316503 | AJ16: 0.05050422265 | AK16: 0.05062210891 | AL16: 0.05067971377 | AM16: 0.05079223779 | AN16: 0.05090975818 | AO16: 0.05085873739 | AP16: 0.05061826427 | AQ16: 0.05077736506
A17: 0.0544000268 | C17: 10 | D17: 0.06465091738 | E17: 0.06472586121 | F17: 0.06212457169 | G17: 0.06267891174 | H17: 0.05815604006 | I17: 0.05329783137 | J17: 0.04828419024 | K17: 0.04426872524 | L17: 0.02403875845 | M17: 0.03045913704 | N17: 0.03444794246 | O17: 0.04578773421 | P17: 0.04722241748 | Q17: 0.04923097595 | R17: 0.0510760199 | S17: 0.0523635844 | T17: 0.05170487945 | U17: 0.05077906643 | V17: 0.0494676523 | W17: 0.04853538494 | X17: 0.04812056716 | Y17: 0.0476061952 | Z17: 0.04711826044 | AA17: 0.04689206174 | AB17: 0.04714782029 | AC17: 0.04784896387 | AD17: 0.04764039675 | AE17: 0.04758145943 | AF17: 0.04730806999 | AG17: 0.04717730823 | AH17: 0.0470819905 | AI17: 0.04703007309 | AJ17: 0.0469301327 | AK17: 0.04681784677 | AL17: 0.04693211632 | AM17: 0.04698909982 | AN17: 0.04709253062 | AO17: 0.04719990421 | AP17: 0.04715005215 | AQ17: 0.04692548641
A18: 0.06010001898 | C18: 11 | D18: 0.05495452894 | E18: 0.0590288756 | F18: 0.05917337856 | G18: 0.05651829938 | H18: 0.05682868466 | I18: 0.0526550088 | J18: 0.04829731485 | K18: 0.04378273782 | L18: 0.04022254181 | M18: 0.02186759906 | N18: 0.02771890268 | O18: 0.03137237051 | P18: 0.04176253813 | Q18: 0.04308442802 | R18: 0.04492472096 | S18: 0.04655045404 | T18: 0.04778874393 | U18: 0.0472183131 | V18: 0.04644797968 | W18: 0.04530248618 | X18: 0.04449912003 | Y18: 0.04415650459 | Z18: 0.04371691908 | AA18: 0.04329348197 | AB18: 0.04308392238 | AC18: 0.04331743693 | AD18: 0.04395223748 | AE18: 0.04374877645 | AF18: 0.04366128963 | AG18: 0.04342494954 | AH18: 0.04332437236 | AI18: 0.04326291509 | AJ18: 0.04322410322 | AK18: 0.04313822965 | AL18: 0.04304008867 | AM18: 0.04314883746 | AN18: 0.04320070041 | AO18: 0.04329421662 | AP18: 0.04339038041 | AQ18: 0.04334277224
A19: 0.06540000439 | C19: 12 | D19: 0.04327336333 | E19: 0.04971238371 | F19: 0.05354664689 | G19: 0.05331965636 | H19: 0.05074592916 | I19: 0.05097407133 | J19: 0.04727366751 | K19: 0.04337480648 | L19: 0.03940887935 | M19: 0.03625141012 | N19: 0.01971623485 | O19: 0.02501057386 | P19: 0.02835281803 | Q19: 0.03775819941 | R19: 0.03896154638 | S19: 0.04057413258 | T19: 0.04210608842 | U19: 0.04326328461 | V19: 0.04282059685 | W19: 0.0421774165 | X19: 0.04119030588 | Y19: 0.04049850928 | Z19: 0.04021898263 | AA19: 0.03983845878 | AB19: 0.03944906498 | AC19: 0.03925510577 | AD19: 0.0394574 | AE19: 0.04002286942 | AF19: 0.03980413095 | AG19: 0.03973069978 | AH19: 0.03954650556 | AI19: 0.03947994799 | AJ19: 0.03943498215 | AK19: 0.03940561435 | AL19: 0.0393324095 | AM19: 0.03924666234 | AN19: 0.03934561264 | AO19: 0.03939136307 | AP19: 0.03947413206 | AQ19: 0.03955993916
A20: 0.07090002298 | C20: 13 | D20: 0.02733770114 | E20: 0.03880627188 | F20: 0.04476772867 | G20: 0.04781725653 | H20: 0.0474378699 | I20: 0.04512014723 | J20: 0.04536743791 | K20: 0.04207339413 | L20: 0.03869894142 | M20: 0.03520991354 | N20: 0.03240122896 | O20: 0.01763536625 | P20: 0.02240941287 | Q20: 0.02541660018 | R20: 0.03385631671 | S20: 0.03489002911 | T20: 0.03639448782 | U20: 0.03780850319 | V20: 0.03891841884 | W20: 0.03857524849 | X20: 0.03805044494 | Y20: 0.0371989464 | Z20: 0.03660569181 | AA20: 0.03636874679 | AB20: 0.03601975552 | AC20: 0.03566351775 | AD20: 0.0354770196 | AE20: 0.03564687965 | AF20: 0.03612474945 | AG20: 0.03592680236 | AH20: 0.03589979715 | AI20: 0.03575710105 | AJ20: 0.03570941742 | AK20: 0.03567465596 | AL20: 0.03565307849 | AM20: 0.03559054956 | AN20: 0.03551299409 | AO20: 0.03560104614 | AP20: 0.03564002909 | AQ20: 0.03571301528
A21: 0.08660000563 | C21: 14 | D21: 0.03045798442 | E21: 0.02429325333 | F21: 0.03468094712 | G21: 0.03960260698 | H21: 0.04213659045 | I21: 0.04179289574 | J21: 0.03979263833 | K21: 0.03999632823 | L21: 0.03719280033 | M21: 0.03426158255 | N21: 0.03118438005 | O21: 0.02871816554 | P21: 0.01565934532 | Q21: 0.01991017579 | R21: 0.02258842258 | S21: 0.03004920233 | T21: 0.03102297711 | U21: 0.03240156779 | V21: 0.03372532187 | W21: 0.03476916467 | X21: 0.03451747006 | Y21: 0.0340870396 | Z21: 0.03335498037 | AA21: 0.03283491241 | AB21: 0.03261633926 | AC21: 0.03229820854 | AD21: 0.03196707639 | AE21: 0.03178684649 | AF21: 0.03190746097 | AG21: 0.03232895702 | AH21: 0.0321976722 | AI21: 0.03219585198 | AJ21: 0.03208147424 | AK21: =AK55*(1-AK$41-AK$71)/SUM(AK$42:AK$70) -> 0.03204444486 | AL21: 0.0320180948 | AM21: 0.03200236094 | AN21: 0.03194648081 | AO21: 0.03187545005 | AP21: 0.03195217281 | AQ21: 0.03198525901
A22: 0.09210002422 | C22: 15 | D22: 0.02029805923 | E22: 0.02635877692 | F22: 0.02123639306 | G22: 0.02985020465 | H22: 0.03393832714 | I22: 0.03614391704 | J22: 0.0358938421 | K22: 0.03412878284 | L22: 0.03442042032 | M22: 0.03206660323 | N22: 0.0295501542 | O22: 0.02691596398 | P22: 0.02484071889 | Q22: 0.01355682689 | R22: 0.01724378131 | S22: 0.01953587547 | T22: 0.02604766508 | U22: 0.02694222699 | V22: 0.02820235082 | W22: 0.02941044577 | X22: 0.03038292781 | Y22: 0.03020659036 | Z22: 0.02986281387 | AA22: 0.0292260109 | AB22: 0.02876083422 | AC22: 0.02856125539 | AD22: 0.02826802239 | AE22: 0.02796282516 | AF22: 0.02777142842 | AG22: 0.02785672141 | AH22: 0.02829256361 | AI22: 0.02819987672 | AJ22: 0.02821637872 | AK22: 0.02812233503 | AL22: 0.02809506266 | AM22: 0.02807592373 | AN22: 0.02806290047 | AO22: 0.02801243022 | AP22: 0.0279477481 | AQ22: 0.02801283824
A23: 0.09719997644 | C23: 16 | D23: 0.02189940532 | E23: 0.01740111009 | F23: 0.02286170484 | G23: 0.01810043932 | H23: 0.02532743097 | I23: 0.02883550791 | J23: 0.03075003007 | K23: 0.03048385212 | L23: 0.02909099929 | M23: 0.02939701741 | N23: 0.027396576 | O23: 0.02526519429 | P23: 0.0230652714 | Q23: 0.02130756712 | R23: 0.01163371835 | S23: 0.01477643886 | T23: 0.01678153051 | U23: 0.02242219023 | V23: 0.02324664011 | W23: 0.02438337993 | X23: 0.02548425664 | Y23: 0.02636778739 | Z23: 0.02624537221 | AA23: 0.02594876567 | AB23: 0.02538572342 | AC23: 0.02497343527 | AD23: 0.02478592222 | AE23: 0.02451672641 | AF23: 0.02422062576 | AG23: 0.02403291925 | AH23: 0.02417322489 | AI23: 0.02457160535 | AJ23: 0.02450875499 | AK23: 0.02452886409 | AL23: 0.02445192019 | AM23: 0.02443190099 | AN23: 0.02441610567 | AO23: 0.02440342969 | AP23: 0.02435733152 | AQ23: 0.02429903812
A24: 0.1017000079 | C24: 17 | D24: 0.0137463442 | E24: 0.01860872117 | F24: 0.01498209796 | G24: 0.01930814228 | H24: 0.01521548284 | I24: 0.02132824598 | J24: 0.02431613277 | K24: 0.02587616451 | L24: 0.02575230116 | M24: 0.02462648792 | N24: 0.0248943866 | O24: 0.02321737572 | P24: 0.02146216231 | Q24: 0.01961426786 | R24: 0.01812821384 | S24: 0.00988335533 | T24: 0.01258593609 | U24: 0.01432678629 | V24: 0.01918925779 | W24: 0.01993768495 | X24: 0.02096225479 | Y24: 0.02194489039 | Z24: 0.02273362736 | AA24: 0.02262831114 | AB24: 0.02236293008 | AC24: 0.02186954903 | AD24: 0.0215009175 | AE24: 0.02132565774 | AF24: 0.02106510985 | AG24: 0.02078798268 | AH24: 0.02069066574 | AI24: 0.02082921227 | AJ24: 0.02118931018 | AK24: 0.02114037573 | AL24: 0.02116212404 | AM24: 0.02109913002 | AN24: 0.02108273082 | AO24: 0.02106787746 | AP24: 0.02105493298 | AQ24: 0.0210132551
A25: 0.1055999994 | C25: 18 | D25: 0.01364507151 | E25: 0.01158927552 | F25: 0.01591768616 | G25: 0.01255062333 | H25: 0.01609660912 | I25: 0.01271168882 | J25: 0.01784441219 | K25: 0.02029516294 | L25: 0.02168617902 | M25: 0.02162918911 | N25: 0.02069089521 | O25: 0.02093129618 | P25: 0.01956974219 | Q25: 0.01811112749 | R25: 0.01656024756 | S25: 0.01528282467 | T25: 0.008354958474 | U25: 0.01066616742 | V25: 0.01217237507 | W25: 0.01634053048 | X25: 0.01702052589 | Y25: 0.01792638376 | Z25: 0.01879081275 | AA25: 0.01946515437 | AB25: 0.01936576527 | AC25: 0.01913079068 | AD25: 0.01869615323 | AE25: 0.01836832698 | AF25: 0.01819236038 | AG25: 0.01794758255 | AH25: 0.01777154321 | AI25: 0.01770393579 | AJ25: 0.01783783318 | AK25: 0.01815096199 | AL25: 0.01811299713 | AM25: 0.01813469688 | AN25: 0.01808157469 | AO25: 0.01806642769 | AP25: 0.0180519044 | AQ25: 0.01803907666
A26: 0.1093000174 | C26: 19 | D26: 0.007345127859 | E26: 0.01142518536 | F26: 0.009857120292 | G26: 0.01323981162 | H26: 0.01038753548 | I26: 0.01335496336 | J26: 0.01056244898 | K26: 0.01478748891 | L26: 0.01689086478 | M26: 0.01808929459 | N26: 0.0180480352 | O26: 0.01727770963 | P26: 0.01752339965 | Q26: 0.0164036395 | R26: 0.01518925872 | S26: 0.01386763156 | T26: 0.01283465926 | U26: 0.007035251587 | V26: 0.009004989224 | W26: 0.01030084561 | X26: 0.01386459855 | Y26: 0.01446787991 | Z26: 0.01525818954 | AA26: 0.01599222166 | AB26: 0.01655760989 | AC26: 0.01646575247 | AD26: 0.01625437639 | AE26: 0.01587353337 | AF26: 0.01557179608 | AG26: 0.01540111514 | AH26: 0.01524942586 | AI26: 0.01511353296 | AJ26: 0.01506988406 | AK26: 0.01518799731 | AL26: 0.01545812195 | AM26: 0.01542851225 | AN26: 0.0154478128 | AO26: 0.01540159635 | AP26: 0.01538710866 | AQ26: 0.01537318398
A27: 0.1122000217 | C27: 20 | D27: 0.007015263048 | E27: 0.006109968897 | F27: 0.009664980038 | G27: 0.008143275664 | H27: 0.0108823445 | I27: 0.008561433843 | J27: 0.01102433319 | K27: 0.008693397486 | L27: 0.01222546636 | M27: 0.01399712572 | N27: 0.01499540704 | O27: 0.0149721127 | P27: 0.01437114223 | Q27: 0.01459445608 | R27: 0.01366968477 | S27: 0.01263834176 | T27: 0.01157318584 | U27: 0.01074133924 | V27: 0.005903744742 | W27: 0.007575190753 | X27: 0.008689165215 | Y27: 0.01171753347 | Z27: 0.01224425303 | AA27: 0.01291101073 | AB27: 0.01352466198 | AC27: 0.01399614406 | AD27: 0.01390803507 | AE27: 0.01371901372 | AF27: 0.01337669217 | AG27: 0.01310233409 | AH27: 0.01300935878 | AI27: 0.01289320437 | AJ27: 0.012790777 | AK27: 0.01275744576 | AL27: 0.01286046659 | AM27: 0.01309159871 | AN27: 0.01306727973 | AO27: 0.01308277981 | AP27: 0.01304224961 | AQ27: 0.01302860177
A28: 0.1151999831 | C28: 21 | D28: 0.007484033284 | E28: 0.005805483839 | F28: 0.005146608016 | G28: 0.007941848272 | H28: 0.006656848592 | I28: 0.008922575782 | J28: 0.007030849946 | K28: 0.009024793962 | L28: 0.007149624099 | M28: 0.01007869281 | N28: 0.01154319778 | O28: 0.01237546522 | P28: 0.01238988709 | Q28: 0.01190871783 | R28: 0.0121009782 | S28: 0.01131668027 | T28: 0.01049515556 | U28: 0.009638949858 | V28: 0.008970906331 | W28: 0.004943099344 | X28: 0.006360638307 | Y28: 0.007310296743 | Z28: =Z62*(1-Z$41-Z$71)/SUM(Z$42:Z$70) -> 0.009872055058 | AA28: 0.0103137172 | AB28: 0.01086902875 | AC28: 0.01137991393 | AD28: 0.01176741052 | AE28: 0.01168407469 | AF28: 0.01150678538 | AG28: 0.01120128405 | AH28: 0.01101661402 | AI28: 0.01094881673 | AJ28: 0.01086212968 | AK28: 0.01077897702 | AL28: 0.0107534964 | AM28: 0.01084238635 | AN28: 0.01103793359 | AO28: 0.01101669859 | AP28: 0.01102856108 | AQ28: 0.01099318979
A29: 0.117200017 | C29: 22 | D29: 0.008047700935 | E29: 0.006160207283 | F29: 0.004868470695 | G29: 0.004205520887 | H29: 0.006455421131 | I29: 0.005428497249 | J29: 0.007288085458 | K29: 0.005723462653 | L29: 0.007381803953 | M29: 0.005862515102 | N29: 0.008267082514 | O29: 0.009475227557 | P29: 0.01018676711 | Q29: 0.0102131052 | R29: 0.009822564248 | S29: 0.009965538141 | T29: 0.00934933104 | U29: 0.008697318582 | V29: 0.008010429017 | W29: 0.007474619595 | X29: 0.004130758721 | Y29: 0.005326087103 | Z29: 0.006130185326 | AA29: 0.008276346016 | AB29: 0.008641327927 | AC29: 0.009101783503 | AD29: 0.009521833711 | AE29: 0.009837974293 | AF29: 0.009752160073 | AG29: 0.009587370111 | AH29: 0.009373119507 | AI29: 0.009227516914 | AJ29: 0.009180510681 | AK29: 0.009110556617 | AL29: 0.00904307014 | AM29: 0.009023453682 | AN29: 0.009098645616 | AO29: 0.009262113436 | AP29: 0.009243258105 | AQ29: 0.00925216075
A30: 0.1198999882 | C30: 23 | D30: 0.007318219237 | E30: 0.006600363164 | F30: 0.005150618149 | G30: 0.003963410567 | H30: 0.003405419009 | I30: 0.005245140406 | J30: 0.00441811506 | K30: 0.005910635706 | L30: 0.004664422024 | M30: 0.006031113924 | N30: 0.00479143377 | O30: 0.006761590471 | P30: 0.007771734997 | Q30: 0.00836754234 | R30: 0.008394520064 | S30: 0.008060801962 | T30: 0.008204729066 | U30: 0.007721778806 | V30: 0.007203953298 | W30: 0.006652579584 | X30: 0.00622629339 | Y30: 0.003447987646 | Z30: 0.004452319663 | AA30: 0.005123082226 | AB30: 0.006912283951 | AC30: 0.007213169551 | AD30: 0.007591166857 | AE30: 0.007934821002 | AF30: 0.008184457996 | AG30: 0.008098248999 | AH30: 0.007996896522 | AI30: 0.00782586317 | AJ30: 0.00771275262 | AK30: 0.00767580973 | AL30: 0.00761925953 | AM30: 0.007564325677 | AN30: 0.007548438423 | AO30: 0.00761081252 | AP30: 0.007746665881 | AQ30: 0.007729997899
A31: 0.1215000153 | C31: 24 | D31: 0.005687116682 | E31: 0.005972850307 | F31: 0.00549647372 | G31: 0.004171923078 | H31: 0.003192856172 | I31: 0.002753361069 | J31: 0.004248070704 | K31: 0.003564898579 | L31: 0.004793167412 | M31: 0.003792365415 | N31: 0.004905183529 | O31: 0.003899759169 | P31: 0.005519257989 | Q31: 0.006353411298 | R31: 0.006844994544 | S31: 0.006856136089 | T31: 0.006605584639 | U31: 0.006745633435 | V31: 0.006367230537 | W31: 0.005956387315 | X31: 0.005517559527 | Y31: 0.005174957918 | Z31: 0.002870121817 | AA31: 0.003704957029 | AB31: 0.004260309477 | AC31: 0.005744914156 | AD31: 0.005989790258 | AE31: 0.006298204222 | AF31: 0.006571945667 | AG31: 0.006765626677 | AH31: 0.006725485568 | AI31: 0.006647952631 | AJ31: 0.006513186777 | AK31: 0.00642106313 | AL31: 0.006391974722 | AM31: 0.006346180423 | AN31: 0.006300884894 | AO31: 0.00628720641 | AP31: 0.006338418944 | AQ31: 0.006450787876
A32: 0.1227999926 | C32: 25 | D32: 0.005286095146 | E32: 0.004628148101 | F32: 0.004962024689 | G32: 0.004438664669 | H32: 0.003350529049 | I32: 0.002573942455 | J32: 0.002223488525 | K32: 0.00341732713 | L32: 0.002882412202 | M32: 0.003885725365 | N32: 0.003075419853 | O32: 0.003980739554 | P32: 0.003174113268 | Q32: 0.004499215393 | R32: 0.005182687686 | S32: 0.005574750071 | T32: 0.005602794124 | U32: 0.005416180309 | V32: 0.005547468618 | W32: 0.005250727002 | X32: 0.004927422591 | Y32: 0.004574241204 | Z32: 0.004296801646 | AA32: 0.002382267994 | AB32: 0.003073117401 | AC32: 0.003531693187 | AD32: 0.0047581834 | AE32: 0.004956612264 | AF32: 0.005202682441 | AG32: 0.005418001078 | AH32: 0.005604242823 | AI32: 0.005576621123 | AJ32: 0.005518756393 | AK32: 0.005408603597 | AL32: 0.005333515355 | AM32: 0.005310456464 | AN32: 0.005272807271 | AO32: 0.005234797664 | AP32: 0.005222815777 | AQ32: 0.005264716935
A33: 0.1248000264 | C33: 26 | D33: 0.003686971739 | E33: 0.004291634906 | F33: 0.003837412786 | G33: 0.00399724585 | H33: 0.003555848301 | I33: 0.002694608807 | J33: 0.002073680205 | K33: 0.001784259811 | L33: 0.002756469084 | M33: 0.002331185659 | N33: 0.003143670881 | O33: 0.002489908587 | P33: 0.003232454633 | Q33: 0.002581512498 | R33: 0.003661721352 | S33: 0.004211185683 | T33: 0.004545345229 | U33: 0.004583826556 | V33: 0.004444465889 | W33: 0.004564915031 | X33: 0.004334551459 | Y33: 0.004076541046 | Z33: 0.003790224335 | AA33: 0.003559053113 | AB33: 0.001971875613 | AC33: 0.002542194326 | AD33: 0.002918919388 | AE33: 0.00392907457 | AF33: 0.004085657883 | AG33: 0.004279737057 | AH33: 0.00447850392 | AI33: 0.004637171939 | AJ33: 0.004619789238 | AK33: 0.004573326826 | AL33: 0.004483245572 | AM33: 0.004421934009 | AN33: 0.004403155818 | AO33: 0.00437162239 | AP33: 0.004339590237 | AQ33: 0.004329122481
A34: 0.1254000068 | C34: 27 | D34: 0.003101692292 | E34: 0.002982444018 | F34: 0.003547718874 | G34: 0.00307960419 | H34: 0.003189886868 | I34: 0.002849213897 | J34: 0.002162973069 | K34: 0.001657719719 | L34: 0.001433890912 | M34: 0.002221193594 | N34: 0.001879115665 | O34: 0.002535872181 | P34: 0.002014579242 | Q34: 0.002619597721 | R34: 0.002093535818 | S34: 0.002964743091 | T34: 0.003421589984 | U34: 0.003706054687 | V34: 0.003748829647 | W34: 0.003645198011 | X34: 0.003756213814 | Y34: 0.003574603019 | Z34: 0.003367136773 | AA34: 0.003129421251 | AB34: 0.002936460131 | AC34: 0.00162593015 | AD34: 0.00209426169 | AE34: 0.002402400388 | AF34: 0.003227952564 | AG34: 0.003349483356 | AH34: 0.00352613858 | AI34: 0.003693716113 | AJ34: 0.003829238125 | AK34: 0.00381613672 | AL34: 0.003778787612 | AM34: 0.00370515059 | AN34: 0.003654772504 | AO34: 0.003638984281 | AP34: 0.003612484458 | AQ34: 0.003585562079
A35: 0.1269999743 | C35: 28 | D35: 0.001872815041 | E35: 0.002506250664 | F35: 0.002463238883 | G35: 0.002843876428 | H35: 0.002454737981 | I35: 0.00255314705 | J35: 0.002284562599 | K35: 0.00172712219 | L35: 0.001330716117 | M35: 0.001154176007 | N35: 0.001788485631 | O35: =O69*(1-O$41-O$71)/SUM(O$42:O$70) -> 0.001514140157 | P35: 0.002049542424 | Q35: 0.001630874602 | R35: 0.002122154589 | S35: 0.001693233454 | T35: 0.002406324857 | U35: 0.002786944916 | V35: 0.003027894487 | W35: 0.003071605649 | X35: 0.002996509972 | Y35: 0.003094686125 | Z35: 0.002949733967 | AA35: 0.00277742286 | AB35: 0.002579485132 | AC35: 0.002418930775 | AD35: 0.001338129443 | AE35: 0.001721970082 | AF35: 0.001971738411 | AG35: 0.002643624891 | AH35: 0.002756993636 | AI35: 0.002905409513 | AJ35: 0.003047223325 | AK35: 0.003160068626 | AL35: 0.003150120637 | AM35: 0.003119962432 | AN35: 0.003059411409 | AO35: 0.003017590104 | AP35: 0.003004187532 | AQ35: 0.00298193157
A36: 0.1277999878 | C36: 29 | D36: 0.001518127825 | E36: 0.001508852929 | F36: 0.002064957538 | G36: 0.001968546358 | H36: 0.002259818694 | I36: 0.001958933283 | J36: 0.002041165602 | K36: 0.001818636433 | L36: 0.001382308056 | M36: 0.001067986612 | N36: 0.0009266055061 | O36: 0.001436883317 | P36: 0.001220214113 | Q36: 0.00165442897 | R36: 0.00131741885 | S36: 0.001711473302 | T36: 0.001370454576 | U36: 0.001954641065 | V36: 0.002270834437 | W36: 0.002474325988 | X36: 0.002518430762 | Y36: 0.002462448242 | Z36: 0.002547216981 | AA36: 0.002426877248 | AB36: 0.002283427865 | AC36: 0.002119347775 | AD36: 0.001985554102 | AE36: 0.001097356314 | AF36: 0.001409525079 | AG36: 0.001610415917 | AH36: 0.002170321771 | AI36: 0.002265764872 | AJ36: 0.002390729216 | AK36: 0.002508261325 | AL36: 0.002601871486 | AM36: 0.002594248375 | AN36: 0.002569625809 | AO36: 0.002519566773 | AP36: 0.002484817556 | AQ36: 0.002473461676
A37: 0.6999999881 | C37: 30 | D37: 0.001166685863 | E37: =D37 -> 0.001166685863 | F37: =E37 -> 0.001166685863 | G37: 0.001166685863 | H37: 0.001166685863 | I37: 0.001166685863 | J37: 0.001166685863 | K37: 0.001166685863 | L37: 0.001166685863 | M37: 0.001166685863 | N37: 0.001166685863 | O37: 0.001166685863 | P37: 0.001166685863 | Q37: 0.001166685863 | R37: 0.001166685863 | S37: 0.001166685863 | T37: 0.001166685863 | U37: 0.001166685863 | V37: 0.001166685863 | W37: 0.001166685863 | X37: 0.001166685863 | Y37: 0.001166685863 | Z37: 0.001166685863 | AA37: 0.001166685863 | AB37: 0.001166685863 | AC37: 0.001166685863 | AD37: 0.001166685863 | AE37: 0.001166685863 | AF37: 0.001166685863 | AG37: 0.001166685863 | AH37: 0.001166685863 | AI37: 0.001166685863 | AJ37: 0.001166685863 | AK37: 0.001166685863 | AL37: 0.001166685863 | AM37: 0.001166685863 | AN37: 0.001166685863 | AO37: 0.001166685863 | AP37: 0.001166685863 | AQ37: 0.001166685863
C39: Intermediate table
C40: age | D40: 2011 | E40: 2012 | F40: 2013 | G40: 2014 | H40: 2015 | I40: 2016 | J40: 2017 | K40: 2018 | L40: 2019 | M40: 2020 | N40: 2021 | O40: 2022 | P40: 2023 | Q40: 2024 | R40: 2025 | S40: 2026 | T40: 2027 | U40: 2028 | V40: 2029 | W40: 2030 | X40: 2031 | Y40: 2032 | Z40: 2033 | AA40: 2034 | AB40: 2035 | AC40: 2036 | AD40: 2037 | AE40: 2038 | AF40: 2039 | AG40: 2040 | AH40: 2041 | AI40: 2042 | AJ40: 2043 | AK40: 2044 | AL40: 2045 | AM40: 2046 | AN40: 2047 | AO40: 2048 | AP40: 2049 | AQ40: 2050
C41: 0 | D41: =D7 -> 0.05568430262 | E41: =E2 -> 0.07413472225 | F41: =F2 -> 0.07575414898 | G41: 0.07892101351 | H41: 0.08164465607 | I41: 0.0832494934 | J41: 0.08171115152 | K41: 0.08001721988 | L41: 0.07767256944 | M41: 0.07593302546 | N41: 0.07502016525 | O41: 0.07401247589 | P41: 0.07310667554 | Q41: 0.07259301272 | R41: 0.07285960981 | S41: 0.07376007697 | T41: 0.07329767048 | U41: 0.07302116261 | V41: 0.07251986184 | W41: 0.07220334413 | X41: 0.07189653185 | Y41: 0.07161769609 | Z41: 0.07127844773 | AA41: 0.07100002388 | AB41: 0.07109370855 | AC41: 0.07112982112 | AD41: 0.07126645502 | AE41: 0.07144572297 | AF41: 0.07138578835 | AG41: 0.07118934812 | AH41: 0.071414179 | AI41: 0.07141635701 | AJ41: 0.07140925591 | AK41: 0.07141031675 | AL41: 0.07141144731 | AM41: 0.07141249709 | AN41: 0.07141333175 | AO41: 0.07141395901 | AP41: 0.07141438173 | AQ41: 0.07141462814
C42: 1 | D42: =D8 -> 0.04818771755 | E42: =MAX(D7*(1-D$3*$A7),0) -> 0.05497137018 | F42: =MAX(E7*(1-E$3*$A7),0) -> 0.07332715311 | G42: 0.07475439967 | H42: 0.07786367804 | I42: 0.08059118584 | J42: 0.08218240157 | K42: 0.08062837199 | L42: 0.07898052719 | M42: 0.07667699983 | N42: 0.07495933703 | O42: 0.07405799348 | P42: 0.0730734743 | Q42: 0.07218792567 | R42: 0.07168424218 | S42: 0.07194496532 | T42: 0.07284872878 | U42: 0.07241141949 | V42: 0.07214795829 | W42: 0.07166382148 | X42: 0.07136546287 | Y42: 0.07107149812 | Z42: 0.07080152238 | AA42: 0.0704596721 | AB42: 0.07017994191 | AC42: 0.07026865122 | AD42: 0.07029960816 | AE42: 0.07043031703 | AF42: 0.07060047115 | AG42: 0.07052488313 | AH42: 0.07036105131 | AI42: 0.0705861511 | AJ42: 0.07059511243 | AK42: 0.0705893717 | AL42: 0.07059146524 | AM42: 0.07059345033 | AN42: 0.07059511037 | AO42: 0.07059568438 | AP42: 0.07059588091 | AQ42: 0.07059572421
C43: 2 | D43: 0.03715573678 | E43: =MAX(D8*(1-D$3*$A8),0) -> 0.04756358969 | F43: 0.0540122606 | G43: 0.07103669415 | H43: 0.07319719518 | I43: 0.07612606033 | J43: 0.07842265164 | K43: 0.07995653078 | L43: 0.07875468574 | M43: 0.07715422128 | N43: 0.07492126615 | O43: 0.073274074 | P43: 0.07245882699 | Q43: 0.07154387059 | R43: 0.07064403197 | S43: 0.07013730871 | T43: 0.07033600362 | U43: 0.07123870009 | V43: 0.07073844006 | W43: 0.07054220366 | X43: 0.07009303728 | Y43: 0.06979430709 | Z43: 0.06951054824 | AA43: 0.06925411387 | AB43: 0.06899717781 | AC43: 0.06874640614 | AD43: 0.06885200052 | AE43: 0.06889467016 | AF43: 0.0690257432 | AG43: 0.06916981949 | AH43: 0.06925748994 | AI43: 0.06892999047 | AJ43: 0.069179887 | AK43: 0.06915917004 | AL43: 0.06915572012 | AM43: 0.06915987994 | AN43: 0.06916264206 | AO43: 0.0691590659 | AP43: 0.06915834972 | AQ43: 0.06915670663
C44: 3 | D44: 0.06677140671 | E44: 0.03666896283 | F44: 0.04672774037 | G44: 0.05231698513 | H44: 0.06954594643 | I44: 0.07155283445 | J44: 0.07406648505 | K44: 0.07628669368 | L44: 0.0780865334 | M44: 0.07692198326 | N44: 0.07537617004 | O44: 0.07322579153 | P44: 0.07168111946 | Q44: 0.07093158726 | R44: 0.0700034273 | S44: 0.06910932511 | T44: 0.06855879546 | U44: 0.06877171695 | V44: 0.06958301798 | W44: 0.06915444658 | X44: 0.06898658179 | Y44: 0.06854063892 | Z44: 0.06825225561 | AA44: 0.06798216484 | AB44: 0.06780742522 | AC44: 0.06757857138 | AD44: 0.06735119181 | AE44: 0.06746667542 | AF44: 0.06751131871 | AG44: 0.06761739976 | AH44: 0.067917477 | AI44: 0.06783961659 | AJ44: 0.06754758039 | AK44: 0.06776357517 | AL44: 0.06774542385 | AM44: 0.06774411988 | AN44: 0.0677490024 | AO44: 0.06774660903 | AP44: 0.06774184898 | AQ44: 0.06773934299
C45: 4 | D45: 0.07033579145 | E45: 0.06535985977 | F45: 0.03577538659 | G45: 0.04488090898 | H45: 0.05078222634 | I45: 0.06742544625 | J45: 0.06904923285 | K45: 0.07144144799 | L45: 0.07388830453 | M45: 0.07564739616 | N45: 0.07453617009 | O45: 0.07306923297 | P45: 0.07105572968 | Q45: 0.06960934607 | R45: 0.06885169533 | S45: 0.06793580808 | T45: 0.06702314843 | U45: 0.06651873498 | V45: 0.06666274578 | W45: 0.06751454045 | X45: 0.06713072779 | Y45: 0.06696685065 | Z45: 0.06654100619 | AA45: 0.06626435438 | AB45: 0.06607352948 | AC45: 0.06592351646 | AD45: 0.06571597971 | AE45: 0.06550397053 | AF45: 0.06561486628 | AG45: 0.06562682393 | AH45: 0.06590227138 | AI45: 0.06603688253 | AJ45: 0.0659933484 | AK45: 0.06568201952 | AL45: 0.06589475627 | AM45: 0.0658796421 | AN45: 0.06587953112 | AO45: 0.06587917066 | AP45: 0.06587536786 | AQ45: 0.06586864141
C46: 5 | D46: 0.07434248303 | E46: 0.06833580391 | F46: 0.06336409151 | G46: 0.03409729299 | H46: 0.04322422421 | I46: 0.04886400544 | J46: 0.06458078435 | K46: 0.06608790646 | L46: 0.06867343042 | M46: 0.07104624629 | N46: 0.07275397989 | O46: 0.07171550671 | P46: 0.07038029884 | Q46: 0.06849747499 | R46: 0.06707610191 | S46: 0.06633005145 | T46: 0.06541157467 | U46: 0.06457166186 | V46: 0.06403068045 | W46: 0.06423740447 | X46: 0.06509701004 | Y46: 0.06473103128 | Z46: 0.06458288853 | AA46: 0.06417194719 | AB46: 0.06397185653 | AC46: 0.06380473449 | AD46: 0.06367183807 | AE46: 0.06347791131 | AF46: 0.06326804823 | AG46: 0.06333612374 | AH46: 0.0635298522 | AI46: 0.06364589586 | AJ46: 0.06381062921 | AK46: 0.06374280705 | AL46: 0.06344525528 | AM46: 0.06365365904 | AN46: 0.06364050712 | AO46: 0.06363533198 | AP46: 0.06363333362 | AQ46: 0.06362732889
C47: 6 | D47: 0.07696902364 | E47: 0.0716419834 | F47: 0.06579338944 | G47: 0.05988590147 | H47: 0.03255921518 | I47: 0.0412510065 | J47: 0.04642189913 | K47: 0.06129101152 | L47: 0.06300505753 | M47: 0.0654950788 | N47: 0.06777301958 | O47: 0.06943124619 | P47: 0.06852063839 | Q47: 0.06730581038 | R47: 0.06548090529 | S47: 0.06410522431 | T47: 0.06336545927 | U47: 0.06253649064 | V47: 0.06168587015 | W47: 0.06124015993 | X47: 0.06148255375 | Y47: 0.06231449545 | Z47: 0.06197683864 | AA47: 0.06183108477 | AB47: 0.06149923767 | AC47: 0.06132172041 | AD47: 0.06117035265 | AE47: 0.06104678754 | AF47: 0.06085206566 | AG47: 0.06060442354 | AH47: 0.06086104663 | AI47: 0.06090470163 | AJ47: 0.0610529843 | AK47: 0.06118700004 | AL47: 0.06112559552 | AM47: 0.06084352709 | AN47: 0.06104512157 | AO47: 0.06102750811 | AP47: 0.06102072648 | AQ47: 0.06101625345
C48: 7 | D48: 0.07811539094 | E48: 0.0735199727 | F48: 0.06846267377 | G48: 0.0616167855 | H48: 0.05665669519 | I48: 0.03079702817 | J48: 0.03884387571 | K48: 0.04365508482 | L48: 0.05791102283 | M48: 0.05955930972 | N48: 0.06192656245 | O48: 0.06410720726 | P48: 0.06575948209 | Q48: 0.06496139942 | R48: 0.06378819965 | S48: 0.06204075733 | T48: 0.06072034644 | U48: 0.06007758053 | V48: 0.05925152386 | W48: 0.05851996414 | X48: 0.05814768109 | Y48: 0.05839184107 | Z48: 0.059197409 | AA48: 0.05886910314 | AB48: 0.05878686595 | AC48: 0.05848265069 | AD48: 0.05831948566 | AE48: 0.05817666544 | AF48: 0.0580466882 | AG48: 0.05780772461 | AH48: 0.05777166965 | AI48: 0.05788254038 | AJ48: 0.05796316237 | AK48: 0.0580822378 | AL48: 0.05821379667 | AM48: 0.0581590022 | AN48: 0.05789263047 | AO48: 0.05807954296 | AP48: 0.05806080867 | AQ48: 0.0580515908
C49: 8 | D49: 0.07242555606 | E49: 0.07390558252 | F49: 0.06969295317 | G49: 0.06348736924 | H49: 0.05771303322 | I49: 0.05307662437 | J49: =MAX(I14*(1-I$3*$A14),0) -> 0.02872387425 | K49: 0.03616868423 | L49: 0.04085060146 | M49: 0.05422278777 | N49: 0.05577793835 | O49: 0.05801905285 | P49: 0.06014521644 | Q49: 0.06176236977 | R49: 0.06099458309 | S49: 0.05987410397 | T49: 0.05822660333 | U49: 0.05705416562 | V49: 0.05641787625 | W49: 0.05571963603 | X49: 0.05508812771 | Y49: 0.05475630461 | Z49: 0.05500395129 | AA49: 0.05575171227 | AB49: 0.05549284238 | AC49: 0.05542366618 | AD49: 0.05513933753 | AE49: 0.05498397568 | AF49: 0.05483336489 | AG49: 0.05465021161 | AH49: 0.05463160966 | AI49: 0.05447337087 | AJ49: 0.05461880179 | AK49: 0.05467488618 | AL49: 0.05479165411 | AM49: 0.05491970191 | AN49: 0.05487028157 | AO49: 0.05461421123 | AP49: 0.05478842162 | AQ49: 0.05476779734
C50: 9 | D50: 0.07021936678 | E50: 0.06785388443 | F50: 0.06948185931 | G50: 0.06397717878 | H50: 0.05885642976 | I50: 0.05353439005 | J50: 0.04902013301 | K50: 0.02647504785 | L50: 0.03351078284 | M50: 0.03787531172 | N50: 0.05028400554 | O50: 0.05174762841 | P50: 0.05390736174 | Q50: 0.05594897313 | R50: 0.05743841026 | S50: 0.05670485564 | T50: 0.05566514895 | U50: 0.05420850696 | V50: 0.05309224817 | W50: 0.05257979125 | X50: 0.05199067074 | Y50: 0.05142425455 | Z50: 0.05113422322 | AA50: 0.05135155257 | AB50: 0.0520942519 | AC50: 0.05185788999 | AD50: 0.05179280323 | AE50: 0.05152315324 | AF50: 0.0513589728 | AG50: 0.05115205932 | AH50: 0.05119204188 | AI50: 0.05105989498 | AJ50: 0.05095404814 | AK50: 0.05107214366 | AL50: 0.05112933729 | AM50: 0.05124271109 | AN50: 0.05136495261 | AO50: 0.05131411277 | AP50: 0.05107242153 | AQ50: 0.0512322422
C51: 10 | D51: 0.06465091738 | E51: 0.06514927328 | F51: 0.06327152038 | G51: 0.06314477717 | H51: 0.05870703426 | I51: 0.05406138956 | J51: 0.04896306148 | K51: 0.04472792728 | L51: 0.02428869746 | M51: 0.0307685492 | N51: 0.03478299582 | O51: 0.04619763159 | P51: 0.04761883663 | Q51: 0.04966979547 | R51: 0.05153959473 | S51: 0.05289194188 | T51: 0.05222670043 | U51: 0.05135118421 | V51: 0.04998952165 | W51: 0.04904051621 | X51: 0.0486326256 | Y51: 0.04811408731 | Z51: 0.04761129078 | AA51: 0.04732646907 | AB51: 0.04756590509 | AC51: 0.04825686759 | AD51: 0.04803493081 | AE51: 0.04796861738 | AF51: 0.04769744797 | AG51: 0.04747518076 | AH51: 0.04749574641 | AI51: 0.04742785547 | AJ51: 0.04734812488 | AK51: 0.04723406131 | AL51: 0.04734849166 | AM51: 0.04740584332 | AN51: 0.04751359445 | AO51: 0.04762251938 | AP51: 0.04757309191 | AQ51: 0.04734585739
C52: 11 | D52: 0.05495452894 | E52: 0.05941502015 | F52: 0.06026584209 | G52: 0.05693837562 | H52: 0.05736710295 | I52: 0.05340935776 | J52: 0.04897637061 | K52: 0.04423689869 | L52: 0.04064074902 | M52: 0.02208973605 | N52: 0.02798850692 | O52: 0.0316532198 | P52: 0.04211312311 | Q52: 0.04346846038 | R52: 0.04533246554 | S52: 0.04702015604 | T52: 0.04827104211 | U52: 0.04775031257 | V52: 0.04693799236 | W52: 0.04577397111 | X52: 0.0449726421 | Y52: 0.04462759328 | Z52: 0.04417435887 | AA52: 0.04369455212 | AB52: 0.04346597043 | AC52: 0.04368671021 | AD52: 0.04431622803 | AE52: 0.04410474886 | AF52: 0.0440206521 | AG52: 0.04369913008 | AH52: 0.04370510636 | AI52: 0.04362883469 | AJ52: 0.04360908694 | AK52: 0.0435217321 | AL52: 0.04342193447 | AM52: 0.0435315219 | AN52: 0.0435869666 | AO52: 0.04368186133 | AP52: 0.04377968764 | AQ52: 0.04373104832
C53: 12 | D53: 0.04327336333 | E53: 0.0500375833 | F53: 0.05453522927 | G53: 0.05371595846 | H53: 0.05122671693 | I53: 0.05170433875 | J53: 0.04793833089 | K53: 0.04382473585 | L53: 0.03981862664 | M53: 0.03661966175 | N53: 0.0199080022 | O53: 0.02523447157 | P53: 0.0285908321 | Q53: 0.03809475651 | R53: 0.03931516815 | S53: 0.04098353248 | T53: 0.04253103556 | U53: 0.04375072355 | V53: 0.0432723417 | W53: 0.04261637732 | X53: 0.04162861833 | Y53: 0.04093057224 | Z53: 0.04063982115 | AA53: 0.04020752165 | AB53: 0.03979888082 | AC53: 0.03958974842 | AD53: 0.03978416655 | AE53: 0.04034852509 | AF53: 0.04013174635 | AG53: 0.03998155521 | AH53: 0.03989403972 | AI53: 0.03981387108 | AJ53: 0.03978621734 | AK53: 0.03975593353 | AL53: 0.03968136128 | AM53: 0.03959473863 | AN53: 0.03969740971 | AO53: 0.03974406268 | AP53: 0.03982830192 | AQ53: 0.03991432762
C54: 13 | D54: 0.02733770114 | E54: 0.03906012781 | F54: 0.04559423397 | G54: 0.04817266167 | H54: 0.04788731576 | I54: 0.04576654985 | J54: 0.04600529988 | K54: 0.04250982387 | L54: 0.03910130725 | M54: 0.03556758537 | N54: 0.03271637522 | O54: 0.0177932402 | P54: 0.0225975337 | Q54: 0.02564315064 | R54: 0.03416360252 | S54: 0.03524207544 | T54: 0.03676179178 | U54: 0.03823448418 | V54: 0.03932899684 | W54: 0.0389767198 | X54: 0.03845534565 | Y54: 0.0375958076 | Z54: 0.03698872201 | AA54: 0.0367056663 | AB54: 0.03633916184 | AC54: 0.03596754276 | AD54: 0.03577082262 | AE54: 0.03593692903 | AF54: 0.03642208101 | AG54: 0.03615364038 | AH54: 0.03621528409 | AI54: 0.03605953615 | AJ54: 0.03602747016 | AK54: 0.03599180661 | AL54: 0.03596938775 | AM54: 0.0359062 | AN54: 0.03583052295 | AO54: 0.03591980828 | AP54: 0.0359597986 | AQ54: 0.03603294196
C55: 14 | D55: 0.03045798442 | E55: 0.02445217059 | F55: 0.03532122947 | G55: 0.03989695615 | H55: 0.04253580981 | I55: 0.04239163132 | J55: 0.04035211914 | K55: 0.04041121245 | L55: 0.03757950631 | M55: 0.03460962097 | N55: 0.0314876908 | O55: 0.02897525407 | P55: 0.0157908012 | Q55: 0.02008764482 | R55: 0.02279343902 | S55: 0.03035240389 | T55: 0.03133607019 | U55: 0.0327666299 | V55: 0.03408111421 | W55: 0.03513102422 | X55: 0.03488477583 | Y55: 0.03445070107 | Z55: 0.03370399617 | AA55: 0.03313909453 | AB55: 0.03290556569 | AC55: 0.0325735449 | AD55: 0.03223181181 | AE55: 0.03204548779 | AF55: 0.03217008134 | AG55: 0.03253307863 | AH55: 0.03248062492 | AI55: 0.03246816588 | AJ55: 0.03236721401 | AK55: =MAX(AJ20*(1-AJ$3*$A20),0) -> 0.03232932264 | AL55: 0.03230215498 | AM55: 0.03228618795 | AN55: 0.03223212075 | AO55: 0.03216085421 | AP55: 0.03223885414 | AQ55: 0.03227179146
C56: 15 | D56: 0.02029805923 | E56: 0.02653120606 | F56: 0.02162846101 | G56: 0.0300720684 | H56: 0.03425987278 | I56: 0.03666172393 | J56: 0.03639850619 | K56: 0.03448280267 | L56: 0.03477830094 | M56: 0.03239234446 | N56: 0.02983756987 | O56: 0.02715691898 | P56: 0.02504924986 | Q56: 0.01367766545 | R56: 0.01740028887 | S56: 0.01973299577 | T56: 0.02631054584 | U56: 0.02724577977 | V56: 0.02849987743 | W56: 0.02971653453 | X56: 0.03070623728 | Y56: 0.03052885281 | Z56: 0.03017528876 | AA56: 0.02949676021 | AB56: 0.02901587183 | AC56: 0.0288047349 | AD56: 0.02850212408 | AE56: 0.02819035139 | AF56: 0.02800000639 | AG56: 0.0280326058 | AH56: 0.02854119828 | AI56: 0.02843839249 | AJ56: 0.02846769328 | AK56: 0.02837234492 | AL56: 0.02834431823 | AM56: 0.02832492741 | AN56: 0.02831381653 | AO56: 0.02826324595 | AP56: 0.02819850092 | AQ56: 0.0282637847
C57: 16 | D57: 0.02189940532 | E57: 0.01751494156 | F57: 0.02328377942 | G57: 0.01823497211 | H57: 0.02556739345 | I57: 0.02924861268 | J57: 0.03118237264 | K57: 0.03080006288 | L57: 0.02939346814 | M57: 0.02969564026 | N57: 0.02766304517 | O57: 0.02549137139 | P57: 0.02325889798 | Q57: 0.02149749178 | R57: 0.011739308 | S57: 0.01492553564 | T57: 0.01695089469 | U57: 0.02267481665 | V57: 0.02349188541 | W57: 0.02463714958 | X57: 0.02575543858 | Y57: 0.02664909513 | Z57: 0.02651999535 | AA57: 0.02618915463 | AB57: 0.02561083213 | AC57: 0.02518632927 | AD57: 0.02499118689 | AE57: 0.02471621263 | AF57: 0.02441997819 | AG57: 0.02418466056 | AH57: 0.02438565886 | AI57: 0.02477943304 | AJ57: 0.02472704689 | AK57: 0.02474692772 | AL57: 0.02466885429 | AM57: 0.02464858605 | AN57: 0.024634415 | AO57: 0.0246219314 | AP57: 0.02457587041 | AQ57: 0.02451671537
C58: 17 | D58: 0.0137463442 | E58: 0.01873045238 | F58: 0.01525869863 | G58: 0.01945165141 | H58: 0.01535964057 | I58: 0.02163379982 | J58: 0.02465801534 | K58: 0.02614457945 | L58: 0.02602005644 | M58: 0.02487665044 | N58: 0.02513651855 | O58: 0.0234252205 | P58: 0.02164233123 | Q58: 0.01978909932 | R58: 0.01829274866 | S58: 0.009983080067 | T58: 0.01271295709 | U58: 0.01448820338 | V58: 0.01939169888 | W58: 0.0201451861 | X58: 0.02118531741 | Y58: 0.02217901195 | Z58: 0.02297150473 | AA58: 0.02283793946 | AB58: 0.02256123408 | AC58: 0.02205598297 | AD58: 0.0216789774 | AE58: 0.02149917906 | AF58: 0.0212384902 | AG58: 0.0209192358 | AH58: 0.02087249503 | AI58: 0.02100538664 | AJ58: 0.02137803681 | AK58: 0.02132831543 | AL58: 0.02134987152 | AM58: 0.02128625693 | AN58: 0.02127123578 | AO58: 0.02125651354 | AP58: 0.02124384208 | AQ58: 0.02120149743
C59: 18 | D59: 0.01364507151 | E59: 0.01166508817 | F59: 0.01621155973 | G59: 0.01264390672 | H59: 0.01624911501 | I59: 0.01289379969 | J59: 0.01809530297 | K59: 0.02050568583 | L59: 0.02191165747 | M59: 0.02184890426 | N59: 0.02089214247 | O59: 0.0211186757 | P59: 0.01973402477 | Q59: 0.01827256073 | R59: 0.01671055125 | S59: 0.01543703097 | T59: 0.008439279193 | U59: 0.01078634104 | V59: 0.01230079009 | W59: 0.0165105943 | X59: 0.01720164395 | Y59: 0.01811763342 | Z59: 0.01898743377 | AA59: 0.01964547925 | AB59: 0.01953749181 | AC59: 0.0192938772 | AD59: 0.01885098546 | AE59: 0.01851778527 | AF59: 0.01834209603 | AG59: 0.01806090168 | AH59: 0.01792771929 | AI59: 0.01785367644 | AJ59: 0.01799670925 | AK59: 0.01831232555 | AL59: 0.01827369317 | AM59: 0.01829553241 | AN59: 0.0182432457 | AO59: 0.0182281896 | AP59: 0.01821386972 | AQ59: 0.01820067551
C60: 19 | D60: 0.007345127859 | E60: 0.0114999246 | F60: 0.01003910322 | G60: 0.01333821745 | H60: 0.01048595125 | I60: 0.01354628994 | J60: 0.01071095603 | K60: 0.01494088039 | L60: 0.01706648475 | M60: 0.01827305054 | N60: 0.01822357703 | O60: 0.01743238179 | P60: 0.01767050375 | Q60: 0.01654985308 | R60: 0.01532711907 | S60: 0.01400755832 | T60: 0.01296419045 | U60: 0.007114516387 | V60: 0.009099989242 | W60: 0.0104080515 | X60: 0.0140121339 | Y60: 0.01462223214 | Z60: 0.01541784633 | AA60: 0.01614037335 | AB60: 0.01670443502 | AC60: 0.01660612002 | AD60: 0.01638898705 | AE60: 0.01600269218 | AF60: 0.01569996269 | AG60: 0.01549835615 | AH60: 0.01538343761 | AI60: 0.01524136387 | AJ60: 0.01520410685 | AK60: 0.01532301987 | AL60: 0.01559526431 | AM60: 0.0155653468 | AN60: 0.01558593482 | AO60: 0.01553949808 | AP60: 0.01552516489 | AQ60: 0.01551090105
C61: 20 | D61: 0.007015263048 | E61: 0.006149938 | F61: 0.009843415654 | G61: 0.008203801135 | H61: 0.0109854483 | I61: 0.008684087107 | J61: 0.01117933429 | K61: 0.008783574599 | L61: 0.01235257862 | M61: 0.01413931231 | N61: 0.01514125789 | O61: 0.01510614488 | P61: 0.014491784 | Q61: 0.01472454353 | R61: 0.0137937532 | S61: 0.01276586478 | T61: 0.01168998587 | U61: 0.0108623598 | V61: 0.005966027533 | W61: 0.007654029434 | X61: 0.008781627975 | Y61: 0.01184254331 | Z61: 0.01237237296 | AA61: 0.01303061814 | AB61: 0.01364459235 | AC61: 0.01411545865 | AD61: 0.01402321449 | AE61: 0.01383064177 | AF61: 0.01348679155 | AG61: 0.01318506084 | AH61: 0.01312368485 | AI61: 0.01300225564 | AJ61: 0.01290470049 | AK61: 0.01287086051 | AL61: 0.01297456289 | AM61: 0.01320770731 | AN61: 0.01318411691 | AO61: 0.01319991948 | AP61: 0.0131592673 | AQ61: 0.01314531545
C62: 21 | D62: 0.007484033284 | E62: 0.005843461115 | F62: 0.005241625094 | G62: 0.008000876619 | H62: 0.006719918309 | I62: 0.009050402857 | J62: 0.007129703044 | K62: 0.00911840867 | L62: 0.00722396113 | M62: 0.0101810749 | N62: 0.01165547116 | O62: 0.01248625189 | P62: 0.01249389677 | Q62: 0.01201486599 | R62: 0.01221080878 | S62: 0.0114308675 | T62: 0.01060107579 | U62: 0.009747550015 | V62: 0.009065546784 | W62: 0.004994544574 | X62: 0.006428322849 | Y62: 0.007388287476 | Z62: =MAX(Y27*(1-Y$3*$A27),0) -> 0.00997535307 | AA62: 0.01040926332 | AB62: 0.01096541021 | AC62: 0.01147692563 | AD62: 0.01186486236 | AE62: 0.01177914496 | AF62: 0.01160149414 | AG62: 0.01127200777 | AH62: 0.01111342788 | AI62: 0.01104142229 | AJ62: 0.01095887531 | AK62: 0.01087480302 | AL62: 0.01084889996 | AM62: 0.01093854683 | AN62: 0.01113662598 | AO62: 0.01111533913 | AP62: 0.01112751155 | AQ62: 0.01109166971
C63: 22 | D63: 0.008047700935 | E63: 0.006200505026 | F63: 0.00495835278 | G63: 0.004236778717 | H63: 0.006516582442 | I63: 0.005506267272 | J63: 0.007390555263 | K63: 0.005782832461 | L63: 0.007458555036 | M63: 0.005922068116 | N63: 0.008347491198 | O63: 0.00956005095 | P63: 0.0102722822 | Q63: 0.01030413955 | R63: 0.009911715548 | S63: 0.01006609212 | T63: 0.009443687262 | U63: 0.008795309565 | V63: 0.008094936714 | W63: 0.007552411583 | X63: 0.004174714768 | Y63: 0.00538290907 | Z63: 0.006194329616 | AA63: 0.008353017957 | AB63: 0.008717955177 | AC63: 0.009179374554 | AD63: 0.009600688799 | AE63: 0.00991802333 | AF63: 0.009832427064 | AG63: 0.009647903751 | AH63: 0.009455490356 | AI63: 0.009305563648 | AJ63: 0.009262278651 | AK63: 0.009191550221 | AL63: 0.009123299026 | AM63: 0.009103482149 | AN63: 0.009179998444 | AO63: 0.009345043894 | AP63: 0.009326190477 | AQ63: 0.009335044066
C64: 23 | D64: 0.007318219237 | E64: 0.00664354024 | F64: 0.005245709264 | G64: 0.003992868896 | H64: 0.003437683347 | I64: 0.005320283612 | J64: 0.004480233348 | K64: 0.005971947071 | L64: 0.004712919579 | M64: 0.006092379611 | N64: 0.004838037017 | O64: 0.006822121054 | P64: 0.007836976565 | Q64: 0.008442126296 | R64: 0.008470710187 | S64: 0.008142136825 | T64: 0.008287533625 | U64: 0.007808778573 | V64: 0.007279952911 | W64: 0.006721816204 | X64: 0.006292548347 | Y64: 0.003484772895 | Z64: 0.004498907306 | AA64: 0.00517054238 | AB64: 0.006973578849 | AC64: 0.007274660512 | AD64: 0.007654033123 | AE64: 0.007999384576 | AF64: 0.008251821719 | AG64: 0.008149380485 | AH64: 0.008067173142 | AI64: 0.007892054657 | AJ64: 0.007781447722 | AK64: 0.007744048315 | AL64: 0.007686856562 | AM64: 0.007631413226 | AN64: 0.007615930536 | AO64: 0.007678957676 | AP64: 0.007816170527 | AQ64: 0.007799245275
C65: 24 | D65: 0.005687116682 | E65: 0.006011922432 | F65: 0.005597950047 | G65: 0.00420293119 | H65: 0.003223106602 | I65: 0.002792806415 | J65: 0.004307798184 | K65: 0.003601877478 | L65: 0.004843003575 | M65: 0.003830889288 | N65: 0.004952893148 | O65: 0.003934670289 | P65: 0.005565590636 | Q65: 0.006410042328 | R65: 0.006907120904 | S65: 0.006925315668 | T65: 0.006672250158 | U65: 0.006821635164 | V65: 0.006434402968 | W65: 0.006018378324 | X65: 0.005576272736 | Y65: 0.005230167546 | Z65: 0.00290015385 | AA65: 0.003739279693 | AB65: 0.004298087907 | AC65: 0.005793888506 | AD65: 0.00603939472 | AE65: 0.006349451071 | AF65: 0.006626037304 | AG65: 0.006808344128 | AH65: 0.006784589046 | AI65: 0.0067041813 | AJ65: 0.006571197718 | AK65: 0.006478146914 | AL65: 0.00644868345 | AM65: 0.006402464315 | AN65: 0.006357222379 | AO65: 0.006343500355 | AP65: 0.006395288515 | AQ65: 0.006508575749
C66: 25 | D66: 0.005286095146 | E66: 0.004658423694 | F66: 0.005053633976 | G66: 0.004471655357 | H66: 0.003382273337 | I66: 0.002610817405 | J66: 0.002254750568 | K66: 0.003452775261 | L66: 0.002912381605 | M66: 0.003925197614 | N66: 0.003105332517 | O66: 0.00401637562 | P66: 0.003200759072 | Q66: 0.004539319078 | R66: 0.00522972666 | S66: 0.005631000248 | T66: 0.005659339185 | U66: 0.00547720335 | V66: 0.005605992799 | W66: 0.005305373862 | X66: 0.004979856062 | Y66: 0.004623042018 | Z66: 0.004341761998 | AA66: 0.002404337288 | AB66: 0.003100368367 | AC66: 0.00356180023 | AD66: 0.004797588307 | AE66: 0.004996942928 | AF66: 0.005245504099 | AG66: 0.005452209764 | AH66: 0.005653492834 | AI66: 0.005623788424 | AJ66: 0.00556791025 | AK66: 0.005456686531 | AL66: 0.005380833577 | AM66: 0.005357554583 | AN66: 0.005319952506 | AO66: 0.005281668627 | AP66: 0.005269675932 | AQ66: 0.005311879669
C67: 26 | D67: 0.003686971739 | E67: 0.004319709157 | F67: 0.0039082594 | G67: 0.004026955662 | H67: 0.003589537867 | I67: 0.002733212454 | J67: 0.002102835956 | K67: 0.00180276804 | L67: 0.002785129014 | M67: 0.002354866473 | N67: 0.00317424738 | O67: 0.002512198552 | P67: 0.003259590197 | Q67: 0.002604522769 | R67: 0.003694955771 | S67: 0.004253677263 | T67: 0.004591218201 | U67: 0.004635471631 | V67: 0.004491353712 | W67: 0.004612424314 | X67: 0.004380676096 | Y67: 0.004120032088 | Z67: 0.003829884024 | AA67: 0.003592024126 | AB67: 0.001989361283 | AC67: 0.002563866071 | AD67: 0.002943092425 | AE67: 0.003961044427 | AF67: 0.00411928566 | AG67: 0.004306758863 | AH67: 0.004517860952 | AI67: 0.004676393338 | AJ67: 0.004660936272 | AK67: 0.004613984081 | AL67: 0.004523020316 | AM67: 0.004461151876 | AN67: 0.004442525324 | AO67: 0.004410764714 | AP67: 0.004378525914 | AQ67: 0.004367903912
C68: 27 | D68: 0.003101692292 | E68: 0.003001954037 | F68: 0.003613217136 | G68: 0.003102493565 | H68: 0.003220109166 | I68: 0.002890032455 | J68: 0.00219338427 | K68: 0.001674915341 | L68: 0.001448799556 | M68: 0.002243757079 | N68: 0.001897392635 | O68: 0.002558573618 | P68: 0.002031491078 | Q68: 0.002642947464 | R68: 0.002112537112 | S68: 0.002994657853 | T68: 0.003456121685 | U68: 0.003747810078 | V68: 0.00378837871 | W68: 0.003683135353 | X68: 0.00379618427 | Y68: 0.003612739079 | Z68: 0.00340236941 | AA68: 0.003158412161 | AB68: 0.002962499285 | AC68: 0.001639790909 | AD68: 0.002111605323 | AE68: 0.002421948095 | AF68: 0.003254520835 | AG68: 0.003370631639 | AH68: 0.003557126239 | AI68: 0.003724957723 | AJ68: 0.003863343965 | AK68: 0.003850062492 | AL68: 0.003812312501 | AM68: 0.003738011348 | AN68: 0.003687450564 | AO68: 0.003671566762 | AP68: 0.003644896396 | AQ68: 0.003617682498
C69: 28 | D69: 0.001872815041 | E69: 0.002522645607 | F69: 0.002508715391 | G69: 0.00286501374 | H69: 0.002477995177 | I69: 0.002589724079 | J69: 0.002316683338 | K69: 0.001745037728 | L69: 0.001344552017 | M69: 0.001165900439 | N69: 0.0018058811 | O69: =MAX(N34*(1-N$3*$A34),0) -> 0.001527694924 | P69: 0.002066747766 | Q69: 0.001645411377 | R69: 0.002141415633 | S69: 0.001710318468 | T69: 0.002430610201 | U69: 0.002818344877 | V69: 0.003059837893 | W69: 0.003103573337 | X69: 0.003028396301 | Y69: 0.003127702136 | Z69: 0.002980599036 | AA69: 0.002803152862 | AB69: 0.002602358799 | AC69: 0.00243955172 | AD69: 0.001349211165 | AE69: 0.001735981305 | AF69: 0.001987967176 | AG69: 0.002660316459 | AH69: 0.002781222059 | AI69: 0.002929983591 | AJ69: 0.003074364001 | AK69: 0.003188161899 | AL69: 0.003178068078 | AM69: 0.003147633191 | AN69: 0.003086766224 | AO69: 0.00304460879 | AP69: 0.003031141707 | AQ69: 0.003008644506
C70: 29 | D70: 0.001518127825 | E70: =MAX(D35*(1-D$3*$A35),0) -> 0.001518723273 | F70: =MAX(E35*(1-E$3*$A35),0) -> 0.002103080945 | G70: 0.001983177718 | H70: 0.002281229144 | I70: 0.001986997456 | J70: 0.002069864201 | K70: 0.001837501254 | L70: 0.001396680375 | M70: 0.001078835509 | N70: 0.000935618012 | O70: 0.001449746472 | P70: 0.001230457473 | Q70: 0.001669175696 | R70: 0.001329375973 | S70: 0.001728742359 | T70: 0.00138428561 | U70: 0.001976663623 | V70: 0.00229479108 | W70: 0.002500077498 | X70: 0.002545229775 | Y70: 0.002488719151 | Z70: 0.002573870241 | AA70: 0.002449359801 | AB70: 0.002303676234 | AC70: 0.00213741483 | AD70: 0.002001997473 | AE70: 0.001106285217 | AF70: 0.001421126441 | AG70: 0.001620583912 | AH70: 0.00218939453 | AI70: 0.002284928809 | AJ70: 0.002412022702 | AK70: 0.002530559977 | AL70: 0.002624954935 | AM70: 0.002617256608 | AN70: 0.002592601352 | AO70: 0.002542126292 | AP70: 0.00250711184 | AQ70: 0.002495619603
C71: 30 | D71: 0.001166685863 | E71: =E37 -> 0.001166685863 | F71: =F37 -> 0.001166685863 | G71: 0.001166685863 | H71: 0.001166685863 | I71: 0.001166685863 | J71: 0.001166685863 | K71: 0.001166685863 | L71: 0.001166685863 | M71: 0.001166685863 | N71: 0.001166685863 | O71: 0.001166685863 | P71: 0.001166685863 | Q71: 0.001166685863 | R71: 0.001166685863 | S71: 0.001166685863 | T71: 0.001166685863 | U71: 0.001166685863 | V71: 0.001166685863 | W71: 0.001166685863 | X71: 0.001166685863 | Y71: 0.001166685863 | Z71: 0.001166685863 | AA71: 0.001166685863 | AB71: 0.001166685863 | AC71: 0.001166685863 | AD71: 0.001166685863 | AE71: 0.001166685863 | AF71: 0.001166685863 | AG71: 0.001166685863 | AH71: 0.001166685863 | AI71: 0.001166685863 | AJ71: 0.001166685863 | AK71: 0.001166685863 | AL71: 0.001166685863 | AM71: 0.001166685863 | AN71: 0.001166685863 | AO71: 0.001166685863 | AP71: 0.001166685863 | AQ71: 0.001166685863

Sheet 41 (hidden)
D1: 2011 | E1: 2012 | F1: 2013 | G1: 2014 | H1: 2015 | I1: 2016 | J1: 2017 | K1: 2018 | L1: 2019 | M1: 2020 | N1: 2021 | O1: 2022 | P1: 2023 | Q1: 2024 | R1: 2025 | S1: 2026 | T1: 2027 | U1: 2028 | V1: 2029 | W1: 2030 | X1: 2031 | Y1: 2032 | Z1: 2033 | AA1: 2034 | AB1: 2035 | AC1: 2036 | AD1: 2037 | AE1: 2038 | AF1: 2039 | AG1: 2040 | AH1: 2041 | AI1: 2042 | AJ1: 2043 | AK1: 2044 | AL1: 2045 | AM1: 2046 | AN1: 2047 | AO1: 2048 | AP1: 2049 | AQ1: 2050
C2: sales (age 0 pop) | D2: 0.0476869531 | E2: 0.04942320449 | F2: 0.05135853962 | G2: 0.0555496448 | H2: 0.05803412026 | I2: 0.05793516872 | J2: 0.05700758104 | K2: 0.05820026658 | L2: 0.05774131166 | M2: 0.05764514428 | N2: 0.05696328021 | O2: 0.0565968526 | P2: 0.05620483968 | Q2: 0.05714827558 | R2: 0.05822750177 | S2: 0.05910707223 | T2: 0.05985523817 | U2: 0.06041670181 | V2: 0.06088466762 | W2: 0.0611187673 | X2: 0.06135211825 | Y2: 0.06185540713 | Z2: 0.06198267611 | AA2: 0.06220090926 | AB2: 0.06260187862 | AC2: 0.06284306157 | AD2: 0.06308995934 | AE2: 0.0635239864 | AF2: 0.06356393124 | AG2: 0.06354489026 | AH2: 0.06251249893 | AI2: 0.06253776264 | AJ2: 0.06250227756 | AK2: 0.06250258597 | AL2: 0.06250112204 | AM2: 0.0625035582 | AN2: 0.06250235207 | AO2: 0.06250312874 | AP2: 0.06250399983 | AQ2: 0.06250496147
C3: scrappage k factor | D3: 0 | E3: 0.2411258326 | F3: 0.5668406169 | G3: 0.3456399985 | H3: 0.3453617969 | I3: 0.540613516 | J3: 0.701457093 | K3: 0.7322955316 | L3: 0.7579262554 | M3: 0.7219233774 | N3: 0.721786887 | O3: 0.7503224568 | P3: 0.8166954979 | Q3: 0.8449958948 | R3: 0.8576646439 | S3: 0.9537972203 | T3: 1.024308159 | U3: 1.059462787 | V3: 1.050465146 | W3: 1.088471942 | X3: 1.187255788 | Y3: 1.189208511 | Z3: 1.160316834 | AA3: 1.181601512 | AB3: 1.209229091 | AC3: 1.235943036 | AD3: 1.293190123 | AE3: 1.361179946 | AF3: 1.390624541 | AG3: 1.377960884 | AH3: 1.384815998 | AI3: 1.36945923 | AJ3: 1.366838051 | AK3: 1.362217189 | AL3: 1.359321276 | AM3: 1.360902534 | AN3: 1.36480484 | AO3: 1.366117787 | AP3: 1.369197805
A5: default
A6: scrappage | C6: age | D6: 2011 | E6: 2012 | F6: 2013 | G6: 2014 | H6: 2015 | I6: 2016 | J6: 2017 | K6: 2018 | L6: 2019 | M6: 2020 | N6: 2021 | O6: 2022 | P6: 2023 | Q6: 2024 | R6: 2025 | S6: 2026 | T6: 2027 | U6: 2028 | V6: 2029 | W6: 2030 | X6: 2031 | Y6: 2032 | Z6: 2033 | AA6: 2034 | AB6: 2035 | AC6: 2036 | AD6: 2037 | AE6: 2038 | AF6: 2039 | AG6: 2040 | AH6: 2041 | AI6: 2042 | AJ6: 2043 | AK6: 2044 | AL6: 2045 | AM6: 2046 | AN6: 2047 | AO6: 2048 | AP6: 2049 | AQ6: 2050
A7: 0 | C7: 0 | D7: 0.0476869531 | E7: =E41 -> 0.04942320449 | F7: =F41 -> 0.05135853962 | G7: 0.0555496448 | H7: 0.05803412026 | I7: 0.05793516872 | J7: 0.05700758104 | K7: 0.05820026658 | L7: 0.05774131166 | M7: 0.05764514428 | N7: 0.05696328021 | O7: 0.0565968526 | P7: 0.05620483968 | Q7: 0.05714827558 | R7: 0.05822750177 | S7: 0.05910707223 | T7: 0.05985523817 | U7: 0.06041670181 | V7: 0.06088466762 | W7: 0.0611187673 | X7: 0.06135211825 | Y7: 0.06185540713 | Z7: 0.06198267611 | AA7: 0.06220090926 | AB7: 0.06260187862 | AC7: 0.06284306157 | AD7: 0.06308995934 | AE7: 0.0635239864 | AF7: 0.06356393124 | AG7: 0.06354489026 | AH7: 0.06251249893 | AI7: 0.06253776264 | AJ7: 0.06250227756 | AK7: 0.06250258597 | AL7: 0.06250112204 | AM7: 0.0625035582 | AN7: 0.06250235207 | AO7: 0.06250312874 | AP7: 0.06250399983 | AQ7: 0.06250496147
A8: 0 | C8: 1 | D8: 0.04210254923 | E8: =E42*(1-E$41-E$71)/SUM(E$42:E$70) -> 0.04547706714 | F8: =F42*(1-F$41-F$71)/SUM(F$42:F$70) -> 0.04751287532 | G8: 0.05009321564 | H8: 0.05363399466 | I8: 0.0560820654 | J8: 0.05656804315 | K8: 0.05588316494 | L8: 0.05713350243 | M8: 0.05668955294 | N8: 0.05643968913 | O8: 0.05570820933 | P8: 0.05553487205 | Q8: 0.0553000789 | R8: 0.05631831042 | S8: 0.05715555117 | T8: 0.05823656644 | U8: 0.05914207124 | V8: 0.05982854675 | W8: 0.06016838736 | X8: 0.06041147291 | Y8: 0.06077081403 | Z8: 0.06121027541 | AA8: 0.06121553093 | AB8: 0.06139159128 | AC8: 0.06174764121 | AD8: 0.06195908862 | AE8: 0.06215245144 | AF8: 0.06263036536 | AG8: 0.06275697133 | AH8: 0.06278199229 | AI8: 0.06177352461 | AJ8: 0.06176603761 | AK8: 0.06173571542 | AL8: 0.06173085271 | AM8: 0.06171513729 | AN8: 0.06170857889 | AO8: 0.06171486458 | AP8: 0.0617094796 | AQ8: 0.06171229625
A9: 0 | C9: 2 | D9: 0.03529699147 | E9: =E43*(1-E$41-E$71)/SUM(E$42:E$70) -> 0.04015145304 | F9: 0.04371926594 | G9: 0.04634229724 | H9: 0.04836573248 | I9: 0.05182994388 | J9: 0.05475866844 | K9: 0.05545229649 | L9: 0.05485887141 | M9: 0.05609281497 | N9: 0.05550408078 | O9: 0.05519615452 | P9: 0.05466290324 | Q9: 0.05464089612 | R9: 0.05449695513 | S9: 0.05528150745 | T9: 0.05631378663 | U9: 0.05754268577 | V9: 0.05856632467 | W9: 0.05912469127 | X9: 0.05947209121 | Y9: 0.0598390812 | Z9: 0.06013699426 | AA9: 0.06045269005 | AB9: 0.06041903406 | AC9: 0.06055386891 | AD9: 0.06087907683 | AE9: 0.0610383853 | AF9: 0.06127812441 | AG9: 0.0618352573 | AH9: 0.06200353284 | AI9: 0.06203983222 | AJ9: 0.06101123038 | AK9: 0.06100850512 | AL9: 0.06097345088 | AM9: 0.06095455449 | AN9: 0.06093018586 | AO9: 0.06093109241 | AP9: 0.06093122462 | AQ9: 0.06092783976
A10: 0 | C10: 3 | D10: 0.04582777247 | E10: 0.03366127518 | F10: 0.03859950001 | G10: 0.04264215128 | H10: 0.0447441659 | I10: 0.04673888671 | J10: 0.05060688639 | K10: 0.05367860984 | L10: 0.05443590042 | M10: 0.05385961637 | N10: 0.05491982158 | O10: 0.05428116041 | P10: 0.0541604566 | Q10: 0.05378296387 | R10: 0.05384734566 | S10: 0.05349368276 | T10: 0.05446734309 | U10: 0.05564281561 | V10: 0.05698250918 | W10: 0.05787731865 | X10: 0.05844047325 | Y10: 0.05890860003 | Z10: 0.0592149791 | AA10: 0.05939269266 | AB10: 0.05966611877 | AC10: 0.05959458277 | AD10: 0.05970209656 | AE10: 0.05997442233 | AF10: 0.06017973035 | AG10: 0.06050018339 | AH10: 0.0610928846 | AI10: 0.06127057512 | AJ10: 0.06127425172 | AK10: 0.06026295526 | AL10: 0.06025521961 | AM10: 0.0602066774 | AN10: 0.06017927688 | AO10: 0.06016250661 | AP10: 0.0601574046 | AQ10: 0.06015944251
A11: 0.009999990463 | C11: 4 | D11: 0.06005345657 | E11: 0.04370404377 | F11: 0.03236018359 | G11: 0.03764852139 | H11: 0.04117162085 | I11: 0.04323913634 | J11: 0.04563596548 | K11: 0.04960871744 | L11: 0.05269472403 | M11: 0.05344434981 | N11: 0.05273332286 | O11: 0.05370977419 | P11: 0.0532626314 | Q11: 0.0532886054 | R11: 0.05300187318 | S11: 0.0528560324 | T11: 0.05270584877 | U11: 0.05381837219 | V11: 0.05510113421 | W11: 0.05631213602 | X11: 0.0572075358 | Y11: 0.05788675652 | Z11: 0.05829420254 | AA11: 0.05848208906 | AB11: 0.05861991338 | AC11: 0.05885194144 | AD11: 0.05875630408 | AE11: 0.05881493183 | AF11: 0.05913073464 | AG11: 0.05941573371 | AH11: 0.05977383912 | AI11: 0.06037069185 | AJ11: 0.06051448736 | AK11: 0.06052275077 | AL11: 0.05951887522 | AM11: 0.05949747826 | AN11: 0.05944091199 | AO11: 0.05942105857 | AP11: 0.0593985781 | AQ11: 0.05939542403
A12: 0.01999998093 | C12: 5 | D12: 0.06168784201 | E12: 0.05727048803 | F12: 0.04191346593 | G12: 0.03138401215 | H12: 0.03622455743 | I12: 0.03964935046 | J12: 0.04199056017 | K12: 0.0444220404 | L12: 0.04834280608 | M12: 0.05134277704 | N12: 0.0519489816 | O12: 0.05119921494 | P12: 0.05230653232 | Q12: 0.05197724222 | R12: 0.05207094769 | S12: 0.05157991556 | T12: 0.05158087536 | U12: 0.05154442852 | V12: 0.05272981736 | W12: 0.05388088643 | X12: 0.0550546182 | Y12: 0.05599273722 | Z12: 0.05660180268 | AA12: 0.05690468355 | AB12: 0.05703912454 | AC12: 0.05712083636 | AD12: 0.05730696475 | AE12: 0.05713465466 | AF12: 0.057198241 | AG12: 0.05756820866 | AH12: 0.0578935135 | AI12: 0.05824926731 | AJ12: 0.05880915979 | AK12: 0.05895531475 | AL12: 0.05896119212 | AM12: 0.05797151609 | AN12: 0.05794132976 | AO12: 0.05789096614 | AP12: 0.05786509145 | AQ12: 0.05784322733
A13: 0.01999998093 | C13: 6 | D13: 0.06377423555 | E13: 0.05882913356 | F13: 0.05479132964 | G13: 0.04041738292 | H13: 0.03009225328 | I13: 0.0347643011 | J13: 0.03829514176 | K13: 0.04058486767 | L13: 0.04296914445 | M13: 0.04674278437 | N13: 0.0495433065 | O13: 0.0500709925 | P13: 0.04948461439 | Q13: 0.05062390866 | R13: 0.05035672292 | S13: 0.05023559332 | T13: 0.04985082313 | U13: 0.04992219346 | V13: 0.04996109019 | W13: 0.05101469247 | X13: 0.05209797056 | Y13: 0.05323809133 | Z13: 0.05409090132 | AA13: 0.0546039932 | AB13: 0.05483700202 | AC13: 0.05490015152 | AD13: 0.05492525476 | AE13: 0.05499524164 | AF13: 0.0547973865 | AG13: 0.05490146698 | AH13: 0.05530957875 | AI13: 0.05562466008 | AJ13: 0.05595475196 | AK13: 0.05649995876 | AL13: 0.05664101518 | AM13: 0.05663693918 | AN13: 0.05567637826 | AO13: 0.05564966416 | AP13: 0.05559424926 | AQ13: 0.05556764366
A14: 0.02999997139 | C14: 7 | D14: 0.06196224689 | E14: 0.06081884044 | F14: 0.05628250361 | G14: 0.05283557686 | H14: 0.03875381255 | I14: 0.02887919765 | J14: 0.03357693943 | K14: 0.03701315854 | L14: 0.03925747277 | M14: 0.04154697702 | N14: 0.04510453517 | O14: 0.04775228411 | P14: 0.04839417477 | Q14: 0.04789276765 | R14: 0.04904558289 | S14: 0.04858179015 | T14: 0.04855156606 | U14: 0.04824777438 | V14: 0.04838868684 | W14: 0.04833602275 | X14: 0.04932661881 | Y14: 0.05037899826 | Z14: 0.05142981907 | AA14: 0.05218171627 | AB14: 0.05261990927 | AC14: 0.05278060882 | AD14: 0.05278992748 | AE14: 0.05270960817 | AF14: 0.05274549273 | AG14: 0.05259701789 | AH14: 0.05274746396 | AI14: 0.05314199002 | AJ14: 0.05343353147 | AK14: 0.05375763214 | AL14: 0.05428204455 | AM14: 0.05440822372 | AN14: 0.0543946383 | AO14: 0.05347429486 | AP14: 0.05344186679 | AQ14: 0.0533869619
A15: 0.02999997139 | C15: 8 | D15: 0.05742748082 | E15: 0.0590908221 | F15: 0.05804509748 | G15: 0.05396235224 | H15: 0.05048455345 | I15: 0.03706226002 | J15: =J49*(1-J$41-J$71)/SUM(J$42:J$70) -> 0.02774039894 | K15: 0.03222202255 | L15: 0.03553650486 | M15: 0.03766602939 | N15: 0.03979716651 | O15: 0.04315559192 | P15: 0.04580154443 | Q15: 0.04644853548 | R15: 0.04600077777 | S15: 0.04690396187 | T15: 0.04649665568 | U15: 0.04649890569 | V15: 0.04625951192 | W15: 0.04631243861 | X15: 0.04621655114 | Y15: 0.04711900347 | Z15: 0.04807497504 | AA15: 0.04902519676 | AB15: 0.04967709107 | AC15: 0.05001904523 | AD15: 0.05010869305 | AE15: 0.04998788946 | AF15: 0.04984598118 | AG15: 0.04990333794 | AH15: 0.04981736323 | AI15: 0.04995846505 | AJ15: 0.05032988049 | AK15: 0.05061401817 | AL15: 0.05092411516 | AM15: 0.05141365621 | AN15: 0.05152313488 | AO15: 0.05151022315 | AP15: 0.05063155606 | AQ15: 0.05059758076
A16: 0.02999997139 | C16: 9 | D16: 0.05378770828 | E16: 0.05476620398 | F16: 0.05639588825 | G16: 0.05565228615 | H16: 0.05156119074 | I16: 0.04828096964 | J16: 0.0356007771 | K16: 0.02662100165 | L16: 0.03093651302 | M16: 0.03409590436 | N16: 0.03607967055 | O16: 0.03807755187 | P16: 0.04139263279 | Q16: 0.04396013923 | R16: 0.04461359957 | S16: 0.04399211099 | T16: 0.04489083993 | U16: 0.0445308727 | V16: 0.04458271308 | W16: 0.04427462173 | X16: 0.04428169853 | Y16: 0.04414812704 | Z16: 0.04496407222 | AA16: 0.04582720984 | AB16: 0.04667207861 | AC16: 0.04722168281 | AD16: 0.04748692825 | AE16: 0.04744897235 | AF16: 0.047272129 | AG16: 0.04716006458 | AH16: 0.04726603925 | AI16: 0.0471832921 | AJ16: 0.0473148178 | AK16: 0.04767413674 | AL16: 0.04794619829 | AM16: 0.04823316755 | AN16: 0.04868735943 | AO16: 0.04879098857 | AP16: 0.04877189606 | AQ16: 0.04793684054
A17: 0.04000002146 | C17: 10 | D17: 0.05172192305 | E17: 0.05129510405 | F17: 0.05226850144 | G17: 0.05407106279 | H17: 0.0531759277 | I17: 0.04931061313 | J17: 0.04637709728 | K17: 0.0341641931 | L17: 0.02555894692 | M17: 0.02968238978 | N17: 0.03265990645 | O17: 0.03452068696 | P17: 0.03652203693 | Q17: 0.03972848347 | R17: 0.0422235067 | S17: 0.04266550522 | T17: 0.04210396594 | U17: 0.04299294753 | V17: 0.04269578158 | W17: 0.04266977051 | X17: 0.04233323727 | Y17: 0.04229986886 | Z17: 0.04212906526 | AA17: 0.04286175855 | AB17: 0.0436275891 | AC17: 0.04436520023 | AD17: 0.04483117686 | AE17: 0.04496636828 | AF17: 0.04487114712 | AG17: 0.04472490267 | AH17: 0.04466774279 | AI17: 0.04476686826 | AJ17: 0.04468649841 | AK17: 0.04481816908 | AL17: 0.04516127539 | AM17: 0.04541261067 | AN17: 0.0456755216 | AO17: 0.04610558738 | AP17: 0.04619721829 | AQ17: 0.04617615547
A18: 0.04000002146 | C18: 11 | D18: 0.04918669909 | E18: 0.04932505045 | F18: 0.04883680112 | G18: 0.04982483945 | H18: 0.05148461689 | I18: 0.05067739603 | J18: 0.04710584814 | K18: 0.0441867602 | L18: 0.03255560152 | M18: 0.0243326324 | N18: 0.02822246925 | O18: 0.03101814694 | P18: 0.03285631677 | Q18: 0.03476023122 | R18: 0.03782819099 | S18: 0.04002430693 | T18: 0.04043334707 | U18: 0.03989775893 | V18: 0.04077017109 | W18: 0.04042057286 | X18: 0.04033968071 | Y18: 0.03994076689 | Z18: 0.0398675453 | AA18: 0.0396765206 | AB18: 0.04030460594 | AC18: 0.04095083056 | AD18: 0.04157867984 | AE18: 0.04188044142 | AF18: 0.04191995298 | AG18: 0.04183722548 | AH18: 0.04175237894 | AI18: 0.04169469868 | AJ18: 0.04179244249 | AK18: 0.04172523354 | AL18: 0.04185285766 | AM18: 0.04216867961 | AN18: 0.04239436571 | AO18: 0.04263792935 | AP18: 0.04303271332 | AQ18: 0.04311398485
A19: 0.05000001192 | C19: 12 | D19: 0.04781564325 | E19: 0.04690731262 | F19: 0.04696116177 | G19: 0.04655357832 | H19: 0.04744150823 | I19: 0.04906555339 | J19: 0.04841151974 | K19: 0.04488109299 | L19: 0.04210626468 | M19: 0.03099358853 | N19: 0.02313583827 | O19: 0.02680377237 | P19: 0.02952264717 | Q19: 0.03127134366 | R19: 0.03309758014 | S19: 0.03585792003 | T19: 0.03793033001 | U19: 0.03831467887 | V19: 0.03783500669 | W19: 0.03859757593 | X19: 0.03821330614 | Y19: 0.03805987653 | Z19: 0.03764409621 | AA19: 0.03754665508 | AB19: 0.03730940078 | AC19: 0.0378317281 | AD19: 0.03837876229 | AE19: 0.03884201994 | AF19: 0.03904309381 | AG19: 0.03908557364 | AH19: 0.03905662366 | AI19: 0.03897337878 | AJ19: 0.03892439575 | AK19: 0.03902295962 | AL19: 0.03896456049 | AM19: 0.039079493 | AN19: 0.03936603509 | AO19: 0.03957498254 | AP19: 0.03979616994 | AQ19: 0.04016068107
A20: 0.05000001192 | C20: 13 | D20: 0.03623586521 | E20: 0.0455997936 | F20: 0.04455055959 | G20: 0.04450599261 | H20: 0.04417136657 | I20: 0.04505408125 | J20: 0.04661275003 | K20: 0.04579221149 | L20: 0.04244526759 | M20: 0.03977269118 | N20: 0.02925010626 | O20: 0.02180952595 | P20: 0.02531412239 | Q20: 0.02786126008 | R20: 0.02951516928 | S20: 0.03109506166 | T20: 0.0336449441 | U20: 0.03555892359 | V20: 0.03593179572 | W20: 0.03542605559 | X20: 0.036074597 | Y20: 0.03560428379 | Z20: 0.03542347039 | AA20: 0.03502125983 | AB20: 0.03486872512 | AC20: 0.03457529349 | AD20: 0.03499456554 | AE20: 0.0353637824 | AF20: 0.0356892499 | AG20: 0.03586718114 | AH20: 0.03595573581 | AI20: 0.0359225823 | AJ20: 0.03585674954 | AK20: 0.03581946352 | AL20: 0.03591606408 | AM20: 0.03585959542 | AN20: 0.03595709523 | AO20: 0.03621754737 | AP20: 0.03640358889 | AQ20: 0.0366021608
A21: 0.05000001192 | C21: 14 | D21: 0.02948282287 | E21: 0.03455664008 | F21: 0.04330873393 | G21: 0.04222141875 | H21: 0.04222855869 | I21: 0.04194850486 | J21: 0.04280181273 | K21: 0.04409076432 | L21: 0.04330693708 | M21: 0.04009290619 | N21: 0.03753535806 | O21: 0.02757328021 | P21: 0.02059743687 | Q21: 0.02388957004 | R21: 0.02629659335 | S21: 0.0277293991 | T21: 0.02917602612 | U21: 0.03154146025 | V21: 0.03334742757 | W21: 0.03364402187 | X21: 0.03311038707 | Y21: 0.03361159551 | Z21: 0.03313797646 | AA21: 0.03295535517 | AB21: 0.03252344795 | AC21: 0.03231347541 | AD21: 0.03198234484 | AE21: 0.03224544324 | AF21: 0.03249333762 | AG21: 0.03278615156 | AH21: 0.03299506107 | AI21: 0.03307052063 | AJ21: 0.03304991964 | AK21: =AK55*(1-AK$41-AK$71)/SUM(AK$42:AK$70) -> 0.03299651818 | AL21: 0.03296762111 | AM21: 0.03305402424 | AN21: 0.03299446304 | AO21: 0.03308125385 | AP21: 0.03331520623 | AQ21: 0.03348186562
A22: 0.06000000238 | C22: 15 | D22: 0.02437577397 | E22: 0.028116544 | F22: 0.03282041898 | G22: 0.04104451678 | H22: 0.04006088967 | I22: 0.04010346604 | J22: 0.03985148514 | K22: 0.04048601801 | L22: 0.04169783233 | M22: 0.04090682105 | N22: 0.03783756002 | O22: 0.0353835619 | P22: 0.02604086396 | Q22: 0.01943831602 | R22: 0.02254795034 | S22: 0.02470555818 | T22: 0.02601807583 | U22: 0.02735193928 | V22: 0.02957982005 | W22: 0.03122420018 | X22: 0.03144483821 | Y22: 0.0308497677 | Z22: 0.03128332162 | AA22: 0.03082910205 | AB22: 0.03060488925 | AC22: 0.03014006483 | AD22: 0.02989015014 | AE22: 0.02946985823 | AF22: 0.0296281111 | AG22: 0.02985020685 | AH22: 0.03016074971 | AI22: 0.03034742089 | AJ22: 0.03042593208 | AK22: 0.03041358428 | AL22: 0.03036943054 | AM22: 0.03034053355 | AN22: 0.03041305314 | AO22: 0.0303555724 | AP22: 0.03043024374 | AQ22: 0.03064135411
A23: 0.06000000238 | C23: 16 | D23: 0.03168043122 | E23: 0.02324616351 | F23: 0.02663871542 | G23: 0.03092308395 | H23: 0.0388072376 | I23: 0.03791118078 | J23: 0.03788699192 | K23: 0.03742129093 | L23: 0.03799768309 | M23: 0.0390766127 | N23: 0.03831654964 | O23: 0.03540135053 | P23: 0.03315657151 | Q23: 0.0243661634 | R23: 0.01818480792 | S23: 0.02099389564 | T23: 0.02294868135 | U23: 0.02412809458 | V23: 0.02536389328 | W23: 0.027389406 | X23: 0.02884725796 | Y23: 0.02892814154 | Z23: 0.02834976411 | AA23: 0.02874517678 | AB23: 0.02827074925 | AC23: 0.02799706905 | AD23: 0.02751245912 | AE23: 0.02716123108 | AF23: 0.02668232327 | AG23: 0.02681126392 | AH23: 0.02705351974 | AI23: 0.02732781156 | AJ23: 0.02751012695 | AK23: 0.02758813538 | AL23: 0.02758295914 | AM23: 0.0275417584 | AN23: 0.02750871364 | AO23: 0.02757077444 | AP23: 0.02751356157 | AQ23: 0.02757656407
A24: 0.06999999285 | C24: 17 | D24: 0.02439296991 | E24: 0.03021231184 | F24: 0.02202432613 | G24: 0.02509874216 | H24: 0.02923750991 | I24: 0.03672480098 | J24: 0.03581587183 | K24: 0.03557659501 | L24: 0.035121319 | M24: 0.03560906317 | N24: 0.03660223239 | O24: 0.03584949993 | P24: 0.03317324055 | Q24: 0.03102425636 | R24: 0.02279487589 | S24: 0.01693147066 | T24: 0.01950096484 | U24: 0.02128166424 | V24: 0.02237437023 | W24: 0.02348567266 | X24: 0.02530438748 | Y24: 0.02653845937 | Z24: 0.0265838627 | AA24: 0.02604963089 | AB24: 0.02635975851 | AC24: 0.02586181941 | AD24: 0.02555628934 | AE24: 0.02500061914 | AF24: 0.02459206768 | AG24: 0.02414554234 | AH24: 0.02429929754 | AI24: 0.02451243742 | AJ24: 0.02477283219 | AK24: 0.02494428452 | AL24: 0.02502047782 | AM24: 0.02501473302 | AN24: 0.0249711609 | AO24: 0.02493786255 | AP24: 0.0249894876 | AQ24: 0.02493340178
A25: 0.06999999285 | C25: 18 | D25: 0.02007924765 | E25: 0.02326256257 | F25: 0.02855429419 | G25: 0.02062934188 | H25: 0.02364688528 | I25: 0.02757101615 | J25: 0.03450120791 | K25: 0.03338549703 | L25: 0.03313425067 | M25: 0.03265216908 | N25: 0.03310255831 | O25: 0.03398719175 | P25: 0.03332924472 | Q25: 0.03077329052 | R25: 0.02876526584 | S25: 0.02103189829 | T25: 0.01556831616 | U25: 0.0178870238 | V25: 0.01951155345 | W25: 0.02048525699 | X25: 0.02144514944 | Y25: 0.02298156255 | Z25: 0.02407552985 | AA25: 0.02412236529 | AB25: 0.02358410485 | AC25: 0.02379926274 | AD25: 0.02329204949 | AE25: 0.02289746425 | AF25: 0.02230031074 | AG25: 0.02191637315 | AH25: 0.02155460797 | AI25: 0.02168439133 | AJ25: 0.02188913283 | AK25: 0.0221278432 | AL25: 0.02228709353 | AM25: 0.02235501087 | AN25: 0.02234389833 | AO25: 0.02230094569 | AP25: 0.02226672513 | AQ25: 0.02230820848
A26: 0.07999998331 | C26: 19 | D26: 0.0147900423 | E26: 0.01914874477 | F26: 0.02198593933 | G26: 0.0267457126 | H26: 0.01943602104 | I26: 0.02229904865 | J26: 0.02590166141 | K26: 0.03216004289 | L26: 0.03109357225 | M26: 0.03080479851 | N26: 0.03035379857 | O26: 0.03073755133 | P26: 0.03159785865 | Q26: 0.03091800842 | R26: 0.02853257375 | S26: 0.02654053255 | T26: 0.01933861793 | U26: 0.01427984944 | V26: 0.01639926356 | W26: 0.01786415361 | X26: 0.01870542113 | Y26: 0.01947658459 | Z26: 0.02084873457 | AA26: 0.02184628819 | AB26: 0.02183924966 | AC26: 0.02129322648 | AD26: 0.02143443957 | AE26: 0.02086879137 | AF26: 0.02042431689 | AG26: 0.0198739666 | AH26: 0.0195646395 | AI26: 0.01923506445 | AJ26: 0.01936374234 | AK26: 0.01955203569 | AL26: 0.01977067375 | AM26: 0.01991281788 | AN26: 0.01996815595 | AO26: 0.01995462145 | AP26: 0.01991225298 | AQ26: 0.01987758831
A27: 0.07999998331 | C27: 20 | D27: 0.01675982215 | E27: 0.01410464924 | F27: 0.01805349538 | G27: 0.02047183172 | H27: 0.02510932956 | I27: 0.01826333059 | J27: 0.02083119126 | K27: 0.0239659347 | L27: 0.02972105623 | M27: 0.02867621337 | N27: 0.02841872718 | O27: 0.02797091396 | P27: 0.02835036816 | Q27: 0.0290579772 | R27: 0.02840929278 | S27: 0.02608562862 | T27: 0.02415433702 | U27: 0.01754238639 | V27: 0.0129423006 | W27: 0.01484439891 | X27: 0.01611985313 | Y27: 0.01676837379 | Z27: 0.01743983847 | AA27: 0.01867935666 | AB27: 0.01952381988 | AC27: 0.01945737778 | AD27: 0.01891794657 | AE27: 0.01893137464 | AF27: 0.01833469477 | AG27: 0.01792166728 | AH27: 0.01747082571 | AI27: 0.01719151007 | AJ27: 0.01691637525 | AK27: 0.01703485582 | AL27: 0.01720620188 | AM27: 0.01739910877 | AN27: 0.01751917001 | AO27: 0.01756382941 | AP27: 0.01754810566 | AQ27: 0.01750655775
A28: 0.07999998331 | C28: 21 | D28: 0.01880890876 | E28: 0.01598314649 | F28: 0.01329790662 | G28: 0.01681020373 | H28: 0.01921930356 | I28: 0.02359433474 | J28: 0.01706112842 | K28: 0.01927439949 | L28: 0.02214838131 | M28: 0.02741040312 | N28: 0.02645501752 | O28: 0.02618775277 | P28: 0.02579859729 | Q28: 0.02607152468 | R28: 0.0267001862 | S28: 0.02597292019 | T28: 0.02374033242 | U28: 0.02191080638 | V28: 0.01589924592 | W28: 0.01171520125 | X28: 0.01339495481 | Y28: 0.01445055531 | Z28: =Z62*(1-Z$41-Z$71)/SUM(Z$42:Z$70) -> 0.01501483635 | AA28: 0.01562516716 | AB28: 0.0166935633 | AC28: 0.0173944776 | AD28: 0.01728688856 | AE28: 0.01670875195 | AF28: 0.0166325385 | AG28: 0.0160880925 | AH28: 0.01575459654 | AI28: 0.01535166933 | AJ28: 0.01511916096 | AK28: 0.01488183474 | AL28: 0.01499103074 | AM28: 0.01514225472 | AN28: 0.0153076248 | AO28: 0.01540972108 | AP28: 0.01544564175 | AQ28: 0.01542803445
A29: 0.08999997377 | C29: 22 | D29: 0.01865534857 | E29: 0.01793727531 | F29: 0.0150689596 | G29: 0.01238211852 | H29: 0.01578170497 | I29: 0.01805968895 | J29: 0.02204121384 | K29: 0.01578608735 | L29: 0.01781264761 | M29: 0.02042646316 | N29: 0.02528725412 | O29: 0.02437820153 | P29: 0.02415392249 | Q29: 0.02372486884 | R29: 0.02395605719 | S29: 0.02441038609 | T29: 0.02363775733 | U29: 0.02153525582 | V29: 0.01985848967 | W29: 0.01439178948 | X29: 0.0105712998 | Y29: 0.01200783492 | Z29: 0.01293940163 | AA29: 0.01345249431 | AB29: 0.01396406321 | AC29: 0.0148728996 | AD29: 0.01545410688 | AE29: 0.01526816517 | AF29: 0.0146798088 | AG29: 0.01459450627 | AH29: 0.01414273586 | AI29: 0.01384361338 | AJ29: 0.01350110367 | AK29: 0.01330077227 | AL29: 0.01309632699 | AM29: 0.01319280151 | AN29: 0.01332205901 | AO29: 0.01346446369 | AP29: 0.01355131763 | AQ29: 0.01357957934
A30: 0.08999997377 | C30: 23 | D30: 0.01735698991 | E30: 0.01779083133 | F30: 0.01686973866 | G30: 0.01394789175 | H30: 0.01158322169 | I30: 0.01477683046 | J30: 0.01677556257 | K30: 0.02024243263 | L30: 0.01447540386 | M30: 0.0162952621 | N30: 0.01869989508 | O30: 0.02312361339 | P30: 0.02230542443 | Q30: 0.02201830702 | R30: 0.02160224866 | S30: 0.02169991284 | T30: 0.02198631052 | U30: 0.02120296985 | V30: 0.01929217906 | W30: 0.01776949299 | X30: 0.01283170168 | Y30: 0.009352265564 | Z30: 0.01061081779 | AA30: 0.01144473557 | AB30: 0.01186547965 | AC30: 0.01227453601 | AD30: 0.01303257863 | AE30: 0.01345253052 | AF30: 0.01320924901 | AG30: 0.01267950088 | AH30: 0.01263106065 | AI30: 0.01223373086 | AJ30: 0.0119875932 | AK30: 0.01169504472 | AL30: 0.01152601073 | AM30: 0.01134959216 | AN30: 0.0114296851 | AO30: 0.01153844687 | AP30: 0.01165905253 | AQ30: 0.01173092367
A31: 0.08999997377 | C31: 24 | D31: 0.0180416964 | E31: 0.01655264059 | F31: 0.01673201029 | G31: 0.01561470036 | H31: 0.01304797091 | I31: 0.01084567881 | J31: 0.01372613031 | K31: 0.01540651062 | L31: 0.01856174877 | M31: 0.0132423043 | N31: 0.0149178881 | O31: 0.01709988527 | P31: 0.02115750871 | Q31: 0.02033324748 | R31: 0.02004836978 | S31: 0.01956778235 | T31: 0.01954500105 | U31: 0.01972162894 | V31: 0.01899450345 | W31: 0.01726275494 | X31: 0.01584325795 | Y31: 0.01135200817 | Z31: 0.008264203032 | AA31: 0.009385132883 | AB31: 0.01009457977 | AC31: 0.01042986236 | AD31: 0.01075572753 | AE31: 0.0113446324 | AF31: 0.01163845318 | AG31: 0.01140932329 | AH31: 0.01097368706 | AI31: 0.01092610355 | AJ31: 0.01059354844 | AK31: 0.01038399838 | AL31: 0.01013454018 | AM31: 0.00998871829 | AN31: 0.009832806494 | AO31: 0.009899431767 | AP31: 0.009991289756 | AQ31: 0.01009285288
A32: 0.1000000238 | C32: 25 | D32: 0.01513400208 | E32: 0.01720561674 | F32: 0.01556751045 | G32: 0.01548721841 | H32: 0.01460723668 | I32: 0.0122171625 | J32: 0.0100745015 | K32: 0.01260594222 | L32: 0.01412734254 | M32: 0.01698055044 | N32: 0.01212298473 | O32: 0.01364147627 | P32: 0.01564595314 | Q32: 0.01928682693 | R32: 0.0185140694 | S32: 0.01816024538 | T32: 0.01762460198 | U32: 0.01753178452 | V32: 0.01766745657 | W32: 0.01699639306 | X32: 0.01539145093 | Y32: 0.01401628546 | Z32: 0.01003129132 | AA32: 0.007309582087 | AB32: 0.008277952076 | AC32: 0.008873225582 | AD32: 0.00913930739 | AE32: 0.009362673226 | AF32: 0.009814805688 | AG32: 0.01005256808 | AH32: 0.009874390533 | AI32: 0.009492444419 | AJ32: 0.009461235376 | AK32: 0.009176436666 | AL32: 0.008998430644 | AM32: 0.008782836423 | AN32: 0.008653802947 | AO32: 0.008516349849 | AP32: 0.008572045472 | AQ32: 0.008649126279
A33: 0.1000000238 | C33: 26 | D33: 0.0132177081 | E33: 0.0144326694 | F33: 0.01614174093 | G33: 0.01432328314 | H33: 0.01443629561 | I33: 0.01362839336 | J33: 0.01128397704 | K33: 0.009183047666 | L33: 0.01146867787 | M33: 0.01281876788 | N33: 0.01542522805 | O33: 0.01100013722 | P33: 0.01238116329 | Q33: 0.01413686265 | R33: 0.01740066332 | S33: 0.01661457687 | T33: 0.01618617881 | U33: 0.01563081441 | V33: 0.01552176728 | W33: 0.01562553572 | X33: 0.01497110204 | Y33: 0.01343557338 | Z33: 0.01222065566 | AA33: 0.008757594373 | AB33: 0.00636201093 | AC33: 0.00717765966 | AD33: 0.007667157522 | AE33: 0.007839174752 | AF33: 0.007974463574 | AG33: 0.008342660379 | AH33: 0.008563305823 | AI33: 0.008406406015 | AJ33: 0.008091396004 | AK33: 0.008067860135 | AL33: 0.007828537298 | AM33: 0.00767747658 | AN33: 0.007491071722 | AO33: 0.007378576124 | AP33: 0.007259550378 | AQ33: 0.007304651642
A34: 0.1000000238 | C34: 27 | D34: 0.01040065847 | E34: 0.01260517939 | F34: 0.01354025339 | G34: 0.01485161848 | H34: 0.013351342 | I34: 0.0134689072 | J34: 0.01258741363 | K34: 0.01028550137 | L34: 0.008354584986 | M34: 0.01040636759 | N34: 0.01164464123 | O34: 0.01399652222 | P34: 0.009983853102 | Q34: 0.01118696978 | R34: 0.01275434204 | S34: 0.01561540319 | T34: 0.01480852855 | U34: 0.01435511324 | V34: 0.0138387432 | W34: 0.01372783503 | X34: 0.01376359613 | Y34: 0.01306864056 | Z34: 0.01171433875 | AA34: 0.01066896991 | AB34: 0.007622311434 | AC34: 0.005516382408 | AD34: 0.006202056596 | AE34: 0.006576448859 | AF34: 0.00667685521 | AG34: 0.006778355416 | AH34: 0.007106716578 | AI34: 0.007290234809 | AJ34: 0.007165652706 | AK34: 0.006899759774 | AL34: 0.006882796262 | AM34: 0.006679321555 | AN34: 0.006548286332 | AO34: 0.006387185297 | AP34: 0.006289683497 | AQ34: 0.006186211537
A35: 0.1100000143 | C35: 28 | D35: 0.004104632419 | E35: 0.009918676136 | F35: 0.01182576267 | G35: 0.01245805383 | H35: 0.01384382586 | I35: 0.01245665725 | J35: 0.01244010953 | K35: 0.01147360188 | L35: 0.009357579145 | M35: 0.007580724071 | N35: 0.009453203168 | O35: =O69*(1-O$41-O$71)/SUM(O$42:O$70) -> 0.01056609855 | P35: 0.01270340715 | Q35: 0.009020886024 | R35: 0.01009293522 | S35: 0.01144578167 | T35: 0.01391796768 | U35: 0.01313331001 | V35: 0.01270930102 | W35: 0.01223932689 | X35: 0.01209202554 | Y35: 0.01201457917 | Z35: 0.01139441379 | AA35: 0.01022694126 | AB35: 0.009285907512 | AC35: 0.006609165744 | AD35: 0.00476658375 | AE35: 0.005319769146 | AF35: 0.005601354507 | AG35: 0.00567537832 | AH35: 0.005774159396 | AI35: 0.006050190621 | AJ35: 0.006214224092 | AK35: 0.006110352561 | AL35: 0.005886274673 | AM35: 0.005872413668 | AN35: 0.005696938256 | AO35: 0.005583329026 | AP35: 0.005444597071 | AQ35: 0.005359741386
A36: 0.1100000143 | C36: 29 | D36: 0.003459439613 | E36: 0.003914417507 | F36: 0.009282382075 | G36: 0.01081521146 | H36: 0.01157110732 | I36: 0.01286993631 | J36: 0.01143942523 | K36: 0.01125379136 | L36: 0.01035601279 | M36: 0.008421182189 | N36: 0.006832790081 | O36: 0.008510905929 | P36: 0.0095121224 | Q36: 0.01137605446 | R36: 0.00806356555 | S36: 0.008972458013 | T36: 0.01009403338 | U36: 0.01220262993 | V36: 0.01148978955 | W36: 0.01110848428 | X36: 0.01064920829 | Y36: 0.01041322149 | Z36: 0.01033400037 | AA36: 0.009817063108 | AB36: 0.008781911586 | AC36: 0.007940883679 | AD36: 0.005630297176 | AE36: 0.004027777749 | AF36: 0.004459610598 | AG36: 0.004684289589 | AH36: 0.004757320012 | AI36: 0.004836723 | AJ36: 0.005075373299 | AK36: 0.005215146191 | AL36: 0.00513061267 | AM36: 0.004943172628 | AN36: 0.004929807734 | AO36: 0.004780663449 | AP36: 0.004684063548 | AQ36: 0.004565999672
A37: 0.6999999881 | C37: 30 | D37: 0.004692138638 | E37: =D37 -> 0.004692138638 | F37: =E37 -> 0.004692138638 | G37: 0.004692138638 | H37: 0.004692138638 | I37: 0.004692138638 | J37: 0.004692138638 | K37: 0.004692138638 | L37: 0.004692138638 | M37: 0.004692138638 | N37: 0.004692138638 | O37: 0.004692138638 | P37: 0.004692138638 | Q37: 0.004692138638 | R37: 0.004692138638 | S37: 0.004692138638 | T37: 0.004692138638 | U37: 0.004692138638 | V37: 0.004692138638 | W37: 0.004692138638 | X37: 0.004692138638 | Y37: 0.004692138638 | Z37: 0.004692138638 | AA37: 0.004692138638 | AB37: 0.004692138638 | AC37: 0.004692138638 | AD37: 0.004692138638 | AE37: 0.004692138638 | AF37: 0.004692138638 | AG37: 0.004692138638 | AH37: 0.004692138638 | AI37: 0.004692138638 | AJ37: 0.004692138638 | AK37: 0.004692138638 | AL37: 0.004692138638 | AM37: 0.004692138638 | AN37: 0.004692138638 | AO37: 0.004692138638 | AP37: 0.004692138638 | AQ37: 0.004692138638
C39: Intermediate table
C40: age | D40: 2011 | E40: 2012 | F40: 2013 | G40: 2014 | H40: 2015 | I40: 2016 | J40: 2017 | K40: 2018 | L40: 2019 | M40: 2020 | N40: 2021 | O40: 2022 | P40: 2023 | Q40: 2024 | R40: 2025 | S40: 2026 | T40: 2027 | U40: 2028 | V40: 2029 | W40: 2030 | X40: 2031 | Y40: 2032 | Z40: 2033 | AA40: 2034 | AB40: 2035 | AC40: 2036 | AD40: 2037 | AE40: 2038 | AF40: 2039 | AG40: 2040 | AH40: 2041 | AI40: 2042 | AJ40: 2043 | AK40: 2044 | AL40: 2045 | AM40: 2046 | AN40: 2047 | AO40: 2048 | AP40: 2049 | AQ40: 2050
C41: 0 | D41: =D7 -> 0.0476869531 | E41: =E2 -> 0.04942320449 | F41: =F2 -> 0.05135853962 | G41: 0.0555496448 | H41: 0.05803412026 | I41: 0.05793516872 | J41: 0.05700758104 | K41: 0.05820026658 | L41: 0.05774131166 | M41: 0.05764514428 | N41: 0.05696328021 | O41: 0.0565968526 | P41: 0.05620483968 | Q41: 0.05714827558 | R41: 0.05822750177 | S41: 0.05910707223 | T41: 0.05985523817 | U41: 0.06041670181 | V41: 0.06088466762 | W41: 0.0611187673 | X41: 0.06135211825 | Y41: 0.06185540713 | Z41: 0.06198267611 | AA41: 0.06220090926 | AB41: 0.06260187862 | AC41: 0.06284306157 | AD41: 0.06308995934 | AE41: 0.0635239864 | AF41: 0.06356393124 | AG41: 0.06354489026 | AH41: 0.06251249893 | AI41: 0.06253776264 | AJ41: 0.06250227756 | AK41: 0.06250258597 | AL41: 0.06250112204 | AM41: 0.0625035582 | AN41: 0.06250235207 | AO41: 0.06250312874 | AP41: 0.06250399983 | AQ41: 0.06250496147
C42: 1 | D42: =D8 -> 0.04210254923 | E42: =MAX(D7*(1-D$3*$A7),0) -> 0.0476869531 | F42: =MAX(E7*(1-E$3*$A7),0) -> 0.04942320449 | G42: 0.05135853962 | H42: 0.0555496448 | I42: 0.05803412026 | J42: 0.05793516872 | K42: 0.05700758104 | L42: 0.05820026658 | M42: 0.05774131166 | N42: 0.05764514428 | O42: 0.05696328021 | P42: 0.0565968526 | Q42: 0.05620483968 | R42: 0.05714827558 | S42: 0.05822750177 | T42: 0.05910707223 | U42: 0.05985523817 | V42: 0.06041670181 | W42: 0.06088466762 | X42: 0.0611187673 | Y42: 0.06135211825 | Z42: 0.06185540713 | AA42: 0.06198267611 | AB42: 0.06220090926 | AC42: 0.06260187862 | AD42: 0.06284306157 | AE42: 0.06308995934 | AF42: 0.0635239864 | AG42: 0.06356393124 | AH42: 0.06354489026 | AI42: 0.06251249893 | AJ42: 0.06253776264 | AK42: 0.06250227756 | AL42: 0.06250258597 | AM42: 0.06250112204 | AN42: 0.0625035582 | AO42: 0.06250235207 | AP42: 0.06250312874 | AQ42: 0.06250399983
C43: 2 | D43: 0.03529699147 | E43: =MAX(D8*(1-D$3*$A8),0) -> 0.04210254923 | F43: 0.04547706714 | G43: 0.04751287532 | H43: 0.05009321564 | I43: 0.05363399466 | J43: 0.0560820654 | K43: 0.05656804315 | L43: 0.05588316494 | M43: 0.05713350243 | N43: 0.05668955294 | O43: 0.05643968913 | P43: 0.05570820933 | Q43: 0.05553487205 | R43: 0.0553000789 | S43: 0.05631831042 | T43: 0.05715555117 | U43: 0.05823656644 | V43: 0.05914207124 | W43: 0.05982854675 | X43: 0.06016838736 | Y43: 0.06041147291 | Z43: 0.06077081403 | AA43: 0.06121027541 | AB43: 0.06121553093 | AC43: 0.06139159128 | AD43: 0.06174764121 | AE43: 0.06195908862 | AF43: 0.06215245144 | AG43: 0.06263036536 | AH43: 0.06275697133 | AI43: 0.06278199229 | AJ43: 0.06177352461 | AK43: 0.06176603761 | AL43: 0.06173571542 | AM43: 0.06173085271 | AN43: 0.06171513729 | AO43: 0.06170857889 | AP43: 0.06171486458 | AQ43: 0.0617094796
C44: 3 | D44: 0.04582777247 | E44: 0.03529699147 | F44: 0.04015145304 | G44: 0.04371926594 | H44: 0.04634229724 | I44: 0.04836573248 | J44: 0.05182994388 | K44: 0.05475866844 | L44: 0.05545229649 | M44: 0.05485887141 | N44: 0.05609281497 | O44: 0.05550408078 | P44: 0.05519615452 | Q44: 0.05466290324 | R44: 0.05464089612 | S44: 0.05449695513 | T44: 0.05528150745 | U44: 0.05631378663 | V44: 0.05754268577 | W44: 0.05856632467 | X44: 0.05912469127 | Y44: 0.05947209121 | Z44: 0.0598390812 | AA44: 0.06013699426 | AB44: 0.06045269005 | AC44: 0.06041903406 | AD44: 0.06055386891 | AE44: 0.06087907683 | AF44: 0.0610383853 | AG44: 0.06127812441 | AH44: 0.0618352573 | AI44: 0.06200353284 | AJ44: 0.06203983222 | AK44: 0.06101123038 | AL44: 0.06100850512 | AM44: 0.06097345088 | AN44: 0.06095455449 | AO44: 0.06093018586 | AP44: 0.06093109241 | AQ44: 0.06093122462
C45: 4 | D45: 0.06005345657 | E45: 0.04582777247 | F45: 0.03366127518 | G45: 0.03859950001 | H45: 0.04264215128 | I45: 0.0447441659 | J45: 0.04673888671 | K45: 0.05060688639 | L45: 0.05367860984 | M45: 0.05443590042 | N45: 0.05385961637 | O45: 0.05491982158 | P45: 0.05428116041 | Q45: 0.0541604566 | R45: 0.05378296387 | S45: 0.05384734566 | T45: 0.05349368276 | U45: 0.05446734309 | V45: 0.05564281561 | W45: 0.05698250918 | X45: 0.05787731865 | Y45: 0.05844047325 | Z45: 0.05890860003 | AA45: 0.0592149791 | AB45: 0.05939269266 | AC45: 0.05966611877 | AD45: 0.05959458277 | AE45: 0.05970209656 | AF45: 0.05997442233 | AG45: 0.06017973035 | AH45: 0.06050018339 | AI45: 0.0610928846 | AJ45: 0.06127057512 | AK45: 0.06127425172 | AL45: 0.06026295526 | AM45: 0.06025521961 | AN45: 0.0602066774 | AO45: 0.06017927688 | AP45: 0.06016250661 | AQ45: 0.0601574046
C46: 5 | D46: 0.06168784201 | E46: 0.06005345657 | F46: 0.04359866213 | G46: 0.0321767531 | H46: 0.03751839316 | I46: 0.04102942994 | J46: 0.04300537995 | K46: 0.04531584907 | L46: 0.04924543536 | M46: 0.05229533726 | N46: 0.05305852292 | O46: 0.05235270101 | P46: 0.05330677807 | Q46: 0.0528276383 | R46: 0.0528383193 | S46: 0.05254729529 | T46: 0.05235189352 | U46: 0.05216597898 | V46: 0.05324818711 | W46: 0.05452231655 | X46: 0.05569919481 | Y46: 0.05652833667 | Z46: 0.05719836294 | AA46: 0.05761780574 | AB46: 0.05779106447 | AC46: 0.05791106501 | AD46: 0.05812456566 | AE46: 0.05799647409 | AF46: 0.05801435553 | AG46: 0.05830844892 | AH46: 0.05859700892 | AI46: 0.05894608222 | AJ46: 0.05954394063 | AK46: 0.05968735311 | AL46: 0.05969830024 | AM46: 0.05870982326 | AN46: 0.05868777635 | AO46: 0.05862966032 | AP46: 0.0586092977 | AQ46: 0.05858529485
C47: 6 | D47: 0.06377423555 | E47: 0.06168784201 | F47: 0.05699430041 | G47: 0.04143830129 | H47: 0.03116706096 | I47: 0.03597434611 | J47: 0.03922065138 | K47: 0.04140146921 | L47: 0.04377143979 | M47: 0.04761000114 | N47: 0.05060146672 | O47: 0.05119906044 | P47: 0.05043089725 | Q47: 0.05145216295 | R47: 0.05109883193 | S47: 0.05117776033 | T47: 0.0505959809 | U47: 0.05052418214 | V47: 0.05045224148 | W47: 0.05162200171 | X47: 0.05270793089 | Y47: 0.05374734116 | Z47: 0.05466099769 | AA47: 0.05528828344 | AB47: 0.05555991163 | AC47: 0.05565965848 | AD47: 0.05570887571 | AE47: 0.05582479015 | AF47: 0.05557924522 | AG47: 0.05560741696 | AH47: 0.05598167538 | AI47: 0.05629007776 | AJ47: 0.0566538689 | AK47: 0.05720150938 | AL47: 0.05734911742 | AM47: 0.05735824959 | AN47: 0.05639364593 | AO47: 0.05635975912 | AP47: 0.05630925008 | AQ47: 0.05628051784
C48: 7 | D48: 0.06196224689 | E48: 0.06377423555 | F48: 0.05854542935 | G48: 0.05417017121 | H48: 0.0401379859 | I48: 0.02988439918 | J48: 0.03438842044 | K48: 0.0377578943 | L48: 0.03999046589 | M48: 0.04231779622 | N48: 0.04606789083 | O48: 0.048828113 | P48: 0.04931960542 | Q48: 0.04867633792 | R48: 0.04976836958 | S48: 0.04949294013 | T48: 0.04927730285 | U48: 0.04882957201 | V48: 0.04886438034 | W48: 0.04891144351 | X48: 0.0499041323 | Y48: 0.0508608994 | Z48: 0.05197186871 | AA48: 0.05283565085 | AB48: 0.05331359122 | AC48: 0.05351079332 | AD48: 0.05354308362 | AE48: 0.05350468017 | AF48: 0.05349807467 | AG48: 0.05327333615 | AH48: 0.05338842694 | AI48: 0.05377770842 | AJ48: 0.05410114745 | AK48: 0.05442513174 | AL48: 0.05496065593 | AM48: 0.0551011499 | AN48: 0.05509539357 | AO48: 0.0541566319 | AP48: 0.05412918569 | AQ48: 0.05407186023
C49: 8 | D49: 0.05742748082 | E49: 0.06196224689 | F49: 0.06037889106 | G49: 0.05532540825 | H49: 0.05228771472 | I49: 0.03835229034 | J49: =MAX(I14*(1-I$3*$A14),0) -> 0.02841082356 | K49: 0.03287035664 | L49: 0.0362000222 | M49: 0.03836484554 | N49: 0.04064716586 | O49: 0.04412786024 | P49: 0.0466773968 | Q49: 0.04720847677 | R49: 0.04667869305 | S49: 0.04778364423 | T49: 0.04719167619 | U49: 0.04705961452 | V49: 0.04671427419 | W49: 0.04686376942 | X49: 0.04675765212 | Y49: 0.04756972108 | Z49: 0.04858166597 | AA49: 0.04963957423 | AB49: 0.05033197819 | AC49: 0.05071102534 | AD49: 0.05082359591 | AE49: 0.05074190705 | AF49: 0.05055719238 | AG49: 0.05054501953 | AH49: 0.05042272097 | AI49: 0.05055610009 | AJ49: 0.05095871844 | AK49: 0.05124248403 | AL49: 0.05156074712 | AM49: 0.05206844452 | AN49: 0.05218689715 | AO49: 0.05216749845 | AP49: 0.05128273139 | AQ49: 0.05124669428
C50: 9 | D50: 0.05378770828 | E50: 0.05742748082 | F50: 0.0586633728 | G50: 0.05705802886 | H50: 0.05340280636 | I50: 0.04996149087 | J50: 0.03646116983 | K50: 0.02715663851 | L50: 0.03151414193 | M50: 0.03472848413 | N50: 0.03685027056 | O50: 0.03893541514 | P50: 0.04218417456 | Q50: 0.04467936804 | R50: 0.04527107194 | S50: 0.04481718168 | T50: 0.04556185709 | U50: 0.04506784993 | V50: 0.04502099129 | W50: 0.04480169316 | X50: 0.04480014635 | Y50: 0.04457042668 | Z50: 0.04543797548 | AA50: 0.04640151055 | AB50: 0.04728735102 | AC50: 0.04787496327 | AD50: 0.04816442628 | AE50: 0.0481646929 | AF50: 0.04794661603 | AG50: 0.04776647182 | AH50: 0.04784039447 | AI50: 0.04774772875 | AJ50: 0.04790598457 | AK50: 0.04826609859 | AL50: 0.04854560157 | AM50: 0.04884745015 | AN50: 0.04931458896 | AO50: 0.04941356618 | AP50: 0.0493991542 | AQ50: 0.04855181958
C51: 10 | D51: 0.05172192305 | E51: 0.05378770828 | F51: 0.05437003797 | G51: 0.05543686477 | H51: 0.05507521702 | I51: 0.05102697328 | J51: 0.04749793004 | K51: 0.03485160529 | L51: 0.02603616899 | M51: 0.03023308582 | N51: 0.03335746615 | O51: 0.0352984163 | P51: 0.03722043942 | Q51: 0.04037847845 | R51: 0.04284575618 | S51: 0.04346569546 | T51: 0.0427333256 | U51: 0.04351137964 | V51: 0.04311550998 | W51: 0.04317773684 | X51: 0.04282887261 | Y51: 0.04270448895 | Z51: 0.04257308869 | AA51: 0.04339889661 | AB51: 0.04420272637 | AC51: 0.04497896317 | AD51: 0.04547078517 | AE51: 0.04564464121 | AF51: 0.04551137651 | AG51: 0.0452999974 | AH51: 0.04521052471 | AI51: 0.0453023981 | AJ51: 0.0452448261 | AK51: 0.04537466885 | AL51: 0.04572586274 | AM51: 0.04599097153 | AN51: 0.04626395023 | AO51: 0.04669389901 | AP51: 0.04679136336 | AQ51: 0.04676854678
C52: 11 | D52: 0.04918669909 | E52: 0.05172192305 | F52: 0.05080036079 | G52: 0.05108338442 | H52: 0.05332349751 | I52: 0.05244132995 | J52: 0.0482442932 | K52: 0.04507583483 | L52: 0.03316346113 | M52: 0.02478407463 | N52: 0.02882525288 | O52: 0.03171696626 | P52: 0.03348462054 | Q52: 0.03532894097 | R52: 0.03838566653 | S52: 0.04077496157 | T52: 0.04103773474 | U52: 0.04037886758 | V52: 0.04117096944 | W52: 0.0409017634 | X52: 0.0408119756 | Y52: 0.04032282095 | Z52: 0.04028773321 | AA52: 0.04017374167 | AB52: 0.04083593672 | AC52: 0.04151735798 | AD52: 0.04217188464 | AE52: 0.04251216622 | AF52: 0.04251807422 | AG52: 0.04237518904 | AH52: 0.04225973469 | AI52: 0.04219347727 | AJ52: 0.0423146109 | AK52: 0.04224332884 | AL52: 0.04237608455 | AM52: 0.04270572678 | AN52: 0.04294052387 | AO52: 0.04318199335 | AP52: 0.0435861595 | AQ52: 0.04366709174
C53: 12 | D53: 0.04781564325 | E53: 0.04918669909 | F53: 0.04884930844 | G53: 0.04772949323 | H53: 0.04913598078 | I53: 0.05077338371 | J53: 0.04958152003 | K53: 0.04578413817 | L53: 0.04289244882 | M53: 0.03156861118 | N53: 0.02362998018 | O53: 0.02740764448 | P53: 0.03008720195 | Q53: 0.03178297196 | R53: 0.03358534048 | S53: 0.03653043422 | T53: 0.0384973032 | U53: 0.03877669789 | V53: 0.03820695039 | W53: 0.03905706442 | X53: 0.03866070554 | Y53: 0.03842393891 | Z53: 0.03804084987 | AA53: 0.03801718495 | AB53: 0.03780124613 | AC53: 0.03835510481 | AD53: 0.03892631372 | AE53: 0.03942791317 | AF53: 0.03960016752 | AG53: 0.03958815511 | AH53: 0.03953122184 | AI53: 0.03943960321 | AJ53: 0.03941072986 | AK53: 0.03950750123 | AL53: 0.03945167911 | AM53: 0.03957719724 | AN53: 0.03987317986 | AO53: 0.04007996305 | AP53: 0.04030799075 | AQ53: 0.04067590019
C54: 13 | D54: 0.03623586521 | E54: 0.04781564325 | F54: 0.04634178425 | G54: 0.04563018676 | H54: 0.04574903919 | I54: 0.04662228381 | J54: 0.047739278 | K54: 0.04671358914 | L54: 0.0432377814 | M54: 0.04051059213 | N54: 0.02987483846 | O54: 0.02230088084 | P54: 0.02579819851 | Q54: 0.02831709624 | R54: 0.02995013549 | S54: 0.03167824859 | T54: 0.0341478604 | U54: 0.03598771223 | V54: 0.03628502956 | W54: 0.03584778843 | X54: 0.0364969565 | Y54: 0.03594485715 | Z54: 0.03579681954 | AA54: 0.03546014177 | AB54: 0.03532839533 | AC54: 0.0350536196 | AD54: 0.0354938345 | AE54: 0.03589720988 | AF54: 0.03619847038 | AG54: 0.03632837894 | AH54: 0.03639265341 | AI54: 0.03635231116 | AJ54: 0.03630475548 | AK54: 0.03626422786 | AL54: 0.03636507167 | AM54: 0.03631629206 | AN54: 0.03642032331 | AO54: 0.03667968669 | AP54: 0.03687177752 | AQ54: 0.03707172786
C55: 14 | D55: 0.02948282287 | E55: 0.03623586521 | F55: 0.04505002905 | G55: 0.04328790596 | H55: 0.04373683986 | I55: 0.04340861127 | J55: 0.0438362387 | K55: 0.04497790744 | L55: 0.04411553949 | M55: 0.04083674807 | N55: 0.03833704906 | O55: 0.02819448885 | P55: 0.0209913169 | Q55: 0.02428042565 | R55: 0.02668412728 | S55: 0.02824946312 | T55: 0.02961214214 | U55: 0.03192180416 | V55: 0.03367525532 | W55: 0.03404454032 | X55: 0.03349804176 | Y55: 0.03393310778 | Z55: 0.03348723742 | AA55: 0.03336834745 | AB55: 0.03295220066 | AC55: 0.03276051077 | AD55: 0.03243863832 | AE55: 0.03273183368 | AF55: 0.03295695826 | AG55: 0.03320773197 | AH55: 0.03339600192 | AI55: 0.03346613131 | AJ55: 0.03346285612 | AK55: =MAX(AJ20*(1-AJ$3*$A20),0) -> 0.03340623048 | AL55: 0.03337976849 | AM55: 0.03347499 | AN55: 0.03341952413 | AO55: 0.03350337376 | AP55: 0.033743675 | AQ55: 0.03391140259
C56: 15 | D56: 0.02437577397 | E56: 0.02948282287 | F56: 0.03414001505 | G56: 0.04208127617 | H56: 0.04149174802 | I56: 0.04149935197 | J56: 0.04081460816 | K56: 0.04130063061 | L56: 0.04247639045 | M56: 0.04166576346 | N56: 0.03864570553 | O56: 0.03618073128 | P56: 0.02653883739 | Q56: 0.01975634497 | R56: 0.02288024037 | S56: 0.02516891016 | T56: 0.02640698759 | U56: 0.02768176369 | V56: 0.02987060968 | W56: 0.03159591163 | X56: 0.03181299275 | Y56: 0.03114486166 | Z56: 0.03161303526 | AA56: 0.0312154484 | AB56: 0.03100834983 | AC56: 0.03055703251 | AD56: 0.03031659419 | AE56: 0.02991438173 | AF56: 0.03005085019 | AG56: 0.03023403545 | AH56: 0.0305272493 | AI56: 0.03071045611 | AJ56: 0.03080608361 | AK56: 0.03079122471 | AL56: 0.03074909644 | AM56: 0.03072694113 | AN56: 0.03080485844 | AO56: 0.03074291236 | AP56: 0.03082160884 | AQ56: 0.03103445032
C57: 16 | D57: 0.03168043122 | E57: 0.02437577397 | F57: 0.02770976648 | G57: 0.03170418214 | H57: 0.04019331915 | I57: 0.03923075959 | J57: 0.03880263744 | K57: 0.03817423865 | L57: 0.03870715414 | M57: 0.03980159934 | N57: 0.03913492556 | O57: 0.03619892067 | P57: 0.03379061698 | Q57: 0.02476481653 | R57: 0.01845279814 | S57: 0.0213876355 | T57: 0.02329171256 | U57: 0.02441904413 | V57: 0.0256132375 | W57: 0.02771546578 | X57: 0.02918500015 | Y57: 0.02920485416 | Z57: 0.02864855924 | AA57: 0.02910540765 | AB57: 0.02864343915 | AC57: 0.02838438981 | AD57: 0.02790498055 | AE57: 0.02757093123 | AF57: 0.02706303134 | AG57: 0.0271560163 | AH57: 0.0273822617 | AI57: 0.02765472428 | AJ57: 0.02785384745 | AK57: 0.02793069268 | AL57: 0.02792778974 | AM57: 0.02789252165 | AN57: 0.02786310291 | AO57: 0.02792258012 | AP57: 0.02786741506 | AQ57: 0.02793034227
C58: 17 | D58: 0.02439296991 | E58: 0.03168043122 | F58: 0.02290984847 | G58: 0.02573272103 | H58: 0.03028178865 | I58: 0.03800308533 | J58: 0.03668146293 | K58: 0.0362924259 | L58: 0.03577708422 | M58: 0.03626971652 | N58: 0.03738399342 | O58: 0.03665716659 | P58: 0.03380760477 | Q58: 0.03153184208 | R58: 0.02313080487 | S58: 0.01724901987 | T58: 0.01979246043 | U58: 0.02153829 | V58: 0.02259432542 | W58: 0.02376526007 | X58: 0.02560064994 | Y58: 0.02679231344 | Z58: 0.02686404593 | AA58: 0.02637608152 | AB58: 0.02670725604 | AC58: 0.02621960043 | AD58: 0.02592090201 | AE58: 0.02537772861 | AF58: 0.02494295161 | AG58: 0.02445601757 | AH58: 0.02459457145 | AI58: 0.02480567084 | AJ58: 0.02508235205 | AK58: 0.02525401356 | AL58: 0.02533327336 | AM58: 0.02533331286 | AN58: 0.02529285938 | AO58: 0.02525607202 | AP58: 0.02531087882 | AQ58: 0.025253271
C59: 18 | D59: 0.02007924765 | E59: 0.02439296991 | F59: 0.02970236407 | G59: 0.02115042643 | H59: 0.02449148318 | I59: 0.02853068366 | J59: 0.03533502646 | K59: 0.0340572412 | L59: 0.03375291448 | M59: 0.0332579633 | N59: 0.0338095723 | O59: 0.03475290178 | P59: 0.03396659218 | Q59: 0.03127677021 | R59: 0.0291891807 | S59: 0.02142635089 | T59: 0.0158010275 | U59: 0.01810271516 | V59: 0.01970336521 | W59: 0.02072912567 | X59: 0.02169622814 | Y59: 0.02320139306 | Z59: 0.02432927627 | AA59: 0.02442466368 | AB59: 0.02389501128 | AC59: 0.02412850966 | AD59: 0.02362435815 | AE59: 0.02324284971 | AF59: 0.02261849549 | AG59: 0.02219818462 | AH59: 0.02181652968 | AI59: 0.02194379386 | AJ59: 0.0221626228 | AK59: 0.02240260096 | AL59: 0.02256571744 | AM59: 0.02263971732 | AN59: 0.02263175031 | AO59: 0.02258550786 | AP59: 0.02255309876 | AQ59: 0.02259439923
C60: 19 | D60: 0.0147900423 | E60: 0.02007924765 | F60: 0.02286991828 | G60: 0.02742129294 | H60: 0.02013021913 | I60: 0.02307521418 | J60: 0.02652764778 | K60: 0.03280712989 | L60: 0.03167413369 | M60: 0.03137631855 | N60: 0.03100210376 | O60: 0.03143004901 | P60: 0.03220209721 | Q60: 0.03142385583 | R60: 0.02895305941 | S60: 0.02703829942 | T60: 0.0196276868 | U60: 0.01445204355 | V60: 0.01656047941 | W60: 0.01807681911 | X60: 0.01892442323 | Y60: 0.01966288818 | Z60: 0.02106847186 | AA60: 0.02212006307 | AB60: 0.02212715386 | AC60: 0.02158780406 | AD60: 0.02174024564 | AE60: 0.02118357632 | AF60: 0.02071573463 | AG60: 0.02012951581 | AH60: 0.01980238002 | AI60: 0.01946516657 | AJ60: 0.01960567926 | AK60: 0.01979481007 | AL60: 0.02001783843 | AM60: 0.02016642132 | AN60: 0.02022540172 | AO60: 0.0202092443 | AP60: 0.02016834561 | AQ60: 0.02013259677
C61: 20 | D61: 0.01675982215 | E61: 0.0147900423 | F61: 0.01877936428 | G61: 0.02098893767 | H61: 0.02600616171 | I61: 0.01889902442 | J61: 0.02133463548 | K61: 0.02444814938 | L61: 0.03027599083 | M61: 0.02920824186 | N61: 0.02902570255 | O61: 0.02860108104 | P61: 0.02889250571 | Q61: 0.02953339277 | R61: 0.02882796164 | S61: 0.02657486378 | T61: 0.02451539007 | U61: 0.01775392193 | V61: 0.01306953216 | W61: 0.01502111547 | X61: 0.01630858353 | Y61: 0.01692877194 | Z61: 0.01762364736 | AA61: 0.01891344396 | AB61: 0.01978120005 | AC61: 0.01972655762 | AD61: 0.01918784972 | AE61: 0.01921693559 | AF61: 0.01859629742 | AG61: 0.01815211286 | AH61: 0.01768312317 | AI61: 0.01739716589 | AJ61: 0.01712773397 | AK61: 0.01724637479 | AL61: 0.0174213066 | AM61: 0.0176206984 | AN61: 0.01774486598 | AO61: 0.01778794553 | AP61: 0.01777379285 | AQ61: 0.01773114839
C62: 21 | D62: 0.01880890876 | E62: 0.01675982215 | F62: 0.01383256967 | G62: 0.01723481919 | H62: 0.01990576113 | I62: 0.02441558545 | J62: 0.01747345848 | K62: 0.01966221656 | L62: 0.02256192324 | M62: 0.02791894709 | N62: 0.02702005141 | O62: 0.02677774635 | P62: 0.02629193792 | Q62: 0.0264980791 | R62: 0.0270936679 | S62: 0.02646004151 | T62: 0.02409519703 | U62: 0.02217501868 | V62: 0.01605554625 | W62: 0.01185466597 | X62: 0.01355178225 | Y62: 0.01458878234 | Z62: =MAX(Y27*(1-Y$3*$A27),0) -> 0.01517308669 | AA62: 0.01582097975 | AB62: 0.01691363254 | AC62: 0.01763511859 | AD62: 0.01753352134 | AE62: 0.01696078685 | AF62: 0.01686985447 | AG62: 0.01629496108 | AH62: 0.01594603917 | AI62: 0.0155353158 | AJ62: 0.0153080647 | AK62: 0.01506662001 | AL62: 0.01517844233 | AM62: 0.01533510176 | AN62: 0.01550482987 | AO62: 0.01560635057 | AP62: 0.01564428903 | AQ62: 0.01562595984
C63: 22 | D63: 0.01865534857 | E63: 0.01880890876 | F63: 0.01567483059 | G63: 0.01269488326 | H63: 0.01634538152 | I63: 0.01868829461 | J63: 0.02257390166 | K63: 0.01610371665 | L63: 0.0181452352 | M63: 0.02080543441 | N63: 0.02582734659 | O63: 0.02492742706 | P63: 0.02461581238 | Q63: 0.02411302978 | R63: 0.02430909855 | S63: 0.02486820213 | T63: 0.02399108867 | U63: 0.02179493953 | V63: 0.02005371205 | W63: 0.0145631179 | X63: 0.01069506803 | Y63: 0.01212269607 | Z63: 0.01307577773 | AA63: 0.01362107925 | AB63: 0.01414814978 | AC63: 0.01507865625 | AD63: 0.01567459129 | AE63: 0.01549847025 | AF63: 0.01488926288 | AG63: 0.01478216958 | AH63: 0.01431459189 | AI63: 0.01400921952 | AJ63: 0.01366979086 | AK63: 0.01346592575 | AL63: 0.01326005179 | AM63: 0.01336082092 | AN63: 0.01349368444 | AO63: 0.01363627151 | AP63: 0.0137256019 | AQ63: 0.013753791
C64: 23 | D64: 0.01735698991 | E64: 0.01865534857 | F64: 0.01754801279 | G64: 0.01430020697 | H64: 0.01199694064 | I64: 0.01529116929 | J64: 0.01718099114 | K64: 0.02064972733 | L64: 0.01474568034 | M64: 0.01659758736 | N64: 0.01909929283 | O64: 0.02364457384 | P64: 0.02273196592 | Q64: 0.02237854703 | R64: 0.02192060185 | S64: 0.02210689403 | T64: 0.02231495644 | U64: 0.02145864667 | V64: 0.01948183423 | W64: 0.0179810316 | X64: 0.01298193458 | Y64: 0.009441724814 | Z64: 0.01072265154 | AA64: 0.01158815953 | AB64: 0.01202190085 | AC64: 0.01244434602 | AD64: 0.01321851498 | AE64: 0.01365544855 | AF64: 0.01339772089 | AG64: 0.01284254012 | AH64: 0.0127845475 | AI64: 0.01238007855 | AJ64: 0.01213737011 | AK64: 0.01184026015 | AL64: 0.01167010409 | AM64: 0.01149413703 | AN64: 0.01157693145 | AO64: 0.01168567853 | AP64: 0.01180900027 | AQ64: 0.01188141903
C65: 24 | D65: 0.0180416964 | E65: 0.01735698991 | F65: 0.01740474683 | G65: 0.01600911814 | H65: 0.01351400644 | I65: 0.01122318559 | J65: 0.01405786079 | K65: 0.01571650252 | L65: 0.01890832315 | M65: 0.01348798817 | N65: 0.01523650865 | O65: 0.01748513492 | P65: 0.02156209887 | Q65: 0.02066591834 | R65: 0.0203438234 | S65: 0.01993477551 | T65: 0.01983715489 | U65: 0.01995944296 | V65: 0.01918123226 | W65: 0.01746826104 | X65: 0.01602874999 | Y65: 0.01146059599 | Z65: 0.008351304412 | AA65: 0.009502746164 | AB65: 0.01022765541 | AC65: 0.01057415254 | AD65: 0.01090917995 | AE65: 0.0115157549 | AF65: 0.01180451267 | AG65: 0.01155602997 | AH65: 0.01110703428 | AI65: 0.01105680857 | AJ65: 0.01072590769 | AK65: 0.01051293477 | AL65: 0.01026123795 | AM65: 0.01011593149 | AN65: 0.009959480578 | AO65: 0.01002574945 | AP65: 0.0101197883 | AQ65: 0.01022233352
C66: 25 | D66: 0.01513400208 | E66: 0.0180416964 | F66: 0.01619342646 | G66: 0.01587841607 | H66: 0.01512896465 | I66: 0.01264240667 | J66: 0.01031798011 | K66: 0.01285958433 | L66: 0.01439112021 | M66: 0.01729558983 | N66: 0.01238191093 | O66: 0.01394881014 | P66: 0.0159451471 | Q66: 0.01960237737 | R66: 0.01878691197 | S66: 0.01850084022 | T66: 0.01788805017 | U66: 0.01774319221 | V66: 0.01784113961 | W66: 0.01719872823 | X66: 0.01557165324 | Y66: 0.01415035847 | Z66: 0.0101370171 | AA66: 0.007401184832 | AB66: 0.008387079325 | AC66: 0.008995980737 | AD66: 0.009269698278 | AE66: 0.009503899837 | AF66: 0.009954845057 | AG66: 0.01018182893 | AH66: 0.009994379596 | AI66: 0.009605999097 | AJ66: 0.009579447139 | AK66: 0.009290378957 | AL66: 0.009110925255 | AM66: 0.008894691892 | AN66: 0.008765288164 | AO66: 0.008625019275 | AP66: 0.008682291038 | AQ66: 0.008760085435
C67: 26 | D67: 0.0132177081 | E67: 0.01513400208 | F67: 0.01679074477 | G67: 0.01468508052 | H67: 0.01495191806 | I67: 0.01410275841 | J67: 0.01155668602 | K67: 0.009367818278 | L67: 0.01168281448 | M67: 0.0130565939 | N67: 0.01575468452 | O67: 0.01124796338 | P67: 0.01261792542 | Q67: 0.01436815489 | R67: 0.01765709758 | S67: 0.01692618275 | T67: 0.01642812581 | U67: 0.01581929919 | V67: 0.01567435675 | W67: 0.01581155139 | X67: 0.01514638292 | Y67: 0.01356409158 | Z67: 0.01234945647 | AA67: 0.008867343422 | AB67: 0.006445880556 | AC67: 0.007276957791 | AD67: 0.007776545185 | AE67: 0.007957420904 | AF67: 0.008088244618 | AG67: 0.008449934397 | AH67: 0.008667363186 | AI67: 0.008506968809 | AJ67: 0.008192492547 | AK67: 0.008168037416 | AL67: 0.007926406392 | AM67: 0.00777525453 | AN67: 0.007587577704 | AO67: 0.007472727451 | AP67: 0.00735291587 | AQ67: 0.007398362608
C68: 27 | D68: 0.01040065847 | E68: 0.0132177081 | F68: 0.01408466037 | G68: 0.01522676128 | H68: 0.01382821307 | I68: 0.013937721 | J68: 0.01289162382 | K68: 0.01049245428 | L68: 0.008510577028 | M68: 0.01059943646 | N68: 0.01189335084 | O68: 0.01431185505 | P68: 0.01017477202 | Q68: 0.01136999902 | R68: 0.01294230328 | S68: 0.01590826959 | T68: 0.01502988277 | U68: 0.01452821492 | V68: 0.0139747874 | W68: 0.01389125934 | X68: 0.01392473959 | Y68: 0.01319364886 | Z68: 0.01183780318 | AA68: 0.01080267208 | AB68: 0.007722795451 | AC68: 0.005592697877 | AD68: 0.006290541601 | AE68: 0.006675648048 | AF68: 0.006772121751 | AG68: 0.006865514835 | AH68: 0.007193074138 | AI68: 0.00737744525 | AJ68: 0.00725518271 | AK68: 0.006985432946 | AL68: 0.006968842098 | AM68: 0.006764387313 | AN68: 0.006632646598 | AO68: 0.006468686384 | AP68: 0.006370575475 | AQ68: 0.006265574097
C69: 28 | D69: 0.004104632419 | E69: 0.01040065847 | F69: 0.01230123588 | G69: 0.01277273665 | H69: 0.01433828702 | I69: 0.01289023755 | J69: 0.0127407597 | K69: 0.01170446036 | L69: 0.009532298522 | M69: 0.007721368903 | N69: 0.009655107406 | O69: =MAX(N34*(1-N$3*$A34),0) -> 0.0108041461 | P69: 0.01294633148 | Q69: 0.009168476119 | R69: 0.0102416752 | S69: 0.01166044695 | T69: 0.01412601002 | U69: 0.01329167853 | V69: 0.01283424205 | W69: 0.01238503111 | X69: 0.01223359835 | Y69: 0.01212950482 | Z69: 0.01151450633 | AA69: 0.01035510398 | AB69: 0.009408322515 | AC69: 0.006700599142 | AD69: 0.004834588803 | AE69: 0.005400012572 | AF69: 0.005681275616 | AG69: 0.005748355117 | AH69: 0.005844324332 | AI69: 0.006122566862 | AJ69: 0.006291866636 | AK69: 0.006186223795 | AL69: 0.005959862413 | AM69: 0.005947202899 | AN69: 0.005770330775 | AO69: 0.005654572831 | AP69: 0.005514620345 | AQ69: 0.005428501208
C70: 29 | D70: 0.003459439613 | E70: =MAX(D35*(1-D$3*$A35),0) -> 0.004104632419 | F70: =MAX(E35*(1-E$3*$A35),0) -> 0.009655594707 | G70: 0.01108839709 | H70: 0.01198439358 | I70: 0.01331790165 | J70: 0.01171589106 | K70: 0.01148022707 | L70: 0.01054937435 | M70: 0.008577420003 | N70: 0.006978726781 | O70: 0.00870265128 | P70: 0.009694020522 | Q70: 0.0115621773 | R70: 0.008182398633 | S70: 0.009140736187 | T70: 0.01024491649 | U70: 0.01234977581 | V70: 0.01160274195 | W70: 0.01124072628 | X70: 0.01077388866 | Y70: 0.01051282933 | Z70: 0.01044291658 | AA70: 0.009940089283 | AB70: 0.008897682472 | AC70: 0.008050740506 | AD70: 0.005710624866 | AE70: 0.004088532769 | AF70: 0.004523241104 | AG70: 0.004744522481 | AH70: 0.004815128782 | AI70: 0.004894582968 | AJ70: 0.00513878667 | AK70: 0.005279901796 | AL70: 0.00519475344 | AM70: 0.005006127335 | AN70: 0.004993317463 | AO70: 0.004841665165 | AP70: 0.004744305557 | AQ70: 0.004624576625
C71: 30 | D71: 0.004692138638 | E71: =E37 -> 0.004692138638 | F71: =F37 -> 0.004692138638 | G71: 0.004692138638 | H71: 0.004692138638 | I71: 0.004692138638 | J71: 0.004692138638 | K71: 0.004692138638 | L71: 0.004692138638 | M71: 0.004692138638 | N71: 0.004692138638 | O71: 0.004692138638 | P71: 0.004692138638 | Q71: 0.004692138638 | R71: 0.004692138638 | S71: 0.004692138638 | T71: 0.004692138638 | U71: 0.004692138638 | V71: 0.004692138638 | W71: 0.004692138638 | X71: 0.004692138638 | Y71: 0.004692138638 | Z71: 0.004692138638 | AA71: 0.004692138638 | AB71: 0.004692138638 | AC71: 0.004692138638 | AD71: 0.004692138638 | AE71: 0.004692138638 | AF71: 0.004692138638 | AG71: 0.004692138638 | AH71: 0.004692138638 | AI71: 0.004692138638 | AJ71: 0.004692138638 | AK71: 0.004692138638 | AL71: 0.004692138638 | AM71: 0.004692138638 | AN71: 0.004692138638 | AO71: 0.004692138638 | AP71: 0.004692138638 | AQ71: 0.004692138638

Sheet 42 (hidden)
D1: 2011 | E1: 2012 | F1: 2013 | G1: 2014 | H1: 2015 | I1: 2016 | J1: 2017 | K1: 2018 | L1: 2019 | M1: 2020 | N1: 2021 | O1: 2022 | P1: 2023 | Q1: 2024 | R1: 2025 | S1: 2026 | T1: 2027 | U1: 2028 | V1: 2029 | W1: 2030 | X1: 2031 | Y1: 2032 | Z1: 2033 | AA1: 2034 | AB1: 2035 | AC1: 2036 | AD1: 2037 | AE1: 2038 | AF1: 2039 | AG1: 2040 | AH1: 2041 | AI1: 2042 | AJ1: 2043 | AK1: 2044 | AL1: 2045 | AM1: 2046 | AN1: 2047 | AO1: 2048 | AP1: 2049 | AQ1: 2050
C2: sales (age 0 pop) | D2: 0.06281848252 | E2: 0.04942464313 | F2: 0.05136923868 | G2: 0.05564990153 | H2: 0.05806115046 | I2: 0.05794135547 | J2: 0.05699570482 | K2: 0.05815873549 | L2: 0.05772930359 | M2: 0.05768490736 | N2: 0.05709961228 | O2: 0.05668820693 | P2: 0.05628820317 | Q2: 0.05720812957 | R2: 0.05826497959 | S2: 0.05909900771 | T2: 0.0599683568 | U2: 0.06054192819 | V2: 0.06096718191 | W2: 0.06102606463 | X2: 0.06123228164 | Y2: 0.06185451526 | Z2: 0.0619374621 | AA2: 0.062135956 | AB2: 0.06251593624 | AC2: 0.06281653223 | AD2: 0.06297406364 | AE2: 0.06349718118 | AF2: 0.06363272742 | AG2: 0.06358331394 | AH2: 0.06250946229 | AI2: 0.06261014311 | AJ2: 0.06250709322 | AK2: 0.0625039282 | AL2: 0.06250355037 | AM2: 0.06250330963 | AN2: 0.06250369768 | AO2: 0.06250370387 | AP2: 0.06250383283 | AQ2: 0.06250407994
C3: scrappage k factor | D3: 0 | E3: 0.2411258326 | F3: 0.5668406169 | G3: 0.3456399985 | H3: 0.3453617969 | I3: 0.540613516 | J3: 0.701457093 | K3: 0.7322955316 | L3: 0.7579262554 | M3: 0.7219233774 | N3: 0.721786887 | O3: 0.7503224568 | P3: 0.8166954979 | Q3: 0.8449958948 | R3: 0.8576646439 | S3: 0.9537972203 | T3: 1.024308159 | U3: 1.059462787 | V3: 1.050465146 | W3: 1.088471942 | X3: 1.187255788 | Y3: 1.189208511 | Z3: 1.160316834 | AA3: 1.181601512 | AB3: 1.209229091 | AC3: 1.235943036 | AD3: 1.293190123 | AE3: 1.361179946 | AF3: 1.390624541 | AG3: 1.377960884 | AH3: 1.384815998 | AI3: 1.36945923 | AJ3: 1.366838051 | AK3: 1.362217189 | AL3: 1.359321276 | AM3: 1.360902534 | AN3: 1.36480484 | AO3: 1.366117787 | AP3: 1.369197805
A5: default
A6: scrappage | C6: age | D6: 2011 | E6: 2012 | F6: 2013 | G6: 2014 | H6: 2015 | I6: 2016 | J6: 2017 | K6: 2018 | L6: 2019 | M6: 2020 | N6: 2021 | O6: 2022 | P6: 2023 | Q6: 2024 | R6: 2025 | S6: 2026 | T6: 2027 | U6: 2028 | V6: 2029 | W6: 2030 | X6: 2031 | Y6: 2032 | Z6: 2033 | AA6: 2034 | AB6: 2035 | AC6: 2036 | AD6: 2037 | AE6: 2038 | AF6: 2039 | AG6: 2040 | AH6: 2041 | AI6: 2042 | AJ6: 2043 | AK6: 2044 | AL6: 2045 | AM6: 2046 | AN6: 2047 | AO6: 2048 | AP6: 2049 | AQ6: 2050
A7: 0 | C7: 0 | D7: 0.06281848252 | E7: =E41 -> 0.04942464313 | F7: =F41 -> 0.05136923868 | G7: 0.05564990153 | H7: 0.05806115046 | I7: 0.05794135547 | J7: 0.05699570482 | K7: 0.05815873549 | L7: 0.05772930359 | M7: 0.05768490736 | N7: 0.05709961228 | O7: 0.05668820693 | P7: 0.05628820317 | Q7: 0.05720812957 | R7: 0.05826497959 | S7: 0.05909900771 | T7: 0.0599683568 | U7: 0.06054192819 | V7: 0.06096718191 | W7: 0.06102606463 | X7: 0.06123228164 | Y7: 0.06185451526 | Z7: 0.0619374621 | AA7: 0.062135956 | AB7: 0.06251593624 | AC7: 0.06281653223 | AD7: 0.06297406364 | AE7: 0.06349718118 | AF7: 0.06363272742 | AG7: 0.06358331394 | AH7: 0.06250946229 | AI7: 0.06261014311 | AJ7: 0.06250709322 | AK7: 0.0625039282 | AL7: 0.06250355037 | AM7: 0.06250330963 | AN7: 0.06250369768 | AO7: 0.06250370387 | AP7: 0.06250383283 | AQ7: 0.06250407994
A8: 0 | C8: 1 | D8: 0.03845430538 | E8: =E42*(1-E$41-E$71)/SUM(E$42:E$70) -> 0.05997178378 | F8: =F42*(1-F$41-F$71)/SUM(F$42:F$70) -> 0.04771709234 | G8: 0.05005264106 | H8: 0.05365958967 | I8: 0.05604371517 | J8: 0.05650828611 | K8: 0.05589012844 | L8: 0.05722197053 | M8: 0.05698318515 | N8: 0.05655183311 | O8: 0.05594690049 | P8: 0.05565780342 | Q8: 0.05541683996 | R8: 0.05634224834 | S8: 0.05741130624 | T8: 0.0583834087 | U8: 0.05933736766 | V8: 0.05976189264 | W8: 0.06009324335 | X8: 0.06038987904 | Y8: 0.06059382965 | Z8: 0.06111725261 | AA8: 0.06106862781 | AB8: 0.06132321719 | AC8: 0.06149634639 | AD8: 0.06192880115 | AE8: 0.06214286949 | AF8: 0.06264994446 | AG8: 0.06282090459 | AH8: 0.06292488389 | AI8: 0.06177430028 | AJ8: 0.06184372338 | AK8: 0.06174725178 | AL8: 0.06173866034 | AM8: 0.06172388648 | AN8: 0.06171448992 | AO8: 0.06172196841 | AP8: 0.0617151244 | AQ8: 0.06171609785
A9: 0 | C9: 2 | D9: 0.03933493793 | E9: =E43*(1-E$41-E$71)/SUM(E$42:E$70) -> 0.03671170005 | F9: 0.05789984435 | G9: 0.04649409952 | H9: 0.04826251453 | I9: 0.05179509424 | J9: 0.05465758033 | K9: 0.05541216446 | L9: 0.05498990403 | M9: 0.05648240908 | N9: 0.05586389446 | O9: 0.05541017975 | P9: 0.05492997147 | Q9: 0.05479619905 | R9: 0.05457807103 | S9: 0.05551674602 | T9: 0.05671614272 | U9: 0.05776909643 | V9: 0.05857285194 | W9: 0.05890523138 | X9: 0.05946678225 | Y9: 0.05976021054 | Z9: 0.05987159349 | AA9: 0.06025992389 | AB9: 0.06026984967 | AC9: 0.06032307972 | AD9: 0.06062727234 | AE9: 0.06111140341 | AF9: 0.06131370322 | AG9: 0.06185065991 | AH9: 0.06217036958 | AI9: 0.06218483619 | AJ9: 0.06101811223 | AK9: 0.06109194593 | AL9: 0.06099124831 | AM9: 0.06096853763 | AN9: 0.06094490344 | AO9: 0.06094263121 | AP9: 0.06094325172 | AQ9: 0.0609373295
